Workbook

Sheet COVER
B2: VALVOLA ALIMENTAZIONE DI UN MOTORE A SCOPPIO
B4: Autore: Hume
R5: Motore a scoppio. Viene evidenziato il flusso
R6: di alimentazione miscela che lambisce la relativa valvola
R7: (immagine da Wikipedia Inglese)
J8: x
L11: camma
H13: Ta
H14: miscela alimentazione
K15: materiale: Invar

Sheet valvola alim. dt=1s dx=0,005
AB1: DATI
B2: VALVOLA DI MOTORE A SCOPPIO | AA2: 2 | AB2: L | AC2: 0.1 | AD2: m | AE2: lunghezza valvola
B3: ELABORAZIONE CON FORMULE SHEET EXCEL | AA3: 3 | AB3: τ | AC3: 1024 | AD3: s | AE3: durata temporale integrazione
AA4: 4 | AB4: Nx | AC4: 21 | AD4: adim | AE4: numero punti reticolo x | AI4: D = K/(ρc) | AJ4: =AC15/AC14/AC16 -> 3.236245955e-06 | AK4: m^2/s | AL4: diffusività termica | AO4: TABELLA PER DIAGRAMMA VALVOLA
B5: Andamento della temperatura in funzione della ascissa x e del tempo t | AA5: 5 | AB5: Nt | AC5: 513 | AD5: adim | AE5: numero punti reticolo t | AI5: G = 4γa/(ρcd) | AJ5: =4*AC11/(AC14*AC16*AC10) -> 0.005327153835 | AK5: m^2/s | AL5: convettività laterale | AO5: x | AP5: =C7 -> 0 | AQ5: 0.005 | AR5: 0.01 | AS5: 0.015 | AT5: 0.02 | AU5: 0.025 | AV5: 0.03 | AW5: 0.035 | AX5: 0.04 | AY5: 0.045 | AZ5: 0.05 | BA5: 0.055 | BB5: 0.06 | BC5: 0.065 | BD5: 0.07 | BE5: 0.075 | BF5: 0.08 | BG5: 0.085 | BH5: 0.09 | BI5: 0.095 | BJ5: =W7 -> 0.1
AA6: 6 | AB6: T0 | AC6: 20 | AD6: °C | AE6: temperatura iniziale della valvola | AI6: B = G∆t | AJ6: =AJ15*AJ5 -> 0.005327153835 | AK6: m^2*°K/s | AL6: parametro | AO6: t=0s | AP6: =C11 -> 20 | AQ6: 20 | AR6: 20 | AS6: 20 | AT6: 20 | AU6: 20 | AV6: 20 | AW6: 20 | AX6: 20 | AY6: 20 | AZ6: 20 | BA6: 20 | BB6: 20 | BC6: 20 | BD6: 20 | BE6: 20 | BF6: 20 | BG6: 20 | BH6: 20 | BI6: =V11 -> 20 | BJ6: 20
B7: x (m) | C7: =C8*$AJ$14 -> 0 | D7: 0.005 | E7: 0.01 | F7: 0.015 | G7: 0.02 | H7: 0.025 | I7: 0.03 | J7: 0.035 | K7: 0.04 | L7: 0.045 | M7: 0.05 | N7: 0.055 | O7: 0.06 | P7: 0.065 | Q7: 0.07 | R7: 0.075 | S7: 0.08 | T7: 0.085 | U7: 0.09 | V7: 0.095 | W7: 0.1 | AA7: 7 | AB7: Ta | AC7: 20 | AD7: °C | AE7: temperatura miscela alimentazione | AI7: θc = γc*∆x/K | AJ7: =AC13*AJ14/AC15 -> 0.05555555556 | AK7: adimensionale | AL7: coefficiente termico lato carter | AO7: t = 4s | AP7: =C13 -> 71.39040835 | AQ7: 25.8863494 | AR7: 20 | AS7: 20 | AT7: 20 | AU7: 20 | AV7: 20 | AW7: 20 | AX7: 20 | AY7: 20 | AZ7: 20 | BA7: 20 | BB7: 20 | BC7: 20 | BD7: 20 | BE7: 20 | BF7: 20 | BG7: 20 | BH7: 20 | BI7: =V13 -> 20.40662282 | BJ7: 23.54311636
B8: i | C8: 0 | D8: 1 | E8: 2 | F8: 3 | G8: 4 | H8: 5 | I8: 6 | J8: 7 | K8: 8 | L8: 9 | M8: 10 | N8: 11 | O8: 12 | P8: 13 | Q8: 14 | R8: 15 | S8: 16 | T8: 17 | U8: 18 | V8: 19 | W8: 20 | AA8: 8 | AB8: Tm | AC8: 1300 | AD8: °C | AE8: temperatura media gas nel cilindro | AI8: θm = γm*∆x/K | AJ8: =AC12*AJ14/AC15 -> 0.03703703704 | AK8: adimensionale | AL8: coefficiente termico lato cilindro motore | AO8: t = 16s | AP8: =C19 -> 94.16609373 | AQ8: 49.50557868 | AR8: 28.56815029 | AS8: 21.7531267 | AT8: 20.24435478 | AU8: 20.02202143 | AV8: 20.00115582 | AW8: 20.00002683 | AX8: 20 | AY8: 20 | AZ8: 20 | BA8: 20 | BB8: 20 | BC8: 20.00000185 | BD8: 20.00007981 | BE8: 20.00151984 | BF8: 20.01685273 | BG8: 20.12079297 | BH8: 20.58953525 | BI8: =V19 -> 22.02598112 | BJ8: 25.07724527
AA9: 9 | AB9: Tc | AC9: 80 | AD9: °C | AE9: temperatura olio nel carter distribuzione | AO9: t = 64s | AP9: =C43 -> 137.0611951 | AQ9: 93.98938752 | AR9: 63.63446001 | AS9: 43.83536647 | AT9: 31.98762793 | AU9: 25.52446719 | AV9: 22.32431811 | AW9: 20.89032594 | AX9: 20.30993395 | AY9: 20.09828903 | AZ9: 20.02988231 | BA9: 20.0139466 | BB9: 20.02293855 | BC9: 20.06134934 | BD9: 20.1591066 | BE9: 20.37747736 | BF9: 20.81769872 | BG9: 21.62266455 | BH9: 22.96376585 | BI9: =V43 -> 25.01231539 | BJ9: 27.90640406
A10: t (s) | B10: j | AA10: 10 | AB10: d | AC10: 0.009 | AD10: m | AE10: diametro asta | AO10: t = 256s | AP10: =C139 -> 196.3661187 | AQ10: 155.4907897 | AR10: 122.7814355 | AS10: 96.88889715 | AT10: 76.65431942 | AU10: 61.0746567 | AV10: 49.28035795 | AW10: 40.52160336 | AX10: 34.15967351 | AY10: 29.66058239 | AZ10: 26.58889217 | BA10: 24.60049679 | BB10: 23.43396053 | BC10: 22.90061612 | BD10: 22.87401354 | BE10: 23.27947487 | BF10: 24.08450166 | BG10: 25.29066835 | BH10: 26.92748135 | BI10: =V139 -> 29.04853661 | BJ10: 31.73019258
A11: =B11*$AJ$15 -> 0 | B11: 0 | C11: =$AC$6 -> 20 | D11: =$AC$6 -> 20 | E11: 20 | F11: 20 | G11: 20 | H11: 20 | I11: 20 | J11: 20 | K11: 20 | L11: 20 | M11: 20 | N11: 20 | O11: 20 | P11: 20 | Q11: 20 | R11: 20 | S11: 20 | T11: 20 | U11: 20 | V11: 20 | W11: 20 | AA11: 11 | AB11: γa | AC11: 50 | AD11: W/(m^2*°K) | AE11: coefficiente scambio convettivo valvola-miscela alimentazione | AO11: t = 1024s | AP11: =C523 -> 232.9195775 | AQ11: 193.3980803 | AR11: 161.1514304 | AS11: 134.8562194 | AT11: 113.4325865 | AU11: 95.99980086 | AV11: 81.84007258 | AW11: 70.36909927 | AX11: 61.11213341 | AY11: 53.68458021 | AZ11: 47.77632242 | BA11: 43.13912114 | BB11: 39.57656815 | BC11: 36.93617009 | BD11: 35.10323313 | BE11: 33.99629101 | BF11: 33.56388369 | BG11: 33.78255002 | BH11: 34.65594867 | BI11: =V523 -> 36.21506899 | BJ11: 38.51953904
A12: 1 | B12: 1 | C12: =((1+$AJ$6)*$AJ$8*$AC$8+$AJ$16*(E11+C11)+(1-2*$AJ$16)*D11+$AJ$6*$AC$7)/(1+$AJ$6)/(1+$AJ$8) -> 65.71428571 | D12: =($AJ$16*(E11+C11)+(1-2*$AJ$16)*D11+$AJ$6*$AC$7)/(1+$AJ$6) -> 20 | E12: =($AJ$16*(F11+D11)+(1-2*$AJ$16)*E11+$AJ$6*$AC$7)/(1+$AJ$6) -> 20 | F12: 20 | G12: 20 | H12: 20 | I12: 20 | J12: 20 | K12: 20 | L12: 20 | M12: 20 | N12: 20 | O12: 20 | P12: 20 | Q12: 20 | R12: 20 | S12: 20 | T12: 20 | U12: 20 | V12: 20 | W12: =(V12+$AJ$7*$AC$9)/(1+$AJ$7) -> 23.15789474 | AA12: 12 | AB12: γm | AC12: 100 | AD12: W/(m^2*°K) | AE12: coefficiente scambio convettivo valvola cilindro motore
A13: 2 | B13: 2 | C13: =((1+$AJ$6)*$AJ$8*$AC$8+$AJ$16*(E12+C12)+(1-2*$AJ$16)*D12+$AJ$6*$AC$7)/(1+$AJ$6)/(1+$AJ$8) -> 71.39040835 | D13: =($AJ$16*(E12+C12)+(1-2*$AJ$16)*D12+$AJ$6*$AC$7)/(1+$AJ$6) -> 25.8863494 | E13: 20 | F13: 20 | G13: 20 | H13: 20 | I13: 20 | J13: 20 | K13: 20 | L13: 20 | M13: 20 | N13: 20 | O13: 20 | P13: 20 | Q13: 20 | R13: 20 | S13: 20 | T13: 20 | U13: 20 | V13: 20.40662282 | W13: =(V13+$AJ$7*$AC$9)/(1+$AJ$7) -> 23.54311636 | AA13: 13 | AB13: γc | AC13: 150 | AD13: W/(m^2*°K) | AE13: coefficiente scambio convettivo valvola olio carter distribuzione
A14: 3 | B14: 3 | C14: 76.27947114 | D14: 30.95648859 | E14: 20.75794926 | F14: 20 | G14: 20 | H14: 20 | I14: 20 | J14: 20 | K14: 20 | L14: 20 | M14: 20 | N14: 20 | O14: 20 | P14: 20 | Q14: 20 | R14: 20 | S14: 20 | T14: 20 | U14: 20.05235834 | V14: 20.75597694 | W14: 23.87408341 | AA14: 14 | AB14: ρ | AC14: 8100 | AD14: kg/m^3 | AE14: densità valvola | AI14: ∆x | AJ14: =AC2/(AC4-1) -> 0.005 | AK14: m
A15: 4 | B15: 4 | C15: 80.58471992 | D15: 35.42119103 | E15: 21.96954008 | F15: 20.0975965 | G15: 20 | H15: 20 | I15: 20 | J15: 20 | K15: 20 | L15: 20 | M15: 20 | N15: 20 | O15: 20 | P15: 20 | Q15: 20 | R15: 20 | S15: 20 | T15: 20.00674186 | U15: 20.1359397 | V15: 21.06286993 | W15: 24.16482414 | AA15: 15 | AB15: K | AC15: 13.5 | AD15: W/(m*°K) | AE15: conduttività valvola | AI15: ∆t | AJ15: 1 | AK15: s
A16: 5 | B16: 5 | C16: 84.44343371 | D16: 39.42282014 | E16: 23.45015183 | F16: 20.32555118 | G16: 20.01256691 | H16: 20 | I16: 20 | J16: 20 | K16: 20 | L16: 20 | M16: 20 | N16: 20 | O16: 20 | P16: 20 | Q16: 20 | R16: 20 | S16: 20.00086811 | T16: 20.02247405 | U16: 20.2379385 | V16: 21.33730242 | W16: 24.42481282 | AA16: 16 | AB16: c | AC16: 515 | AD16: W*s/(kg*°K) | AE16: calore specifico a p costante valvola | AI16: A = D∆t/∆x^2 | AJ16: =AJ4*AJ15/AJ14^2 -> 0.1294498382 | AK16: adim | AL16: =IF(AJ16<=0.5, "CONVERGE","DIVERGE") -> CONVERGE
A17: 6 | B17: 6 | C17: 87.95093278 | D17: 43.06022658 | E17: 25.08623695 | F17: 20.68586078 | G17: 20.05118322 | H17: 20.00161816 | I17: 20 | J17: 20 | K17: 20 | L17: 20 | M17: 20 | N17: 20 | O17: 20 | P17: 20 | Q17: 20 | R17: 20.00011178 | S17: 20.00353379 | T17: 20.04731693 | U17: 20.35049201 | V17: 21.58621763 | W17: 24.66062723
A18: 7 | B18: 7 | C18: 91.17522146 | D18: 46.40393337 | E18: 26.80707667 | F18: 21.16711247 | G18: 20.12625337 | H18: 20.00778342 | I18: 20.00020836 | J18: 20 | K18: 20 | L18: 20 | M18: 20 | N18: 20 | O18: 20 | P18: 20 | Q18: 20.00001439 | R18: 20.00053743 | S18: 20.00871212 | T18: 20.08046652 | U18: 20.46871362 | V18: 21.81456849 | W18: 24.87695962
A19: 8 | B19: 8 | C19: 94.16609373 | D19: 49.50557868 | E19: 28.56815029 | F19: 21.7531267 | G19: 20.24435478 | H19: 20.02202143 | I19: 20.00115582 | J19: 20.00002683 | K19: 20 | L19: 20 | M19: 20 | N19: 20 | O19: 20 | P19: 20.00000185 | Q19: 20.00007981 | R19: 20.00151984 | S19: 20.01685273 | T19: 20.12079297 | U19: 20.58953525 | V19: 22.02598112 | W19: 25.07724527
A20: 9 | B20: 9 | C20: 96.9609111 | D20: 52.40390781 | E20: 30.34120412 | F20: 22.42709064 | G20: 20.4087068 | H20: 20.04784651 | I20: 20.00369106 | J20: 20.00016861 | K20: 20.00000345 | L20: 20 | M20: 20 | N20: 20 | O20: 20.00000024 | P20: 20.00001164 | Q20: 20.00025477 | R20: 20.00330068 | S20: 20.02817285 | T20: 20.16712623 | U20: 20.71101663 | V20: 22.22317588 | W20: 25.26406136
A21: 10 | B21: 10 | C21: 99.58834638 | D21: 55.1286555 | E21: 32.10823441 | F21: 23.17338677 | G21: 20.61997028 | H21: 20.08837313 | I21: 20.00890357 | J21: 20.00060001 | K21: 20.00002426 | L21: 20.00000044 | M21: 20 | N21: 20.00000003 | O21: 20.00000168 | P21: 20.00004142 | Q21: 20.00061432 | R21: 20.00609363 | S21: 20.04271311 | T21: 20.2183819 | U21: 20.83192707 | V21: 22.40824018 | W21: 25.43938543
A22: 11 | B22: 11 | C22: 102.0708611 | D22: 57.70311521 | E22: 33.85778705 | F22: 23.97826915 | G22: 20.87702243 | H22: 20.14612255 | I22: 20.01802 | J22: 20.00159189 | K22: 20.0000952 | L22: 20.00000345 | M22: 20.00000006 | N22: 20.00000024 | O22: 20.00000657 | P22: 20.00010985 | Q22: 20.00124283 | R22: 20.01007107 | S22: 20.06039131 | T22: 20.27360738 | U22: 20.9514885 | V22: 22.58280894 | W22: 25.60476637
A23: 12 | B23: 12 | C23: 104.4263801 | D23: 60.14587561 | E23: 35.58264776 | F23: 24.82998518 | G23: 21.17759024 | H23: 20.22296679 | I23: 20.03230415 | J23: 20.00350608 | K23: 20.0002756 | L23: 20.00001481 | M23: 20.00000052 | N23: 20.00000103 | O23: 20.00001902 | P23: 20.00024186 | Q23: 20.00222712 | R23: 20.01536037 | S23: 20.0810464 | T23: 20.33198964 | U23: 21.06921519 | V23: 22.74818666 | W23: 25.76144
A24: 13 | B24: 13 | C24: 106.6694468 | D24: 62.4720189 | E24: 37.27837862 | F24: 25.71864955 | G24: 21.51872584 | H24: 20.32015587 | I24: 20.05297528 | J24: 20.00677969 | K24: 20.00065653 | L24: 20.00004647 | M24: 20.00000242 | N24: 20.00000328 | O24: 20.0000453 | P24: 20.00046751 | Q24: 20.00365078 | R24: 20.02204588 | S24: 20.10447138 | T24: 20.39284605 | U24: 21.18481237 | V24: 22.90543155 | W24: 25.91040884
A25: 14 | B25: 14 | C25: 108.8120372 | D25: 64.6939645 | E25: 38.94237726 | F25: 26.63602404 | G25: 21.89714422 | H25: 20.43838871 | I25: 20.08114946 | J25: 20.01190365 | K25: 20.00136294 | L25: 20.00011911 | M25: 20.00000819 | N25: 20.00000856 | O25: 20.00009401 | P25: 20.00082056 | Q25: 20.00559017 | R25: 20.03017386 | S25: 20.13043661 | T25: 20.45560881 | U25: 21.2981111 | V25: 23.05541484 | W25: 26.05249827
A26: 15 | B26: 15 | C26: 110.8641434 | D26: 66.82207468 | E26: 40.57326369 | F26: 27.57527758 | G26: 22.30945297 | H26: =($AJ$16*(I25+G25)+(1-2*$AJ$16)*H25+$AJ$6*$AC$7)/(1+$AJ$6) -> 20.57790124 | I26: 20.11780261 | J26: 20.01939967 | K26: 20.00255282 | L26: 20.00026435 | M26: 20.00002248 | N26: 20.00001947 | O26: 20.00017606 | P26: 20.00133681 | Q26: 20.00811188 | R26: 20.0397587 | S26: 20.15870565 | T26: 20.51980801 | U26: 21.4090259 | V26: 23.19886328 | W26: 26.18839679
A27: 16 | B27: 16 | C27: 112.8342008 | D27: 68.86509713 | E27: 42.17047529 | F27: 28.53075996 | G27: 22.75230208 | H27: 20.73855624 | I27: 20.16375173 | J27: 20.02979835 | K27: 20.00441389 | L27: 20.00052648 | M27: 20.00005312 | N27: 20.00003992 | O27: 20.00030443 | P27: 20.00205265 | Q27: 20.01127148 | R27: 20.05078913 | S27: 20.18904556 | T27: 20.5850558 | U27: 21.51752685 | V27: 23.33639029 | W27: 26.31868553
A28: 17 | B28: 17 | C28: 114.7294051 | D28: 70.83049415 | E28: 43.73399618 | F28: 29.49780222 | G28: 23.22247682 | H28: 20.91992637 | I28: 20.21964973 | J28: 20.04362021 | K28: 20.00715854 | L28: 20.0009633 | M28: 20.00011209 | N28: 20.00007547 | O28: 20.00049386 | P28: 20.00300372 | Q28: 20.01511315 | R28: 20.06323399 | S28: 20.2212332 | T28: 20.65103241 | U28: 21.62362092 | V28: 23.46851901 | W28: 26.44386012
A29: 18 | B29: 18 | C29: 116.5559523 | D29: 72.72469124 | E29: 45.26417431 | F29: 30.4725465 | G29: 23.71695112 | H29: 21.12136676 | I29: 20.28598992 | J29: 20.06136037 | K29: 20.01101783 | L29: 20.00164631 | M29: 20.00021638 | N29: 20.00013366 | O29: 20.00076055 | P29: 20.00422388 | Q29: 20.01967004 | R29: 20.07704729 | S29: 20.25505893 | T29: 20.7174743 | U29: 21.72733945 | V29: 23.59569983 | W29: 26.56434721
A30: 19 | B30: 19 | C30: 118.3192225 | D30: 74.55326777 | E30: 46.76159681 | F30: 31.45180407 | G30: 24.23291449 | H30: 21.3420759 | I30: 20.36311668 | J30: 20.0834771 | K30: 20.01623504 | L30: 20.00266018 | M30: 20.00038871 | N30: 20.00022432 | O30: 20.00112175 | P30: 20.00574445 | Q30: 20.02496502 | R30: 20.09217237 | S30: 20.29032832 | T30: 20.78416422 | U30: 21.8287296 | V30: 23.71832372 | W30: 26.68051721
A31: 20 | B31: 20 | C31: 120.0239227 | D31: 76.32110503 | E31: 48.22700433 | F31: 32.43293801 | G31: 24.76778129 | H31: 21.58114537 | I31: 20.45123967 | J31: 20.11038389 | K31: 20.02305941 | L31: 20.00410155 | M31: 20.00065796 | N31: 20.00035986 | O31: 20.00159549 | P31: 20.00759369 | Q31: 20.03101169 | R31: 20.10854541 | S31: 20.3268628 | T31: 20.85092307 | U31: 21.92784849 | V31: 23.83673267 | W31: 26.79269411
A32: 21 | B32: 21 | C32: 121.6741992 | D32: 78.03250284 | E32: 49.66123185 | F32: 33.41376684 | G32: 25.31918894 | H32: 21.83759959 | I32: 20.55044972 | J32: 20.14244465 | K32: 20.03174037 | L32: 20.00607749 | M32: 20.0010595 | N32: 20.00055544 | O32: 20.00220028 | P32: 20.00979649 | Q32: 20.03781552 | R32: 20.12609809 | S32: 20.36449942 | T32: 20.91760316 | U32: 22.02475921 | V32: 23.95122785 | W32: 26.90116323
A33: 22 | B33: 22 | C33: 123.2737269 | D33: 79.69127234 | E33: 51.06516764 | F33: 34.39248577 | G33: 25.88498932 | H33: 22.11042686 | I33: 20.66073504 | J33: 20.17997146 | K33: 20.04252244 | L33: 20.00870361 | M33: 20.00163512 | N33: 20.0008292 | O33: 20.00295494 | P33: 20.0123743 | Q33: 20.0453749 | R33: 20.14475978 | S33: 20.40309027 | T33: 20.98408278 | U33: 22.11952804 | V33: 24.06207615 | W33: 27.00617741
A34: 23 | B34: 23 | C34: 124.8257816 | D34: 81.30081056 | E34: 52.43972489 | F34: 35.36760212 | G34: 26.4632362 | H34: 22.39860326 | I34: 20.78199682 | J34: 20.22322432 | K34: 20.05564094 | L34: 20.01210196 | M34: 20.00243285 | N34: 20.0012023 | O34: 20.00387844 | P34: 20.01534515 | Q34: 20.05368236 | R34: 20.16445916 | S34: 20.44250154 | T34: 21.05026169 | U34: 22.21222252 | V34: 24.16951539 | W34: 27.10796195
A35: 24 | B35: 24 | C35: 126.3332982 | D35: 82.8641611 | E35: 53.78582196 | F35: 36.33788251 | G35: 27.05217085 | H35: 22.70111066 | I35: 20.9140639 | J35: 20.27241251 | K35: 20.07131855 | L35: 20.01639905 | M35: 20.00350654 | N35: 20.00169897 | O35: 20.00498979 | P35: 20.01872378 | Q35: 20.06272551 | R35: 20.18512547 | S35: 20.4826125 | T35: 21.11605747 | U35: 22.30291017 | V35: 24.27375861 | W35: 27.20671868
A36: 25 | B36: 25 | C36: 127.7989186 | D36: 84.38406375 | E36: 55.10436894 | F36: 37.30230951 | G36: 27.65020686 | H36: 23.01695003 | I36: 21.05670591 | J36: 20.3276969 | K36: 20.08976263 | L36: 20.02172371 | M36: 20.0049153 | N36: 20.00234645 | O36: 20.00630806 | P36: 20.02252196 | Q36: 20.07248799 | R36: 20.2066894 | S36: 20.52331443 | T36: 21.1814025 | U36: 22.39165757 | V36: 24.37499752 | W36: 27.30262923
A37: 26 | B37: 26 | C37: 129.2250315 | D37: 85.86299562 | E37: 56.39625852 | F37: 38.26004602 | G37: 28.25591511 | H37: 23.34515096 | I37: 21.20964513 | J37: 20.38919315 | K37: 20.11116337 | L37: 20.02820524 | M37: 20.00672279 | N37: 20.00317491 | O37: 20.00785228 | P37: 20.02674867 | Q37: 20.08295036 | R37: 20.22908374 | S37: 20.56450954 | T37: 21.24624151 | U37: 22.47852977 | V37: 24.47340542 | W37: 27.39585776
A38: 27 | B38: 27 | C38: 130.6138051 | D38: 87.30320527 | E38: 57.66235991 | F38: 39.21040588 | G38: 28.86800936 | H38: 23.68477832 | I38: 21.37256676 | J38: 20.45697524 | K38: 20.13569251 | L38: 20.03597163 | M38: 20.00899649 | N38: 20.0042172 | O38: 20.00964157 | P38: 20.03141051 | Q38: 20.09409077 | R38: 20.25224387 | S38: 20.60610997 | T38: 21.31052954 | U38: 22.56358995 | V38: 24.56913956 | W38: 27.48655327
A39: 28 | B39: 28 | C39: 131.9672149 | D39: 88.70674139 | E39: 58.90351507 | F39: 40.15282957 | G39: 29.48533267 | H39: 24.0349366 | I39: 21.54512787 | J39: 20.53107928 | K39: 20.16350265 | L39: 20.04514804 | M39: 20.01180685 | N39: 20.00550872 | O39: 20.01169507 | P39: 20.03651197 | Q39: 20.10588564 | R39: 20.27610802 | S39: 20.64803687 | T39: 21.37423027 | U39: 22.64689911 | V39: 24.6623432 | W39: 27.57485145
A40: 29 | B40: 29 | C40: 133.2870671 | D40: 90.07547702 | E40: 60.12053642 | F40: 41.08686406 | G40: 30.10684481 | H40: 24.39477252 | I40: 21.72696497 | J40: 20.61150737 | K40: 20.19472706 | L40: 20.05585547 | M40: 20.01522645 | N40: 20.00708708 | O40: 20.01403204 | P40: 20.0420558 | Q40: 20.11831023 | R40: 20.30061745 | S40: 20.69021945 | T40: 21.43731463 | U40: 22.72851602 | V40: 24.75314727 | W40: 27.66087636
A41: 30 | B41: 30 | C41: 134.5750183 | D41: 91.41113008 | E41: 61.3142057 | F41: 42.01214606 | G41: 30.73161075 | H41: 24.76347633 | I41: 21.91770053 | J41: 20.69823145 | K41: 20.22947982 | L41: 20.06820959 | M41: 20.01932926 | N41: 20.00899184 | O41: 20.01667187 | P41: 20.04804332 | Q41: 20.13133909 | R41: 20.32571659 | S41: 20.73259425 | T41: 21.49975964 | U41: 22.8084971 | V41: 24.84167181 | W41: 27.74474171
A42: 31 | B42: 31 | C42: 135.8325923 | D42: 92.71528094 | E42: 62.48527361 | F42: 42.92838804 | G42: 31.35879016 | H42: 25.14028207 | I42: 22.11694836 | J42: 20.79119688 | K42: 20.26785633 | L42: 20.08231991 | M42: 20.02418977 | N42: 20.01126419 | O42: 20.01963413 | P42: 20.05447472 | Q42: 20.14494645 | R42: 20.35135299 | S42: 20.77510434 | T42: 21.56154746 | U42: 22.88689645 | V42: 24.92802724 | W42: 27.82655212
A43: 32 | B43: 32 | C43: 137.0611951 | D43: 93.98938752 | E43: 63.63446001 | F43: 43.83536647 | G43: 31.98762793 | H43: 25.52446719 | I43: 22.32431811 | J43: 20.89032594 | K43: 20.30993395 | L43: 20.09828903 | M43: 20.02988231 | N43: 20.0139466 | O43: 20.02293855 | P43: 20.06134934 | Q43: 20.1591066 | R43: 20.37747736 | S43: 20.81769872 | T43: =($AJ$16*(U42+S42)+(1-2*$AJ$16)*T42+$AJ$6*$AC$7)/(1+$AJ$6) -> 21.62266455 | U43: 22.96376585 | V43: 25.01231539 | W43: 27.90640406
A44: 33 | B44: 33 | C44: 138.2621269 | D44: 95.23479824 | E44: 64.76245453 | F44: 44.73291206 | G44: 32.61744558 | H44: 25.91535154 | I44: 22.53941896 | J44: 20.99552105 | K44: 20.35577294 | L44: 20.11621212 | M44: 20.03648034 | N44: 20.01708248 | O44: 20.02660509 | P44: 20.06866594 | Q44: 20.17379417 | R44: 20.40404348 | S44: 20.86033171 | T44: 21.68310106 | U44: 23.03915486 | V44: 25.09463041 | W44: 27.98438671
A45: 34 | B45: 34 | C45: 139.4365933 | D45: 96.45276338 | E45: 65.86991735 | F45: 45.62090144 | G45: 33.24763359 | H45: 26.31229603 | I45: 22.76186268 | J45: 21.10666771 | K45: 20.4054174 | L45: 20.13617653 | M45: 20.04405586 | N45: 20.02071587 | O45: 20.03065386 | P45: 20.07642289 | Q45: 20.18898433 | R45: 20.43100814 | S45: 20.90296241 | T45: 21.74285022 | U45: 23.11311088 | V45: 25.17505958 | W45: 28.06058276
A46: 35 | B46: 35 | C46: 140.5857147 | D46: 97.64444483 | E46: 66.95748027 | F46: 46.49925017 | G46: 33.87764444 | H46: 26.71470109 | I46: 22.99126605 | J46: 21.22363719 | K46: 20.45889634 | L46: 20.15826162 | M46: 20.05267888 | N46: 20.0248911 | O46: 20.03510517 | P46: 20.08461838 | Q46: 20.20465299 | R46: 20.458331 | S46: 20.94555424 | T46: 21.80190786 | U46: 23.18567918 | V46: 25.25368398 | W46: 28.13506904
A47: 36 | B47: 36 | C47: 141.7105346 | D47: 98.81092474 | E47: 68.02574774 | F47: 47.36790687 | G47: 34.50698645 | H47: 27.12200486 | I47: 23.22725277 | J47: 21.34628899 | K47: 20.5162248 | L47: 20.18253866 | M47: 20.06241692 | N47: 20.02965247 | O47: 20.03997946 | P47: 20.0932506 | Q47: 20.22077699 | R47: 20.48597453 | S47: 20.98807448 | T47: 21.86027204 | U47: 23.25690307 | V47: 25.33057911 | W47: 28.20791705
A48: 37 | B48: 37 | C48: 142.8120269 | D48: 99.95321305 | E48: 69.0752981 | F48: 48.2268482 | G48: 35.13521821 | H48: 27.53368143 | I48: 23.46945502 | J48: 21.47447303 | K48: 20.57740493 | L48: 20.20907078 | M48: 20.07333464 | N48: 20.03504397 | O48: 20.04529727 | P48: 20.10231787 | Q48: 20.23733419 | R48: 20.51390386 | S48: 21.03049396 | T48: 21.91794269 | U48: 23.32682393 | V48: 25.4058154 | W48: 28.27919354
A49: 38 | B49: 38 | C49: 143.8911022 | D49: 101.0722541 | E49: 70.10668471 | F49: 49.07607456 | G49: 35.76194359 | H49: 27.94923887 | I49: 23.7175146 | J49: 21.60803157 | K49: 20.64242715 | L49: 20.23791316 | M49: 20.08549351 | N49: 20.04110898 | O49: 20.05107918 | P49: 20.11181873 | Q49: 20.25430353 | R49: 20.54208669 | S49: 21.07278665 | T49: 21.97492133 | U49: 23.39548134 | V49: 25.47945871 | W49: 28.34896088
A50: 39 | B50: 39 | C50: 144.9486135 | D50: 102.1689326 | E50: 71.12043715 | F50: 49.9156065 | G50: 36.38680728 | H50: 28.36821742 | I50: 23.97108381 | J50: 21.74680099 | K50: 20.71127116 | L50: 20.26911312 | M50: 20.09895151 | N50: 20.04789007 | O50: 20.05734578 | P50: 20.12175205 | Q50: 20.27166518 | R50: 20.57049312 | S50: 21.11492941 | T50: 22.03121083 | U50: 23.46291314 | V50: 25.5515707 | W50: 28.4172775
A51: 40 | B51: 40 | C51: 145.9853615 | D51: 103.2440786 | E51: 72.11706235 | F51: 50.74548162 | G51: 37.00949082 | H51: 28.79018767 | I51: 24.22982606 | J51: 21.89061329 | K51: 20.78390705 | L51: 20.30271043 | M51: 20.11376297 | N51: 20.05542873 | O51: 20.06411755 | P51: 20.13211709 | Q51: 20.2894005 | R51: 20.59909561 | S51: 21.15690171 | T51: 22.0868152 | U51: 23.52915554 | V51: 25.62220922 | W51: 28.48419821
A52: 41 | B52: 41 | C52: 147.0020986 | D52: 104.2984726 | E52: 73.09704577 | F52: 51.56575188 | G52: 37.62970897 | H52: 29.21474868 | I52: 24.4934163 | J52: 22.03929741 | K52: 20.86029624 | L52: 20.33873753 | M52: 20.12997842 | N52: 20.06376517 | O52: 20.07141488 | P52: 20.14291355 | Q52: 20.30749211 | R52: 20.62786878 | S52: 21.19868537 | T52: 22.1417394 | U52: 23.59424319 | V52: 25.69142866 | W52: 28.54977452
A53: 42 | B53: 42 | C53: 147.9995332 | D53: 105.3328492 | E53: 74.06085244 | F53: 52.3764814 | G53: 38.24720655 | H53: 29.64152632 | I53: 24.76154126 | J53: 22.19268045 | K53: 20.94039244 | L53: 20.37721988 | M53: 20.14764443 | N53: 20.07293816 | O53: 20.0792579 | P53: 20.15414159 | Q53: 20.3259239 | R53: 20.65678937 | S53: 21.24026437 | T53: 22.19598921 | U53: 23.65820928 | V53: 25.75928017 | W53: 28.6140549
A54: 43 | B54: 43 | C54: 148.9783332 | D54: 106.3479011 | E54: =($AJ$16*(F53+D53)+(1-2*$AJ$16)*E53+$AJ$6*$AC$7)/(1+$AJ$6) -> 75.00892802 | F54: 53.17774443 | G54: 38.8617555 | H54: 30.0701716 | I54: 25.03389956 | J54: 22.35058864 | K54: 21.02414256 | L54: 20.41817628 | M54: 20.16680363 | N54: 20.08298489 | O54: 20.08766648 | P54: 20.16580185 | Q54: 20.34468102 | R54: 20.68583608 | S54: 21.28162464 | T54: 22.24957113 | U54: 23.72108562 | V54: 25.82581202 | W54: 28.67708507
A55: 44 | B55: 44 | C55: 149.9391293 | D55: =($AJ$16*(E54+C54)+(1-2*$AJ$16)*D54+$AJ$6*$AC$7)/(1+$AJ$6) -> 107.3442822 | E55: 75.94169979 | F55: 53.96962375 | G55: 39.47315236 | H55: 30.50035909 | I55: 25.31020173 | J55: 22.51284824 | K55: 21.11148749 | L55: 20.46161925 | M55: 20.18749465 | N55: 20.09394081 | O55: 20.09666013 | P55: 20.17789544 | Q55: 20.36374986 | R55: 20.71498949 | S55: 21.32275391 | T55: 22.30249219 | U55: 23.7829027 | V55: 25.89106973 | W55: 28.73890816
A56: 45 | B56: 45 | C56: 150.8825177 | D56: 108.3226109 | E56: 76.8595776 | F56: 54.7522092 | G56: 40.08121587 | H56: 30.93178539 | I56: 25.59017011 | J56: 22.67928631 | K56: 21.2023629 | L56: 20.50755538 | M56: 20.20975212 | N56: 20.10583953 | O56: 20.10625796 | P56: 20.19042395 | Q56: 20.38311802 | R56: 20.74423194 | S56: 21.36364154 | T56: 22.35475996 | U56: 23.84368975 | V56: 25.95509636 | W56: 28.79956497
A57: 46 | B57: 46 | C57: 151.8090629 | D57: 109.2834726 | E57: 77.76295476 | F57: 55.52559643 | G57: 40.68578493 | H57: 31.36416778 | I57: 25.87353866 | J57: 22.84973129 | K57: 21.29669996 | L57: 20.5559857 | M57: 20.23360678 | N57: 20.11871276 | O57: 20.11647857 | P57: 20.20338941 | Q57: 20.4027743 | R57: 20.77354747 | S57: 21.40427838 | T57: 22.40638239 | U57: 23.90347486 | V57: 26.01793266 | W57: 28.8590941
A58: 47 | B58: 47 | C58: 152.7192999 | D58: 110.2274221 | E58: 78.65220892 | F58: 56.28988587 | G58: 41.28671668 | H58: 31.79724284 | I58: 26.16005279 | J58: 23.02401362 | K58: 21.39442595 | L58: 20.60690606 | M58: 20.25908548 | N58: 20.13259023 | O58: 20.12734002 | P58: 20.21679426 | Q58: 20.42270865 | R58: 20.80292167 | S58: 21.44465666 | T58: 22.45736779 | U58: 23.962285 | V58: 26.07961727 | W58: 28.91753215
A59: 48 | B59: 48 | C59: 153.6137364 | D59: 111.1549859 | E59: 79.52770282 | F59: 57.04518176 | G59: 41.88388483 | H59: 32.23076518 | I59: 26.44946905 | J59: 23.20196616 | K59: 21.49546491 | L59: 20.6603075 | M59: 20.28621131 | N59: 20.14749963 | O59: 20.13885977 | P59: 20.23064134 | Q59: 20.44291212 | R59: 20.83234163 | S59: 21.48476986 | T59: 22.50772475 | U59: 24.0201461 | V59: 26.14018686 | W59: 28.97491386
A60: 49 | B60: 49 | C60: 154.4928549 | D60: 112.0666643 | E60: 80.38978511 | F60: 57.79159142 | G60: 42.4771781 | H60: 32.66450634 | I60: 26.74155488 | J60: 23.38342455 | K60: 21.59973818 | L60: 20.71617662 | M60: 20.31500373 | N60: 20.16346659 | O60: 20.15105462 | P60: 20.24493385 | Q60: 20.46337681 | R60: 20.86179586 | S60: 21.52461263 | T60: 22.55746211 | U60: 24.07708308 | V60: 26.19967625 | W60: 29.03127223
A61: 50 | B61: 50 | C61: 155.3571141 | D61: 112.9629331 | E61: 81.23879102 | F61: 58.5292245 | G61: 43.06649887 | H61: 33.09825359 | I61: 27.03608823 | J61: 23.56822757 | K61: 21.70716486 | L61: 20.7744959 | M61: 20.34547862 | N61: 20.18051469 | O61: 20.16394066 | P61: 20.25967527 | Q61: 20.48409583 | R61: 20.89127414 | S61: 21.56418068 | T61: 22.6065889 | U61: 24.13311997 | V61: 26.25811859 | W61: 29.08663866
A62: 51 | B62: 51 | C62: 156.2069507 | D62: 113.8442452 | E62: 82.07504307 | F62: 59.25819245 | G62: 43.65176189 | H62: 33.53180898 | I62: 27.3328573 | J62: 23.75621736 | K62: 21.81766231 | L62: 20.83524405 | M62: 20.37764849 | N62: 20.19866542 | O62: 20.17753325 | P62: 20.27486938 | Q62: 20.50506324 | R62: 20.92076755 | S62: 21.60347068 | T62: 22.65511432 | U62: 24.18827989 | V62: 26.31554544 | W62: 29.14104305
A63: 52 | B63: 52 | C63: 157.0427811 | D63: 114.7110322 | E63: 82.89885166 | F63: 59.97860797 | G63: 44.23289318 | H63: 33.96498831 | I63: 27.6316601 | J63: 23.94723963 | K63: 21.93114655 | L63: 20.89839637 | M63: 20.41152259 | N63: 20.2179382 | O63: 20.19184695 | P63: 20.29052014 | Q63: 20.526274 | R63: 20.95026828 | S63: 21.64248022 | T63: 22.70304771 | U63: 24.24258513 | V63: 26.37198691 | W63: 29.19451392
A64: 53 | B64: 53 | C64: 157.8650023 | D64: 115.5637061 | E64: 83.71051573 | F64: 60.69058457 | G64: 44.80982901 | H64: 34.39762028 | I64: 27.93230417 | J64: 24.14114383 | K64: 22.04753261 | L64: 20.963925 | M64: 20.44710704 | N64: 20.23835043 | O64: 20.20689552 | P64: 20.30663174 | Q64: 20.54772388 | R64: 20.97976963 | S64: 21.68120773 | T64: 22.75039849 | U64: 24.29605722 | V64: 26.42747173 | W64: 29.24707848
A65: 54 | B65: 54 | C65: 158.6739935 | D65: 116.4026599 | E65: 84.51032329 | F65: 61.39423623 | G65: 45.38251495 | H65: 34.82954562 | I65: 28.23460619 | J65: 24.33778325 | K65: 22.16673488 | L65: 21.03179928 | M65: 20.48440504 | N65: 20.25991749 | O65: 20.22269188 | P65: 20.32320846 | Q65: 20.56940946 | R65: 21.00926591 | S65: 21.7196524 | T65: 22.79717621 | U65: 24.34871693 | V65: 26.48202735 | W65: 29.29876275
A66: 55 | B66: 55 | C66: 159.470117 | D66: 117.2282694 | E66: 85.29855194 | F66: 62.08967705 | G66: 45.95090505 | H66: 35.2606163 | I66: 28.53839161 | J66: 24.53701511 | K66: 22.28866743 | L66: 21.10198596 | M66: 20.52341693 | N66: 20.28265278 | O66: 20.23924807 | P66: 20.3402547 | Q66: 20.59132803 | R66: 21.03875239 | S66: 21.75781412 | T66: 22.84339044 | U66: 24.40058433 | V66: 26.53568003 | W66: 29.34959161
A67: 56 | B67: 56 | C67: 160.2537193 | D67: 118.0408941 | E67: 86.07546942 | F67: 62.77702095 | G67: 46.51496105 | H67: 35.69069481 | I67: 28.84349431 | J67: 24.73870062 | K67: 22.41324423 | L67: 21.17444955 | M67: 20.56414046 | N67: 20.3065678 | O67: 20.25657528 | P67: 20.35777489 | Q67: 20.61347755 | R67: 21.0682252 | S67: 21.79569344 | T67: 22.88905084 | U67: 24.45167885 | V67: 26.58845492 | W67: 29.39958887
A68: 57 | B68: 57 | C68: 161.0251322 | D68: 118.8408779 | E68: 86.84133401 | F68: 63.45638148 | G68: 47.07465172 | H68: 36.11965345 | I68: 29.14975627 | J68: 24.942705 | K68: 22.54037942 | L68: 21.24915248 | M68: 20.60657083 | N68: 20.33167214 | O68: 20.27468379 | P68: 20.37577348 | Q68: 20.63585659 | R68: 21.09768132 | S68: 21.83329151 | T68: 22.93416709 | U68: 24.50201927 | V68: 26.64037613 | W68: 29.44877739
A69: 58 | B69: 58 | C69: 161.7846736 | D69: 119.6285504 | E69: 87.59639507 | F69: 64.12787158 | G69: 47.62995223 | H69: 36.54737374 | I69: 29.45702719 | J69: 25.14889748 | K69: 22.66998752 | L69: 21.3260554 | M69: 20.65070095 | N69: 20.35797362 | O69: 20.29358301 | P69: 20.3942549 | Q69: 20.65846427 | R69: 21.12711847 | S69: 21.87061003 | T69: 22.97874888 | U69: 24.55162381 | V69: 26.6914668 | W69: 29.49717907
A70: 59 | B70: 59 | C70: 162.5326481 | D70: 120.4042276 | E70: 88.34089337 | F70: 64.79160339 | G70: 48.18084354 | H70: 36.97374576 | I70: 29.76516418 | J70: 25.35715131 | K70: 22.80198362 | L70: 21.4051174 | M70: 20.69652149 | N70: 20.38547827 | O70: 20.31328142 | P70: 20.41322349 | Q70: 20.68130023 | R70: 21.15653508 | S70: 21.90765121 | T70: 23.02280594 | U70: 24.60051011 | V70: 26.74174914 | W70: 29.54481497
A71: 60 | B71: 60 | C71: 163.269348 | D71: 121.1682128 | E71: 89.07506154 | F71: 65.44768817 | G71: 48.72731191 | H71: 37.39866766 | I71: 30.07403143 | J71: 25.56734372 | K71: 22.93628352 | L71: 21.48629615 | M71: 20.74402111 | N71: 20.41419044 | O71: 20.33378664 | P71: 20.43268352 | Q71: 20.70436455 | R71: 21.18593023 | S71: 21.94441773 | T71: 23.06634798 | U71: 24.64869529 | V71: 26.79124451 | W71: 29.59170532
A72: 61 | B72: 61 | C72: 163.9950542 | D72: 121.9207969 | E72: 89.79912444 | F72: 66.09623609 | G72: 49.26934842 | H72: 37.82204507 | I72: 30.38349991 | J72: 25.77935588 | K72: 23.07280391 | L72: 21.56954817 | M72: 20.79318654 | N72: 20.44411285 | O72: 20.35510539 | P72: 20.45263913 | Q72: 20.72765774 | R72: 21.21530361 | S72: 21.98091271 | T72: 23.10938472 | U72: 24.69619598 | V72: 26.83997346 | W72: 29.6378696
A73: 62 | B73: 62 | C73: 164.7100362 | D73: 122.6622597 | E73: 90.51329949 | F73: 66.73735618 | G73: 49.80694854 | H73: 38.24379069 | I73: 30.69344704 | J73: 25.99307284 | K73: 23.21146246 | L73: 21.65482897 | M73: 20.84400276 | N73: 20.47524667 | O73: 20.37724348 | P73: 20.47309427 | Q73: 20.75118065 | R73: 21.24465543 | S73: 22.01713964 | T73: 23.15192587 | U73: 24.74302832 | V73: 26.88795582 | W73: 29.68332656
A74: 63 | B74: 63 | C74: 165.4145534 | D74: 123.3928702 | E74: 91.21779702 | F74: 67.37115623 | G74: 50.34011172 | H74: 38.66382378 | I74: 31.00375642 | J74: 26.2083835 | K74: 23.35217795 | L74: 21.7420932 | M74: 20.89645312 | N74: 20.50759157 | O74: 20.40020589 | P74: 20.49405274 | Q74: 20.77493445 | R74: 21.27398644 | S74: 22.05310239 | T74: 23.1939811 | U74: 24.78920804 | V74: 26.93521066 | W74: 29.72809431
A75: =B75*$AJ$15 -> 64 | B75: 64 | C75: 166.1088552 | D75: 124.1128869 | E75: 91.91282058 | F75: 67.9977427 | G75: 50.86884102 | H75: 39.08206976 | I75: 31.31431754 | J75: 26.42518047 | K75: 23.49487038 | L75: 21.83129485 | M75: 20.95051947 | N75: 20.54114581 | O75: 20.42399671 | P75: 20.51551813 | Q75: 20.79892058 | R75: 21.3032978 | S75: 22.08880513 | T75: 23.23556008 | U75: 24.8347504 | V75: 26.98175641 | W75: 29.77219028
A76: 65 | B76: 65 | C76: 166.7931818 | D76: 124.8225589 | E76: 92.59856726 | F76: 68.6172207 | G76: 51.39314284 | H76: 39.49845983 | I76: 31.62502551 | J76: 26.64336011 | K76: 23.63946099 | L76: 21.92238735 | M76: 21.00618226 | N76: 20.57590629 | O76: 20.44861921 | P76: 20.53749379 | Q76: 20.82314073 | R76: 21.33259113 | S76: 22.12425236 | T76: 23.27667243 | U76: 24.8796703 | V76: 27.02761088 | W76: 29.81563136
A77: 66 | B77: 66 | C77: =((1+$AJ$6)*$AJ$8*$AC$8+$AJ$16*(E76+C76)+(1-2*$AJ$16)*D76+$AJ$6*$AC$7)/(1+$AJ$6)/(1+$AJ$8) -> 167.4677645 | D77: 125.5221262 | E77: 93.27522792 | F77: 69.22969389 | G77: 51.91302654 | H77: 39.91293058 | I77: 31.93578079 | J77: 26.86282232 | K77: 23.78587242 | L77: 22.01532371 | M77: 21.0634207 | N77: 20.61186863 | O77: 20.47407583 | P77: 20.55998282 | Q77: 20.84759678 | R77: 21.3618684 | S77: 22.15944882 | T77: 23.31732774 | U77: 24.92398223 | V77: 27.07279127 | W77: =(V77+$AJ$7*$AC$9)/(1+$AJ$7) -> 29.85843384
A78: 67 | B78: 67 | C78: 168.1328262 | D78: 126.2118198 | E78: 93.94298752 | F78: 69.83526447 | G78: 52.42850421 | H78: 40.32542365 | I78: 32.24648895 | J78: 27.08347057 | K78: 23.93402867 | L78: 22.11005667 | M78: 21.12221285 | N78: 20.64902725 | O78: 20.50036819 | P78: 20.58298809 | Q78: 20.87229075 | R78: 21.3911319 | S78: 22.1943995 | T78: 23.35753555 | U78: 24.96770035 | V78: 27.11731424 | W78: 29.90061349
A79: 68 | B79: 68 | C79: 168.788582 | D79: 126.8918628 | E79: 94.60202532 | F79: 70.43403317 | G79: 52.93959043 | H79: 40.73588543 | I79: 32.55706046 | J79: 27.30521173 | K79: 24.08385521 | L79: 22.20653875 | M79: 21.18253572 | N79: 20.6873754 | O79: 20.52749716 | P79: 20.60651216 | Q79: 20.89722481 | R79: 21.42038425 | S79: 22.2291096 | T79: 23.39730538 | U79: 25.01083844 | V79: 27.16119592 | W79: 29.9421856
A80: 69 | B80: 69 | C80: 169.4352392 | D80: 127.5624702 | E80: 95.25251516 | F80: 71.02609918 | G80: 53.44630198 | H80: 41.14426674 | I80: 32.86741038 | J80: 27.52795604 | K80: 24.23527899 | L80: 22.30472243 | M80: 21.2443654 | N80: 20.72690528 | O80: 20.55546281 | P80: 20.63055731 | Q80: 20.92240124 | R80: 21.44962832 | S80: 22.26358453 | T80: 23.43664668 | U80: 25.05340998 | V80: 27.20445193 | W80: 29.98316499
A81: 70 | B81: 70 | C81: 170.0729981 | D81: 128.2238498 | E81: 95.89462564 | F81: 71.61156018 | G81: 53.94865769 | H81: 41.55052254 | I81: 33.17745825 | J81: 27.75161697 | K81: 24.3882285 | L81: 22.40456015 | M81: 21.30767712 | N81: 20.76760804 | O81: 20.58426452 | P81: 20.65512553 | Q81: 20.94782235 | R81: 21.47886721 | S81: 22.29782984 | T81: 23.47556883 | U81: 25.09542814 | V81: 27.24709745 | W81: 30.02356601
A82: 71 | B82: 71 | C82: 170.7020521 | D82: 128.8762022 | E82: 96.52852039 | F82: 72.19051232 | G82: 54.44667821 | H82: 41.95461172 | I82: 33.48712779 | J82: 27.97611118 | K82: 24.54263374 | L82: 22.5060045 | M82: 21.37244537 | N82: 20.80947391 | O82: 20.61390091 | P82: 20.68021851 | Q82: 20.97349053 | R82: 21.50810421 | S82: 22.33185125 | T82: 23.51408118 | U82: 25.13690577 | V82: 27.2891472 | W82: 30.06340261
A83: 72 | B83: 72 | C83: 171.3225882 | D83: 129.5197211 | E83: 97.15435822 | F83: 72.76305019 | G83: 54.94038587 | H83: 42.35649678 | I83: 33.79634674 | J83: 28.20135839 | K83: 24.69842627 | L83: 22.60900819 | M83: 21.43864397 | N83: 20.85249223 | O83: 20.64436995 | P83: 20.70583762 | Q83: 20.99940817 | R83: 21.53734282 | S83: 22.3656546 | T83: 23.55219301 | U83: 25.17785546 | V83: 27.33061549 | W83: 30.10268836
A84: 73 | B84: 73 | C84: 171.9347871 | D84: 130.154594 | E84: 97.77229336 | F84: 73.32926684 | G84: 55.42980446 | H84: 42.75614367 | I84: 34.10504669 | J84: 28.42728131 | K84: 24.85553923 | L84: 22.7135242 | M84: 21.50624618 | N84: 20.89665148 | O84: 20.67566893 | P84: 20.73198391 | Q84: 21.02557765 | R84: 21.56658664 | S84: 22.39924583 | T84: 23.58991352 | U84: 25.21828953 | V84: 27.37151624 | W84: 30.14143644
A85: 74 | B85: 74 | C85: 172.5388236 | D85: 130.7810023 | E85: 98.38247561 | F85: 73.88925382 | G85: 55.91495912 | H85: 43.15352154 | I85: 34.41316285 | J85: 28.65380553 | K85: 25.01390731 | L85: 22.81950582 | M85: 21.57522472 | N85: 20.9419394 | O85: 20.70779452 | P85: 20.75865812 | Q85: 21.05200134 | R85: 21.59583943 | S85: =($AJ$16*(T84+R84)+(1-2*$AJ$16)*S84+$AJ$6*$AC$7)/(1+$AJ$6) -> 22.43263097 | T85: 23.62725186 | U85: 25.25822002 | V85: 27.41186298 | W85: 30.17965966
A86: 75 | B86: 75 | C86: 173.1348669 | D86: =($AJ$16*(E85+C85)+(1-2*$AJ$16)*D85+$AJ$6*$AC$7)/(1+$AJ$6) -> 131.3991212 | E86: 98.98505053 | F86: 74.4431011 | G86: 56.3958762 | H86: 43.54860252 | I86: 34.72063391 | J86: 28.88085947 | K86: 25.17346678 | L86: 22.92690667 | M86: 21.64555192 | N86: 20.98834301 | O86: 20.74074277 | P86: 20.78586067 | Q86: 21.07868156 | R86: 21.62510502 | S86: 22.46581614 | T86: 23.6642171 | U86: 25.29765875 | V86: 27.45166889 | W86: 30.21737053
A87: 76 | B87: 76 | C87: 173.7230807 | D87: 132.0091207 | E87: 99.5801596 | F87: 74.99089717 | G87: 56.87258312 | H87: 43.94136159 | I87: 35.02740188 | J87: 29.10837423 | K87: 25.33415545 | L87: 23.03568081 | M87: 21.71719971 | N87: 21.03584866 | O87: 20.77450916 | P87: 20.81359165 | Q87: 21.10562056 | R87: 21.65438734 | S87: 22.4988075 | T87: 23.70081822 | U87: 25.33661727 | V87: 27.49094683 | W87: 30.25458121
A88: 77 | B88: 77 | C88: 174.3036237 | D88: 132.6111653 | E88: 100.1679404 | F88: 75.532729 | G88: 57.34510827 | H88: 44.33177637 | I88: 35.33341191 | J88: 29.33628357 | K88: 25.49591272 | L88: 23.14578274 | M88: 21.79013974 | N88: 21.0844421 | O88: 20.8090886 | P88: 20.84185086 | Q88: 21.13282053 | R88: 21.68369034 | S88: 22.53161126 | T88: 23.73706413 | U88: 25.37510694 | V88: 27.52970932 | W88: 30.29130357
A89: 78 | B89: 78 | C89: 174.8766496 | D89: 133.2054144 | E89: 100.7485266 | F89: 76.06868207 | G89: 57.81348089 | H89: 44.71982693 | I89: 35.63861215 | J89: 29.56452379 | K89: 25.6586795 | L89: 23.25716749 | M89: 21.86434342 | N89: 21.13410851 | O89: 20.84447548 | P89: 20.87063774 | Q89: 21.16028355 | R89: 21.71301805 | S89: 22.56423364 | T89: 23.77296367 | U89: 25.41313887 | V89: 27.56796859 | W89: 30.32754919
A90: 79 | B90: 79 | C90: 175.4423075 | D90: 133.7920226 | E90: 101.3220486 | F90: 76.59884039 | G90: 58.27773098 | H90: 45.1054957 | I90: 35.94295361 | J90: 29.79303364 | K90: 25.82239826 | L90: 23.36979059 | M90: 21.93978196 | N90: 21.18483257 | O90: 20.8806637 | P90: 20.89995147 | Q90: 21.18801162 | R90: 21.74237448 | S90: 22.59668091 | T90: 23.80852558 | U90: 25.45072397 | V90: 27.60573656 | W90: 30.36332937
A91: 80 | B91: 80 | C91: 176.0007418 | D91: 134.3711397 | E91: 101.8886328 | F91: 77.1232865 | G91: 58.73788921 | H91: 45.48876725 | I91: 36.24639004 | J91: 30.02175425 | K91: 25.98701296 | L91: 23.48360815 | M91: 22.01642646 | N91: 21.23659848 | O91: 20.91764666 | P91: 20.92979087 | Q91: 21.21600661 | R91: 21.77176367 | S91: 22.62895931 | T91: 23.8437585 | U91: 25.48787294 | V91: 27.6430249 | W91: 30.39865517
A92: 81 | B92: 81 | C92: 176.5520929 | D92: 134.9429111 | E92: 102.4484027 | F92: 77.64210153 | G92: 59.19398682 | H92: 45.86962822 | I92: 36.54887776 | J92: 30.25062906 | K92: 26.15246907 | L92: 23.59857689 | M92: 22.0942479 | N92: 21.28939005 | O92: 20.95541733 | P92: 20.96015449 | Q92: 21.24427027 | R92: 21.80118963 | S92: 22.66107507 | T92: 23.87867102 | U92: 25.52459629 | V92: 27.67984501 | W92: 30.43353738
A93: 82 | B93: 82 | C93: 177.0964966 | D93: 135.507478 | E93: 103.0014782 | F93: 78.15536516 | G93: 59.64605558 | H93: 46.24806715 | I93: 36.85037558 | J93: 30.47960373 | K93: 26.31871353 | L93: 23.71465414 | M93: 22.17321727 | N93: 21.34319067 | O93: 20.99396825 | P93: 20.99104058 | Q93: 21.27280422 | R93: 21.83065635 | S93: 22.69303443 | T93: 23.91327158 | U93: 25.56090434 | V93: 27.71620801 | W93: 30.46798654
A94: 83 | B94: 83 | C94: 177.6340853 | D94: 136.0649773 | E94: 103.5479764 | F94: 78.66315569 | G94: 60.09412769 | H94: 46.62407439 | I94: 37.15084466 | J94: 30.70862605 | K94: 26.48569473 | L94: 23.83179788 | M94: 22.25330551 | N94: 21.39798342 | O94: 21.03329155 | P94: 21.0224471 | Q94: 21.30160996 | R94: 21.86016779 | S94: 22.72484357 | T94: 23.94756857 | U94: 25.5968072 | V94: 27.75212483 | W94: 30.50201299
A95: 84 | B95: 84 | C95: 178.1649871 | D95: 136.6155422 | E95: 104.0880111 | F95: 79.16555004 | G95: 60.53823572 | H95: 46.99764197 | I95: 37.4502484 | J95: 30.93764591 | K95: 26.6533625 | L95: 23.94996673 | M95: 22.33448363 | N95: 21.45375107 | O95: 21.07337898 | P95: 21.05437169 | Q95: 21.33068881 | R95: 21.88972784 | S95: 22.75650864 | T95: 23.98157025 | U95: 25.63231484 | V95: 27.78760611 | W95: 30.53562684
A96: 85 | B96: 85 | C96: 178.6893268 | D96: 137.1593018 | E96: 104.6216934 | F96: 79.6626238 | G96: 60.97841257 | H96: 47.36876347 | I96: 37.74855235 | J96: 31.16661518 | K96: 26.82166808 | L96: 24.06912002 | M96: 22.41672271 | N96: 21.51047611 | O96: 21.11422197 | P96: 21.08681178 | Q96: 21.36004196 | R96: 21.91934034 | S96: 22.78803573 | T96: 24.0152848 | U96: 25.66743702 | V96: 27.82266232 | W96: 30.56883798
A97: 86 | B97: 86 | C97: 179.2072255 | D97: 137.696382 | E97: 105.1491315 | F97: 80.15445119 | G97: 61.41469138 | H97: 47.73743399 | I97: 38.04572407 | J97: 31.39548766 | K97: 26.99056407 | L97: 24.18921775 | M97: 22.49999395 | N97: 21.56814082 | O97: 21.15581157 | P97: 21.11976447 | Q97: 21.38967045 | R97: 21.94900906 | S97: 22.81943091 | T97: 24.04872029 | U97: 25.70218334 | V97: 27.85730368 | W97: 30.60165612
A98: 87 | B98: 87 | C98: 179.718801 | D98: 138.2269047 | E98: 105.6704309 | F98: 80.64110514 | G98: 61.84710553 | H98: 48.10365 | I98: 38.34173309 | J98: 31.62421904 | K98: 27.16000444 | L98: 24.31022062 | M98: 22.58426867 | N98: 21.62672728 | O98: 21.19813857 | P98: 21.15322663 | Q98: 21.41957516 | R98: 21.9787377 | S98: 22.85070013 | T98: 24.08188467 | U98: 25.73656324 | V98: 27.89154023 | W98: 30.63409075
A99: 88 | B99: 88 | C99: 180.2241679 | D99: 138.7509889 | E99: 106.1856946 | F99: 81.12265731 | G99: 62.27568855 | H99: 48.46740926 | I99: 38.63655078 | J99: 31.85276678 | K99: 27.3299445 | L99: 24.43209005 | M99: 22.66951835 | N99: 21.68621738 | O99: 21.24119343 | P99: 21.18719488 | Q99: 21.44975681 | R99: 22.00852985 | S99: 22.88184932 | T99: 24.11478581 | U99: 25.77058599 | V99: 27.9253818 | W99: 30.66615118
A100: 89 | B100: 89 | C100: 180.7234377 | D100: 139.2687502 | E100: 106.6950228 | F100: 81.59917807 | G100: 62.70047409 | H100: 48.82871077 | I100: 38.93015025 | J100: 32.08109008 | K100: 27.50034086 | L100: 24.55478816 | M100: 22.75571471 | N100: 21.74659288 | O100: 21.28496639 | P100: 21.22166558 | Q100: 21.48021595 | R100: 22.03838902 | S100: 22.9128843 | T100: 24.14743144 | U100: 25.8042607 | V100: 27.95883803 | W100: 30.69784655
A101: 90 | B101: 90 | C101: 181.2167188 | D101: 139.7803009 | E101: 107.1985136 | F101: 82.07073658 | G101: 63.1214959 | H101: 49.18755463 | I101: 39.22250633 | J101: 32.30914983 | K101: 27.67115138 | L101: 24.67827781 | M101: 22.84282963 | N101: 21.80783545 | O101: 21.32944742 | P101: 21.25663488 | Q101: 21.51095298 | R101: 22.06831863 | S101: 22.94381082 | T101: 24.1798292 | U101: 25.83759634 | V101: 27.99191838 | W101: 30.72918583
A102: 91 | B102: 91 | C102: 181.7041168 | D102: 140.2857507 | E102: 107.6962626 | F102: 82.53740076 | G102: 63.53878778 | H102: 49.54394206 | I102: 39.51359542 | J102: 32.53690852 | K102: 27.8423352 | L102: 24.80252256 | M102: 22.93083526 | N102: 21.86992664 | O102: 21.37462625 | P102: 21.29209868 | Q102: 21.54196814 | R102: 22.09832197 | S102: 22.97463454 | T102: 24.21198661 | U102: 25.87060169 | V102: 28.02463212 | W102: 30.76017779
A103: 92 | B103: 92 | C103: 182.1857345 | D103: =($AJ$16*(E102+C102)+(1-2*$AJ$16)*D102+$AJ$6*$AC$7)/(1+$AJ$6) -> 140.7852062 | E103: 108.188363 | F103: 82.99923734 | G103: 63.95238353 | H103: 49.89787524 | I103: 39.80339544 | J103: 32.7643302 | K103: 28.01385268 | L103: 24.92748672 | M103: 23.019704 | N103: 21.93284795 | O103: 21.42049244 | P103: 21.32805268 | Q103: 21.57326148 | R103: 22.12840225 | S103: 23.00536103 | T103: 24.24391107 | U103: 25.90328542 | V103: 28.05698835 | W103: 30.79083107
A104: 93 | B104: 93 | C104: 182.6616721 | D104: 141.2787711 | E104: 108.6749059 | F104: 83.4563119 | G104: 64.36231697 | H104: 50.24935731 | I104: 40.0918858 | J104: 32.99138043 | K104: 28.18566535 | L104: 25.0531353 | M104: 23.10940853 | N104: 21.99658086 | O104: 21.46703535 | P104: 21.36449237 | Q104: 21.60483293 | R104: 22.15856255 | S104: 23.03599574 | T104: 24.27560988 | U104: 25.93565602 | V104: 28.08899603 | W104: 30.82115413
A105: 94 | B105: 94 | C105: 183.1320272 | D105: 141.7665468 | E105: 109.1559805 | F105: 83.90868885 | G105: 64.76862184 | H105: 50.59839227 | I105: 40.37904725 | J105: 33.2180262 | K105: 28.35773594 | L105: 25.17943405 | M105: 23.19992181 | N105: 22.06110681 | O105: 21.51424414 | P105: 21.40141305 | Q105: 21.63668224 | R105: 22.18880582 | S105: 23.06654406 | T105: 24.3070902 | U105: 25.96772186 | V105: 28.12066391 | W105: 30.85115528
A106: 95 | B106: 95 | C106: 183.5968949 | D106: 142.2486317 | E106: 109.6316735 | F106: 84.35643147 | G106: 65.17133186 | H106: 50.94498494 | I106: 40.6648619 | J106: 33.44423592 | K106: 28.53002829 | L106: 25.30634944 | M106: 23.29121711 | N106: 22.12640724 | O106: 21.56210787 | P106: 21.43880981 | Q106: 21.66880899 | R106: 22.21913491 | S106: 23.09701123 | T106: 24.3383591 | U106: 25.99949115 | V106: 28.15200062 | W106: 30.88084269
A107: 96 | B107: 96 | C107: 184.0563678 | D107: 142.7251221 | E107: 110.1020699 | F107: 84.79960197 | G107: 65.57048063 | H107: 51.28914091 | I107: 40.94931308 | J107: 33.66997932 | K107: 28.70250737 | L107: 25.43384864 | M107: 23.38326802 | N107: 22.19246364 | O107: 21.61061542 | P107: 21.47667759 | Q107: 21.70121261 | R107: 22.24955254 | S107: 23.12740241 | T107: 24.3694235 | U107: 26.03097196 | V107: 28.1830146 | W107: 30.91022436
A108: 97 | B108: 97 | C108: 184.5105363 | D108: 143.1961117 | E108: 110.5672526 | F108: 85.23826145 | G108: 65.96610167 | H108: 51.6308665 | I108: 41.23238536 | J108: 33.89522744 | K108: 28.87513923 | L108: 25.56189956 | M108: 23.47604847 | N108: 22.2592575 | O108: 21.65975558 | P108: 21.51501115 | Q108: 21.73389239 | R108: 22.28006131 | S108: 23.15772264 | T108: 24.40029023 | U108: 26.06217223 | V108: 28.21371417 | W108: 30.93930816
A109: 98 | B109: 98 | C109: 184.9594886 | D109: 143.6616919 | E109: 111.0273029 | F109: 85.67246994 | G109: 66.35822835 | H109: 51.97016866 | I109: 41.51406443 | J109: 34.11995258 | K109: 29.04789099 | L109: 25.6904708 | M109: 23.56953272 | N109: 22.32677041 | O109: 21.709517 | P109: 21.55380507 | Q109: 21.76684746 | R109: 22.31066369 | S109: 23.18797685 | T109: 24.43096597 | U109: 26.09309975 | V109: 28.24410749 | W109: 30.96810183
A110: 99 | B110: 99 | C110: 185.4033108 | D110: 144.1219519 | E110: 111.4823 | F110: 86.10228647 | G110: 66.7468939 | H110: 52.30705501 | I110: 41.79433706 | J110: 34.34412823 | K110: 29.22073079 | L110: 25.81953167 | M110: 23.66369536 | N110: 22.39498399 | O110: 21.75988828 | P110: 21.59305382 | Q110: 21.8000768 | R110: 22.34136202 | S110: 23.21816986 | T110: 24.46145731 | U110: 26.12376218 | V110: 28.27420256 | W110: 30.99661295
A111: 100 | B111: 100 | C111: 185.8420866 | D111: 144.5769787 | E111: 111.9323214 | F111: 86.52776902 | G111: 67.13213142 | H111: 52.64153371 | I111: 42.07319109 | J111: 34.56772906 | K111: 29.39362779 | L111: 25.94905217 | M111: 23.75851137 | N111: 22.46387996 | O111: 21.8108579 | P111: 21.63275168 | Q111: 21.83357923 | R111: 22.37215851 | S111: 23.24830636 | T111: 24.49177069 | U111: 26.15416705 | V111: 28.30400726 | W111: 31.02484899
A112: 101 | B112: 101 | C112: 186.2758982 | D112: 145.0268574 | E112: 112.3774429 | F112: 86.94897457 | G112: 67.51397379 | H112: 52.97361348 | I112: 42.35061532 | J112: 34.79073083 | K112: 29.56655211 | L112: 26.07900299 | M112: 23.85395608 | N112: 22.53344016 | O112: 21.86241431 | P112: 21.67289284 | Q112: 21.86735346 | R112: 22.40305526 | S112: 23.27839093 | T112: 24.52191245 | U112: 26.18432174 | V112: 28.33352932 | W112: 31.05281725
A113: 102 | B113: 102 | C113: 186.7048253 | D113: 145.4716707 | E113: 112.8177389 | F113: 87.36595915 | G113: 67.89245374 | H113: 53.30330356 | I113: 42.62659951 | J113: 35.01311042 | K113: 29.73947485 | L113: 26.2093555 | M113: 23.95000518 | N113: 22.60364652 | O113: 21.9145459 | P113: 21.71347133 | Q113: 21.90139804 | R113: 22.43405423 | S113: 23.30842802 | T113: 24.55188879 | U113: 26.21423353 | V113: 28.36277634 | W113: 31.08052495
A114: 103 | B114: 103 | C114: 187.1289462 | D114: 145.9114998 | E114: 113.2532817 | F114: 87.77877782 | G114: 68.26760378 | H114: 53.63061362 | I114: 42.90113432 | J114: 35.23484571 | K114: 29.91236803 | L114: 26.34008176 | M114: 24.04663476 | N114: 22.6744811 | O114: 21.967241 | P114: 21.75448109 | Q114: 21.93571138 | R114: 22.46515725 | S114: 23.33842198 | T114: 24.5817058 | U114: 26.24390952 | V114: 28.39175576 | W114: 31.10797914
A115: 104 | B115: 104 | C115: 187.5483371 | D115: 146.3464237 | E115: 113.6841425 | F115: 88.18748468 | G115: 68.63945623 | H115: 53.95555381 | I115: 43.17421127 | J115: 35.45591562 | K115: 30.08520459 | L115: 26.47115446 | M115: 24.14382126 | N115: 22.74592608 | O115: 22.02048793 | P115: 21.79591594 | Q115: 21.97029178 | R115: 22.49636602 | S115: 23.36837703 | T115: 24.61136944 | U115: 26.27335673 | V115: 28.42047492 | W115: 31.13518677
A116: 105 | B116: 105 | C116: 187.9630725 | D116: 146.7765197 | E116: 114.1103908 | F116: 88.59213295 | G116: 69.00804317 | H116: 54.27813466 | I116: 43.44582269 | J116: 35.6763 | K116: 30.25795834 | L116: 26.60254697 | M116: 24.24154152 | N116: 22.81796381 | O116: 22.07427499 | P116: 21.83776959 | Q116: 22.00513741 | R116: 22.52768213 | S116: 23.39829726 | T116: 24.64088555 | U116: 26.30258202 | V116: 28.44894102 | W116: 31.16215465
A117: 106 | B117: 106 | C117: 188.3732253 | D117: 147.2018633 | E117: 114.5320945 | F117: 88.99277492 | G117: 69.37339647 | H117: 54.59836708 | I117: 43.71596169 | J117: 35.89597968 | K117: 30.43060395 | L117: 26.73423331 | M117: 24.33977275 | N117: 22.89057677 | O117: 22.12859047 | P117: 21.88003567 | Q117: 22.04024629 | R117: 22.55910703 | S117: 23.42818665 | T117: 24.67025984 | U117: 26.33159214 | V117: 28.47716112 | W117: 31.18888948
A118: 107 | B118: 107 | C118: 188.7788666 | D118: 147.6225283 | E118: 114.9493204 | F118: 89.389462 | G118: 69.73554776 | H118: 54.91626233 | I118: 43.98462213 | J118: 36.11493634 | K118: 30.60311694 | L118: 26.86618812 | M118: 24.43849256 | N118: 22.96374761 | O118: 22.18342267 | P118: 21.92270773 | Q118: 22.07561637 | R118: 22.59064206 | S118: 23.45804905 | T118: 24.69949792 | U118: 26.36039371 | V118: 28.50514216 | W118: 31.21539784
A119: 108 | B119: 108 | C119: 189.1800659 | D119: 148.0385869 | E119: 115.3621336 | F119: 89.78224476 | G119: 70.09452842 | H119: 55.23183198 | I119: 44.25179857 | J119: 36.33315254 | K119: 30.77547363 | L119: 26.99838667 | M119: 24.53767895 | N119: 23.03745916 | O119: 22.23875988 | P119: 21.96577923 | Q119: 22.11124543 | R119: 22.62228843 | S119: 23.48788819 | T119: 24.72860525 | U119: 26.38899321 | V119: 28.53289096 | W119: 31.24168617
A120: 109 | B120: 109 | C120: 189.5768914 | D120: =($AJ$16*(E119+C119)+(1-2*$AJ$16)*D119+$AJ$6*$AC$7)/(1+$AJ$6) -> 148.4501096 | E120: 115.770598 | F120: 90.1711729 | G120: 70.45036958 | H120: 55.54508793 | I120: 44.51748625 | J120: 36.5506117 | K120: 30.94765115 | L120: 27.13080486 | M120: 24.63731029 | N120: 23.1116944 | O120: 22.29459043 | P120: 22.00924356 | Q120: 22.14713119 | R120: 22.65404722 | S120: 23.51770769 | T120: 24.75758718 | U120: 26.41739701 | V120: 28.5604142 | W120: 31.26776082
A121: 110 | B121: 110 | C121: 189.9694095 | D121: 148.8571654 | E121: 116.1747762 | F121: 90.5562953 | G121: 70.80310214 | H121: 55.85604232 | I121: 44.78168106 | J121: 36.76729801 | K121: 31.11962738 | L121: 27.26341917 | M121: 24.73736536 | N121: 23.18643652 | O121: 22.35090268 | P121: 22.05309405 | Q121: 22.18327123 | R121: 22.68591943 | S121: 23.54751105 | T121: 24.78644894 | U121: 26.44561136 | V121: 28.58771846 | W121: 31.29362801
A122: 111 | B122: 111 | C122: 190.3576853 | D122: 149.2598218 | E122: 116.5747296 | F122: 90.93766002 | G122: 71.15275672 | H122: 56.16470756 | I122: 45.04437948 | J122: 36.98319645 | K122: 31.29138098 | L122: 27.39620671 | M122: 24.8378233 | N122: 23.26166887 | O122: 22.40768501 | P122: 22.09732397 | Q122: 22.21966306 | R122: 22.71790589 | S122: 23.57730163 | T122: 24.81519565 | U122: 26.47364238 | V122: 28.61481017 | W122: 31.31929385
A123: 112 | B123: 112 | C123: 190.7417825 | D123: 149.6581448 | E123: 116.9705181 | F123: 91.31531434 | G123: 71.49936368 | H123: 56.47109629 | I123: 45.3055786 | J123: 37.19829274 | K123: 31.46289131 | L123: 27.52914516 | M123: 24.93866366 | N123: 23.33737502 | O123: 22.46492586 | P123: 22.14192656 | Q123: 22.25630406 | R123: 22.75000737 | S123: 23.60708268 | T123: 24.84383229 | U123: 26.50149608 | V123: 28.64169568 | W123: 31.34476433
A124: 113 | B124: 113 | C124: 191.1217633 | D124: 150.052199 | E124: 117.3622007 | F124: 91.68930476 | G124: 71.84295312 | H124: 56.77522135 | I124: 45.56527606 | J124: 37.41257334 | K124: 31.63413845 | L124: 27.66221276 | M124: 25.03986637 | N124: 23.41353873 | O124: 22.52261371 | P124: 22.18689499 | Q124: 22.29319154 | R124: 22.78222448 | S124: 23.63685736 | T124: 24.87236373 | U124: 26.52917832 | V124: 28.66838119 | W124: 31.37004534
A125: 114 | B125: 114 | C125: 191.4976888 | D125: 150.4420476 | E125: 117.7498351 | F125: 92.05967699 | G125: 72.18355487 | H125: 57.0770958 | I125: 45.82347002 | J125: 37.62602538 | K125: 31.80510317 | L125: 27.79538835 | M125: 25.14141175 | N125: 23.49014395 | O125: 22.58073709 | P125: 22.2322224 | Q125: 22.33032272 | R125: 22.81455775 | S125: 23.66662868 | T125: 24.90079473 | U125: 26.55669488 | V125: 28.69487279 | W125: 31.39514264
A126: 115 | B126: 115 | C126: 191.8696185 | D126: 150.8277525 | E126: 118.1334777 | F126: 92.42647602 | G126: 72.52119847 | H126: 57.37673284 | I126: 46.08015915 | J126: 37.83863666 | K126: 31.97576692 | L126: 27.9286513 | M126: 25.24328048 | N126: 23.56717484 | O126: 22.63928462 | P126: 22.27790191 | Q126: 22.36769472 | R126: 22.8470076 | S126: 23.69639954 | T126: 24.92912991 | U126: 26.58405141 | V126: 28.72117645 | W126: 31.4200619
A127: 116 | B127: 116 | C127: 192.237611 | D127: 151.2093743 | E127: 118.5131842 | F127: 92.7897461 | G127: 72.85591322 | H127: 57.67414586 | I127: 46.33534261 | J127: 38.05039564 | K127: 32.14611179 | L127: 28.06198153 | M127: 25.34545364 | N127: 23.64461577 | O127: 22.69824496 | P127: 22.32392659 | Q127: 22.4053046 | R127: 22.87957434 | S127: 23.72617274 | T127: 24.95737379 | U127: 26.61125341 | V127: 28.74729804 | W127: 31.44480867
A128: 117 | B128: 117 | C128: 192.6017234 | D128: 151.5869724 | E128: 118.8890089 | F128: 93.14953076 | G128: 73.18772812 | H128: 57.96934838 | I128: 46.58902001 | J128: 38.26129139 | K128: 32.31612051 | L128: 28.19535949 | M128: 25.44791268 | N128: 23.72245134 | O128: 22.75760686 | P128: 22.37028952 | Q128: 22.44314934 | R128: 22.91225818 | S128: 23.75595096 | T128: 24.98553077 | U128: 26.63830631 | V128: 28.77324331 | W128: 31.4693884
A129: 118 | B129: 118 | C129: 192.9620117 | D129: 151.9606047 | E129: 119.261005 | F129: 93.50587282 | G129: 73.51667191 | H129: 58.26235406 | I129: 46.8411914 | J129: 38.47131357 | K129: 32.48577642 | L129: 28.32876618 | M129: 25.55063942 | N129: 23.80066633 | O129: 22.81735915 | P129: 22.41698373 | Q129: 22.48122584 | R129: 22.94505922 | S129: 23.78573677 | T129: 25.01360514 | U129: 26.66521541 | V129: 28.79901788 | W129: 31.49380641
A130: 119 | B130: 119 | C130: 193.3185309 | D130: 152.3303283 | E130: 119.629225 | F130: 93.85881443 | G130: 73.84277302 | H130: 58.55317668 | I130: 47.09185724 | J130: 38.68045244 | K130: 32.65506346 | L130: 28.46218307 | M130: 25.65361607 | N130: 23.87924577 | O130: 22.87749073 | P130: 22.46400228 | Q130: 22.51953094 | R130: 22.9779775 | S130: 23.81553263 | T130: 25.04160108 | U130: 26.69198587 | V130: 28.82462729 | W130: 31.51806796
A131: 120 | B131: 120 | C131: 193.6713347 | D131: 152.6961989 | E131: 119.9937201 | F131: 94.20839704 | G131: 74.16605964 | H131: 58.8418301 | I131: 47.34101838 | J131: 38.8886988 | K131: 32.82396616 | L131: 28.59559217 | M131: 25.75682517 | N131: 23.95817489 | O131: 22.93799062 | P131: 22.51133818 | Q131: 22.55806141 | R131: 23.01101291 | S131: 23.8453409 | T131: 25.06952264 | U131: 26.71862278 | V131: 28.85007694 | W131: 31.54217815
A132: 121 | B132: 121 | C132: 194.0204757 | D132: 153.0582711 | E132: 120.3545407 | F132: 94.55466146 | G132: 74.48655965 | H132: 59.12832829 | I132: 47.58867608 | J132: 39.09604398 | K132: 32.99246961 | L132: 28.72897597 | M132: 25.86024966 | N132: 24.03743913 | O132: 22.99884789 | P132: 22.55898448 | Q132: 22.59681396 | R132: 23.0441653 | S132: 23.87516381 | T132: 25.09737376 | U132: 26.74513108 | V132: 28.87537214 | W132: 31.56614203
A133: 122 | B133: 122 | C133: 194.3660057 | D133: 153.4165985 | E133: 120.7117362 | F133: 94.89764784 | G133: 74.80430068 | H133: 59.41268531 | I133: 47.83483191 | J133: 39.30247984 | K133: 33.16055944 | L133: 28.86231745 | M133: 25.96387282 | N133: 24.11702417 | O133: 23.06005175 | P133: 22.60693421 | Q133: 22.63578527 | R133: 23.0774344 | S133: 23.90500351 | T133: 25.12515829 | U133: 26.77151561 | V133: 28.90051808 | W133: 31.58996449
A134: 123 | B134: 123 | C134: 194.7079753 | D134: 153.7712336 | E134: 121.0653551 | F134: 95.23739568 | G134: 75.11931005 | H134: 59.69491526 | I134: 48.07948781 | J134: 39.50799872 | K134: 33.32822182 | L134: 28.99560005 | M134: 26.06767829 | N134: 24.1969159 | O134: 23.12159147 | P134: 22.65518041 | Q134: 22.67497192 | R134: 23.11081986 | S134: 23.93486205 | T134: 25.15287996 | U134: 26.79778112 | V134: 28.92551984 | W134: 31.61365037
A135: 124 | B135: 124 | C135: 195.0464339 | D135: 154.1222278 | E135: 121.4154449 | F135: 95.5739439 | G135: 75.43161483 | H135: 59.97503232 | I135: 48.32264605 | J135: 39.71259346 | K135: 33.49544345 | L135: 29.12880767 | M135: 26.17165007 | N135: 24.27710044 | O135: 23.18345644 | P135: 22.70371614 | Q135: 22.71437049 | R135: 23.14432126 | S135: 23.96474135 | T135: 25.18054238 | U135: 26.82393223 | V135: 28.9503824 | W135: 31.63720438
A136: 125 | B136: 125 | C136: 195.3814304 | D136: 154.4696315 | E136: 121.7620525 | F136: 95.90733076 | G136: 75.7412418 | H136: 60.25305071 | I136: 48.56430918 | J136: 39.91625734 | K136: 33.66221152 | L136: 29.2619247 | M136: 26.2757725 | N136: 24.35756413 | O136: 23.24563617 | P136: 22.75253448 | Q136: 22.75397748 | R136: 23.17793809 | S136: 23.99464327 | T136: 25.20814907 | U136: 26.84997345 | V136: 28.97511065 | W136: 31.66063114
A137: 126 | B137: 126 | C137: 195.7130123 | D137: =($AJ$16*(E136+C136)+(1-2*$AJ$16)*D136+$AJ$6*$AC$7)/(1+$AJ$6) -> 154.8134942 | E137: 122.1052235 | F137: 96.23759396 | G137: 76.04821744 | H137: 60.52898471 | I137: 48.80448007 | J137: 40.11898411 | K137: 33.8285137 | L137: 29.39493593 | M137: 26.38003025 | N137: 24.43829353 | O137: 23.30812027 | P137: 22.8016285 | Q137: 22.79378937 | R137: 23.21166975 | S137: 24.02456955 | T137: 25.23570344 | U137: 26.87590919 | V137: 28.99970934 | W137: 31.68393516
A138: 127 | B138: 127 | C138: 196.0412264 | D138: 155.1538644 | E138: 122.4450031 | F138: 96.56477058 | G138: 76.352568 | H138: 60.80284859 | I138: 49.04316186 | J138: 40.32076792 | K138: 33.99433816 | L138: 29.5278266 | M138: 26.48440836 | N138: 24.51927541 | O138: 23.37089844 | P138: 22.85099134 | Q138: 22.83380259 | R138: 23.24551559 | S138: 24.05452182 | T138: 25.2632088 | U138: 26.90174376 | V138: 29.02418314 | W138: 31.70712087
A139: =B139*$AJ$15 -> 128 | B139: 128 | C139: 196.3661187 | D139: 155.4907897 | E139: 122.7814355 | F139: 96.88889715 | G139: 76.65431942 | H139: 61.0746567 | I139: 49.28035795 | J139: 40.52160336 | K139: 34.15967351 | L139: 29.66058239 | M139: 26.58889217 | N139: 24.60049679 | O139: 23.43396053 | P139: 22.90061612 | Q139: 22.87401354 | R139: 23.27947487 | S139: 24.08450166 | T139: 25.29066835 | U139: 26.92748135 | V139: 29.04853661 | W139: 31.73019258
A140: 129 | B140: 129 | C140: 196.687734 | D140: 155.8243168 | E140: 123.114564 | F140: 97.21000964 | G140: 76.95349737 | H140: 61.34442335 | I140: 49.51607199 | J140: 40.72148539 | K140: 34.32450882 | L140: 29.79318938 | M140: 26.69346738 | N140: 24.68194488 | O140: 23.49729647 | P140: 22.95049602 | Q140: 22.91441859 | R140: 23.31354678 | S140: 24.11451053 | T140: 25.31808519 | U140: 26.95312606 | V140: 29.07277422 | W140: 31.75315452
A141: 130 | B141: 130 | C141: =((1+$AJ$6)*$AJ$8*$AC$8+$AJ$16*(E140+C140)+(1-2*$AJ$16)*D140+$AJ$6*$AC$7)/(1+$AJ$6)/(1+$AJ$8) -> 197.0061167 | D141: 156.1544914 | E141: 123.4444315 | F141: 97.52814343 | G141: 77.25012726 | H141: 61.61216289 | I141: 49.75030788 | J141: 40.92040939 | K141: 34.48883359 | L141: 29.92563406 | M141: 26.79812 | N141: 24.76360713 | O141: 23.56089635 | P141: 23.00062425 | Q141: 22.95501407 | R141: 23.34773045 | S141: 24.14454979 | T141: 25.34546232 | U141: 26.97868188 | V141: 29.09690032 | W141: =(V141+$AJ$7*$AC$9)/(1+$AJ$7) -> 31.77601083
A142: 131 | B142: 131 | C142: 197.32131 | D142: 156.4813585 | E142: 123.7710796 | F142: 97.8433334 | G142: 77.54423423 | H142: 61.87788968 | I142: 49.98306974 | J142: 41.11837106 | K142: 34.65263774 | L142: 30.05790331 | M142: 26.90283636 | N142: 24.8454712 | O142: 23.62475033 | P142: 23.05099403 | Q142: 22.9957963 | R142: 23.38202495 | S142: 24.17462074 | T142: 25.37280265 | U142: 27.00415271 | V142: 29.12091917 | W142: 31.79876553
A143: 132 | B143: 132 | C143: 197.6333565 | D143: 156.8049623 | E143: 124.0945497 | F143: 98.15561387 | G143: 77.83584313 | H143: 62.14161805 | I143: 50.21436189 | J143: 41.3153665 | K143: 34.8159116 | L143: 30.18998442 | M143: 27.0076031 | N143: 24.92752499 | O143: 23.68884872 | P143: 23.10159866 | Q143: 23.03676158 | R143: 23.41642926 | S143: 24.20472458 | T143: 25.40010898 | U143: 27.02954233 | V143: 29.14483493 | W143: 31.82142256
A144: 133 | B144: 133 | C144: 197.9422978 | D144: 157.1253459 | E144: 124.4148821 | F144: 98.46501866 | G144: 78.12497857 | H144: 62.40336233 | I144: 50.44418888 | J144: 41.51139213 | K144: 34.97864591 | L144: 30.32186503 | M144: 27.11240718 | N144: 25.00975657 | O144: 23.75318196 | P144: 23.15243145 | Q144: 23.07790617 | R144: 23.45094234 | S144: 24.23486243 | T144: 25.42738404 | U144: 27.05485444 | V144: 29.16865166 | W144: 31.84398578
A145: 134 | B145: 134 | C145: 198.248175 | D145: 157.4425518 | E145: 124.7321167 | F145: 98.77158106 | G145: 78.41166486 | H145: 62.66313685 | I145: 50.67255543 | J145: 41.70644472 | K145: 35.14083178 | L145: 30.45353319 | M145: 27.21723587 | N145: 25.09215429 | O145: 23.81774059 | P145: 23.20348576 | Q145: 23.11922633 | R145: 23.48556307 | S145: 24.26503534 | T145: 25.45463043 | U145: 27.08009262 | V145: 29.19237333 | W145: 31.86645895
A146: 135 | B146: 135 | C146: 198.5510283 | D146: 157.7566219 | E146: 125.0462923 | F146: 99.07533387 | G146: 78.69592609 | H146: 62.92095589 | I146: 50.89946646 | J146: 41.90052132 | K146: 35.30246071 | L146: 30.58497727 | M146: 27.32207674 | N146: 25.17470665 | O146: 23.8825153 | P146: 23.254755 | Q146: 23.1607183 | R146: 23.52029027 | S146: 24.29524424 | T146: 25.4818507 | U146: 27.10526039 | V146: 29.21600382 | W146: 31.88884572
A147: 136 | B147: 136 | C147: 198.8508971 | D147: 158.067597 | E147: 125.3574475 | F147: 99.37630938 | G147: 78.97778605 | H147: 63.17683373 | I147: 51.12492706 | J147: 42.09361932 | K147: 35.46352454 | L147: 30.71618602 | M147: 27.42691764 | N147: 25.25740241 | O147: 23.94749686 | P147: 23.30623262 | Q147: 23.20237831 | R147: 23.55512272 | S147: 24.32549004 | T147: 25.50904726 | U147: 27.13036113 | V147: 29.23954689 | W147: 31.91114968
A148: 137 | B148: 137 | C148: 199.1478203 | D148: 158.3755174 | E148: 125.6656199 | F148: 99.67453943 | G148: 79.25726829 | H148: 63.43078462 | I148: 51.34894246 | J148: 42.28573641 | K148: 35.6240155 | L148: 30.84714853 | M148: 27.53174673 | N148: 25.34023051 | O148: 24.01267623 | P148: 23.35791214 | Q148: 23.24420257 | R148: 23.59005914 | S148: 24.35577353 | T148: 25.53622248 | U148: 27.15539816 | V148: 29.26300622 | W148: 31.93337432
A149: 138 | B149: 138 | C149: 199.441836 | D149: 158.6804225 | E149: 125.9708467 | F149: 99.97005536 | G149: 79.5343961 | H149: 63.68282274 | I149: 51.57151808 | J149: 42.47687052 | K149: 35.78392614 | L149: 30.97785424 | M149: 27.63655245 | N149: 25.42318013 | O149: 24.07804444 | P149: 23.4097871 | Q149: 23.28618731 | R149: 23.62509821 | S149: 24.38609545 | T149: =($AJ$16*(U148+S148)+(1-2*$AJ$16)*T148+$AJ$6*$AC$7)/(1+$AJ$6) -> 25.56337861 | U149: 27.18037469 | V149: 29.28638541 | W149: 31.95552302
A150: 139 | B150: 139 | C150: 199.7329815 | D150: 158.9823512 | E150: 126.2731642 | F150: 100.2628881 | G150: 79.80919251 | H150: 63.93296227 | I150: 51.79265947 | J150: 42.66701991 | K150: 35.94324933 | L150: 31.10829291 | M150: 27.74132352 | N150: 25.50624063 | O150: 24.14359268 | P150: 23.46185112 | Q150: 23.32832872 | R150: 23.66023856 | S150: 24.41645645 | T150: 25.59051783 | U150: 27.20529385 | V150: 29.30968796 | W150: 31.97759912
A151: 140 | B151: 140 | C151: 200.0212937 | D151: 159.2813416 | E151: 126.5726085 | F151: 100.5530679 | G151: 80.0816803 | H151: 64.18121733 | I151: 52.01237231 | J151: 42.85618306 | K151: 36.1019783 | L151: 31.23845462 | M151: 27.84604893 | N151: 25.58940159 | O151: 24.20931225 | P151: 23.51409786 | Q151: 23.37062302 | R151: 23.69547879 | S151: 24.44685713 | T151: 25.61764222 | U151: 27.23015866 | V151: 29.33291726 | W151: 31.99960583
A152: 141 | B152: 141 | C152: 200.3068086 | D152: 159.5774312 | E152: 126.8692146 | F152: 100.840625 | G152: 80.351882 | H152: 64.427602 | I152: 52.23066241 | J152: 43.04435872 | K152: 36.26010657 | L152: 31.36832976 | M152: 27.95071797 | N152: 25.67265279 | O152: 24.27519458 | P152: 23.56652105 | Q152: 23.41306641 | R152: 23.73081743 | S152: 24.47729801 | T152: 25.6447538 | U152: 27.25497208 | V152: 29.35607665 | W152: 32.0215463
A153: 142 | B153: 142 | C153: 200.5895618 | D153: 159.8706566 | E153: 127.1630174 | F153: 101.1255887 | G153: 80.61981989 | H153: 64.6721303 | I153: 52.44753573 | J153: 43.23154588 | K153: 36.41762797 | L153: 31.49790906 | M153: 28.05532016 | N153: 25.7559842 | O153: =($AJ$16*(P152+N152)+(1-2*$AJ$16)*O152+$AJ$6*$AC$7)/(1+$AJ$6) -> 24.34123124 | P153: 23.61911446 | Q153: 23.4556551 | R153: 23.76625299 | S153: 24.50777955 | T153: 25.67185449 | U153: 27.27973695 | V153: 29.37916934 | W153: 32.04342358
A154: 143 | B154: 143 | C154: 200.869588 | D154: =($AJ$16*(E153+C153)+(1-2*$AJ$16)*D153+$AJ$6*$AC$7)/(1+$AJ$6) -> 160.1610542 | E154: 127.4540508 | F154: 101.4079883 | G154: 80.885516 | H154: 64.91481621 | I154: 52.66299831 | J154: 43.41774378 | K154: 36.57453662 | L154: 31.6271835 | M154: 28.15984532 | N154: 25.83938602 | O154: 24.40741391 | P154: 23.67187195 | Q154: 23.4983853 | R154: 23.80178395 | S154: 24.53830213 | T154: 25.69894614 | U154: 27.30445605 | V154: 29.40219848 | W154: 32.06524066
A155: 144 | B155: 144 | C155: 201.1469216 | D155: 160.4486594 | E155: 127.7423485 | F155: 101.6878524 | G155: 81.14899213 | H155: 65.15567365 | I155: 52.87705631 | J155: 43.60295187 | K155: 36.73082693 | L155: 31.75614441 | M155: 28.2642835 | N155: 25.92284862 | O155: 24.47373441 | P155: 23.7247874 | Q155: 23.54125322 | R155: 23.83740874 | S155: 24.5688661 | T155: 25.72603051 | U155: 27.32913206 | V155: 29.42516712 | W155: 32.08700043
A156: 145 | B156: 145 | C156: 201.4215962 | D156: 160.7335072 | E156: 128.0279434 | F156: 101.9652093 | G156: 81.41026983 | H156: 65.39471647 | I156: 53.08971601 | J156: 43.78716981 | K156: 36.88649359 | L156: 31.88478335 | M156: 28.36862501 | N156: 26.00636257 | O156: 24.54018468 | P156: 23.77785479 | Q156: 23.5842551 | R156: 23.87312575 | S156: 24.59947172 | T156: 25.75310931 | U156: 27.35376757 | V156: 29.44807825 | W156: 32.10870571
A157: 146 | B157: 146 | C157: 201.693645 | D157: 161.0156318 | E157: 128.3108679 | F157: 102.2400868 | G157: 81.66937041 | H157: 65.63195848 | I157: 53.30098377 | J157: 43.9703975 | K157: 37.04153157 | L157: 32.01309222 | M157: 28.47286041 | N157: 26.08991863 | O157: 24.60675678 | P157: 23.83106813 | Q157: 23.62738716 | R157: 23.90893337 | S157: 24.63011919 | T157: 25.78018413 | U157: 27.37836511 | V157: 29.47093474 | W157: 32.13035923
A158: 147 | B158: 147 | C158: 201.9631004 | D158: 161.2950671 | E158: 128.5911541 | F158: 102.5125125 | G158: 81.92631493 | H158: 65.86741341 | I158: 53.51086603 | J158: 44.15263501 | K158: 37.19593609 | L158: 32.14106313 | M158: 28.57698053 | N158: 26.17350777 | O158: 24.67344293 | P158: 23.88442152 | Q158: 23.67064564 | R158: 23.94482993 | S158: 24.66080868 | T158: 25.80725653 | U158: 27.40292711 | V158: 29.4937394 | W158: 32.15196364
A159: 148 | B159: 148 | C159: 202.2299945 | D159: 161.5718462 | E159: 128.8688334 | F159: 102.7825133 | G159: 82.18112425 | H159: 66.10109493 | I159: 53.71936933 | J159: 44.33388261 | K159: 37.34970262 | L159: 32.26868851 | M159: 28.68097639 | N159: 26.25712113 | O159: 24.74023542 | P159: 23.93790911 | Q159: 23.71402682 | R159: 23.98081375 | S159: 24.69154028 | T159: 25.83432798 | U159: 27.42745592 | V159: 29.51649495 | W159: 32.17352153
A160: 149 | B160: 149 | C160: 202.4943588 | D160: 161.8460017 | E160: 129.1439367 | F160: 103.050116 | G160: 82.43381898 | H160: 66.33301664 | I160: 53.92650028 | J160: 44.51414078 | K160: 37.50282688 | L160: 32.39596102 | M160: 28.78483928 | N160: 26.34075004 | O160: 24.80712672 | P160: 23.99152513 | Q160: 23.75752694 | R160: 24.0168831 | S160: 24.72231403 | T160: 25.86139987 | U160: 27.45195383 | V160: 29.53920404 | W160: 32.19503541
A161: 150 | B161: 150 | C161: 202.7562242 | D161: 162.1175658 | E161: 129.4164943 | F161: 103.3153469 | G161: 82.68441949 | H161: 66.56319208 | I161: 54.13226557 | J161: 44.69341015 | K161: 37.65530485 | L161: 32.52287358 | M161: 28.88856072 | N161: 26.42438602 | O161: 24.87410938 | P161: 24.04526385 | Q161: 23.80114231 | R161: 24.05303626 | S161: 24.75312994 | T161: 25.88847354 | U161: 27.47642302 | V161: 29.56186923 | W161: 32.21650769
A162: 151 | B162: 151 | C162: 203.015621 | D162: 162.38657 | E162: 129.6865364 | F162: 103.5782319 | G162: 82.93294594 | H162: 66.7916347 | I162: 54.33667196 | J162: 44.87169154 | K162: 37.80713271 | L162: 32.64941936 | M162: 28.99213244 | N162: 26.50802075 | O162: 24.94117612 | P162: 24.09911964 | Q162: 23.84486923 | R162: 24.08927147 | S162: 24.78398793 | T162: 25.91555025 | U162: 27.50086563 | V162: 29.58449301 | W162: 32.23794074
A163: 152 | B163: 152 | C163: 203.2725794 | D163: 162.6530453 | E163: 129.9540923 | F163: 103.8387966 | G163: 83.17941825 | H163: 67.01835789 | I163: 54.53972625 | J163: 45.04898592 | K163: 37.95830688 | L163: 32.77559178 | M163: 29.09554641 | N163: 26.59164611 | O163: 25.00831974 | P163: 24.15308691 | Q163: 23.88870401 | R163: 24.12558693 | S163: 24.81488791 | T163: 25.9426312 | U163: 27.52528369 | V163: 29.60707778 | W163: 32.25933684
A164: 153 | B164: 153 | C164: 203.5271286 | D164: 162.9170223 | E164: 130.2191911 | F164: 104.0970662 | G164: 83.42385614 | H164: 67.24337496 | I164: 54.74143533 | J164: 45.22529444 | K164: 38.10882401 | L164: 32.90138447 | M164: 29.1987948 | N164: 26.67525415 | O164: 25.07553318 | P164: 24.20716015 | Q164: 23.93264299 | R164: 24.16198086 | S164: 24.84582971 | T164: 25.96971752 | U164: 27.54967919 | V164: 29.62962588 | W164: 32.2806982
A165: 154 | B165: 154 | C165: 203.7792977 | D165: 163.1785309 | E165: 130.4818613 | F165: 104.3530656 | G165: 83.66627911 | H165: 67.46669916 | I165: 54.94180611 | J165: 45.40061839 | K165: 38.25868095 | L165: 33.02679132 | M165: 29.30187001 | N165: 26.75883709 | O165: 25.14280952 | P165: 24.26133391 | Q165: 23.97668255 | R165: 24.19845144 | S165: 24.87681315 | T165: 25.99681028 | U165: 27.57405402 | V165: 29.65213957 | W165: 32.30202696
A166: 155 | B166: 155 | C166: 204.0291151 | D166: 163.4376009 | E166: 130.7421312 | F166: 104.6068193 | G166: 83.90670641 | H166: 67.68834364 | I166: 55.1408456 | J166: 45.57495921 | K166: 38.40787475 | L166: 33.15180643 | M166: 29.40476465 | N166: 26.84238733 | O166: 25.21014192 | P166: 24.31560283 | Q166: 24.02081904 | R166: 24.23499683 | S166: 24.90783798 | T166: 26.02391048 | U166: 27.59841001 | V166: 29.67462103 | W166: 32.32332518
A167: 156 | B167: 156 | C167: 204.2766089 | D167: 163.6942611 | E167: 131.0000283 | F167: 104.8583514 | G167: 84.14515711 | H167: 67.90832149 | I167: 55.33856079 | J167: 45.74831848 | K167: 38.55640267 | L167: 33.27642412 | M167: 29.50747151 | N167: 26.92589744 | O167: 25.27752371 | P167: 24.3699616 | Q167: 24.0650489 | R167: 24.27161517 | S167: 24.9389039 | T167: 26.05101907 | U167: 27.62274892 | V167: 29.69707238 | W167: 32.34459488
A168: 157 | B168: 157 | C168: 204.5218067 | D168: 163.9485403 | E168: 131.25558 | F168: 105.1076859 | G168: 84.38165006 | H168: 68.1266457 | I168: 55.53495877 | J168: 45.92069791 | K168: 38.70426216 | L168: 33.40063892 | M168: 29.60998361 | N168: 27.00936013 | O168: 25.34494829 | P168: 24.42440498 | Q168: 24.10936853 | R168: 24.30830462 | S168: 24.9700106 | T168: 26.07813695 | U168: 27.64707245 | V168: 29.71949565 | W168: 32.36583799
A169: 158 | B169: 158 | C169: 204.7647356 | D169: 164.2004666 | E169: 131.5088132 | F169: 105.3548461 | G169: 84.6162039 | H169: 68.3433292 | I169: 55.73004664 | J169: 46.09209936 | K169: 38.85145085 | L169: 33.52444557 | M169: 29.71229415 | N169: 27.09276831 | O169: 25.41240921 | P169: 24.47892781 | Q169: 24.1537744 | R169: 24.34506329 | S169: 25.00115771 | T169: 26.10526493 | U169: 27.67138222 | V169: 29.74189283 | W169: 32.38705637
A170: 159 | B170: 159 | C170: 205.0054224 | D170: 164.4500677 | E170: 131.7597542 | F170: 105.5998555 | G170: 84.84883706 | H170: 68.55838482 | I170: 55.92383153 | J170: 46.26252479 | K170: 38.99796656 | L170: 33.64783902 | M170: 29.81439654 | N170: 27.17611502 | O170: 25.47990014 | P170: 24.53352498 | Q170: 24.19826298 | R170: 24.38188929 | S170: 25.03234482 | T170: 26.1324038 | U170: 27.69567978 | V170: 29.76426581 | W170: 32.40825182
A171: 160 | B171: 160 | C171: 205.2438933 | D171: 164.6973708 | E171: 132.0084292 | F171: 105.8427367 | G171: 85.07956776 | H171: 68.77182533 | I171: 56.11632062 | J171: 46.43197629 | K171: 39.1438073 | L171: 33.77081441 | M171: 29.91628436 | N171: 27.25939349 | O171: 25.54741484 | P171: 24.58819148 | Q171: 24.24283077 | R171: 24.41878073 | S171: 25.06357149 | T171: 26.15955428 | U171: 27.71996664 | V171: 29.78661644 | W171: 32.4294261
A172: 161 | B172: 161 | C172: 205.4801743 | D172: 164.9424029 | E172: 132.2548638 | F172: 106.0835124 | G172: 85.30841403 | H172: 68.9836634 | I172: 56.3075211 | J172: 46.60045608 | K172: 39.28897122 | L172: 33.89336707 | M172: 30.01795139 | N172: 27.34259708 | O172: 25.6149472 | P172: 24.64292234 | Q172: 24.28747432 | R172: 24.45573571 | S172: 25.09483724 | T172: 26.18671702 | U172: 27.74424421 | V172: 29.80894647 | W172: 32.45058087
A173: 162 | B173: 162 | C173: 205.7142907 | D173: 165.1851904 | E173: 132.4990833 | F173: 106.3222048 | G173: 85.5353937 | H173: 69.19391163 | I173: 56.4974402 | J173: 46.76796647 | K173: 39.43345665 | L173: 34.01549254 | M173: 30.11939158 | N173: 27.42571932 | O173: 25.68249123 | P173: 24.69771267 | Q173: 24.33219017 | R173: 24.49275231 | S173: 25.12614157 | T173: 26.21389264 | U173: 27.76851387 | V173: 29.83125762 | W173: 32.47171775
A174: 163 | B174: 163 | C174: 205.9462678 | D174: 165.4257592 | E174: 132.7411127 | F174: 106.5588359 | G174: 85.76052439 | H174: 69.40258251 | I174: 56.68608515 | J174: 46.93450988 | K174: 39.5772621 | L174: 34.13718651 | M174: 30.22059908 | N174: 27.50875387 | O174: 25.75004105 | P174: 24.75255766 | Q174: 24.37697493 | R174: 24.52982861 | S174: 25.15748392 | T174: 26.2410817 | U174: 27.79277693 | V174: 29.85355153 | W174: 32.49283829
A175: 164 | B175: 164 | C175: 206.1761302 | D175: 165.664135 | E175: 132.9809763 | F175: 106.7934274 | G175: 85.98382355 | H175: 69.60968847 | I175: 56.87346322 | J175: 47.10008885 | K175: 39.7203862 | L175: 34.25844488 | M175: 30.32156818 | N175: 27.59169458 | O175: 25.81759087 | P175: 24.80745256 | Q175: 24.42182519 | R175: 24.56696269 | S175: 25.18886372 | T175: 26.26828472 | U175: 27.81703463 | V175: 29.87582977 | W175: 32.51394399
A176: 165 | B176: 165 | C176: 206.4039022 | D176: 165.9003431 | E176: 133.2186985 | F176: 107.0260006 | G176: 86.2053084 | H176: 69.81524185 | I176: 57.0595817 | J176: 47.26470598 | K176: 39.86282775 | L176: 34.3792637 | M176: 30.42229338 | N176: 27.67453541 | O176: 25.88513505 | P176: 24.86239269 | Q176: 24.46673762 | R176: 24.60415262 | S176: 25.22028037 | T176: 26.29550217 | U176: 27.84128815 | V176: 29.89809386 | W176: 32.53503629
A177: 166 | B177: 166 | C177: 206.6296079 | D177: 166.1344082 | E177: 133.4543031 | F177: =($AJ$16*(G176+E176)+(1-2*$AJ$16)*F176+$AJ$6*$AC$7)/(1+$AJ$6) -> 107.2565767 | G177: 86.42499601 | H177: 70.01925491 | I177: 57.24444786 | J177: 47.428364 | K177: 40.00458571 | L177: 34.4996392 | M177: 30.52276931 | N177: 27.75727047 | O177: 25.95266803 | P177: 24.91737343 | Q177: 24.51170889 | R177: 24.64139648 | S177: 25.25173323 | T177: 26.32273445 | U177: 27.86553864 | V177: 29.92034526 | W177: 32.55611656
A178: 167 | B178: 167 | C178: 206.8532707 | D178: =($AJ$16*(E177+C177)+(1-2*$AJ$16)*D177+$AJ$6*$AC$7)/(1+$AJ$6) -> 166.3663548 | E178: 133.6878135 | F178: 107.4851764 | G178: 86.64290323 | H178: 70.2217398 | I178: 57.42806902 | J178: 47.59106572 | K178: 40.14565915 | L178: 34.61956778 | M178: 30.62299079 | N178: 27.83989403 | O178: 26.02018436 | P178: 24.97239025 | Q178: 24.5567357 | R178: 24.67869232 | S178: 25.28322164 | T178: 26.34998193 | U178: 27.88978716 | V178: 29.94258536 | W178: 32.57718613
A179: 168 | B179: 168 | C179: 207.074914 | D179: 166.5962071 | E179: 133.9192529 | F179: 107.7118203 | G179: 86.85904674 | H179: 70.42270861 | I179: 57.61045248 | J179: 47.75281402 | K179: 40.28604729 | L179: 34.73904601 | M179: 30.72295279 | N179: 27.92240049 | O179: 26.0876787 | P179: 25.02743868 | Q179: 24.60181481 | R179: 24.71603822 | S179: 25.3147449 | T179: 26.37724496 | U179: 27.91403474 | V179: 29.96481551 | W179: 32.59824627
A180: 169 | B180: 169 | C180: 207.2945606 | D180: 166.8239888 | E180: 134.148644 | F180: 107.9365286 | G180: 87.07344304 | H180: 70.62217333 | I180: 57.79160556 | J180: 47.91361187 | K180: 40.42574951 | L180: 34.85807058 | M180: 30.82265044 | N180: 28.00478438 | O180: 26.15514583 | P180: 25.0825143 | Q180: 24.64694297 | R180: 24.75343223 | S180: 25.3463023 | T180: 26.4045238 | U180: 27.93828234 | V180: 29.98703697 | W180: 32.61929818
A181: 170 | B181: 170 | C181: 207.512233 | D181: 167.0497231 | E181: 134.3760094 | F181: 108.1593214 | G181: 87.28610844 | H181: 70.82014588 | I181: 57.97153559 | J181: 48.07346233 | K181: 40.56476528 | L181: 34.97663838 | M181: 30.92207903 | N181: 28.08704036 | O181: 26.22258062 | P181: 25.13761279 | Q181: 24.692117 | R181: 24.79087243 | S181: 25.37789311 | T181: 26.43181871 | U181: 27.96253087 | V181: 30.00925098 | W181: 32.64034304
A182: 171 | B182: 171 | C182: 207.7279535 | D182: 167.2734333 | E182: 134.6013712 | F182: 108.3802184 | G182: 87.49705907 | H182: 71.01663806 | I182: 58.15024988 | J182: 48.23236853 | K182: 40.7030942 | L182: 35.09474641 | M182: 31.02123397 | N182: 28.16916326 | O182: 26.28997804 | P182: 25.19272987 | Q182: 24.73733372 | R182: 24.82835689 | S182: 25.40951655 | T182: 26.45912987 | U182: 27.9867812 | V182: 30.03145871 | W182: 32.66138194
A183: 172 | B183: 172 | C183: 207.941744 | D183: 167.4951419 | E183: 134.8247513 | F183: 108.599239 | G183: 87.7063109 | H183: 71.21166163 | I183: 58.32775576 | J183: 48.39033364 | K183: 40.84073603 | L183: 35.21239185 | M183: 31.12011086 | N183: 28.25114799 | O183: 26.35733317 | P183: 25.24786134 | Q183: 24.78259002 | R183: 24.86588367 | S183: 25.44117184 | T183: 26.48645746 | U183: 28.01103415 | V183: 30.05366128 | W183: 32.68241595
A184: 173 | B184: 173 | C184: 208.153626 | D184: 167.7148714 | E184: 135.0461711 | F184: 108.8164025 | G184: 87.91387969 | H184: 71.40522822 | I184: 58.50406055 | J184: 48.54736096 | K184: 40.97769059 | L184: 35.32957199 | M184: 31.21870543 | N184: 28.33298963 | O184: 26.42464119 | P184: 25.30300308 | Q184: 24.82788279 | R184: 24.90345084 | S184: 25.47285817 | T184: 26.51380159 | U184: 28.03529046 | V184: 30.07585974 | W184: 32.70344607
A185: 174 | B185: 174 | C185: 208.3636207 | D185: 167.9326437 | E185: 135.2656519 | F185: 109.0317279 | G185: 88.11978107 | H185: 71.5973494 | I185: 58.67917157 | J185: 48.70345379 | K185: 41.11395785 | L185: 35.44628429 | M185: 31.31701352 | N185: 28.41468337 | O185: 26.49189738 | P185: 25.35815102 | Q185: 24.87320898 | R185: 24.94105649 | S185: 25.50457473 | T185: 26.54116234 | U185: 28.05955087 | V185: 30.09805511 | W185: 32.72447326
A186: 175 | B186: 175 | C186: 208.5717491 | D186: 168.1484806 | E186: 135.4832146 | F186: 109.2452339 | G186: 88.32403048 | H186: 71.78803664 | I186: 58.85309613 | J186: 48.85861554 | K186: 41.24953789 | L186: 35.56252631 | M186: 31.41503116 | N186: 28.49622451 | O186: 26.55909711 | P186: 25.41330114 | Q186: 24.91856554 | R186: 24.97869869 | S186: 25.53632065 | T186: 26.56853977 | U186: 28.08381603 | V186: 30.12024835 | W186: 32.74549843
A187: 176 | B187: 176 | C187: 208.7780319 | D187: 168.3624034 | E187: 135.6988799 | F187: 109.456939 | G187: 88.52664318 | H187: 71.97730133 | I187: 59.02584153 | J187: 49.01284965 | K187: 41.38443088 | L187: 35.67829577 | M187: 31.51275447 | N187: 28.57760849 | O187: 26.62623586 | P187: 25.46844953 | Q187: 24.96394949 | R187: 25.01637553 | S187: 25.56809508 | T187: 26.59593388 | U187: 28.10808657 | V187: 30.14244037 | W187: 32.76652246
A188: 177 | B188: 177 | C188: 208.9824893 | D188: 168.5744333 | E188: 135.9126681 | F188: 109.6668614 | G188: 88.72763428 | H188: 72.16515477 | I188: 59.19741506 | J188: 49.16615963 | K188: 41.5186371 | L188: 35.7935905 | M188: 31.61017973 | N188: 28.65883087 | O188: 26.69330919 | P188: 25.52359231 | Q188: 25.00935786 | R188: 25.05408511 | S188: 25.59989712 | T188: 26.62334466 | U188: 28.13236307 | V188: 30.16463205 | W188: 32.78754615
A189: 178 | B189: 178 | C189: 209.1851413 | D189: 168.784591 | E189: 136.1245993 | F189: 109.8750192 | G189: 88.92701872 | H189: 72.35160819 | I189: 59.36782402 | J189: 49.31854905 | K189: 41.65215693 | L189: 35.90840847 | M189: 31.70730334 | N189: 28.73988731 | O189: 26.76031277 | P189: 25.57872567 | Q189: 25.05478773 | R189: 25.09182551 | S189: 25.6317259 | T189: 26.65077205 | U189: 28.15664607 | V189: 30.18682418 | W189: 32.80857028
A190: 179 | B190: 179 | C190: 209.3860078 | D190: 168.992897 | E190: 136.3346933 | F190: 110.0814302 | G190: 89.12481128 | H190: 72.5366727 | I190: 59.53707568 | J190: 49.47002151 | K190: 41.78499084 | L190: 36.02274776 | M190: 31.80412182 | N190: 28.82077361 | O190: 26.82724234 | P190: 25.63384589 | Q190: 25.1002362 | R190: 25.12959485 | S190: 25.66358047 | T190: 26.67821595 | U190: 28.18093604 | V190: 30.20901756 | W190: 32.82959558
A191: 180 | B191: 180 | C191: 209.5851082 | D191: 169.1993714 | E191: 136.5429695 | F191: 110.2861119 | G191: 89.32102658 | H191: 72.72035936 | I191: 59.70517729 | J191: 49.62058068 | K191: 41.91713941 | L191: 36.13660656 | M191: 31.90063183 | N191: 28.90148567 | O191: 26.89409377 | P191: 25.68894927 | Q191: 25.14570042 | R191: 25.16739124 | S191: 25.69545993 | T191: 26.70567626 | U191: 28.20523345 | V191: 30.23121289 | W191: 32.85062274
A192: 181 | B192: 181 | C192: 209.7824616 | D192: 169.4040343 | E192: 136.7494472 | F192: 110.4890817 | G192: 89.51567909 | H192: 72.90267912 | I192: 59.8721361 | J192: 49.77023025 | K192: 42.04860329 | L192: 36.2499832 | M192: 31.99683013 | N192: 28.9820195 | O192: 26.96086298 | P192: 25.74403221 | Q192: 25.19117757 | R192: 25.20521281 | S192: 25.72736332 | T192: 26.73315281 | U192: 28.22953871 | V192: 30.25341086 | W192: 32.8716524
A193: 182 | B193: 182 | C193: 209.9780871 | D193: 169.6069052 | E193: 136.9541454 | F193: 110.6903567 | G193: 89.70878309 | H193: 73.08364286 | I193: 60.03795934 | J193: 49.91897399 | K193: 42.17938323 | L193: 36.3628761 | M193: 32.09271361 | N193: 29.06237122 | O193: 27.027546 | P193: 25.79909116 | Q193: 25.23666485 | R193: 25.24305767 | S193: 25.75928968 | T193: 26.76064544 | U193: 28.25385218 | V193: 30.27561211 | W193: 32.89268516
A194: 183 | B194: 183 | C194: 210.1720033 | D194: 169.8080034 | E194: 137.1570829 | F194: 110.8899538 | G194: 89.90035276 | H194: 73.26326137 | I194: 60.20265422 | J194: 50.06681568 | K194: 42.30948006 | L194: 36.47528379 | M194: 32.18827928 | N194: 29.14253705 | O194: 27.09413894 | P194: 25.85412264 | Q194: 25.28215952 | R194: 25.28092398 | S194: 25.79123806 | T194: 26.78815393 | U194: 28.2781742 | V194: 30.29781724 | W194: 32.9137216
A195: 184 | B195: 184 | C195: 210.3642285 | D195: 170.0073481 | E195: 137.3582781 | F195: 111.0878898 | G195: 90.09040208 | H195: 73.44154534 | I195: 60.36622794 | J195: 50.21375916 | K195: 42.4388947 | L195: 36.58720492 | M195: 32.28352426 | N195: 29.22251334 | O195: 27.16063802 | P195: 25.90912321 | Q195: 25.32765886 | R195: 25.31880988 | S195: 25.82320746 | T195: 26.81567805 | U195: 28.30250506 | V195: 30.3200268 | W195: 32.93476223
A196: 185 | B196: 185 | C196: 210.5547809 | D196: 170.2049579 | E196: 137.5577492 | F196: 111.284181 | G196: 90.2789449 | H196: 73.6185054 | I196: 60.52868767 | J196: 50.35980828 | K196: 42.56762812 | L196: 36.69863824 | M196: 32.37844577 | N196: 29.30229652 | O196: 27.2270395 | P196: 25.96408951 | Q196: 25.37316017 | R196: 25.35671352 | S196: 25.8551969 | T196: 26.84321753 | U196: 28.32684502 | V196: 30.34224131 | W196: 32.95580756
A197: 186 | B197: 186 | C197: 210.7436784 | D197: 170.4008516 | E197: 137.7555142 | F197: 111.4788439 | G197: 90.46599493 | H197: 73.79415209 | I197: 60.69004056 | J197: 50.50496696 | K197: 42.69568141 | L197: 36.80958258 | M197: 32.47304116 | N197: 29.38188312 | O197: 27.29333977 | P197: 26.01901824 | Q197: 25.41866082 | R197: 25.39463309 | S197: 25.88720537 | T197: 26.8707721 | U197: 28.35119431 | V197: 30.36446123 | W197: 32.97685801
A198: 187 | B198: 187 | C198: 210.9309385 | D198: 170.5950474 | E198: 137.9515908 | F198: 111.6718944 | G198: 90.65156571 | H198: 73.96849585 | I198: 60.85029375 | J198: 50.64923913 | K198: 42.82305569 | L198: 36.9200369 | M198: 32.56730785 | N198: 29.46126979 | O198: 27.35953528 | P198: 26.07390615 | Q198: 25.4641582 | R198: 25.43256676 | S198: 25.91923186 | T198: 26.89834144 | U198: 28.37555311 | V198: 30.38668702 | W198: 32.99791402
A199: 188 | B199: 188 | C199: 211.1165789 | D199: 170.7875633 | E199: 138.1459967 | F199: 111.8633485 | G199: 90.83567065 | H199: 74.14154705 | I199: 61.00945435 | J199: 50.79262875 | K199: 42.94975218 | L199: 37.03000022 | M199: 32.66124341 | N199: 29.54045326 | O199: 27.42562255 | P199: 26.12875006 | Q199: 25.50964971 | R199: 25.47051272 | S199: 25.95127536 | T199: 26.9259252 | U199: 28.39992158 | V199: 30.40891906 | W199: 33.01897595
A200: 189 | B200: 189 | C200: 211.3006164 | D200: 170.978417 | E200: 138.3387489 | F200: 112.0532219 | G200: 91.01832302 | H200: 74.31331599 | I200: 61.16752944 | J200: 50.93513982 | K200: 43.07577216 | L200: 37.13947169 | M200: 32.75484547 | N200: 29.61943036 | O200: 27.49159822 | P200: 26.18354685 | Q200: 25.55513283 | R200: 25.50846918 | S200: 25.98333483 | T200: 26.95352304 | U200: 28.42429985 | V200: 30.43115772 | W200: 33.04004416
... 835 more rows

Sheet elaborazione codice
B1: SIMULAZIONE VALVOLA CON CODICE | F1: (per entrare nel codice ALT-F11 per eseguire il codice F5)
A2: 1 | B2: 2 | C2: 3 | D2: 4 | E2: 5 | F2: 6 | G2: 7 | H2: 8 | I2: 9 | J2: 10 | K2: 11 | L2: 12 | M2: 13 | N2: 14 | O2: 15 | P2: 16 | Q2: 17 | R2: 18 | S2: 19 | T2: 20 | U2: 21 | V2: 22
B3: lvalv | C3: dvalv | D3: nx | E3: nt | F3: tau | G3: ro | H3: Kter | I3: csp | J3: gammam | K3: gammac | L3: gammaa | M3: T0 | N3: Tm | O3: Ta | P3: Tc
B4: lunghezza valvola (m) | C4: diametro valvola (m) | D4: numero intervalli x | E4: numero intervalli t | F4: durata tempo (s) | G4: densità (kg/m^3) | H4: conduttività termica ( ) | I4: calore specifico (J/(kg°K)) | J4: coeff. scambio con gas motore W/(s*m^2) | K4: coeff. scambio con olio carter W/(s*m^2) | L4: coeff. scambio con alimentazione W/(s*m^2) | M4: temperatura iniziale valvola (°C) | N4: temperatura gas motore (°C) | O4: temperatura alimentazione (°C) | P4: temperatura olio carter (°C)
B5: 0.1 | C5: ='[1]valvola alimentazione GHOST '!T7 -> 0.009 | D5: 75 | E5: 10240 | F5: 1024 | G5: ='[1]valvola alimentazione GHOST '!T9 -> 8100 | H5: ='[1]valvola alimentazione GHOST '!T10 -> 13.5 | I5: ='[1]valvola alimentazione GHOST '!T11 -> 515 | J5: 100 | K5: 150 | L5: 50 | M5: 20 | N5: 1300 | O5: 20 | P5: 80 | Q5: deltax | R5: deltat | S5: diffus | T5: G | U5: A | V5: B | W5: tetac | X5: tetam
A6: conv | B6: 0.182038835 | Q6: 0.001333333333 | R6: 0.1 | S6: 3.236245955e-06 | T6: 0.005327153835 | U6: 0.182038835 | V6: 0.0005327153835 | W6: 0.01481481481 | X6: 0.00987654321
A7: 20 | B7: x(m) | C7: 0 | D7: 0.001333333333 | E7: 0.002666666667 | F7: 0.004 | G7: 0.005333333333 | H7: 0.006666666667 | I7: 0.008 | J7: 0.009333333333 | K7: 0.01066666667 | L7: 0.012 | M7: 0.01333333333 | N7: 0.01466666667 | O7: 0.016 | P7: 0.01733333333 | Q7: 0.01866666667 | R7: 0.02 | S7: 0.02133333333 | T7: 0.02266666667 | U7: 0.024 | V7: 0.02533333333 | W7: 0.02666666667 | X7: 0.028 | Y7: 0.02933333333 | Z7: 0.03066666667 | AA7: 0.032 | AB7: 0.03333333333 | AC7: 0.03466666667 | AD7: 0.036 | AE7: 0.03733333333 | AF7: 0.03866666667 | AG7: 0.04 | AH7: 0.04133333333 | AI7: 0.04266666667 | AJ7: 0.044 | AK7: 0.04533333333 | AL7: 0.04666666667 | AM7: 0.048 | AN7: 0.04933333333 | AO7: 0.05066666667 | AP7: 0.052 | AQ7: 0.05333333333 | AR7: 0.05466666667 | AS7: 0.056 | AT7: 0.05733333333 | AU7: 0.05866666667 | AV7: 0.06 | AW7: 0.06133333333 | AX7: 0.06266666667 | AY7: 0.064 | AZ7: 0.06533333333 | BA7: 0.06666666667 | BB7: 0.068 | BC7: 0.06933333333 | BD7: 0.07066666667 | BE7: 0.072 | BF7: 0.07333333333 | BG7: 0.07466666667 | BH7: 0.076 | BI7: 0.07733333333 | BJ7: 0.07866666667 | BK7: 0.08 | BL7: 0.08133333333 | BM7: 0.08266666667 | BN7: 0.084 | BO7: 0.08533333333 | BP7: 0.08666666667 | BQ7: 0.088 | BR7: 0.08933333333 | BS7: 0.09066666667 | BT7: 0.092 | BU7: 0.09333333333 | BV7: 0.09466666667 | BW7: 0.096 | BX7: 0.09733333333 | BY7: 0.09866666667 | BZ7: 0.1
B8: i | C8: 0 | D8: 1 | E8: 2 | F8: 3 | G8: 4 | H8: 5 | I8: 6 | J8: 7 | K8: 8 | L8: 9 | M8: 10 | N8: 11 | O8: 12 | P8: 13 | Q8: 14 | R8: 15 | S8: 16 | T8: 17 | U8: 18 | V8: 19 | W8: 20 | X8: 21 | Y8: 22 | Z8: 23 | AA8: 24 | AB8: 25 | AC8: 26 | AD8: 27 | AE8: 28 | AF8: 29 | AG8: 30 | AH8: 31 | AI8: 32 | AJ8: 33 | AK8: 34 | AL8: 35 | AM8: 36 | AN8: 37 | AO8: 38 | AP8: 39 | AQ8: 40 | AR8: 41 | AS8: 42 | AT8: 43 | AU8: 44 | AV8: 45 | AW8: 46 | AX8: 47 | AY8: 48 | AZ8: 49 | BA8: 50 | BB8: 51 | BC8: 52 | BD8: 53 | BE8: 54 | BF8: 55 | BG8: 56 | BH8: 57 | BI8: 58 | BJ8: 59 | BK8: 60 | BL8: 61 | BM8: 62 | BN8: 63 | BO8: 64 | BP8: 65 | BQ8: 66 | BR8: 67 | BS8: 68 | BT8: 69 | BU8: 70 | BV8: 71 | BW8: 72 | BX8: 73 | BY8: 74 | BZ8: 75
A10: t(s) | B10: j
A11: 0 | B11: 0 | C11: 20 | D11: 20 | E11: 20 | F11: 20 | G11: 20 | H11: 20 | I11: 20 | J11: 20 | K11: 20 | L11: 20 | M11: 20 | N11: 20 | O11: 20 | P11: 20 | Q11: 20 | R11: 20 | S11: 20 | T11: 20 | U11: 20 | V11: 20 | W11: 20 | X11: 20 | Y11: 20 | Z11: 20 | AA11: 20 | AB11: 20 | AC11: 20 | AD11: 20 | AE11: 20 | AF11: 20 | AG11: 20 | AH11: 20 | AI11: 20 | AJ11: 20 | AK11: 20 | AL11: 20 | AM11: 20 | AN11: 20 | AO11: 20 | AP11: 20 | AQ11: 20 | AR11: 20 | AS11: 20 | AT11: 20 | AU11: 20 | AV11: 20 | AW11: 20 | AX11: 20 | AY11: 20 | AZ11: 20 | BA11: 20 | BB11: 20 | BC11: 20 | BD11: 20 | BE11: 20 | BF11: 20 | BG11: 20 | BH11: 20 | BI11: 20 | BJ11: 20 | BK11: 20 | BL11: 20 | BM11: 20 | BN11: 20 | BO11: 20 | BP11: 20 | BQ11: 20 | BR11: 20 | BS11: 20 | BT11: 20 | BU11: 20 | BV11: 20 | BW11: 20 | BX11: 20 | BY11: 20 | BZ11: 20 | CC11: TABELLA PER DIAGRAMMA VALVOLA
A12: 0.1 | B12: 1 | C12: 32.51833741 | D12: 20 | E12: 20 | F12: 20 | G12: 20 | H12: 20 | I12: 20 | J12: 20 | K12: 20 | L12: 20 | M12: 20 | N12: 20 | O12: 20 | P12: 20 | Q12: 20 | R12: 20 | S12: 20 | T12: 20 | U12: 20 | V12: 20 | W12: 20 | X12: 20 | Y12: 20 | Z12: 20 | AA12: 20 | AB12: 20 | AC12: 20 | AD12: 20 | AE12: 20 | AF12: 20 | AG12: 20 | AH12: 20 | AI12: 20 | AJ12: 20 | AK12: 20 | AL12: 20 | AM12: 20 | AN12: 20 | AO12: 20 | AP12: 20 | AQ12: 20 | AR12: 20 | AS12: 20 | AT12: 20 | AU12: 20 | AV12: 20 | AW12: 20 | AX12: 20 | AY12: 20 | AZ12: 20 | BA12: 20 | BB12: 20 | BC12: 20 | BD12: 20 | BE12: 20 | BF12: 20 | BG12: 20 | BH12: 20 | BI12: 20 | BJ12: 20 | BK12: 20 | BL12: 20 | BM12: 20 | BN12: 20 | BO12: 20 | BP12: 20 | BQ12: 20 | BR12: 20 | BS12: 20 | BT12: 20 | BU12: 20 | BV12: 20 | BW12: 20 | BX12: 20 | BY12: 20 | BZ12: 20.87591241 | CC12: x | CD12: =C7 -> 0 | CE12: =D7 -> 0.001333333333 | CF12: 0.002666666667 | CG12: 0.004 | CH12: 0.005333333333 | CI12: 0.006666666667 | CJ12: 0.008 | CK12: 0.009333333333 | CL12: 0.01066666667 | CM12: 0.012 | CN12: 0.01333333333 | CO12: 0.01466666667 | CP12: 0.016 | CQ12: 0.01733333333 | CR12: 0.01866666667 | CS12: 0.02 | CT12: 0.02133333333 | CU12: 0.02266666667 | CV12: 0.024 | CW12: 0.02533333333 | CX12: 0.02666666667 | CY12: 0.028 | CZ12: 0.02933333333 | DA12: 0.03066666667 | DB12: 0.032 | DC12: 0.03333333333 | DD12: 0.03466666667 | DE12: 0.036 | DF12: 0.03733333333 | DG12: 0.03866666667 | DH12: 0.04 | DI12: 0.04133333333 | DJ12: 0.04266666667 | DK12: 0.044 | DL12: 0.04533333333 | DM12: 0.04666666667 | DN12: 0.048 | DO12: 0.04933333333 | DP12: 0.05066666667 | DQ12: 0.052 | DR12: 0.05333333333 | DS12: 0.05466666667 | DT12: 0.056 | DU12: 0.05733333333 | DV12: 0.05866666667 | DW12: 0.06 | DX12: 0.06133333333 | DY12: 0.06266666667 | DZ12: 0.064 | EA12: 0.06533333333 | EB12: 0.06666666667 | EC12: 0.068 | ED12: 0.06933333333 | EE12: 0.07066666667 | EF12: 0.072 | EG12: 0.07333333333 | EH12: 0.07466666667 | EI12: 0.076 | EJ12: 0.07733333333 | EK12: 0.07866666667 | EL12: 0.08 | EM12: 0.08133333333 | EN12: 0.08266666667 | EO12: 0.084 | EP12: 0.08533333333 | EQ12: =BP7 -> 0.08666666667 | ER12: 0.088 | ES12: 0.08933333333 | ET12: 0.09066666667 | EU12: 0.092 | EV12: 0.09333333333 | EW12: 0.09466666667 | EX12: 0.096 | EY12: 0.09733333333 | EZ12: 0.09866666667 | FA12: 0.1
A13: 0.2 | B13: 2 | C13: 34.77367273 | D13: 22.27761024 | E13: 20 | F13: 20 | G13: 20 | H13: 20 | I13: 20 | J13: 20 | K13: 20 | L13: 20 | M13: 20 | N13: 20 | O13: 20 | P13: 20 | Q13: 20 | R13: 20 | S13: 20 | T13: 20 | U13: 20 | V13: 20 | W13: 20 | X13: 20 | Y13: 20 | Z13: 20 | AA13: 20 | AB13: 20 | AC13: 20 | AD13: 20 | AE13: 20 | AF13: 20 | AG13: 20 | AH13: 20 | AI13: 20 | AJ13: 20 | AK13: 20 | AL13: 20 | AM13: 20 | AN13: 20 | AO13: 20 | AP13: 20 | AQ13: 20 | AR13: 20 | AS13: 20 | AT13: 20 | AU13: 20 | AV13: 20 | AW13: 20 | AX13: 20 | AY13: 20 | AZ13: 20 | BA13: 20 | BB13: 20 | BC13: 20 | BD13: 20 | BE13: 20 | BF13: 20 | BG13: 20 | BH13: 20 | BI13: 20 | BJ13: 20 | BK13: 20 | BL13: 20 | BM13: 20 | BN13: 20 | BO13: 20 | BP13: 20 | BQ13: 20 | BR13: 20 | BS13: 20 | BT13: 20 | BU13: 20 | BV13: 20 | BW13: 20 | BX13: 20 | BY13: 20.15936518 | BZ13: 21.03295109 | CC13: t=0s | CD13: =C11 -> 20 | CE13: =D11 -> 20 | CF13: 20 | CG13: 20 | CH13: 20 | CI13: 20 | CJ13: 20 | CK13: 20 | CL13: 20 | CM13: 20 | CN13: 20 | CO13: 20 | CP13: 20 | CQ13: 20 | CR13: 20 | CS13: 20 | CT13: 20 | CU13: 20 | CV13: 20 | CW13: 20 | CX13: 20 | CY13: 20 | CZ13: 20 | DA13: 20 | DB13: 20 | DC13: 20 | DD13: 20 | DE13: 20 | DF13: 20 | DG13: 20 | DH13: 20 | DI13: 20 | DJ13: 20 | DK13: 20 | DL13: 20 | DM13: 20 | DN13: 20 | DO13: 20 | DP13: 20 | DQ13: 20 | DR13: 20 | DS13: 20 | DT13: 20 | DU13: 20 | DV13: 20 | DW13: 20 | DX13: 20 | DY13: 20 | DZ13: 20 | EA13: 20 | EB13: 20 | EC13: 20 | ED13: 20 | EE13: 20 | EF13: 20 | EG13: 20 | EH13: 20 | EI13: 20 | EJ13: 20 | EK13: 20 | EL13: 20 | EM13: =BL11 -> 20 | EN13: =BM11 -> 20 | EO13: =BN11 -> 20 | EP13: =BO11 -> 20 | EQ13: =BP11 -> 20 | ER13: =BQ11 -> 20 | ES13: =BR11 -> 20 | ET13: =BS11 -> 20 | EU13: =BT11 -> 20 | EV13: =BU11 -> 20 | EW13: =BV11 -> 20 | EX13: =BW11 -> 20 | EY13: =BX11 -> 20 | EZ13: =BY11 -> 20 | FA13: =BZ11 -> 20
A14: 0.3 | B14: 3 | C14: 36.61345412 | D14: 24.1355623 | E14: 20.41439276 | F14: 20 | G14: 20 | H14: 20 | I14: 20 | J14: 20 | K14: 20 | L14: 20 | M14: 20 | N14: 20 | O14: 20 | P14: 20 | Q14: 20 | R14: 20 | S14: 20 | T14: 20 | U14: 20 | V14: 20 | W14: 20 | X14: 20 | Y14: 20 | Z14: 20 | AA14: 20 | AB14: 20 | AC14: 20 | AD14: 20 | AE14: 20 | AF14: 20 | AG14: 20 | AH14: 20 | AI14: 20 | AJ14: 20 | AK14: 20 | AL14: 20 | AM14: 20 | AN14: 20 | AO14: 20 | AP14: 20 | AQ14: 20 | AR14: 20 | AS14: 20 | AT14: 20 | AU14: 20 | AV14: 20 | AW14: 20 | AX14: 20 | AY14: 20 | AZ14: 20 | BA14: 20 | BB14: 20 | BC14: 20 | BD14: 20 | BE14: 20 | BF14: 20 | BG14: 20 | BH14: 20 | BI14: 20 | BJ14: 20 | BK14: 20 | BL14: 20 | BM14: 20 | BN14: 20 | BO14: 20 | BP14: 20 | BQ14: 20 | BR14: 20 | BS14: 20 | BT14: 20 | BU14: 20 | BV14: 20 | BW14: 20 | BX14: 20.02899521 | BY14: 20.28922701 | BZ14: 21.16091713 | CC14: t = 4s | CD14: =C51 -> 63.23988857 | CE14: =D51 -> 51.02497389 | CF14: 41.35736887 | CG14: 34.06138638 | CH14: 28.82868125 | CI14: 25.27234784 | CJ14: 22.98752196 | CK14: 21.60277002 | CL14: 20.8124987 | CM14: 20.38848544 | CN14: 20.17490166 | CO14: 20.07402704 | CP14: 20.02941065 | CQ14: 20.01095204 | CR14: 20.00381702 | CS14: 20.00124322 | CT14: 20.00037784 | CU14: 20.00010698 | CV14: 20.00002817 | CW14: 20.00000689 | CX14: 20.00000156 | CY14: 20.00000033 | CZ14: 20.00000006 | DA14: 20.00000001 | DB14: 20 | DC14: 20 | DD14: 20 | DE14: 20 | DF14: 20 | DG14: 20 | DH14: 20 | DI14: 20 | DJ14: 20 | DK14: 20 | DL14: 20 | DM14: 20 | DN14: 20 | DO14: 20 | DP14: 20 | DQ14: 20 | DR14: 20 | DS14: 20 | DT14: 20 | DU14: 20 | DV14: 20 | DW14: 20 | DX14: 20 | DY14: 20 | DZ14: 20 | EA14: 20 | EB14: 20 | EC14: 20 | ED14: 20 | EE14: 20 | EF14: 20.00000002 | EG14: 20.00000011 | EH14: 20.00000048 | EI14: 20.00000197 | EJ14: 20.00000747 | EK14: 20.00002639 | EL14: 20.00008681 | EM14: =BL51 -> 20.00026649 | EN14: =BM51 -> 20.00076445 | EO14: =BN51 -> 20.00205234 | EP14: =BO51 -> 20.00516433 | EQ14: =BP51 -> 20.01219782 | ER14: =BQ51 -> 20.02708397 | ES14: =BR51 -> 20.05662278 | ET14: =BS51 -> 20.11164773 | EU14: =BT51 -> 20.2080062 | EV14: =BU51 -> 20.36688405 | EW14: =BV51 -> 20.61397386 | EX14: =BW51 -> 20.97718646 | EY14: =BX51 -> 21.48304568 | EZ14: =BY51 -> 22.15245604 | FA14: =BZ51 -> 22.99694574
A15: 0.4 | B15: 4 | C15: 38.18890697 | D15: 25.72657519 | E15: 21.01581341 | F15: 20.07539541 | G15: 20 | H15: 20 | I15: 20 | J15: 20 | K15: 20 | L15: 20 | M15: 20 | N15: 20 | O15: 20 | P15: 20 | Q15: 20 | R15: 20 | S15: 20 | T15: 20 | U15: 20 | V15: 20 | W15: 20 | X15: 20 | Y15: 20 | Z15: 20 | AA15: 20 | AB15: 20 | AC15: 20 | AD15: 20 | AE15: 20 | AF15: 20 | AG15: 20 | AH15: 20 | AI15: 20 | AJ15: 20 | AK15: 20 | AL15: 20 | AM15: 20 | AN15: 20 | AO15: 20 | AP15: 20 | AQ15: 20 | AR15: 20 | AS15: 20 | AT15: 20 | AU15: 20 | AV15: 20 | AW15: 20 | AX15: 20 | AY15: 20 | AZ15: 20 | BA15: 20 | BB15: 20 | BC15: 20 | BD15: 20 | BE15: 20 | BF15: 20 | BG15: 20 | BH15: 20 | BI15: 20 | BJ15: 20 | BK15: 20 | BL15: 20 | BM15: 20 | BN15: 20 | BO15: 20 | BP15: 20 | BQ15: 20 | BR15: 20 | BS15: 20 | BT15: 20 | BU15: 20 | BV15: 20 | BW15: 20.00527544 | BX15: 20.0710514 | BY15: 20.40032291 | BZ15: 21.27039119 | CC15: t = 16s | CD15: =C171 -> 97.10179769 | CE15: =D171 -> 85.22132161 | CF15: 74.63670274 | CG15: 65.30721669 | CH15: 57.17610229 | CI15: 50.17221209 | CJ15: 44.21243368 | CK15: 39.204672 | CL15: 35.05114809 | CM15: 31.65176235 | CN15: 28.90728761 | CO15: 26.72219653 | CP15: 25.00698053 | CQ15: 23.67987803 | CR15: 22.66798901 | CS15: 21.90780534 | CT15: 21.34522678 | CU15: 20.93515953 | CV15: 20.64080659 | CW15: 20.43275913 | CX15: 20.28798824 | CY15: 20.18881988 | CZ15: 20.12195625 | DA15: 20.07758648 | DB15: 20.04861152 | DC15: 20.02999244 | DD15: 20.01822026 | DE15: 20.01089736 | DF15: 20.00641605 | DG15: 20.00371835 | DH15: 20.00212095 | DI15: 20.00119061 | DJ15: 20.00065772 | DK15: 20.00035754 | DL15: 20.00019129 | DM15: 20.00010081 | DN15: 20.00005252 | DO15: 20.00002743 | DP15: 20.00001512 | DQ15: 20.00001016 | DR15: 20.00001017 | DS15: 20.00001482 | DT15: 20.00002559 | DU15: 20.00004609 | DV15: 20.00008299 | DW15: 20.00014761 | DX15: 20.00025864 | DY15: 20.00044615 | DZ15: 20.00075758 | EA15: 20.00126636 | EB15: 20.00208404 | EC15: 20.00337693 | ED15: 20.00538828 | EE15: 20.00846728 | EF15: 20.0131056 | EG15: 20.01998233 | EH15: 20.03001736 | EI15: 20.04443244 | EJ15: 20.06481828 | EK15: 20.09320451 | EL15: 20.13212822 | EM15: =BL171 -> 20.18469518 | EN15: =BM171 -> 20.25462685 | EO15: =BN171 -> 20.34628566 | EP15: =BO171 -> 20.46467096 | EQ15: =BP171 -> 20.61537907 | ER15: =BQ171 -> 20.8045226 | ES15: =BR171 -> 21.03860732 | ET15: =BS171 -> 21.32436827 | EU15: =BT171 -> 21.66857113 | EV15: =BU171 -> 22.07778892 | EW15: =BV171 -> 22.5581679 | EX15: =BW171 -> 23.11519913 | EY15: =BX171 -> 23.75351317 | EZ15: =BY171 -> 24.47671507 | FA15: =BZ171 -> 25.28727397
A16: 0.5 | B16: 5 | C16: 39.58243024 | D16: 27.13386165 | E16: 21.70125612 | F16: 20.23273913 | G16: 20.01371759 | H16: 20 | I16: 20 | J16: 20 | K16: 20 | L16: 20 | M16: 20 | N16: 20 | O16: 20 | P16: 20 | Q16: 20 | R16: 20 | S16: 20 | T16: 20 | U16: 20 | V16: 20 | W16: 20 | X16: 20 | Y16: 20 | Z16: 20 | AA16: 20 | AB16: 20 | AC16: 20 | AD16: 20 | AE16: 20 | AF16: 20 | AG16: 20 | AH16: 20 | AI16: 20 | AJ16: 20 | AK16: 20 | AL16: 20 | AM16: 20 | AN16: 20 | AO16: 20 | AP16: 20 | AQ16: 20 | AR16: 20 | AS16: 20 | AT16: 20 | AU16: 20 | AV16: 20 | AW16: 20 | AX16: 20 | AY16: 20 | AZ16: 20 | BA16: 20 | BB16: 20 | BC16: 20 | BD16: 20 | BE16: 20 | BF16: 20 | BG16: 20 | BH16: 20 | BI16: 20 | BJ16: 20 | BK16: 20 | BL16: 20 | BM16: 20 | BN16: 20 | BO16: 20 | BP16: 20 | BQ16: 20 | BR16: 20 | BS16: 20 | BT16: 20 | BU16: 20 | BV16: 20.00095982 | BW16: 20.01628021 | BX16: 20.11895445 | BY16: 20.49850336 | BZ16: 21.36713835 | CC16: t = 64s | CD16: =C651 -> 151.8130834 | CE16: =D651 -> 140.4729657 | CF16: 129.87668 | CG16: 119.9950684 | CH16: 110.7990954 | CI16: 102.2597944 | CJ16: 94.34823861 | CK16: 87.03553662 | CL16: 80.29284794 | CM16: 74.09141862 | CN16: 68.40263353 | CO16: 63.19808259 | CP16: 58.44963842 | CQ16: 54.12954222 | CR16: 50.21049509 | CS16: 46.6657519 | CT16: 43.46921498 | CU16: 40.59552521 | CV16: 38.02014814 | CW16: 35.71945319 | CX16: 33.6707844 | CY16: 31.85252131 | CZ16: 30.24412905 | DA16: 28.82619705 | DB16: 27.58046612 | DC16: 26.48984389 | DD16: 25.53840897 | DE16: 24.71140435 | DF16: 23.99522096 | DG16: 23.37737206 | DH16: 22.84645989 | DI16: 22.3921354 | DJ16: 22.00505246 | DK16: 21.67681776 | DL16: 21.39993739 | DM16: 21.16776148 | DN16: 20.97442778 | DO16: 20.81480512 | DP16: 20.68443779 | DQ16: 20.57949127 | DR16: 20.4967002 | DS16: 20.4333188 | DT16: 20.38707436 | DU16: 20.35612378 | DV16: 20.33901354 | DW16: 20.33464293 | DX16: 20.34223065 | DY16: 20.36128455 | DZ16: 20.39157443 | EA16: 20.43310762 | EB16: 20.48610709 | EC16: 20.55099186 | ED16: 20.62835933 | EE16: 20.71896941 | EF16: 20.82372999 | EG16: 20.94368358 | EH16: 21.07999498 | EI16: 21.23393956 | EJ16: 21.40689221 | EK16: 21.60031669 | EL16: 21.81575534 | EM16: =BL651 -> 22.05481908 | EN16: =BM651 -> 22.31917773 | EO16: =BN651 -> 22.61055059 | EP16: =BO651 -> 22.93069749 | EQ16: =BP651 -> 23.28141019 | ER16: =BQ651 -> 23.66450445 | ES16: =BR651 -> 24.08181275 | ET16: =BS651 -> 24.53517794 | EU16: =BT651 -> 25.02644784 | EV16: =BU651 -> 25.55747104 | EW16: =BV651 -> 26.13009406 | EX16: =BW651 -> 26.74615992 | EY16: =BX651 -> 27.40750837 | EZ16: =BY651 -> 28.11597775 | FA16: =BZ651 -> 28.87340873
A17: 0.6 | B17: 6 | C17: 40.84268273 | D17: 28.40656108 | E17: 22.42158416 | F17: 20.4599508 | G17: 20.05106368 | H17: 20.0024958 | I17: 20 | J17: 20 | K17: 20 | L17: 20 | M17: 20 | N17: 20 | O17: 20 | P17: 20 | Q17: 20 | R17: 20 | S17: 20 | T17: 20 | U17: 20 | V17: 20 | W17: 20 | X17: 20 | Y17: 20 | Z17: 20 | AA17: 20 | AB17: 20 | AC17: 20 | AD17: 20 | AE17: 20 | AF17: 20 | AG17: 20 | AH17: 20 | AI17: 20 | AJ17: 20 | AK17: 20 | AL17: 20 | AM17: 20 | AN17: 20 | AO17: 20 | AP17: 20 | AQ17: 20 | AR17: 20 | AS17: 20 | AT17: 20 | AU17: 20 | AV17: 20 | AW17: 20 | AX17: 20 | AY17: 20 | AZ17: 20 | BA17: 20 | BB17: 20 | BC17: 20 | BD17: 20 | BE17: 20 | BF17: 20 | BG17: 20 | BH17: 20 | BI17: 20 | BJ17: 20 | BK17: 20 | BL17: 20 | BM17: 20 | BN17: 20 | BO17: 20 | BP17: 20 | BQ17: 20 | BR17: 20 | BS17: 20 | BT17: 20 | BU17: 20.00017463 | BV17: 20.0035721 | BW17: 20.03216487 | BX17: 20.16926622 | BY17: 20.5872232 | BZ17: 21.45456301 | CC17: t = 256s | CD17: =C2571 -> 207.5196789 | CE17: =D2571 -> 196.7297498 | CF17: 186.5166201 | CG17: 176.8509027 | CH17: 167.7047293 | CI17: 159.0516685 | CJ17: 150.8666489 | CK17: 143.1258852 | CL17: 135.8068103 | CM17: 128.888009 | CN17: 122.3491576 | CO17: 116.1709649 | CP17: 110.3351178 | CQ17: 104.8242297 | CR17: 99.62179158 | CS17: 94.71212595 | CT17: 90.08034368 | CU17: 85.71230306 | CV17: 81.59457131 | CW17: 77.71438833 | CX17: 74.05963256 | CY17: 70.61878879 | CZ17: 67.38091787 | DA17: 64.33562821 | DB17: 61.47304893 | DC17: 58.7838046 | DD17: 56.25899142 | DE17: 53.89015486 | DF17: 51.66926859 | DG17: 49.5887146 | DH17: 47.64126457 | DI17: 45.82006224 | DJ17: 44.11860689 | DK17: 42.53073774 | DL17: 41.05061923 | DM17: 39.67272725 | DN17: 38.39183604 | DO17: 37.20300599 | DP17: 36.10157199 | DQ17: 35.08313261 | DR17: 34.14353978 | DS17: 33.27888913 | DT17: 32.48551091 | DU17: 31.75996137 | DV17: 31.09901473 | DW17: 30.49965558 | DX17: 29.95907174 | DY17: 29.47464763 | DZ17: 29.04395792 | EA17: 28.66476178 | EB17: 28.33499735 | EC17: 28.0527767 | ED17: 27.81638112 | EE17: 27.62425679 | EF17: 27.4750108 | EG17: 27.36740756 | EH17: 27.30036549 | EI17: 27.27295412 | EJ17: 27.28439153 | EK17: 27.33404212 | EL17: 27.42141473 | EM17: =BL2571 -> 27.54616112 | EN17: =BM2571 -> 27.70807482 | EO17: =BN2571 -> 27.90709032 | EP17: =BO2571 -> 28.1432826 | EQ17: =BP2571 -> 28.4168671 | ER17: =BQ2571 -> 28.72819999 | ES17: =BR2571 -> 29.0777789 | ET17: =BS2571 -> 29.46624395 | EU17: =BT2571 -> 29.89437927 | EV17: =BU2571 -> 30.36311487 | EW17: =BV2571 -> 30.87352896 | EX17: =BW2571 -> 31.4268507 | EY17: =BX2571 -> 32.02446337 | EZ17: =BY2571 -> 32.66790798 | FA17: =BZ2571 -> 33.35888743
A18: 0.7 | B18: 7 | C18: 42.00050514 | D18: 29.57581877 | E18: 23.15230965 | F18: 20.74221553 | G18: 20.11659366 | H18: 20.01087692 | I18: 20.00045409 | J18: 20 | K18: 20 | L18: 20 | M18: 20 | N18: 20 | O18: 20 | P18: 20 | Q18: 20 | R18: 20 | S18: 20 | T18: 20 | U18: 20 | V18: 20 | W18: 20 | X18: 20 | Y18: 20 | Z18: 20 | AA18: 20 | AB18: 20 | AC18: 20 | AD18: 20 | AE18: 20 | AF18: 20 | AG18: 20 | AH18: 20 | AI18: 20 | AJ18: 20 | AK18: 20 | AL18: 20 | AM18: 20 | AN18: 20 | AO18: 20 | AP18: 20 | AQ18: 20 | AR18: 20 | AS18: 20 | AT18: 20 | AU18: 20 | AV18: 20 | AW18: 20 | AX18: 20 | AY18: 20 | AZ18: 20 | BA18: 20 | BB18: 20 | BC18: 20 | BD18: 20 | BE18: 20 | BF18: 20 | BG18: 20 | BH18: 20 | BI18: 20 | BJ18: 20 | BK18: 20 | BL18: 20 | BM18: 20 | BN18: 20 | BO18: 20 | BP18: 20 | BQ18: 20 | BR18: 20 | BS18: 20 | BT18: 20.00003177 | BU18: 20.00076091 | BV18: 20.00815428 | BW18: 20.05189 | BX18: 20.22027551 | BY18: 20.66867212 | BZ18: 21.53482289 | CC18: t = 1024s | CD18: =C10251 -> 222.5122195 | CE18: =D10251 -> 211.8703649 | CF18: 201.7904004 | CG18: 192.242832 | CH18: 183.1997235 | CI18: 174.6346149 | CJ18: 166.5224446 | CK18: 158.8394767 | CL18: 151.5632309 | CM18: 144.672417 | CN18: 138.1468728 | CO18: 131.9675044 | CP18: 126.1162313 | CQ18: 120.5759327 | CR18: 115.3303978 | CS18: 110.3642781 | CT18: 105.6630427 | CU18: 101.2129358 | CV18: 97.00093625 | CW18: 93.01471951 | CX18: 89.24262169 | CY18: 85.67360532 | CZ18: 82.29722706 | DA18: 79.10360718 | DB18: 76.08340061 | DC18: 73.22776961 | DD18: 70.52835792 | DE18: 67.97726627 | DF18: 65.56702931 | DG18: 63.29059372 | DH18: 61.14129761 | DI18: 59.11285102 | DJ18: 57.19931747 | DK18: 55.39509666 | DL18: 53.69490802 | DM18: 52.09377531 | DN18: 50.587012 | DO18: 49.17020762 | DP18: 47.83921482 | DQ18: 46.59013722 | DR18: 45.41931807 | DS18: 44.32332948 | DT18: 43.29896243 | DU18: 42.34321737 | DV18: 41.45329546 | DW18: 40.62659035 | DX18: 39.86068058 | DY18: 39.1533225 | DZ18: 38.50244368 | EA18: 37.90613686 | EB18: 37.36265439 | EC18: 36.87040309 | ED18: 36.4279396 | EE18: 36.03396615 | EF18: 35.68732678 | EG18: 35.38700396 | EH18: 35.13211559 | EI18: 34.92191244 | EJ18: 34.75577597 | EK18: 34.63321647 | EL18: 34.5538717 | EM18: =BL10251 -> 34.51750578 | EN18: =BM10251 -> 34.52400853 | EO18: =BN10251 -> 34.57339512 | EP18: =BO10251 -> 34.66580616 | EQ18: =BP10251 -> 34.80150805 | ER18: =BQ10251 -> 34.98089382 | ES18: =BR10251 -> 35.20448427 | ET18: =BS10251 -> 35.47292945 | EU18: =BT10251 -> 35.78701064 | EV18: =BU10251 -> 36.14764255 | EW18: =BV10251 -> 36.55587608 | EX18: =BW10251 -> 37.01290135 | EY18: =BX10251 -> 37.52005118 | EZ18: =BY10251 -> 38.07880502 | FA18: =BZ10251 -> 38.69079327
A19: 0.8 | B19: 8 | C19: 43.0766438 | D19: 30.66258596 | E19: 23.88083966 | F19: 21.06649064 | G19: 20.21112412 | H19: 20.02820908 | I19: 20.00226758 | J19: 20.00008262 | K19: 20 | L19: 20 | M19: 20 | N19: 20 | O19: 20 | P19: 20 | Q19: 20 | R19: 20 | S19: 20 | T19: 20 | U19: 20 | V19: 20 | W19: 20 | X19: 20 | Y19: 20 | Z19: 20 | AA19: 20 | AB19: 20 | AC19: 20 | AD19: 20 | AE19: 20 | AF19: 20 | AG19: 20 | AH19: 20 | AI19: 20 | AJ19: 20 | AK19: 20 | AL19: 20 | AM19: 20 | AN19: 20 | AO19: 20 | AP19: 20 | AQ19: 20 | AR19: 20 | AS19: 20 | AT19: 20 | AU19: 20 | AV19: 20 | AW19: 20 | AX19: 20 | AY19: 20 | AZ19: 20 | BA19: 20 | BB19: 20 | BC19: 20 | BD19: 20 | BE19: 20 | BF19: 20 | BG19: 20 | BH19: 20 | BI19: 20 | BJ19: 20 | BK19: 20 | BL19: 20 | BM19: 20 | BN19: 20 | BO19: 20 | BP19: 20 | BQ19: 20 | BR19: 20 | BS19: 20.00000578 | BT19: 20.00015864 | BU19: 20.00197301 | BV19: 20.01476214 | BW19: 20.0745414 | BX19: 20.27110398 | BY19: 20.74432309 | BZ19: 21.60936946
A20: 0.9 | B20: 9 | C20: 44.08575371 | D20: 31.68166239 | E20: 24.60060922 | F20: 21.42234383 | G20: 20.33335882 | H20: 20.05675413 | I20: 20.00658868 | J20: 20.00046508 | K20: 20.00001503 | L20: 20 | M20: 20 | N20: 20 | O20: 20 | P20: 20 | Q20: 20 | R20: 20 | S20: 20 | T20: 20 | U20: 20 | V20: 20 | W20: 20 | X20: 20 | Y20: 20 | Z20: 20 | AA20: 20 | AB20: 20 | AC20: 20 | AD20: 20 | AE20: 20 | AF20: 20 | AG20: 20 | AH20: 20 | AI20: 20 | AJ20: 20 | AK20: 20 | AL20: 20 | AM20: 20 | AN20: 20 | AO20: 20 | AP20: 20 | AQ20: 20 | AR20: 20 | AS20: 20 | AT20: 20 | AU20: 20 | AV20: 20 | AW20: 20 | AX20: 20 | AY20: 20 | AZ20: 20 | BA20: 20 | BB20: 20 | BC20: 20 | BD20: 20 | BE20: 20 | BF20: 20 | BG20: 20 | BH20: 20 | BI20: 20 | BJ20: 20 | BK20: 20 | BL20: 20 | BM20: 20 | BN20: 20 | BO20: 20 | BP20: 20 | BQ20: 20 | BR20: 20.00000105 | BS20: 20.00003254 | BT20: 20.00046085 | BU20: 20.00396873 | BV20: 20.02330375 | BW20: 20.09938833 | BX20: 20.32129505 | BY20: 20.81521659 | BZ20: 21.67922802
A21: 1 | B21: 10 | C21: 45.03860687 | D21: 32.64392644 | E21: 25.30824038 | F21: 21.80171419 | G21: 20.48098736 | H21: 20.0979227 | I21: 20.01459823 | J21: 20.00149709 | K21: 20.00009417 | L21: 20.00000273 | M21: 20 | N21: 20 | O21: 20 | P21: 20 | Q21: 20 | R21: 20 | S21: 20 | T21: 20 | U21: 20 | V21: 20 | W21: 20 | X21: 20 | Y21: 20 | Z21: 20 | AA21: 20 | AB21: 20 | AC21: 20 | AD21: 20 | AE21: 20 | AF21: 20 | AG21: 20 | AH21: 20 | AI21: 20 | AJ21: 20 | AK21: 20 | AL21: 20 | AM21: 20 | AN21: 20 | AO21: 20 | AP21: 20 | AQ21: 20 | AR21: 20 | AS21: 20 | AT21: 20 | AU21: 20 | AV21: 20 | AW21: 20 | AX21: 20 | AY21: 20 | AZ21: 20 | BA21: 20 | BB21: 20 | BC21: 20 | BD21: 20 | BE21: 20 | BF21: 20 | BG21: 20 | BH21: 20 | BI21: 20 | BJ21: 20 | BK21: 20 | BL21: 20 | BM21: 20 | BN21: 20 | BO21: 20 | BP21: 20 | BQ21: 20.00000019 | BR21: 20.00000659 | BS21: 20.00010472 | BT21: 20.00102091 | BU21: 20.00684623 | BV21: 20.03361647 | BW21: 20.12586657 | BX21: 20.37061488 | BY21: 20.88211741 | BZ21: 21.74515219
A22: 1.1 | B22: 11 | C22: 45.94338189 | D22: 33.55763752 | E22: 26.00209877 | F22: 22.19844342 | G22: 20.65133131 | H22: 20.15240586 | I22: 20.02736702 | J22: 20.00362469 | K22: 20.00033273 | L22: 20.00001887 | M22: 20.0000005 | N22: 20 | O22: 20 | P22: 20 | Q22: 20 | R22: 20 | S22: 20 | T22: 20 | U22: 20 | V22: 20 | W22: 20 | X22: 20 | Y22: 20 | Z22: 20 | AA22: 20 | AB22: 20 | AC22: 20 | AD22: 20 | AE22: 20 | AF22: 20 | AG22: 20 | AH22: 20 | AI22: 20 | AJ22: 20 | AK22: 20 | AL22: 20 | AM22: 20 | AN22: 20 | AO22: 20 | AP22: 20 | AQ22: 20 | AR22: 20 | AS22: 20 | AT22: 20 | AU22: 20 | AV22: 20 | AW22: 20 | AX22: 20 | AY22: 20 | AZ22: 20 | BA22: 20 | BB22: 20 | BC22: 20 | BD22: 20 | BE22: 20 | BF22: 20 | BG22: 20 | BH22: 20 | BI22: 20 | BJ22: 20 | BK22: 20 | BL22: 20 | BM22: 20 | BN22: 20 | BO22: 20 | BP22: 20.00000003 | BQ22: 20.00000132 | BR22: 20.00002328 | BS22: 20.0002535 | BT22: 20.00191354 | BU22: 20.01065334 | BV22: 20.0455121 | BW22: 20.15354537 | BX22: 20.41895133 | BY22: 20.94560619 | BZ22: 21.80771413
A23: 1.2 | B23: 12 | C23: 46.80645603 | D23: 34.42923585 | E23: 26.6815279 | F23: 22.60783269 | G23: 20.84169361 | H23: 20.22035036 | I23: 20.04578253 | J23: 20.00734354 | K23: 20.0008744 | L23: 20.00007262 | M23: 20.00000375 | N23: 20.00000009 | O23: 20 | P23: 20 | Q23: 20 | R23: 20 | S23: 20 | T23: 20 | U23: 20 | V23: 20 | W23: 20 | X23: 20 | Y23: 20 | Z23: 20 | AA23: 20 | AB23: 20 | AC23: 20 | AD23: 20 | AE23: 20 | AF23: 20 | AG23: 20 | AH23: 20 | AI23: 20 | AJ23: 20 | AK23: 20 | AL23: 20 | AM23: 20 | AN23: 20 | AO23: 20 | AP23: 20 | AQ23: 20 | AR23: 20 | AS23: 20 | AT23: 20 | AU23: 20 | AV23: 20 | AW23: 20 | AX23: 20 | AY23: 20 | AZ23: 20 | BA23: 20 | BB23: 20 | BC23: 20 | BD23: 20 | BE23: 20 | BF23: 20 | BG23: 20 | BH23: 20 | BI23: 20 | BJ23: 20 | BK23: 20 | BL23: 20 | BM23: 20 | BN23: 20 | BO23: 20.00000001 | BP23: 20.00000026 | BQ23: 20.00000508 | BR23: 20.00006116 | BS23: 20.00051351 | BT23: 20.00320063 | BU23: 20.0153998 | BV23: 20.05880138 | BW23: 20.18209631 | BX23: 20.46626039 | BY23: 21.00613569 | BZ23: 21.86735999
A24: 1.3 | B24: 13 | C24: 47.63291322 | D24: 35.26385557 | E24: 27.34642734 | F24: 23.02628537 | G24: 21.04953181 | H24: 20.30152021 | I24: 20.0705257 | J24: 20.01315629 | K24: 20.00190506 | L24: 20.00020593 | M24: 20.00001561 | N24: 20.00000074 | O24: 20.00000002 | P24: 20 | Q24: 20 | R24: 20 | S24: 20 | T24: 20 | U24: 20 | V24: 20 | W24: 20 | X24: 20 | Y24: 20 | Z24: 20 | AA24: 20 | AB24: 20 | AC24: 20 | AD24: 20 | AE24: 20 | AF24: 20 | AG24: 20 | AH24: 20 | AI24: 20 | AJ24: 20 | AK24: 20 | AL24: 20 | AM24: 20 | AN24: 20 | AO24: 20 | AP24: 20 | AQ24: 20 | AR24: 20 | AS24: 20 | AT24: 20 | AU24: 20 | AV24: 20 | AW24: 20 | AX24: 20 | AY24: 20 | AZ24: 20 | BA24: 20 | BB24: 20 | BC24: 20 | BD24: 20 | BE24: 20 | BF24: 20 | BG24: 20 | BH24: 20 | BI24: 20 | BJ24: 20 | BK24: 20 | BL24: 20 | BM24: 20 | BN24: 20 | BO24: 20.00000005 | BP24: 20.00000109 | BQ24: 20.0000144 | BR24: 20.00013322 | BS24: 20.00091983 | BT24: 20.00492957 | BU24: 20.02106863 | BV24: 20.07330602 | BW24: 20.21126819 | BX24: 20.51253673 | BY24: 21.06406684 | BZ24: 21.92444543
A25: 1.4 | B25: 14 | C25: 48.42688255 | D25: 36.06566658 | E25: 27.99701301 | F25: 23.45103465 | G25: 21.27253267 | H25: 20.39542675 | I25: 20.10207783 | J25: 20.02154011 | K25: 20.00364197 | L25: 20.00048034 | M25: 20.00004753 | N25: 20.00000331 | O25: 20.00000015 | P25: 20 | Q25: 20 | R25: 20 | S25: 20 | T25: 20 | U25: 20 | V25: 20 | W25: 20 | X25: 20 | Y25: 20 | Z25: 20 | AA25: 20 | AB25: 20 | AC25: 20 | AD25: 20 | AE25: 20 | AF25: 20 | AG25: 20 | AH25: 20 | AI25: 20 | AJ25: 20 | AK25: 20 | AL25: 20 | AM25: 20 | AN25: 20 | AO25: 20 | AP25: 20 | AQ25: 20 | AR25: 20 | AS25: 20 | AT25: 20 | AU25: 20 | AV25: 20 | AW25: 20 | AX25: 20 | AY25: 20 | AZ25: 20 | BA25: 20 | BB25: 20 | BC25: 20 | BD25: 20 | BE25: 20 | BF25: 20 | BG25: 20 | BH25: 20 | BI25: 20 | BJ25: 20 | BK25: 20 | BL25: 20 | BM25: 20 | BN25: 20.00000001 | BO25: 20.00000023 | BP25: 20.00000332 | BQ25: 20.00003359 | BR25: 20.00025465 | BS25: 20.00150576 | BT25: 20.00713378 | BU25: 20.02762521 | BV25: 20.08886392 | BW25: 20.24086798 | BX25: 20.55779691 | BY25: 21.11969278 | BZ25: 21.97925931
A26: 1.5 | B26: 15 | C26: 49.19177124 | D26: 36.83810972 | E26: 28.63367741 | F26: 23.87994038 | G26: 21.50863362 | H26: 20.50142608 | I26: 20.14074276 | J26: 20.03292541 | K26: 20.00632122 | L26: 20.00097657 | M26: 20.0001182 | N26: 20.00001078 | O26: 20.0000007 | P26: 20.00000003 | Q26: 20 | R26: 20 | S26: 20 | T26: 20 | U26: 20 | V26: 20 | W26: 20 | X26: 20 | Y26: 20 | Z26: 20 | AA26: 20 | AB26: 20 | AC26: 20 | AD26: 20 | AE26: 20 | AF26: 20 | AG26: 20 | AH26: 20 | AI26: 20 | AJ26: 20 | AK26: 20 | AL26: 20 | AM26: 20 | AN26: 20 | AO26: 20 | AP26: 20 | AQ26: 20 | AR26: 20 | AS26: 20 | AT26: 20 | AU26: 20 | AV26: 20 | AW26: 20 | AX26: 20 | AY26: 20 | AZ26: 20 | BA26: 20 | BB26: 20 | BC26: 20 | BD26: 20 | BE26: 20 | BF26: 20 | BG26: 20 | BH26: 20 | BI26: 20 | BJ26: 20 | BK26: 20 | BL26: 20 | BM26: 20 | BN26: 20.00000005 | BO26: 20.00000075 | BP26: 20.00000827 | BQ26: 20.00006829 | BR26: 20.00044193 | BS26: 20.0023013 | BT26: 20.00983426 | BU26: 20.03502414 | BV26: 20.10533063 | BW26: 20.27074648 | BX26: 20.60206967 | BY26: 21.17325539 | BZ26: 22.03203998
A27: 1.6 | B27: 16 | C27: 49.9304294 | D27: 37.58406327 | E27: 29.25690666 | F27: 24.3113385 | G27: 21.75601719 | H27: 20.61878895 | I27: 20.18667474 | J27: 20.04768396 | K27: 20.01018586 | L27: 20.00179229 | M27: 20.00025477 | N27: 20.00002848 | O27: 20.00000241 | P27: 20.00000014 | Q27: 20.00000001 | R27: 20 | S27: 20 | T27: 20 | U27: 20 | V27: 20 | W27: 20 | X27: 20 | Y27: 20 | Z27: 20 | AA27: 20 | AB27: 20 | AC27: 20 | AD27: 20 | AE27: 20 | AF27: 20 | AG27: 20 | AH27: 20 | AI27: 20 | AJ27: 20 | AK27: 20 | AL27: 20 | AM27: 20 | AN27: 20 | AO27: 20 | AP27: 20 | AQ27: 20 | AR27: 20 | AS27: 20 | AT27: 20 | AU27: 20 | AV27: 20 | AW27: 20 | AX27: 20 | AY27: 20 | AZ27: 20 | BA27: 20 | BB27: 20 | BC27: 20 | BD27: 20 | BE27: 20 | BF27: 20 | BG27: 20 | BH27: 20 | BI27: 20 | BJ27: 20 | BK27: 20 | BL27: 20 | BM27: 20.00000001 | BN27: 20.00000017 | BO27: 20.00000199 | BP27: 20.00001782 | BQ27: 20.00012531 | BR27: 20.00071201 | BS27: 20.00333234 | BT27: 20.01304156 | BU27: 20.04321409 | BV27: 20.12257893 | BW27: 20.30078782 | BX27: 20.64539016 | BY27: 21.224957 | BZ27: 22.08298682
A28: 1.7 | B28: 17 | C28: 50.6452696 | D28: 38.30596362 | E28: 29.86723066 | F28: 24.74392909 | G28: 22.0130928 | H28: 20.74674929 | I28: 20.23990679 | J28: 20.06612434 | K28: 20.01547577 | L28: 20.00303874 | M28: 20.0004932 | N28: 20.0000649 | O28: 20.00000674 | P28: 20.00000053 | Q28: 20.00000003 | R28: 20 | S28: 20 | T28: 20 | U28: 20 | V28: 20 | W28: 20 | X28: 20 | Y28: 20 | Z28: 20 | AA28: 20 | AB28: 20 | AC28: 20 | AD28: 20 | AE28: 20 | AF28: 20 | AG28: 20 | AH28: 20 | AI28: 20 | AJ28: 20 | AK28: 20 | AL28: 20 | AM28: 20 | AN28: 20 | AO28: 20 | AP28: 20 | AQ28: 20 | AR28: 20 | AS28: 20 | AT28: 20 | AU28: 20 | AV28: 20 | AW28: 20 | AX28: 20 | AY28: 20 | AZ28: 20 | BA28: 20 | BB28: 20 | BC28: 20 | BD28: 20 | BE28: 20 | BF28: 20 | BG28: 20 | BH28: 20 | BI28: 20 | BJ28: 20 | BK28: 20 | BL28: 20 | BM28: 20.00000004 | BN28: 20.00000047 | BO28: 20.00000454 | BP28: 20.00003449 | BQ28: 20.00021243 | BR28: 20.00108163 | BS28: 20.00462033 | BT28: 20.01675775 | BU28: 20.05214122 | BV28: 20.14049754 | BW28: 20.33090161 | BX28: 20.68779642 | BY28: 21.27496888 | BZ28: 22.13226861
A29: 1.8 | B29: 18 | C29: 51.33835534 | D29: 39.00589465 | E29: 30.46519295 | F29: 25.17669297 | G29: 22.27847358 | H29: 20.88453676 | I29: 20.30037664 | J29: 20.08849235 | K29: 20.02241981 | L29: 20.0048368 | M29: 20.00087815 | N29: 20.00013221 | O29: 20.00001619 | P29: 20.00000157 | Q29: 20.00000012 | R29: 20.00000001 | S29: 20 | T29: 20 | U29: 20 | V29: 20 | W29: 20 | X29: 20 | Y29: 20 | Z29: 20 | AA29: 20 | AB29: 20 | AC29: 20 | AD29: 20 | AE29: 20 | AF29: 20 | AG29: 20 | AH29: 20 | AI29: 20 | AJ29: 20 | AK29: 20 | AL29: 20 | AM29: 20 | AN29: 20 | AO29: 20 | AP29: 20 | AQ29: 20 | AR29: 20 | AS29: 20 | AT29: 20 | AU29: 20 | AV29: 20 | AW29: 20 | AX29: 20 | AY29: 20 | AZ29: 20 | BA29: 20 | BB29: 20 | BC29: 20 | BD29: 20 | BE29: 20 | BF29: 20 | BG29: 20 | BH29: 20 | BI29: 20 | BJ29: 20 | BK29: 20 | BL29: 20.00000001 | BM29: 20.00000011 | BN29: 20.00000113 | BO29: 20.00000924 | BP29: 20.00006139 | BQ29: 20.00033809 | BR29: 20.00156675 | BS29: 20.00618234 | BT29: 20.02097826 | BU29: 20.06175144 | BV29: 20.1589895 | BW29: 20.36101707 | BX29: 20.72932737 | BY29: 21.32343752 | BZ29: 22.18002967
A30: 1.9 | B30: 19 | C30: 52.01146785 | D30: 39.68565519 | E30: 31.05133275 | F30: 25.60882896 | G30: 22.55095249 | H30: 21.03139812 | I30: 20.36794928 | J30: 20.1149745 | K30: 20.03123015 | L30: 20.00731307 | M30: 20.00146221 | N30: 20.00024675 | O30: 20.00003463 | P30: 20.00000396 | Q30: 20.00000036 | R30: 20.00000002 | S30: 20 | T30: 20 | U30: 20 | V30: 20 | W30: 20 | X30: 20 | Y30: 20 | Z30: 20 | AA30: 20 | AB30: 20 | AC30: 20 | AD30: 20 | AE30: 20 | AF30: 20 | AG30: 20 | AH30: 20 | AI30: 20 | AJ30: 20 | AK30: 20 | AL30: 20 | AM30: 20 | AN30: 20 | AO30: 20 | AP30: 20 | AQ30: 20 | AR30: 20 | AS30: 20 | AT30: 20 | AU30: 20 | AV30: 20 | AW30: 20 | AX30: 20 | AY30: 20 | AZ30: 20 | BA30: 20 | BB30: 20 | BC30: 20 | BD30: 20 | BE30: 20 | BF30: 20 | BG30: 20 | BH30: 20 | BI30: 20 | BJ30: 20 | BK30: 20 | BL30: 20.00000003 | BM30: 20.00000028 | BN30: 20.00000242 | BO30: 20.00001725 | BP30: 20.00010222 | BQ30: 20.00051111 | BR30: 20.00218214 | BS30: 20.00803128 | BT30: 20.02569344 | BU30: 20.07199189 | BV30: 20.17797045 | BW30: 20.39107865 | BX30: 20.77002151 | BY30: 21.37048936 | BZ30: 22.22639462
A31: 2 | B31: 20 | C31: 52.66615731 | D31: 40.34681071 | E31: 31.62617426 | F31: 26.03970629 | G31: 22.82947955 | H31: 21.18661045 | I31: 20.44243581 | J31: 20.14570339 | K31: 20.04209861 | L31: 20.01059618 | M31: 20.0023048 | N31: 20.00042917 | O31: 20.00006762 | P31: 20.00000888 | Q31: 20.00000095 | R31: 20.00000008 | S31: 20.00000001 | T31: 20 | U31: 20 | V31: 20 | W31: 20 | X31: 20 | Y31: 20 | Z31: 20 | AA31: 20 | AB31: 20 | AC31: 20 | AD31: 20 | AE31: 20 | AF31: 20 | AG31: 20 | AH31: 20 | AI31: 20 | AJ31: 20 | AK31: 20 | AL31: 20 | AM31: 20 | AN31: 20 | AO31: 20 | AP31: 20 | AQ31: 20 | AR31: 20 | AS31: 20 | AT31: 20 | AU31: 20 | AV31: 20 | AW31: 20 | AX31: 20 | AY31: 20 | AZ31: 20 | BA31: 20 | BB31: 20 | BC31: 20 | BD31: 20 | BE31: 20 | BF31: 20 | BG31: 20 | BH31: 20 | BI31: 20 | BJ31: 20 | BK31: 20.00000001 | BL31: 20.00000007 | BM31: 20.00000062 | BN31: 20.00000473 | BO31: 20.00003 | BP31: 20.0001611 | BQ31: 20.00074047 | BR31: 20.00294115 | BS31: 20.01017628 | BT31: 20.0308899 | BU31: 20.08281187 | BV31: 20.19736707 | BW31: 20.42104271 | BX31: 20.80991621 | BY31: 21.41623444 | BZ31: 22.27147189
A32: 2.1 | B32: 21 | C32: 53.30378269 | D32: 40.99073363 | E32: 32.19022072 | F32: 26.46882843 | G32: 23.11314109 | H32: 21.34948885 | I32: 20.52360874 | J32: 20.18076383 | K32: 20.05519463 | L32: 20.0148136 | M32: 20.00347087 | N32: 20.00070441 | O32: 20.00012268 | P32: 20.00001812 | Q32: 20.00000224 | R32: 20.00000023 | S32: 20.00000002 | T32: 20 | U32: 20 | V32: 20 | W32: 20 | X32: 20 | Y32: 20 | Z32: 20 | AA32: 20 | AB32: 20 | AC32: 20 | AD32: 20 | AE32: 20 | AF32: 20 | AG32: 20 | AH32: 20 | AI32: 20 | AJ32: 20 | AK32: 20 | AL32: 20 | AM32: 20 | AN32: 20 | AO32: 20 | AP32: 20 | AQ32: 20 | AR32: 20 | AS32: 20 | AT32: 20 | AU32: 20 | AV32: 20 | AW32: 20 | AX32: 20 | AY32: 20 | AZ32: 20 | BA32: 20 | BB32: 20 | BC32: 20 | BD32: 20 | BE32: 20 | BF32: 20 | BG32: 20 | BH32: 20 | BI32: 20 | BJ32: 20 | BK32: 20.00000002 | BL32: 20.00000016 | BM32: 20.00000127 | BN32: 20.00000858 | BO32: 20.00004924 | BP32: 20.00024257 | BQ32: 20.00103506 | BR32: 20.00385556 | BS32: 20.01262317 | BT32: 20.03655156 | BU32: 20.09416339 | BV32: 20.21711557 | BW32: 20.45087494 | BX32: 20.84904729 | BY32: 21.46076923 | BZ32: 22.31535654
A33: 2.2 | B33: 22 | C33: 53.92554325 | D33: 41.61863504 | E33: 32.74395135 | F33: 26.8958051 | G33: 23.40114146 | H33: 21.51939039 | I33: 20.6112143 | J33: 20.22019914 | K33: 20.07066454 | L33: 20.020089 | M33: 20.0050294 | N33: 20.00110153 | O33: 20.00020943 | P33: 20.00003425 | Q33: 20.00000476 | R33: 20.00000055 | S33: 20.00000005 | T33: 20 | U33: 20 | V33: 20 | W33: 20 | X33: 20 | Y33: 20 | Z33: 20 | AA33: 20 | AB33: 20 | AC33: 20 | AD33: 20 | AE33: 20 | AF33: 20 | AG33: 20 | AH33: 20 | AI33: 20 | AJ33: 20 | AK33: 20 | AL33: 20 | AM33: 20 | AN33: 20 | AO33: 20 | AP33: 20 | AQ33: 20 | AR33: 20 | AS33: 20 | AT33: 20 | AU33: 20 | AV33: 20 | AW33: 20 | AX33: 20 | AY33: 20 | AZ33: 20 | BA33: 20 | BB33: 20 | BC33: 20 | BD33: 20 | BE33: 20 | BF33: 20 | BG33: 20 | BH33: 20 | BI33: 20 | BJ33: 20 | BK33: 20.00000004 | BL33: 20.00000033 | BM33: 20.00000239 | BN33: 20.00001464 | BO33: 20.00007699 | BP33: 20.00035146 | BQ33: 20.00140349 | BR33: 20.00493554 | BS33: 20.01537483 | BT33: 20.04266053 | BU33: 20.1060014 | BV33: 20.23716044 | BW33: 20.48054849 | BX33: 20.88744885 | BY33: 21.50417886 | BZ33: 22.35813245
A34: 2.3 | B34: 23 | C34: 54.53250362 | D34: 42.23159008 | E34: 33.28782007 | F34: 27.32033068 | G34: 23.69278698 | H34: 21.69571551 | I34: 20.70498212 | J34: 20.26401733 | K34: 20.08863172 | L34: 20.02654014 | M34: 20.00705205 | N34: 20.00165328 | O34: 20.00033976 | P34: 20.00006074 | Q34: 20.00000936 | R34: 20.00000123 | S34: 20.00000014 | T34: 20.00000001 | U34: 20 | V34: 20 | W34: 20 | X34: 20 | Y34: 20 | Z34: 20 | AA34: 20 | AB34: 20 | AC34: 20 | AD34: 20 | AE34: 20 | AF34: 20 | AG34: 20 | AH34: 20 | AI34: 20 | AJ34: 20 | AK34: 20 | AL34: 20 | AM34: 20 | AN34: 20 | AO34: 20 | AP34: 20 | AQ34: 20 | AR34: 20 | AS34: 20 | AT34: 20 | AU34: 20 | AV34: 20 | AW34: 20 | AX34: 20 | AY34: 20 | AZ34: 20 | BA34: 20 | BB34: 20 | BC34: 20 | BD34: 20 | BE34: 20 | BF34: 20 | BG34: 20 | BH34: 20 | BI34: 20 | BJ34: 20.00000001 | BK34: 20.00000009 | BL34: 20.00000065 | BM34: 20.00000425 | BN34: 20.00002375 | BO34: 20.00011554 | BP34: 20.00049274 | BQ34: 20.00185396 | BR34: 20.00618963 | BS34: 20.01843171 | BT34: 20.04919776 | BU34: 20.11828393 | BV34: 20.25745333 | BW34: 20.51004238 | BX34: 20.92515315 | BY34: 21.5465389 | BZ34: 22.3998741
A35: 2.4 | B35: 24 | C35: 55.12561405 | D35: 42.83055839 | E35: 33.8222554 | F35: 27.7421673 | G35: 23.98747206 | H35: 21.87790773 | I35: 20.80463272 | J35: 20.31219674 | K35: 20.10919746 | L35: 20.03427737 | M35: 20.00961173 | N35: 20.00239568 | O35: 20.0005278 | P35: 20.00010212 | Q35: 20.00001722 | R35: 20.00000251 | S35: 20.00000031 | T35: 20.00000003 | U35: 20 | V35: 20 | W35: 20 | X35: 20 | Y35: 20 | Z35: 20 | AA35: 20 | AB35: 20 | AC35: 20 | AD35: 20 | AE35: 20 | AF35: 20 | AG35: 20 | AH35: 20 | AI35: 20 | AJ35: 20 | AK35: 20 | AL35: 20 | AM35: 20 | AN35: 20 | AO35: 20 | AP35: 20 | AQ35: 20 | AR35: 20 | AS35: 20 | AT35: 20 | AU35: 20 | AV35: 20 | AW35: 20 | AX35: 20 | AY35: 20 | AZ35: 20 | BA35: 20 | BB35: 20 | BC35: 20 | BD35: 20 | BE35: 20 | BF35: 20 | BG35: 20 | BH35: 20 | BI35: 20 | BJ35: 20.00000002 | BK35: 20.00000018 | BL35: 20.0000012 | BM35: 20.00000714 | BN35: 20.00003689 | BO35: 20.00016741 | BP35: 20.00067151 | BQ35: 20.00239415 | BR35: 20.00762484 | BS35: 20.02179218 | BT35: 20.0561436 | BU35: 20.13097203 | BV35: 20.27795204 | BW35: 20.53934033 | BX35: 20.96219064 | BY35: 21.5879168 | BZ35: 22.44064794
A36: 2.5 | B36: 25 | C36: 55.70572689 | D36: 43.41640074 | E36: 34.34766101 | F36: 28.16113155 | G36: 24.28466727 | H36: 22.06545233 | I36: 20.90988327 | J36: 20.36469119 | K36: 20.13244229 | L36: 20.04340251 | M36: 20.01278143 | N36: 20.00336746 | O36: 20.00078991 | P36: 20.00016407 | Q36: 20.00002998 | R36: 20.00000478 | S36: 20.00000066 | T36: 20.00000008 | U36: 20.00000001 | V36: 20 | W36: 20 | X36: 20 | Y36: 20 | Z36: 20 | AA36: 20 | AB36: 20 | AC36: 20 | AD36: 20 | AE36: 20 | AF36: 20 | AG36: 20 | AH36: 20 | AI36: 20 | AJ36: 20 | AK36: 20 | AL36: 20 | AM36: 20 | AN36: 20 | AO36: 20 | AP36: 20 | AQ36: 20 | AR36: 20 | AS36: 20 | AT36: 20 | AU36: 20 | AV36: 20 | AW36: 20 | AX36: 20 | AY36: 20 | AZ36: 20 | BA36: 20 | BB36: 20 | BC36: 20 | BD36: 20 | BE36: 20 | BF36: 20 | BG36: 20 | BH36: 20 | BI36: 20.00000001 | BJ36: 20.00000005 | BK36: 20.00000033 | BL36: 20.0000021 | BM36: 20.00001147 | BN36: 20.0000552 | BO36: 20.00023529 | BP36: 20.00089286 | BQ36: 20.00303114 | BR36: 20.00924673 | BS36: 20.02545291 | BT36: 20.06347817 | BU36: 20.14402969 | BV36: 20.29861971 | BW36: 20.56842987 | BX36: 20.99858996 | BY36: 21.62837306 | BZ36: 22.4805136
A37: 2.6 | B37: 26 | C37: 56.27361019 | D37: 43.98989275 | E37: 34.8644167 | F37: 28.57708398 | G37: 24.58390909 | H37: 22.25787438 | I37: 21.02045197 | J37: 20.4214345 | K37: 20.15842752 | L37: 20.05400821 | M37: 20.01663309 | N37: 20.0046095 | O37: 20.00114459 | P37: 20.00025345 | Q37: 20.00004978 | R37: 20.00000862 | S37: 20.0000013 | T37: 20.00000017 | U37: 20.00000002 | V37: 20 | W37: 20 | X37: 20 | Y37: 20 | Z37: 20 | AA37: 20 | AB37: 20 | AC37: 20 | AD37: 20 | AE37: 20 | AF37: 20 | AG37: 20 | AH37: 20 | AI37: 20 | AJ37: 20 | AK37: 20 | AL37: 20 | AM37: 20 | AN37: 20 | AO37: 20 | AP37: 20 | AQ37: 20 | AR37: 20 | AS37: 20 | AT37: 20 | AU37: 20 | AV37: 20 | AW37: 20 | AX37: 20 | AY37: 20 | AZ37: 20 | BA37: 20 | BB37: 20 | BC37: 20 | BD37: 20 | BE37: 20 | BF37: 20 | BG37: 20 | BH37: 20 | BI37: 20.00000001 | BJ37: 20.00000009 | BK37: 20.0000006 | BL37: 20.00000348 | BM37: 20.00001771 | BN37: 20.00007998 | BO37: 20.00032204 | BP37: 20.00116179 | BQ37: 20.00377136 | BR37: 20.01105952 | BS37: 20.02940916 | BT37: 20.07118169 | BU37: 20.15742371 | BV37: 20.31942409 | BW37: 20.5973016 | BX37: 21.03437807 | BY37: 21.6679622 | BZ37: 22.5195248
A38: 2.7 | B38: 27 | C38: 56.82995888 | D38: 44.55173625 | E38: 35.37287964 | F38: 28.98992073 | G38: 24.88479114 | H38: 22.45473642 | I38: 21.13606127 | J38: 20.4823445 | K38: 20.18719691 | L38: 20.0661776 | M38: 20.02123674 | N38: 20.00616423 | O38: 20.00161226 | P38: 20.0003784 | Q38: 20.00007932 | R38: 20.00001477 | S38: 20.00000243 | T38: 20.00000035 | U38: 20.00000004 | V38: 20 | W38: 20 | X38: 20 | Y38: 20 | Z38: 20 | AA38: 20 | AB38: 20 | AC38: 20 | AD38: 20 | AE38: 20 | AF38: 20 | AG38: 20 | AH38: 20 | AI38: 20 | AJ38: 20 | AK38: 20 | AL38: 20 | AM38: 20 | AN38: 20 | AO38: 20 | AP38: 20 | AQ38: 20 | AR38: 20 | AS38: 20 | AT38: 20 | AU38: 20 | AV38: 20 | AW38: 20 | AX38: 20 | AY38: 20 | AZ38: 20 | BA38: 20 | BB38: 20 | BC38: 20 | BD38: 20 | BE38: 20 | BF38: 20 | BG38: 20 | BH38: 20 | BI38: 20.00000002 | BJ38: 20.00000017 | BK38: 20.00000103 | BL38: 20.00000554 | BM38: 20.00002644 | BN38: 20.00011265 | BO38: 20.00043061 | BP38: 20.00148317 | BQ38: 20.00462058 | BR38: 20.01306618 | BS38: 20.03365511 | BT38: 20.07923465 | BU38: 20.17112351 | BV38: 20.34033692 | BW38: 20.62594854 | BX38: 21.06958031 | BY38: 21.70673354 | BZ38: 22.55773013
A39: 2.8 | B39: 28 | C39: 57.37540422 | D39: 45.1025687 | E39: 35.8733856 | F39: 29.39956683 | G39: 25.18695665 | H39: 22.65563597 | I39: 21.25644019 | J39: 20.54732645 | K39: 20.21877847 | L39: 20.07998422 | M39: 20.02665974 | N39: 20.00807507 | O39: 20.0022151 | P39: 20.00054827 | Q39: 20.00012195 | R39: 20.00002426 | S39: 20.00000429 | T39: 20.00000067 | U39: 20.00000009 | V39: 20.00000001 | W39: 20 | X39: 20 | Y39: 20 | Z39: 20 | AA39: 20 | AB39: 20 | AC39: 20 | AD39: 20 | AE39: 20 | AF39: 20 | AG39: 20 | AH39: 20 | AI39: 20 | AJ39: 20 | AK39: 20 | AL39: 20 | AM39: 20 | AN39: 20 | AO39: 20 | AP39: 20 | AQ39: 20 | AR39: 20 | AS39: 20 | AT39: 20 | AU39: 20 | AV39: 20 | AW39: 20 | AX39: 20 | AY39: 20 | AZ39: 20 | BA39: 20 | BB39: 20 | BC39: 20 | BD39: 20 | BE39: 20 | BF39: 20 | BG39: 20 | BH39: 20.00000001 | BI39: 20.00000005 | BJ39: 20.0000003 | BK39: 20.0000017 | BL39: 20.00000852 | BM39: 20.00003831 | BN39: 20.00015476 | BO39: 20.00056404 | BP39: 20.0018617 | BQ39: 20.0055839 | BR39: 20.0152686 | BS39: 20.03818403 | BT39: 20.08761807 | BU39: 20.18510098 | BV39: 20.36133343 | BW39: 20.65436575 | BX39: 21.1042205 | BY39: 21.74473189 | BZ39: 22.59517376
A40: 2.9 | B40: 29 | C40: 57.91052164 | D40: 45.64297124 | E40: 36.36625036 | F40: 29.80597082 | G40: 25.49009197 | H40: 22.86020299 | I40: 21.38132607 | J40: 20.6162759 | K40: 20.25318614 | L40: 20.09549217 | M40: 20.03296617 | N40: 20.01038593 | O40: 20.00297683 | P40: 20.00077368 | Q40: 20.00018168 | R40: 20.00003839 | S40: 20.00000727 | T40: 20.00000123 | U40: 20.00000018 | V40: 20.00000002 | W40: 20 | X40: 20 | Y40: 20 | Z40: 20 | AA40: 20 | AB40: 20 | AC40: 20 | AD40: 20 | AE40: 20 | AF40: 20 | AG40: 20 | AH40: 20 | AI40: 20 | AJ40: 20 | AK40: 20 | AL40: 20 | AM40: 20 | AN40: 20 | AO40: 20 | AP40: 20 | AQ40: 20 | AR40: 20 | AS40: 20 | AT40: 20 | AU40: 20 | AV40: 20 | AW40: 20 | AX40: 20 | AY40: 20 | AZ40: 20 | BA40: 20 | BB40: 20 | BC40: 20 | BD40: 20 | BE40: 20 | BF40: 20 | BG40: 20 | BH40: 20.00000001 | BI40: 20.00000009 | BJ40: 20.00000051 | BK40: 20.00000268 | BL40: 20.0000127 | BM40: 20.00005406 | BN40: 20.00020795 | BO40: 20.00072537 | BP40: 20.00230184 | BQ40: 20.00666576 | BR40: 20.0176677 | BS40: 20.04298855 | BT40: 20.09631352 | BU40: 20.19933027 | BV40: 20.38239184 | BW40: 20.68254992 | BX40: 21.13832101 | BY40: 21.7819981 | BZ40: 22.63189593
A41: 3 | B41: 30 | C41: 58.43583745 | D41: 46.17347535 | E41: 36.85177098 | F41: 30.20910036 | G41: 25.79392109 | H41: 23.06809746 | I41: 21.51046561 | J41: 20.68908122 | K41: 20.29042144 | L41: 20.11275637 | M41: 20.04021643 | N41: 20.01314066 | O41: 20.00392243 | P41: 20.0010664 | Q41: 20.00026322 | R41: 20.00005878 | S41: 20.00001183 | T41: 20.00000213 | U41: 20.00000034 | V41: 20.00000005 | W41: 20.00000001 | X41: 20 | Y41: 20 | Z41: 20 | AA41: 20 | AB41: 20 | AC41: 20 | AD41: 20 | AE41: 20 | AF41: 20 | AG41: 20 | AH41: 20 | AI41: 20 | AJ41: 20 | AK41: 20 | AL41: 20 | AM41: 20 | AN41: 20 | AO41: 20 | AP41: 20 | AQ41: 20 | AR41: 20 | AS41: 20 | AT41: 20 | AU41: 20 | AV41: 20 | AW41: 20 | AX41: 20 | AY41: 20 | AZ41: 20 | BA41: 20 | BB41: 20 | BC41: 20 | BD41: 20 | BE41: 20 | BF41: 20 | BG41: 20 | BH41: 20.00000002 | BI41: 20.00000015 | BJ41: 20.00000083 | BK41: 20.00000411 | BL41: 20.00001839 | BM41: 20.0000745 | BN41: 20.00027398 | BO41: 20.00091767 | BP41: 20.00280777 | BQ41: 20.00786994 | BR41: 20.0202635 | BS41: 20.04806078 | BT41: 20.10530326 | BU41: 20.21378765 | BV41: 20.403493 | BW41: 20.71049904 | BX41: 21.17190291 | BY41: 21.8185695 | BZ41: 22.66793345
A42: 3.1 | B42: 31 | C42: 58.95183448 | D42: 46.69456865 | E42: 37.33022708 | F42: 30.60893875 | G42: 26.09820082 | H42: 23.27900695 | I42: 21.64361566 | J42: 20.76562565 | K42: 20.33047501 | L42: 20.131823 | M42: 20.04846685 | N42: 20.0163827 | O42: 20.00507789 | P42: 20.00143933 | Q42: 20.00037202 | R42: 20.0000874 | S42: 20.0000186 | T42: 20.00000357 | U42: 20.00000062 | V42: 20.00000009 | W42: 20.00000001 | X42: 20 | Y42: 20 | Z42: 20 | AA42: 20 | AB42: 20 | AC42: 20 | AD42: 20 | AE42: 20 | AF42: 20 | AG42: 20 | AH42: 20 | AI42: 20 | AJ42: 20 | AK42: 20 | AL42: 20 | AM42: 20 | AN42: 20 | AO42: 20 | AP42: 20 | AQ42: 20 | AR42: 20 | AS42: 20 | AT42: 20 | AU42: 20 | AV42: 20 | AW42: 20 | AX42: 20 | AY42: 20 | AZ42: 20 | BA42: 20 | BB42: 20 | BC42: 20 | BD42: 20 | BE42: 20 | BF42: 20 | BG42: 20.00000001 | BH42: 20.00000004 | BI42: 20.00000025 | BJ42: 20.0000013 | BK42: 20.00000611 | BL42: 20.00002599 | BM42: 20.00010055 | BN42: 20.00035466 | BO42: 20.00114396 | BP42: 20.00338341 | BQ42: 20.00919964 | BR42: 20.02305529 | BS42: 20.05339251 | BT42: 20.11457024 | BU42: 20.22845132 | BV42: 20.42462008 | BW42: 20.73821218 | BX42: 21.204986 | BY42: 21.85448038 | BZ42: 22.70332008
A43: 3.2 | B43: 32 | C43: 59.458957 | D43: 47.20669978 | E43: 37.80188208 | F43: 31.00548198 | G43: 26.4027167 | H43: 23.49264441 | I43: 21.78054359 | J43: 20.84578905 | K43: 20.37332807 | L43: 20.15272996 | M43: 20.05776957 | N43: 20.02015461 | O43: 20.00647 | P43: 20.00190638 | Q43: 20.00051422 | R43: 20.00012662 | S43: 20.00002837 | T43: 20.00000576 | U43: 20.00000106 | V43: 20.00000017 | W43: 20.00000003 | X43: 20 | Y43: 20 | Z43: 20 | AA43: 20 | AB43: 20 | AC43: 20 | AD43: 20 | AE43: 20 | AF43: 20 | AG43: 20 | AH43: 20 | AI43: 20 | AJ43: 20 | AK43: 20 | AL43: 20 | AM43: 20 | AN43: 20 | AO43: 20 | AP43: 20 | AQ43: 20 | AR43: 20 | AS43: 20 | AT43: 20 | AU43: 20 | AV43: 20 | AW43: 20 | AX43: 20 | AY43: 20 | AZ43: 20 | BA43: 20 | BB43: 20 | BC43: 20 | BD43: 20 | BE43: 20 | BF43: 20 | BG43: 20.00000001 | BH43: 20.00000007 | BI43: 20.0000004 | BJ43: 20.00000198 | BK43: 20.00000885 | BL43: 20.00003593 | BM43: 20.00013316 | BN43: 20.00045184 | BO43: 20.00140719 | BP43: 20.00403237 | BQ43: 20.01065745 | BR43: 20.0260417 | BS43: 20.05897526 | BT43: 20.12409819 | BU43: 20.24330126 | BV43: 20.44575823 | BW43: 20.76568931 | BX43: 21.23758896 | BY43: 21.88976227 | BZ43: 22.73808691
A44: 3.3 | B44: 33 | C44: 59.95761486 | D44: 47.71028266 | E44: 38.26698427 | F44: 31.39873642 | G44: 26.70727949 | H44: 23.70874603 | I44: 21.92102744 | J44: 20.9294493 | K44: 20.41895371 | L44: 20.17550741 | M44: 20.06817235 | N44: 20.02449781 | O44: 20.00812605 | P44: 20.00248239 | Q44: 20.00069672 | R44: 20.0001792 | S44: 20.00004212 | T44: 20.00000902 | U44: 20.00000175 | V44: 20.00000031 | W44: 20.00000005 | X44: 20.00000001 | Y44: 20 | Z44: 20 | AA44: 20 | AB44: 20 | AC44: 20 | AD44: 20 | AE44: 20 | AF44: 20 | AG44: 20 | AH44: 20 | AI44: 20 | AJ44: 20 | AK44: 20 | AL44: 20 | AM44: 20 | AN44: 20 | AO44: 20 | AP44: 20 | AQ44: 20 | AR44: 20 | AS44: 20 | AT44: 20 | AU44: 20 | AV44: 20 | AW44: 20 | AX44: 20 | AY44: 20 | AZ44: 20 | BA44: 20 | BB44: 20 | BC44: 20 | BD44: 20 | BE44: 20 | BF44: 20 | BG44: 20.00000002 | BH44: 20.00000012 | BI44: 20.00000063 | BJ44: 20.00000294 | BK44: 20.00001252 | BL44: 20.00004867 | BM44: 20.00017338 | BN44: 20.00056744 | BO44: 20.00171025 | BP44: 20.00475797 | BQ44: 20.01224544 | BR44: 20.02922079 | BS44: 20.06480046 | BT44: 20.13387156 | BU44: 20.25831909 | BV44: 20.46689436 | BW44: 20.79293108 | BX44: 21.26972936 | BY44: 21.92444425 | BZ44: 22.77226258
A45: 3.4 | B45: 34 | C45: 60.44818714 | D45: 48.2057001 | E45: 38.72576797 | F45: 31.78871687 | G45: 27.01172206 | H45: 23.92706935 | I45: 22.06485594 | J45: 21.01648351 | K45: 20.4673181 | L45: 20.20017831 | M45: 20.07971857 | N45: 20.02945229 | O45: 20.01007361 | P45: 20.003183 | Q45: 20.00092708 | R45: 20.00024832 | S45: 20.00006101 | T45: 20.00001371 | U45: 20.00000281 | V45: 20.00000052 | W45: 20.00000009 | X45: 20.00000001 | Y45: 20 | Z45: 20 | AA45: 20 | AB45: 20 | AC45: 20 | AD45: 20 | AE45: 20 | AF45: 20 | AG45: 20 | AH45: 20 | AI45: 20 | AJ45: 20 | AK45: 20 | AL45: 20 | AM45: 20 | AN45: 20 | AO45: 20 | AP45: 20 | AQ45: 20 | AR45: 20 | AS45: 20 | AT45: 20 | AU45: 20 | AV45: 20 | AW45: 20 | AX45: 20 | AY45: 20 | AZ45: 20 | BA45: 20 | BB45: 20 | BC45: 20 | BD45: 20 | BE45: 20 | BF45: 20.00000001 | BG45: 20.00000004 | BH45: 20.0000002 | BI45: 20.00000096 | BJ45: 20.00000426 | BK45: 20.00001735 | BL45: 20.00006476 | BM45: 20.00022229 | BN45: 20.00070337 | BO45: 20.00205592 | BP45: 20.00556321 | BQ45: 20.01396516 | BR45: 20.03259014 | BS45: 20.07085945 | BT45: 20.14387558 | BU45: 20.27348792 | BV45: 20.48801693 | BW45: 20.81993875 | BX45: 21.3014238 | BY45: 21.95855322 | BZ45: 22.80587361
A46: 3.5 | B46: 35 | C46: 60.93102528 | D46: 48.69330701 | E46: 39.17845441 | F46: 32.17544496 | G46: 27.31589675 | H46: 24.1473914 | I46: 22.21182833 | J46: 21.10676898 | K46: 20.51838157 | L46: 20.22675898 | M46: 20.09244726 | N46: 20.03505636 | O46: 20.01234035 | P46: 20.00402455 | Q46: 20.00121354 | R46: 20.0003376 | S46: 20.00008645 | T46: 20.00002033 | U46: 20.00000438 | V46: 20.00000086 | W46: 20.00000015 | X46: 20.00000002 | Y46: 20 | Z46: 20 | AA46: 20 | AB46: 20 | AC46: 20 | AD46: 20 | AE46: 20 | AF46: 20 | AG46: 20 | AH46: 20 | AI46: 20 | AJ46: 20 | AK46: 20 | AL46: 20 | AM46: 20 | AN46: 20 | AO46: 20 | AP46: 20 | AQ46: 20 | AR46: 20 | AS46: 20 | AT46: 20 | AU46: 20 | AV46: 20 | AW46: 20 | AX46: 20 | AY46: 20 | AZ46: 20 | BA46: 20 | BB46: 20 | BC46: 20 | BD46: 20 | BE46: 20 | BF46: 20.00000001 | BG46: 20.00000006 | BH46: 20.00000031 | BI46: 20.00000142 | BJ46: 20.00000604 | BK46: 20.00002358 | BL46: 20.00008476 | BM46: 20.00028104 | BN46: 20.00086155 | BO46: 20.00244687 | BP46: 20.0064508 | BQ46: 20.01581772 | BR46: 20.03614691 | BS46: 20.07714363 | BT46: 20.1540962 | BU46: 20.2887922 | BV46: 20.50911576 | BW46: 20.84671401 | BX46: 21.33268796 | BY46: 21.99211413 | BZ46: 22.83894458
A47: 3.6 | B47: 36 | C47: 61.40645583 | D47: 49.17343317 | E47: 39.62525274 | F47: 32.5589478 | G47: 27.6196731 | H47: 24.36950707 | I47: 22.36175412 | J47: 21.20018398 | K47: 20.57209952 | L47: 20.25525968 | M47: 20.10639316 | N47: 20.04134651 | O47: 20.01495378 | P47: 20.00502396 | Q47: 20.00156496 | R47: 20.0004511 | S47: 20.00012007 | T47: 20.00002945 | U47: 20.00000664 | V47: 20.00000137 | W47: 20.00000026 | X47: 20.00000004 | Y47: 20.00000001 | Z47: 20 | AA47: 20 | AB47: 20 | AC47: 20 | AD47: 20 | AE47: 20 | AF47: 20 | AG47: 20 | AH47: 20 | AI47: 20 | AJ47: 20 | AK47: 20 | AL47: 20 | AM47: 20 | AN47: 20 | AO47: 20 | AP47: 20 | AQ47: 20 | AR47: 20 | AS47: 20 | AT47: 20 | AU47: 20 | AV47: 20 | AW47: 20 | AX47: 20 | AY47: 20 | AZ47: 20 | BA47: 20 | BB47: 20 | BC47: 20 | BD47: 20 | BE47: 20 | BF47: 20.00000002 | BG47: 20.0000001 | BH47: 20.00000046 | BI47: 20.00000206 | BJ47: 20.00000839 | BK47: 20.00003151 | BL47: 20.0001093 | BM47: 20.0003508 | BN47: 20.00104391 | BO47: 20.00288561 | BP47: 20.00742312 | BQ47: 20.0178038 | BR47: 20.03988796 | BS47: 20.08364443 | BT47: 20.1645201 | BU47: 20.30421768 | BV47: 20.53018188 | BW47: 20.87325895 | BX47: 21.36353662 | BY47: 22.02515016 | BZ47: 22.87149833
A48: 3.7 | B48: 37 | C48: 61.87478284 | D48: 49.64638563 | E48: 40.0663608 | F48: 32.93925697 | G48: 27.92293581 | H48: 24.59322762 | I48: 22.51445276 | J48: 21.29660837 | K48: 20.62842336 | L48: 20.28568516 | M48: 20.12158686 | N48: 20.04835726 | O48: 20.01794111 | P48: 20.0061986 | Q48: 20.00199081 | R48: 20.00059329 | S48: 20.00016375 | T48: 20.00004177 | U48: 20.00000983 | V48: 20.00000213 | W48: 20.00000042 | X48: 20.00000008 | Y48: 20.00000001 | Z48: 20 | AA48: 20 | AB48: 20 | AC48: 20 | AD48: 20 | AE48: 20 | AF48: 20 | AG48: 20 | AH48: 20 | AI48: 20 | AJ48: 20 | AK48: 20 | AL48: 20 | AM48: 20 | AN48: 20 | AO48: 20 | AP48: 20 | AQ48: 20 | AR48: 20 | AS48: 20 | AT48: 20 | AU48: 20 | AV48: 20 | AW48: 20 | AX48: 20 | AY48: 20 | AZ48: 20 | BA48: 20 | BB48: 20 | BC48: 20 | BD48: 20 | BE48: 20.00000001 | BF48: 20.00000003 | BG48: 20.00000015 | BH48: 20.00000069 | BI48: 20.00000292 | BJ48: 20.00001144 | BK48: 20.00004144 | BL48: 20.00013903 | BM48: 20.00043278 | BN48: 20.00125233 | BO48: 20.00337455 | BP48: 20.00848228 | BQ48: 20.01992367 | BR48: 20.04380982 | BS48: 20.09035343 | BT48: 20.17513468 | BU48: 20.31975122 | BV48: 20.55120733 | BW48: 20.89957596 | BX48: 21.39398381 | BY48: 22.05768288 | BZ48: 22.90355612
A49: 3.8 | B49: 38 | C49: 62.33629 | D49: 50.11245089 | E49: 40.50196597 | F49: 33.31640753 | G49: 28.22558297 | H49: 24.81837924 | I49: 22.66975332 | J49: 21.39592409 | K49: 20.68730118 | L49: 20.31803514 | M49: 20.13805495 | N49: 20.05612108 | O49: 20.02132908 | P49: 20.00756618 | Q49: 20.00250105 | R49: 20.00076909 | S49: 20.00021962 | T49: 20.00005813 | U49: 20.00001423 | V49: 20.00000322 | W49: 20.00000067 | X49: 20.00000013 | Y49: 20.00000002 | Z49: 20 | AA49: 20 | AB49: 20 | AC49: 20 | AD49: 20 | AE49: 20 | AF49: 20 | AG49: 20 | AH49: 20 | AI49: 20 | AJ49: 20 | AK49: 20 | AL49: 20 | AM49: 20 | AN49: 20 | AO49: 20 | AP49: 20 | AQ49: 20 | AR49: 20 | AS49: 20 | AT49: 20 | AU49: 20 | AV49: 20 | AW49: 20 | AX49: 20 | AY49: 20 | AZ49: 20 | BA49: 20 | BB49: 20 | BC49: 20 | BD49: 20 | BE49: 20.00000001 | BF49: 20.00000005 | BG49: 20.00000022 | BH49: 20.00000099 | BI49: 20.00000406 | BJ49: 20.00001534 | BK49: 20.00005371 | BL49: 20.00017464 | BM49: 20.00052821 | BN49: 20.00148867 | BO49: 20.00391595 | BP49: 20.00963012 | BQ49: 20.02217729 | BR49: 20.04790884 | BS49: 20.09726235 | BT49: 20.18592798 | BU49: 20.33538073 | BV49: 20.57218514 | BW49: 20.92566765 | BX49: 21.42404277 | BY49: 22.08973242 | BZ49: 22.93513779
A50: 3.9 | B50: 39 | C50: 62.79124247 | D50: 50.57189672 | E50: 40.93224583 | F50: 33.69043734 | G50: 28.5275246 | H50: 25.04480183 | I50: 22.82749404 | J50: 21.49801558 | K50: 20.74867848 | L50: 20.35230484 | M50: 20.15582018 | N50: 20.06466828 | O50: 20.02514379 | P50: 20.00914464 | Q50: 20.00310616 | R50: 20.00098382 | S50: 20.00029009 | T50: 20.00007949 | U50: 20.00002021 | V50: 20.00000476 | W50: 20.00000103 | X50: 20.00000021 | Y50: 20.00000004 | Z50: 20.00000001 | AA50: 20 | AB50: 20 | AC50: 20 | AD50: 20 | AE50: 20 | AF50: 20 | AG50: 20 | AH50: 20 | AI50: 20 | AJ50: 20 | AK50: 20 | AL50: 20 | AM50: 20 | AN50: 20 | AO50: 20 | AP50: 20 | AQ50: 20 | AR50: 20 | AS50: 20 | AT50: 20 | AU50: 20 | AV50: 20 | AW50: 20 | AX50: 20 | AY50: 20 | AZ50: 20 | BA50: 20 | BB50: 20 | BC50: 20 | BD50: 20 | BE50: 20.00000001 | BF50: 20.00000007 | BG50: 20.00000033 | BH50: 20.00000141 | BI50: 20.00000555 | BJ50: 20.00002026 | BK50: 20.00006871 | BL50: 20.00021688 | BM50: 20.00063835 | BN50: 20.00175476 | BO50: 20.00451189 | BP50: 20.0108682 | BQ50: 20.02456427 | BR50: 20.05218115 | BS50: 20.10436309 | BT50: 20.19688871 | BU50: 20.35109509 | BV50: 20.59310913 | BW50: 20.95153683 | BX50: 21.45372609 | BY50: 22.1213176 | BZ50: 22.96626187
A51: 4 | B51: 40 | C51: 63.23988857 | D51: 51.02497389 | E51: 41.35736887 | F51: 34.06138638 | G51: 28.82868125 | H51: 25.27234784 | I51: 22.98752196 | J51: 21.60277002 | K51: 20.8124987 | L51: 20.38848544 | M51: 20.17490166 | N51: 20.07402704 | O51: 20.02941065 | P51: 20.01095204 | Q51: 20.00381702 | R51: 20.00124322 | S51: 20.00037784 | T51: 20.00010698 | U51: 20.00002817 | V51: 20.00000689 | W51: 20.00000156 | X51: 20.00000033 | Y51: 20.00000006 | Z51: 20.00000001 | AA51: 20 | AB51: 20 | AC51: 20 | AD51: 20 | AE51: 20 | AF51: 20 | AG51: 20 | AH51: 20 | AI51: 20 | AJ51: 20 | AK51: 20 | AL51: 20 | AM51: 20 | AN51: 20 | AO51: 20 | AP51: 20 | AQ51: 20 | AR51: 20 | AS51: 20 | AT51: 20 | AU51: 20 | AV51: 20 | AW51: 20 | AX51: 20 | AY51: 20 | AZ51: 20 | BA51: 20 | BB51: 20 | BC51: 20 | BD51: 20 | BE51: 20.00000002 | BF51: 20.00000011 | BG51: 20.00000048 | BH51: 20.00000197 | BI51: 20.00000747 | BJ51: 20.00002639 | BK51: 20.00008681 | BL51: 20.00026649 | BM51: 20.00076445 | BN51: 20.00205234 | BO51: 20.00516433 | BP51: 20.01219782 | BQ51: 20.02708397 | BR51: 20.05662278 | BS51: 20.11164773 | BT51: 20.2080062 | BU51: 20.36688405 | BV51: 20.61397386 | BW51: 20.97718646 | BX51: 21.48304568 | BY51: 22.15245604 | BZ51: 22.99694574
A52: 4.1 | B52: 41 | C52: 63.68246119 | D52: 51.4719176 | E52: 41.77749507 | F52: 34.42929628 | G52: 29.12898286 | H52: 25.50088119 | I52: 23.14969248 | J52: 21.71007759 | K52: 20.87870379 | L52: 20.42656454 | M52: 20.19531505 | N52: 20.08422335 | O52: 20.03415419 | P52: 20.01300644 | Q52: 20.00464486 | R52: 20.00155339 | S52: 20.00048581 | T52: 20.00014187 | U52: 20.00003862 | V52: 20.00000979 | W52: 20.0000023 | X52: 20.0000005 | Y52: 20.0000001 | Z52: 20.00000002 | AA52: 20 | AB52: 20 | AC52: 20 | AD52: 20 | AE52: 20 | AF52: 20 | AG52: 20 | AH52: 20 | AI52: 20 | AJ52: 20 | AK52: 20 | AL52: 20 | AM52: 20 | AN52: 20 | AO52: 20 | AP52: 20 | AQ52: 20 | AR52: 20 | AS52: 20 | AT52: 20 | AU52: 20 | AV52: 20 | AW52: 20 | AX52: 20 | AY52: 20 | AZ52: 20 | BA52: 20 | BB52: 20 | BC52: 20 | BD52: 20.00000001 | BE52: 20.00000004 | BF52: 20.00000016 | BG52: 20.00000068 | BH52: 20.0000027 | BI52: 20.00000991 | BJ52: 20.00003393 | BK52: 20.00010846 | BL52: 20.00032425 | BM52: 20.00090776 | BN52: 20.00238313 | BO52: 20.00587506 | BP52: 20.01362006 | BQ52: 20.02973549 | BR52: 20.06122963 | BS52: 20.11910858 | BT52: 20.21927034 | BU52: 20.38273816 | BV52: 20.63477456 | BW52: 21.00261957 | BX52: 21.51201287 | BY52: 22.18316428 | BZ52: 23.02720567
A53: 4.2 | B53: 42 | C53: 64.11917915 | D53: 51.91294882 | E53: 42.19277647 | F53: 34.79420984 | G53: 29.4283677 | H53: 25.73027633 | I53: 23.31386897 | J53: 21.81983164 | K53: 20.9472346 | L53: 20.46652653 | M53: 20.2170728 | N53: 20.09528107 | O53: 20.03939802 | P53: 20.01532586 | Q53: 20.00560124 | R53: 20.0019208 | S53: 20.00061721 | T53: 20.00018558 | U53: 20.00005214 | V53: 20.00001367 | W53: 20.00000334 | X53: 20.00000076 | Y53: 20.00000016 | Z53: 20.00000003 | AA53: 20.00000001 | AB53: 20 | AC53: 20 | AD53: 20 | AE53: 20 | AF53: 20 | AG53: 20 | AH53: 20 | AI53: 20 | AJ53: 20 | AK53: 20 | AL53: 20 | AM53: 20 | AN53: 20 | AO53: 20 | AP53: 20 | AQ53: 20 | AR53: 20 | AS53: 20 | AT53: 20 | AU53: 20 | AV53: 20 | AW53: 20 | AX53: 20 | AY53: 20 | AZ53: 20 | BA53: 20 | BB53: 20 | BC53: 20 | BD53: 20.00000001 | BE53: 20.00000005 | BF53: 20.00000023 | BG53: 20.00000095 | BH53: 20.00000364 | BI53: 20.00001296 | BJ53: 20.0000431 | BK53: 20.00013411 | BL53: 20.00039099 | BM53: 20.00106954 | BN53: 20.00274876 | BO53: 20.00664574 | BP53: 20.01513574 | BQ53: 20.03251769 | BR53: 20.06599753 | BS53: 20.12673818 | BT53: 20.23067162 | BU53: 20.39864872 | BV53: 20.65550703 | BW53: 21.02783931 | BX53: 21.54063841 | BY53: 22.21345783 | BZ53: 23.05705698
A54: 4.3 | B54: 43 | C54: 64.55024835 | D54: 52.3482755 | E54: 42.60335771 | F54: 35.15617071 | G54: 29.7267815 | H54: 25.96041739 | I54: 23.47992233 | J54: 21.93192874 | K54: 21.01803129 | L54: 20.50835299 | M54: 20.24018429 | N54: 20.10722189 | O54: 20.04516478 | P54: 20.01792812 | Q54: 20.00669795 | R54: 20.00235222 | S54: 20.00077553 | T54: 20.00023974 | U54: 20.00006939 | V54: 20.00001878 | W54: 20.00000474 | X54: 20.00000112 | Y54: 20.00000024 | Z54: 20.00000005 | AA54: 20.00000001 | AB54: 20 | AC54: 20 | AD54: 20 | AE54: 20 | AF54: 20 | AG54: 20 | AH54: 20 | AI54: 20 | AJ54: 20 | AK54: 20 | AL54: 20 | AM54: 20 | AN54: 20 | AO54: 20 | AP54: 20 | AQ54: 20 | AR54: 20 | AS54: 20 | AT54: 20 | AU54: 20 | AV54: 20 | AW54: 20 | AX54: 20 | AY54: 20 | AZ54: 20 | BA54: 20 | BB54: 20 | BC54: 20 | BD54: 20.00000002 | BE54: 20.00000008 | BF54: 20.00000033 | BG54: 20.00000131 | BH54: 20.00000485 | BI54: 20.00001674 | BJ54: 20.00005415 | BK54: 20.00016421 | BL54: 20.0004675 | BM54: 20.00125104 | BN54: 20.0031508 | BO54: 20.00747787 | BP54: 20.0167455 | BQ54: 20.03542926 | BR54: 20.07092228 | BS54: 20.13452928 | BT54: 20.24220103 | BU54: 20.41460768 | BV54: 20.67616757 | BW54: 21.05284886 | BX54: 21.56893252 | BY54: 22.2433513 | BZ54: 23.08651406
A55: 4.4 | B55: 44 | C55: 64.9758628 | D55: 52.77809355 | E55: 43.0093765 | F55: 35.51522307 | G55: 30.02417662 | H55: 26.19119735 | I55: 23.64773061 | J55: 22.04626878 | K55: 21.09103366 | L55: 20.55202305 | M55: 20.2646561 | N55: 20.12006544 | O55: 20.05147603 | P55: 20.02083082 | Q55: 20.00794695 | R55: 20.00285477 | S55: 20.0009645 | T55: 20.0003061 | U55: 20.00009114 | V55: 20.00002542 | W55: 20.00000664 | X55: 20.00000162 | Y55: 20.00000037 | Z55: 20.00000008 | AA55: 20.00000002 | AB55: 20 | AC55: 20 | AD55: 20 | AE55: 20 | AF55: 20 | AG55: 20 | AH55: 20 | AI55: 20 | AJ55: 20 | AK55: 20 | AL55: 20 | AM55: 20 | AN55: 20 | AO55: 20 | AP55: 20 | AQ55: 20 | AR55: 20 | AS55: 20 | AT55: 20 | AU55: 20 | AV55: 20 | AW55: 20 | AX55: 20 | AY55: 20 | AZ55: 20 | BA55: 20 | BB55: 20 | BC55: 20.00000001 | BD55: 20.00000003 | BE55: 20.00000011 | BF55: 20.00000046 | BG55: 20.00000178 | BH55: 20.00000637 | BI55: 20.00002138 | BJ55: 20.00006734 | BK55: 20.00019928 | BL55: 20.00055463 | BM55: 20.00145346 | BN55: 20.00359075 | BO55: 20.00837278 | BP55: 20.01844977 | BQ55: 20.0384687 | BR55: 20.07599963 | BS55: 20.14247488 | BT55: 20.25385007 | BU55: 20.43060764 | BV55: 20.69675296 | BW55: 21.07765142 | BX55: 21.59690497 | BY55: 22.27285847 | BZ55: 23.11559047
A56: 4.5 | B56: 45 | C56: 65.39620557 | D56: 53.20258785 | E56: 43.41096403 | F56: 35.87141139 | G56: 30.32051134 | H56: 26.42251733 | I56: 23.81717861 | J56: 22.16275501 | K56: 21.16618144 | L56: 20.59751366 | M56: 20.29049218 | N56: 20.13382933 | O56: 20.05835226 | P56: 20.02405126 | Q56: 20.00936036 | R56: 20.00343581 | S56: 20.00118811 | T56: 20.00038662 | U56: 20.00011824 | V56: 20.00003395 | W56: 20.00000914 | X56: 20.0000023 | Y56: 20.00000054 | Z56: 20.00000012 | AA56: 20.00000002 | AB56: 20 | AC56: 20 | AD56: 20 | AE56: 20 | AF56: 20 | AG56: 20 | AH56: 20 | AI56: 20 | AJ56: 20 | AK56: 20 | AL56: 20 | AM56: 20 | AN56: 20 | AO56: 20 | AP56: 20 | AQ56: 20 | AR56: 20 | AS56: 20 | AT56: 20 | AU56: 20 | AV56: 20 | AW56: 20 | AX56: 20 | AY56: 20 | AZ56: 20 | BA56: 20 | BB56: 20 | BC56: 20.00000001 | BD56: 20.00000004 | BE56: 20.00000016 | BF56: 20.00000064 | BG56: 20.00000237 | BH56: 20.00000826 | BI56: 20.000027 | BJ56: 20.00008295 | BK56: 20.00023982 | BL56: 20.00065321 | BM56: 20.00167801 | BN56: 20.00407003 | BO56: 20.0093317 | BP56: 20.0202488 | BQ56: 20.04163439 | BR56: 20.08122535 | BS56: 20.1505682 | BT56: 20.26561071 | BU56: 20.44664175 | BV56: 20.7172604 | BW56: 21.10225024 | BX56: 21.62456502 | BY56: 22.30199233 | BZ56: 23.14429901
A57: 4.6 | B57: 46 | C57: 65.81144965 | D57: 53.6219331 | E57: 43.80824543 | F57: 36.2247802 | G57: 30.61574926 | H57: 26.65428595 | I57: 23.98815754 | J57: 22.28129398 | K57: 21.24341453 | L57: 20.64479996 | M57: 20.31769405 | N57: 20.14852917 | O57: 20.06581285 | P57: 20.02760636 | Q57: 20.01095034 | R57: 20.00410296 | S57: 20.00145061 | T57: 20.00048341 | U57: 20.00015167 | V57: 20.00004475 | W57: 20.0000124 | X57: 20.00000322 | Y57: 20.00000079 | Z57: 20.00000018 | AA57: 20.00000004 | AB57: 20.00000001 | AC57: 20 | AD57: 20 | AE57: 20 | AF57: 20 | AG57: 20 | AH57: 20 | AI57: 20 | AJ57: 20 | AK57: 20 | AL57: 20 | AM57: 20 | AN57: 20 | AO57: 20 | AP57: 20 | AQ57: 20 | AR57: 20 | AS57: 20 | AT57: 20 | AU57: 20 | AV57: 20 | AW57: 20 | AX57: 20 | AY57: 20 | AZ57: 20 | BA57: 20 | BB57: 20 | BC57: 20.00000001 | BD57: 20.00000005 | BE57: 20.00000023 | BF57: 20.00000087 | BG57: 20.00000313 | BH57: 20.00001059 | BI57: 20.00003375 | BJ57: 20.00010127 | BK57: 20.00028637 | BL57: 20.00076411 | BM57: 20.00192587 | BN57: 20.00458997 | BO57: 20.01035569 | BP57: 20.02214268 | BQ57: 20.04492454 | BR57: 20.08659522 | BS57: 20.15880272 | BT57: 20.27747537 | BU57: 20.46270368 | BV57: 20.73768742 | BW57: 21.12664852 | BX57: 21.65192152 | BY57: 22.33076514 | BZ57: 23.17265178
A58: 4.7 | B58: 47 | C58: 66.22175868 | D58: 54.03629456 | E58: 44.2013401 | F58: 36.57537396 | G58: 30.9098587 | H58: 26.88641871 | I58: 24.1605646 | J58: 22.40179559 | K58: 21.32267319 | L58: 20.69385545 | M58: 20.34626099 | N58: 20.1641787 | O58: 20.07387601 | P58: 20.03151259 | Q58: 20.01272911 | R58: 20.00486402 | S58: 20.00175643 | T58: 20.00059877 | U58: 20.0001925 | V58: 20.0000583 | W58: 20.00001661 | X58: 20.00000445 | Y58: 20.00000112 | Z58: 20.00000026 | AA58: 20.00000006 | AB58: 20.00000001 | AC58: 20 | AD58: 20 | AE58: 20 | AF58: 20 | AG58: 20 | AH58: 20 | AI58: 20 | AJ58: 20 | AK58: 20 | AL58: 20 | AM58: 20 | AN58: 20 | AO58: 20 | AP58: 20 | AQ58: 20 | AR58: 20 | AS58: 20 | AT58: 20 | AU58: 20 | AV58: 20 | AW58: 20 | AX58: 20 | AY58: 20 | AZ58: 20 | BA58: 20 | BB58: 20 | BC58: 20.00000002 | BD58: 20.00000008 | BE58: 20.00000031 | BF58: 20.00000116 | BG58: 20.00000407 | BH58: 20.00001344 | BI58: 20.0000418 | BJ58: 20.00012261 | BK58: 20.00033946 | BL58: 20.00088815 | BM58: 20.00219818 | BN58: 20.00515184 | BO58: 20.0114457 | BP58: 20.02413132 | BQ58: 20.04833729 | BR58: 20.09210504 | BS58: 20.16717212 | BT58: 20.28943689 | BU58: 20.4787876 | BV58: 20.75803191 | BW58: 21.15084951 | BX58: 21.67898292 | BY58: 22.35918853 | BZ58: 23.20066023
A59: 4.8 | B59: 48 | C59: 66.62728767 | D59: 54.44582878 | E59: 44.59036209 | F59: 36.92323689 | G59: 31.20281226 | H59: 27.11883742 | I59: 24.3343027 | J59: 22.524173 | K59: 21.40389825 | L59: 20.74465232 | M59: 20.37619023 | N59: 20.18078985 | O59: 20.08255884 | P59: 20.03578599 | Q59: 20.01470885 | R59: 20.00572702 | S59: 20.00211027 | T59: 20.00073516 | U59: 20.00024189 | V59: 20.0000751 | W59: 20.00002197 | X59: 20.00000605 | Y59: 20.00000157 | Z59: 20.00000038 | AA59: 20.00000009 | AB59: 20.00000002 | AC59: 20 | AD59: 20 | AE59: 20 | AF59: 20 | AG59: 20 | AH59: 20 | AI59: 20 | AJ59: 20 | AK59: 20 | AL59: 20 | AM59: 20 | AN59: 20 | AO59: 20 | AP59: 20 | AQ59: 20 | AR59: 20 | AS59: 20 | AT59: 20 | AU59: 20 | AV59: 20 | AW59: 20 | AX59: 20 | AY59: 20 | AZ59: 20 | BA59: 20 | BB59: 20.00000001 | BC59: 20.00000003 | BD59: 20.00000011 | BE59: 20.00000042 | BF59: 20.00000153 | BG59: 20.00000524 | BH59: 20.00001689 | BI59: 20.00005132 | BJ59: 20.00014729 | BK59: 20.00039965 | BL59: 20.0010262 | BM59: 20.00249606 | BN59: 20.00575682 | BO59: 20.01260253 | BP59: 20.0262145 | BQ59: 20.05187066 | BR59: 20.09775066 | BS59: 20.17567035 | BT59: 20.30148853 | BU59: 20.49488809 | BV59: 20.77829205 | BW59: 21.17485638 | BX59: 21.70575728 | BY59: 22.38727348 | BZ59: 23.22833518
A60: 4.9 | B60: 49 | C60: 67.02818361 | D60: 54.85068419 | E60: 44.97542044 | F60: 37.26841284 | G60: 31.49458633 | H60: 27.35146974 | I60: 24.50928009 | J60: 22.64834258 | K60: 21.48703123 | L60: 20.79716161 | M60: 20.40747711 | N60: 20.19837277 | O60: 20.09187728 | P60: 20.04044206 | Q60: 20.01690166 | R60: 20.00670011 | S60: 20.002517 | T60: 20.00089521 | U60: 20.00030116 | V60: 20.00009574 | W60: 20.00002873 | X60: 20.00000813 | Y60: 20.00000217 | Z60: 20.00000054 | AA60: 20.00000013 | AB60: 20.00000003 | AC60: 20.00000001 | AD60: 20 | AE60: 20 | AF60: 20 | AG60: 20 | AH60: 20 | AI60: 20 | AJ60: 20 | AK60: 20 | AL60: 20 | AM60: 20 | AN60: 20 | AO60: 20 | AP60: 20 | AQ60: 20 | AR60: 20 | AS60: 20 | AT60: 20 | AU60: 20 | AV60: 20 | AW60: 20 | AX60: 20 | AY60: 20 | AZ60: 20 | BA60: 20 | BB60: 20.00000001 | BC60: 20.00000004 | BD60: 20.00000015 | BE60: 20.00000057 | BF60: 20.00000201 | BG60: 20.00000669 | BH60: 20.00002103 | BI60: 20.00006249 | BJ60: 20.00017567 | BK60: 20.00046752 | BL60: 20.00117909 | BM60: 20.00282057 | BN60: 20.00640601 | BO60: 20.01382689 | BP60: 20.02839189 | BQ60: 20.05552261 | BR60: 20.10352798 | BS60: 20.18429156 | BT60: 20.3136239 | BU60: 20.51100017 | BV60: 20.79846628 | BW60: 21.1986723 | BX60: 21.73225231 | BY60: 22.41503043 | BZ60: 23.25568692
A61: 5 | B61: 50 | C61: 67.42458608 | D61: 55.25100174 | E61: 45.3566194 | F61: 37.61094525 | G61: 31.78516073 | H61: 27.58424872 | I61: 24.6854101 | J61: 22.77422384 | K61: 21.5720145 | L61: 20.85135343 | M61: 20.44011526 | N61: 20.216936 | O61: 20.10184613 | P61: 20.04549577 | Q61: 20.01931956 | R61: 20.00779155 | S61: 20.00298167 | T61: 20.00108172 | U61: 20.00037171 | V61: 20.00012087 | W61: 20.00003716 | X61: 20.00001079 | Y61: 20.00000296 | Z61: 20.00000076 | AA61: 20.00000019 | AB61: 20.00000004 | AC61: 20.00000001 | AD61: 20 | AE61: 20 | AF61: 20 | AG61: 20 | AH61: 20 | AI61: 20 | AJ61: 20 | AK61: 20 | AL61: 20 | AM61: 20 | AN61: 20 | AO61: 20 | AP61: 20 | AQ61: 20 | AR61: 20 | AS61: 20 | AT61: 20 | AU61: 20 | AV61: 20 | AW61: 20 | AX61: 20 | AY61: 20 | AZ61: 20 | BA61: 20 | BB61: 20.00000001 | BC61: 20.00000005 | BD61: 20.00000021 | BE61: 20.00000075 | BF61: 20.0000026 | BG61: 20.00000844 | BH61: 20.00002595 | BI61: 20.00007551 | BJ61: 20.00020808 | BK61: 20.00054364 | BL61: 20.00134765 | BM61: 20.00317276 | BN61: 20.00710043 | BO61: 20.01511934 | BP61: 20.030663 | BQ61: 20.05929102 | BR61: 20.10943295 | BS61: 20.19303013 | BT61: 20.32583696 | BU61: 20.52711921 | BV61: 20.81855326 | BW61: 21.22230041 | BX61: 21.7584754 | BY61: 22.44246929 | BZ61: 23.28272521
A62: 5.1 | B62: 51 | C62: 67.81662768 | D62: 55.64691536 | E62: 45.73405881 | F62: 37.95087701 | G62: 32.07451835 | H62: 27.81711234 | I62: 24.86261079 | J62: 22.90173937 | K62: 21.65879132 | L62: 20.90719714 | M62: 20.47409673 | N62: 20.23648649 | O62: 20.11247908 | P62: 20.05096149 | Q62: 20.02197439 | R62: 20.00900971 | S62: 20.00350952 | T62: 20.00129765 | U62: 20.00045506 | V62: 20.00015122 | W62: 20.00004757 | X62: 20.00001416 | Y62: 20.00000398 | Z62: 20.00000106 | AA62: 20.00000026 | AB62: 20.00000006 | AC62: 20.00000001 | AD62: 20 | AE62: 20 | AF62: 20 | AG62: 20 | AH62: 20 | AI62: 20 | AJ62: 20 | AK62: 20 | AL62: 20 | AM62: 20 | AN62: 20 | AO62: 20 | AP62: 20 | AQ62: 20 | AR62: 20 | AS62: 20 | AT62: 20 | AU62: 20 | AV62: 20 | AW62: 20 | AX62: 20 | AY62: 20 | AZ62: 20 | BA62: 20 | BB62: 20.00000002 | BC62: 20.00000007 | BD62: 20.00000028 | BE62: 20.00000099 | BF62: 20.00000332 | BG62: 20.00001056 | BH62: 20.00003177 | BI62: 20.00009057 | BJ62: 20.0002449 | BK62: 20.00062858 | BL62: 20.00153271 | BM62: 20.00355361 | BN62: 20.00784101 | BO62: 20.01648036 | BP62: 20.03302727 | BQ62: 20.06317373 | BR62: 20.11546159 | BS62: 20.20188065 | BT62: 20.33812202 | BU62: 20.54324095 | BV62: 20.8385519 | BW62: 21.24574379 | BX62: 21.78443358 | BY62: 22.46959945 | BZ62: 23.30945931
A63: 5.2 | B63: 52 | C63: 68.20443459 | D63: 56.03855246 | E63: 46.10783427 | F63: 38.28825044 | G63: 32.36264483 | H63: 28.05000319 | I63: 25.04080475 | J63: 23.03081474 | K63: 21.74730599 | L63: 20.96466148 | M63: 20.50941216 | N63: 20.25702969 | O63: 20.12378871 | P63: 20.05685302 | Q63: 20.02487784 | R63: 20.01036302 | S63: 20.00410593 | T63: 20.00154609 | U63: 20.00055283 | V63: 20.00018756 | W63: 20.00006032 | X63: 20.00001838 | Y63: 20.0000053 | Z63: 20.00000144 | AA63: 20.00000037 | AB63: 20.00000009 | AC63: 20.00000002 | AD63: 20 | AE63: 20 | AF63: 20 | AG63: 20 | AH63: 20 | AI63: 20 | AJ63: 20 | AK63: 20 | AL63: 20 | AM63: 20 | AN63: 20 | AO63: 20 | AP63: 20 | AQ63: 20 | AR63: 20 | AS63: 20 | AT63: 20 | AU63: 20 | AV63: 20 | AW63: 20 | AX63: 20 | AY63: 20 | AZ63: 20 | BA63: 20.00000001 | BB63: 20.00000003 | BC63: 20.0000001 | BD63: 20.00000037 | BE63: 20.00000128 | BF63: 20.00000421 | BG63: 20.00001309 | BH63: 20.00003859 | BI63: 20.0001079 | BJ63: 20.0002865 | BK63: 20.00072294 | BL63: 20.00173508 | BM63: 20.00396409 | BN63: 20.00862864 | BO63: 20.0179103 | BP63: 20.03548401 | BQ63: 20.06716854 | BR63: 20.12161001 | BS63: 20.21083793 | BT63: 20.35047371 | BU63: 20.55936142 | BV63: 20.85846126 | BW63: 21.2690055 | BX63: 21.81013363 | BY63: 22.49642988 | BZ63: 23.33589806
A64: 5.3 | B64: 53 | C64: 68.58812696 | D64: 56.42603439 | E64: 46.47803745 | F64: 38.62310722 | G64: 32.64952832 | H64: 28.28286806 | I64: 25.21991876 | J64: 23.16137843 | K64: 21.83750387 | L64: 21.02371477 | M64: 20.54605091 | N64: 20.27856967 | O64: 20.13578651 | P64: 20.06318353 | Q64: 20.02804136 | R64: 20.01185993 | S64: 20.00477643 | T64: 20.00183029 | U64: 20.0006668 | V64: 20.00023077 | W64: 20.00007581 | X64: 20.00002362 | Y64: 20.00000697 | Z64: 20.00000195 | AA64: 20.00000052 | AB64: 20.00000013 | AC64: 20.00000003 | AD64: 20.00000001 | AE64: 20 | AF64: 20 | AG64: 20 | AH64: 20 | AI64: 20 | AJ64: 20 | AK64: 20 | AL64: 20 | AM64: 20 | AN64: 20 | AO64: 20 | AP64: 20 | AQ64: 20 | AR64: 20 | AS64: 20 | AT64: 20 | AU64: 20 | AV64: 20 | AW64: 20 | AX64: 20 | AY64: 20 | AZ64: 20 | BA64: 20.00000001 | BB64: 20.00000004 | BC64: 20.00000014 | BD64: 20.00000049 | BE64: 20.00000165 | BF64: 20.00000529 | BG64: 20.00001611 | BH64: 20.00004654 | BI64: 20.00012773 | BJ64: 20.00033326 | BK64: 20.0008273 | BL64: 20.00195556 | BM64: 20.00440511 | BN64: 20.00946409 | BO64: 20.01940944 | BP64: 20.03803247 | BQ64: 20.07127322 | BR64: 20.12787438 | BS64: 20.21989698 | BT64: 20.36288693 | BU64: 20.57547696 | BV64: 20.87828059 | BW64: 21.29208852 | BX64: 21.83558202 | BY64: 22.52296909 | BZ64: 23.36204984
A65: 5.4 | B65: 54 | C65: 68.96781933 | D65: 56.80947681 | E65: 46.84475626 | F65: 38.95548834 | G65: 32.93515916 | H65: 28.51565766 | I65: 25.3998836 | J65: 23.29336171 | K65: 21.92933145 | L65: 21.08432498 | M65: 20.58400121 | N65: 20.30110916 | O65: 20.14848293 | P65: 20.06996558 | Q65: 20.03147619 | R65: 20.01350891 | S65: 20.00552665 | T65: 20.00215365 | U65: 20.0007988 | V65: 20.00028178 | W65: 20.00009447 | X65: 20.00003007 | Y65: 20.00000908 | Z65: 20.0000026 | AA65: 20.00000071 | AB65: 20.00000018 | AC65: 20.00000004 | AD65: 20.00000001 | AE65: 20 | AF65: 20 | AG65: 20 | AH65: 20 | AI65: 20 | AJ65: 20 | AK65: 20 | AL65: 20 | AM65: 20 | AN65: 20 | AO65: 20 | AP65: 20 | AQ65: 20 | AR65: 20 | AS65: 20 | AT65: 20 | AU65: 20 | AV65: 20 | AW65: 20 | AX65: 20 | AY65: 20 | AZ65: 20 | BA65: 20.00000001 | BB65: 20.00000005 | BC65: 20.00000018 | BD65: 20.00000063 | BE65: 20.0000021 | BF65: 20.0000066 | BG65: 20.00001967 | BH65: 20.00005575 | BI65: 20.00015028 | BJ65: 20.00038557 | BK65: 20.00094225 | BL65: 20.00219491 | BM65: 20.00487753 | BN65: 20.01034809 | BO65: 20.02097794 | BP65: 20.0406718 | BQ65: 20.07548551 | BR65: 20.13425094 | BS65: 20.229053 | BT65: 20.37535689 | BU65: 20.5915842 | BV65: 20.8980093 | BW65: 21.31499581 | BX65: 21.86078497 | BY65: 22.54922522 | BZ65: 23.38792266
A66: 5.5 | B66: 55 | C66: 69.34362095 | D66: 57.18899005 | E66: 47.20807508 | F66: 39.28543412 | G66: 33.21952972 | H66: 28.74832632 | I66: 25.5806338 | J66: 23.42669856 | K66: 22.02273639 | L66: 21.14645988 | M66: 20.62325021 | N66: 20.32464965 | O66: 20.16188738 | P66: 20.07721109 | Q66: 20.03519326 | R66: 20.01531841 | S66: 20.00636232 | T66: 20.00251969 | U66: 20.00095081 | V66: 20.00034162 | W66: 20.00011678 | X66: 20.00003796 | Y66: 20.00001172 | Z66: 20.00000343 | AA66: 20.00000095 | AB66: 20.00000025 | AC66: 20.00000006 | AD66: 20.00000001 | AE66: 20 | AF66: 20 | AG66: 20 | AH66: 20 | AI66: 20 | AJ66: 20 | AK66: 20 | AL66: 20 | AM66: 20 | AN66: 20 | AO66: 20 | AP66: 20 | AQ66: 20 | AR66: 20 | AS66: 20 | AT66: 20 | AU66: 20 | AV66: 20 | AW66: 20 | AX66: 20 | AY66: 20 | AZ66: 20 | BA66: 20.00000002 | BB66: 20.00000007 | BC66: 20.00000024 | BD66: 20.00000082 | BE66: 20.00000265 | BF66: 20.00000815 | BG66: 20.00002385 | BH66: 20.00006636 | BI66: 20.00017581 | BJ66: 20.00044384 | BK66: 20.00106838 | BL66: 20.00245391 | BM66: 20.00538217 | BN66: 20.01128127 | BO66: 20.02261589 | BP66: 20.04340108 | BQ66: 20.07980314 | BR66: 20.14073603 | BS66: 20.23830138 | BT66: 20.38787904 | BU66: 20.60767998 | BV66: 20.91764693 | BW66: 21.33773027 | BX66: 21.88574844 | BY66: 22.57520601 | BZ66: 23.41352417
A67: 5.6 | B67: 56 | C67: 69.71563616 | D67: 57.56467948 | E67: 47.56807495 | F67: 39.61298414 | G67: 33.50263417 | H67: 28.98083169 | I67: 25.76210743 | J67: 23.56132561 | K67: 22.11766756 | L67: 21.21008712 | M67: 20.66378418 | N67: 20.34919148 | O67: 20.1760083 | P67: 20.08493134 | Q67: 20.03920326 | R67: 20.01729683 | S67: 20.00728929 | T67: 20.00293204 | U67: 20.00112491 | V67: 20.00041137 | W67: 20.00014329 | X67: 20.0000475 | Y67: 20.00001498 | Z67: 20.00000449 | AA67: 20.00000128 | AB67: 20.00000034 | AC67: 20.00000009 | AD67: 20.00000002 | AE67: 20 | AF67: 20 | AG67: 20 | AH67: 20 | AI67: 20 | AJ67: 20 | AK67: 20 | AL67: 20 | AM67: 20 | AN67: 20 | AO67: 20 | AP67: 20 | AQ67: 20 | AR67: 20 | AS67: 20 | AT67: 20 | AU67: 20 | AV67: 20 | AW67: 20 | AX67: 20 | AY67: 20 | AZ67: 20.00000001 | BA67: 20.00000002 | BB67: 20.00000009 | BC67: 20.00000031 | BD67: 20.00000105 | BE67: 20.00000332 | BF67: 20.00001 | BG67: 20.00002871 | BH67: 20.0000785 | BI67: 20.00020457 | BJ67: 20.00050847 | BK67: 20.00120627 | BL67: 20.00273329 | BM67: 20.00591983 | BN67: 20.01226421 | BO67: 20.0243233 | BP67: 20.04621933 | BQ67: 20.08422384 | BR67: 20.14732608 | BS67: 20.24763772 | BT67: 20.40044908 | BU67: 20.62376141 | BV67: 20.93719313 | BW67: 21.36029473 | BX67: 21.91047816 | BY67: 22.60091887 | BZ67: 23.43886166
A68: 5.7 | B68: 57 | C68: 70.08396467 | D68: 57.9366458 | E68: 47.92483374 | F68: 39.93817724 | G68: 33.78446831 | H68: 29.21313455 | I68: 25.94424589 | J68: 23.69718199 | K68: 22.21407503 | L68: 21.27517435 | M68: 20.70558857 | N68: 20.37473388 | O68: 20.19085315 | P68: 20.09313698 | Q68: 20.04351654 | R68: 20.01945253 | S68: 20.00831343 | T68: 20.00339445 | U68: 20.00132328 | V68: 20.0004922 | W68: 20.00017456 | X68: 20.00005899 | Y68: 20.00001898 | Z68: 20.00000581 | AA68: 20.00000169 | AB68: 20.00000047 | AC68: 20.00000012 | AD68: 20.00000003 | AE68: 20.00000001 | AF68: 20 | AG68: 20 | AH68: 20 | AI68: 20 | AJ68: 20 | AK68: 20 | AL68: 20 | AM68: 20 | AN68: 20 | AO68: 20 | AP68: 20 | AQ68: 20 | AR68: 20 | AS68: 20 | AT68: 20 | AU68: 20 | AV68: 20 | AW68: 20 | AX68: 20 | AY68: 20 | AZ68: 20.00000001 | BA68: 20.00000003 | BB68: 20.00000012 | BC68: 20.00000041 | BD68: 20.00000133 | BE68: 20.00000412 | BF68: 20.00001219 | BG68: 20.00003435 | BH68: 20.00009234 | BI68: 20.00023682 | BJ68: 20.00057986 | BK68: 20.0013565 | BL68: 20.00303377 | BM68: 20.00649122 | BN68: 20.01329743 | BO68: 20.0261001 | BP68: 20.04912553 | BQ68: 20.08874532 | BR68: 20.15401759 | BS68: 20.25705777 | BT68: 20.41306295 | BU68: 20.63982579 | BV68: 20.95664769 | BW68: 21.38269198 | BX68: 21.93497964 | BY68: 22.62637087 | BZ68: 23.4639421
A69: 5.8 | B69: 58 | C69: 70.44870184 | D69: 58.30498532 | E69: 48.27842635 | F69: 40.26105151 | G69: 34.06502938 | H69: 29.44519854 | I69: 26.12699374 | J69: 23.83420928 | K69: 22.31191012 | L69: 21.34168927 | M69: 20.74864808 | N69: 20.40127508 | O69: 20.20642848 | P69: 20.10183802 | Q69: 20.04814316 | R69: 20.02179376 | S69: 20.00944071 | T69: 20.00391078 | U69: 20.0015482 | V69: 20.00058535 | W69: 20.00021123 | X69: 20.0000727 | Y69: 20.00002385 | Z69: 20.00000745 | AA69: 20.00000222 | AB69: 20.00000063 | AC69: 20.00000017 | AD69: 20.00000004 | AE69: 20.00000001 | AF69: 20 | AG69: 20 | AH69: 20 | AI69: 20 | AJ69: 20 | AK69: 20 | AL69: 20 | AM69: 20 | AN69: 20 | AO69: 20 | AP69: 20 | AQ69: 20 | AR69: 20 | AS69: 20 | AT69: 20 | AU69: 20 | AV69: 20 | AW69: 20 | AX69: 20 | AY69: 20 | AZ69: 20.00000001 | BA69: 20.00000004 | BB69: 20.00000015 | BC69: 20.00000052 | BD69: 20.00000167 | BE69: 20.00000508 | BF69: 20.00001474 | BG69: 20.00004085 | BH69: 20.00010803 | BI69: 20.00027282 | BJ69: 20.00065844 | BK69: 20.00151964 | BL69: 20.00335604 | BM69: 20.00709704 | BN69: 20.01438136 | BO69: 20.02794615 | BP69: 20.05211859 | BQ69: 20.09336533 | BR69: 20.16080715 | BS69: 20.26655746 | BT69: 20.42571681 | BU69: 20.65587064 | BV69: 20.97601047 | BW69: 21.40492475 | BX69: 21.95925816 | BY69: 22.65156878 | BZ69: 23.48877215
A70: 5.9 | B70: 59 | C70: 70.80993897 | D70: 58.66979022 | E70: 48.62892482 | F70: 40.58164427 | G70: 34.34431597 | H70: 29.67698995 | I70: 26.31029847 | J70: 23.9723514 | K70: 22.41112537 | L70: 21.4095997 | M70: 20.79294682 | N70: 20.42881237 | O70: 20.22273995 | P70: 20.11104384 | Q70: 20.05309281 | R70: 20.02432868 | S70: 20.01067709 | T70: 20.00448497 | U70: 20.00180205 | V70: 20.00069215 | W70: 20.00025398 | X70: 20.00008898 | Y70: 20.00002974 | Z70: 20.00000948 | AA70: 20.00000288 | AB70: 20.00000083 | AC70: 20.00000023 | AD70: 20.00000006 | AE70: 20.00000001 | AF70: 20 | AG70: 20 | AH70: 20 | AI70: 20 | AJ70: 20 | AK70: 20 | AL70: 20 | AM70: 20 | AN70: 20 | AO70: 20 | AP70: 20 | AQ70: 20 | AR70: 20 | AS70: 20 | AT70: 20 | AU70: 20 | AV70: 20 | AW70: 20 | AX70: 20 | AY70: 20 | AZ70: 20.00000002 | BA70: 20.00000006 | BB70: 20.0000002 | BC70: 20.00000066 | BD70: 20.00000208 | BE70: 20.00000621 | BF70: 20.00001773 | BG70: 20.0000483 | BH70: 20.00012573 | BI70: 20.00031285 | BJ70: 20.00074462 | BK70: 20.00169626 | BL70: 20.00370078 | BM70: 20.00773794 | BN70: 20.01551638 | BO70: 20.02986125 | BP70: 20.05519737 | BQ70: 20.0980816 | BR70: 20.16769145 | BS70: 20.27613288 | BT70: 20.43840701 | BU70: 20.67189366 | BV70: 20.99528144 | BW70: 21.42699572 | BX70: 21.98331883 | BY70: 22.67651906 | BZ70: 23.5133582
A71: 6 | B71: 60 | C71: 71.1677635 | D71: 59.03114882 | E71: 48.97639851 | F71: 40.89999212 | G71: 34.62232782 | H71: 29.90847755 | I71: 26.49411039 | J71: 24.1115545 | K71: 22.51167456 | L71: 21.47887367 | M71: 20.83846831 | N71: 20.45734217 | O71: 20.23979236 | P71: 20.1207632 | Q71: 20.05837486 | R71: 20.02706533 | S71: 20.0120286 | T71: 20.00512105 | U71: 20.00208729 | V71: 20.000814 | W71: 20.00030355 | X71: 20.00010818 | Y71: 20.00003682 | Z71: 20.00001196 | AA71: 20.00000371 | AB71: 20.0000011 | AC71: 20.00000031 | AD71: 20.00000008 | AE71: 20.00000002 | AF71: 20.00000001 | AG71: 20 | AH71: 20 | AI71: 20 | AJ71: 20 | AK71: 20 | AL71: 20 | AM71: 20 | AN71: 20 | AO71: 20 | AP71: 20 | AQ71: 20 | AR71: 20 | AS71: 20 | AT71: 20 | AU71: 20 | AV71: 20 | AW71: 20 | AX71: 20 | AY71: 20.00000001 | AZ71: 20.00000002 | BA71: 20.00000008 | BB71: 20.00000026 | BC71: 20.00000084 | BD71: 20.00000257 | BE71: 20.00000755 | BF71: 20.00002119 | BG71: 20.0000568 | BH71: 20.00014562 | BI71: 20.0003572 | BJ71: 20.00083881 | BK71: 20.00188692 | BL71: 20.00406863 | BM71: 20.00841452 | BN71: 20.01670283 | BO71: 20.03184512 | BP71: 20.05836072 | BQ71: 20.10289189 | BR71: 20.17466726 | BS71: 20.28578028 | BT71: 20.45113013 | BU71: 20.68789271 | BV71: 21.01446065 | BW71: 21.44890751 | BX71: 22.00716653 | BY71: 22.70122794 | BZ71: 23.53770636
A72: 6.1 | B72: 61 | C72: 71.52225927 | D72: 59.38914578 | E72: 49.32091423 | F72: 41.21613088 | G72: 34.89906574 | H72: 30.1396324 | I72: 26.67838243 | J72: 24.25176694 | K72: 22.61351271 | L72: 21.54947947 | M72: 20.88519564 | N72: 20.48686005 | O72: 20.25758972 | P72: 20.13100424 | Q72: 20.06399832 | R72: 20.03001162 | S72: 20.01350123 | T72: 20.00582313 | U72: 20.00240648 | V72: 20.00095236 | W72: 20.00036071 | X72: 20.00013068 | Y72: 20.00004526 | Z72: 20.00001498 | AA72: 20.00000473 | AB72: 20.00000143 | AC72: 20.00000041 | AD72: 20.00000011 | AE72: 20.00000003 | AF72: 20.00000001 | AG72: 20 | AH72: 20 | AI72: 20 | AJ72: 20 | AK72: 20 | AL72: 20 | AM72: 20 | AN72: 20 | AO72: 20 | AP72: 20 | AQ72: 20 | AR72: 20 | AS72: 20 | AT72: 20 | AU72: 20 | AV72: 20 | AW72: 20 | AX72: 20 | AY72: 20.00000001 | AZ72: 20.00000003 | BA72: 20.0000001 | BB72: 20.00000033 | BC72: 20.00000105 | BD72: 20.00000316 | BE72: 20.00000912 | BF72: 20.00002517 | BG72: 20.00006645 | BH72: 20.00016788 | BI72: 20.00040614 | BJ72: 20.00094143 | BK72: 20.00209217 | BL72: 20.00446022 | BM72: 20.00912733 | BN72: 20.01794096 | BO72: 20.03389745 | BP72: 20.06160743 | BQ72: 20.10779397 | BR72: 20.18173143 | BS72: 20.29549607 | BT72: 20.4638829 | BU72: 20.70386581 | BV72: 21.03354822 | BW72: 21.47066269 | BX72: 22.030806 | BY72: 22.72570134 | BZ72: 23.56182249
A73: 6.2 | B73: 62 | C73: 71.8735067 | D73: 59.74386232 | E73: 49.66253636 | F73: 41.53009561 | G73: 35.17453151 | H73: 30.3704277 | I73: 26.86307002 | J73: 24.39293912 | K73: 22.71659606 | L73: 21.62138565 | M73: 20.93311147 | N73: 20.51736089 | O73: 20.27613525 | P73: 20.14177451 | Q73: 20.06997183 | R73: 20.03317532 | S73: 20.01510101 | T73: 20.00659537 | U73: 20.00276227 | V73: 20.00110877 | W73: 20.00042631 | X73: 20.00015692 | Y73: 20.00005527 | Z73: 20.00001861 | AA73: 20.00000599 | AB73: 20.00000184 | AC73: 20.00000054 | AD73: 20.00000015 | AE73: 20.00000004 | AF73: 20.00000001 | AG73: 20 | AH73: 20 | AI73: 20 | AJ73: 20 | AK73: 20 | AL73: 20 | AM73: 20 | AN73: 20 | AO73: 20 | AP73: 20 | AQ73: 20 | AR73: 20 | AS73: 20 | AT73: 20 | AU73: 20 | AV73: 20 | AW73: 20 | AX73: 20 | AY73: 20.00000001 | AZ73: 20.00000004 | BA73: 20.00000013 | BB73: 20.00000042 | BC73: 20.0000013 | BD73: 20.00000386 | BE73: 20.00001095 | BF73: 20.00002975 | BG73: 20.00007736 | BH73: 20.00019268 | BI73: 20.00045996 | BJ73: 20.00105291 | BK73: 20.00231253 | BL73: 20.00487614 | BM73: 20.0098769 | BN73: 20.01923099 | BO73: 20.03601785 | BP73: 20.06493629 | BQ73: 20.11278563 | BR73: 20.1888809 | BS73: 20.30527681 | BT73: 20.47666224 | BU73: 20.71981115 | BV73: 21.05254432 | BW73: 21.49226376 | BX73: 22.05424177 | BY73: 22.74994498 | BZ73: 23.58571221
A74: 6.3 | B74: 63 | C74: 72.22158298 | D74: 60.09537639 | E74: 50.00132699 | F74: 41.84192064 | G74: 35.44872776 | H74: 30.60083863 | I74: 27.04813093 | J74: 24.53502346 | K74: 22.82088204 | L74: 21.69456113 | M74: 20.98219811 | N74: 20.54883883 | O74: 20.29543143 | P74: 20.15308096 | Q74: 20.07630366 | R74: 20.03656401 | S74: 20.01683391 | T74: 20.00744199 | U74: 20.00315736 | V74: 20.00128485 | W74: 20.00050124 | X74: 20.00018736 | Y74: 20.00006707 | Z74: 20.00002298 | AA74: 20.00000753 | AB74: 20.00000236 | AC74: 20.00000071 | AD74: 20.0000002 | AE74: 20.00000006 | AF74: 20.00000001 | AG74: 20 | AH74: 20 | AI74: 20 | AJ74: 20 | AK74: 20 | AL74: 20 | AM74: 20 | AN74: 20 | AO74: 20 | AP74: 20 | AQ74: 20 | AR74: 20 | AS74: 20 | AT74: 20 | AU74: 20 | AV74: 20 | AW74: 20 | AX74: 20 | AY74: 20.00000001 | AZ74: 20.00000005 | BA74: 20.00000016 | BB74: 20.00000053 | BC74: 20.0000016 | BD74: 20.00000468 | BE74: 20.00001308 | BF74: 20.00003498 | BG74: 20.00008964 | BH74: 20.00022023 | BI74: 20.00051897 | BJ74: 20.00117364 | BK74: 20.00254855 | BL74: 20.00531696 | BM74: 20.01066369 | BN74: 20.02057309 | BO74: 20.03820592 | BP74: 20.06834604 | BQ74: 20.1178647 | BR74: 20.19611271 | BS74: 20.31511917 | BT74: 20.48946524 | BU74: 20.73572703 | BV74: 21.0714492 | BW74: 21.51371319 | BX74: 22.07747825 | BY74: 22.77396434 | BZ74: 23.60938092
A75: 6.4 | B75: 64 | C75: 72.56656229 | D75: 60.4437629 | E75: 50.33734598 | F75: 42.15163956 | G75: 35.72165788 | H75: 30.83084219 | I75: 27.23352513 | J75: 24.67797428 | K75: 22.9263293 | L75: 21.76897518 | M75: 21.03243763 | N75: 20.5812874 | O75: 20.31548004 | P75: 20.16492996 | Q75: 20.08300173 | R75: 20.04018512 | S75: 20.01870589 | T75: 20.00836725 | U75: 20.00359454 | V75: 20.00148228 | W75: 20.00058644 | X75: 20.00022248 | Y75: 20.00008089 | Z75: 20.00002818 | AA75: 20.0000094 | AB75: 20.000003 | AC75: 20.00000091 | AD75: 20.00000027 | AE75: 20.00000007 | AF75: 20.00000002 | AG75: 20.00000001 | AH75: 20 | AI75: 20 | AJ75: 20 | AK75: 20 | AL75: 20 | AM75: 20 | AN75: 20 | AO75: 20 | AP75: 20 | AQ75: 20 | AR75: 20 | AS75: 20 | AT75: 20 | AU75: 20 | AV75: 20 | AW75: 20 | AX75: 20.00000001 | AY75: 20.00000002 | AZ75: 20.00000006 | BA75: 20.00000021 | BB75: 20.00000066 | BC75: 20.00000197 | BD75: 20.00000565 | BE75: 20.00001553 | BF75: 20.00004092 | BG75: 20.0001034 | BH75: 20.0002507 | BI75: 20.00058345 | BJ75: 20.00130406 | BK75: 20.00280073 | BL75: 20.00578324 | BM75: 20.01148816 | BN75: 20.02196735 | BO75: 20.04046118 | BP75: 20.07183542 | BQ75: 20.12302902 | BR75: 20.20342396 | BS75: 20.32501998 | BT75: 20.50228911 | BU75: 20.7516119 | BV75: 21.09026315 | BW75: 21.53501338 | BX75: 22.10051965 | BY75: 22.79776467 | BZ75: 23.6328338
A76: 6.5 | B76: 65 | C76: 72.90851591 | D76: 60.78909384 | E76: 50.67065116 | F76: 42.45928524 | G76: 35.99332598 | H76: 31.06041712 | I76: 27.41921471 | J76: 24.82174775 | K76: 23.03289765 | L76: 21.84459749 | M76: 21.08381184 | N76: 20.61469954 | O76: 20.3362822 | P76: 20.17732734 | Q76: 20.09007358 | R76: 20.04404589 | S76: 20.02072287 | T76: 20.00937547 | U76: 20.00407668 | V76: 20.00170281 | W76: 20.0006829 | X76: 20.00026282 | Y76: 20.00009702 | Z76: 20.00003434 | AA76: 20.00001164 | AB76: 20.00000378 | AC76: 20.00000118 | AD76: 20.00000035 | AE76: 20.0000001 | AF76: 20.00000003 | AG76: 20.00000001 | AH76: 20 | AI76: 20 | AJ76: 20 | AK76: 20 | AL76: 20 | AM76: 20 | AN76: 20 | AO76: 20 | AP76: 20 | AQ76: 20 | AR76: 20 | AS76: 20 | AT76: 20 | AU76: 20 | AV76: 20 | AW76: 20 | AX76: 20.00000001 | AY76: 20.00000002 | AZ76: 20.00000008 | BA76: 20.00000026 | BB76: 20.00000081 | BC76: 20.0000024 | BD76: 20.00000677 | BE76: 20.00001834 | BF76: 20.00004765 | BG76: 20.00011878 | BH76: 20.00028431 | BI76: 20.00065371 | BJ76: 20.00144456 | BK76: 20.00306958 | BL76: 20.00627548 | BM76: 20.01235068 | BN76: 20.02341385 | BO76: 20.04278312 | BP76: 20.07540314 | BQ76: 20.12827646 | BR76: 20.21081186 | BS76: 20.33497621 | BT76: 20.51513126 | BU76: 20.76746431 | BV76: 21.10898651 | BW76: 21.55616667 | BX76: 22.12337007 | BY76: 22.82135104 | BZ76: 23.65607584
A77: 6.6 | B77: 66 | C77: 73.2475124 | D77: 61.13143845 | E77: 51.00129832 | F77: 42.76488983 | G77: 36.26373674 | H77: 31.28954374 | I77: 27.60516371 | J77: 24.96630179 | K77: 23.14054804 | L77: 21.92139818 | M77: 21.1363024 | N77: 20.64906766 | O77: 20.35783839 | P77: 20.19027836 | Q77: 20.09752637 | R77: 20.04815337 | S77: 20.02289071 | T77: 20.01047098 | U77: 20.00460667 | V77: 20.00194825 | W77: 20.00079167 | X77: 20.00030894 | Y77: 20.00011573 | Z77: 20.00004159 | AA77: 20.00001434 | AB77: 20.00000474 | AC77: 20.0000015 | AD77: 20.00000045 | AE77: 20.00000013 | AF77: 20.00000004 | AG77: 20.00000001 | AH77: 20 | AI77: 20 | AJ77: 20 | AK77: 20 | AL77: 20 | AM77: 20 | AN77: 20 | AO77: 20 | AP77: 20 | AQ77: 20 | AR77: 20 | AS77: 20 | AT77: 20 | AU77: 20 | AV77: 20 | AW77: 20 | AX77: 20.00000001 | AY77: 20.00000003 | AZ77: 20.0000001 | BA77: 20.00000033 | BB77: 20.000001 | BC77: 20.0000029 | BD77: 20.00000808 | BE77: 20.00002156 | BF77: 20.00005523 | BG77: 20.00013589 | BH77: 20.00032125 | BI77: 20.00073004 | BJ77: 20.00159556 | BK77: 20.00335557 | BL77: 20.00679418 | BM77: 20.01325162 | BN77: 20.02491261 | BO77: 20.04517121 | BP77: 20.07904792 | BQ77: 20.13360494 | BR77: 20.21827367 | BS77: 20.34498491 | BT77: 20.52798919 | BU77: 20.78328293 | BV77: 21.12761966 | BW77: 21.57717538 | BX77: 22.14603344 | BY77: 22.84472829 | BZ77: 23.67911182
A78: 6.7 | B78: 67 | C78: 73.58361775 | D78: 61.47086336 | E78: 51.3293414 | F78: 43.06848476 | G78: 36.53289545 | H78: 31.51820387 | I78: 27.79133804 | J78: 25.11159603 | K78: 23.24924258 | L78: 21.99934779 | M78: 21.1898908 | N78: 20.68438369 | O78: 20.38014848 | P78: 20.20378777 | Q78: 20.1053669 | R78: 20.05251441 | S78: 20.02521519 | T78: 20.01165811 | U78: 20.0051875 | V78: 20.00222046 | W78: 20.00091385 | X78: 20.00036145 | Y78: 20.00013733 | Z78: 20.0000501 | AA78: 20.00001754 | AB78: 20.00000589 | AC78: 20.0000019 | AD78: 20.00000059 | AE78: 20.00000017 | AF78: 20.00000005 | AG78: 20.00000001 | AH78: 20 | AI78: 20 | AJ78: 20 | AK78: 20 | AL78: 20 | AM78: 20 | AN78: 20 | AO78: 20 | AP78: 20 | AQ78: 20 | AR78: 20 | AS78: 20 | AT78: 20 | AU78: 20 | AV78: 20 | AW78: 20 | AX78: 20.00000001 | AY78: 20.00000004 | AZ78: 20.00000013 | BA78: 20.00000041 | BB78: 20.00000122 | BC78: 20.0000035 | BD78: 20.00000958 | BE78: 20.00002522 | BF78: 20.00006375 | BG78: 20.00015487 | BH78: 20.00036173 | BI78: 20.00081275 | BJ78: 20.00175746 | BK78: 20.00365919 | BL78: 20.00733982 | BM78: 20.01419131 | BN78: 20.02646361 | BO78: 20.04762486 | BP78: 20.08276845 | BQ78: 20.13901238 | BR78: 20.22580675 | BS78: 20.35504329 | BT78: 20.54086055 | BU78: 20.79906654 | BV78: 21.14616302 | BW78: 21.59804174 | BX78: 22.16851358 | BY78: 22.86790113 | BZ78: 23.70194637
A79: 6.8 | B79: 68 | C79: 73.91689551 | D79: 61.80743275 | E79: 51.65483251 | F79: 43.3701008 | G79: 36.80080785 | H79: 31.74638069 | I79: 27.9777054 | J79: 25.25759169 | K79: 23.35894448 | L79: 22.07841737 | M79: 21.24455849 | N79: 20.72063909 | O79: 20.40321181 | P79: 20.21785979 | Q79: 20.1136016 | R79: 20.05713566 | S79: 20.02770203 | T79: 20.01294123 | U79: 20.00582219 | V79: 20.00252138 | W79: 20.00105059 | X79: 20.00042099 | Y79: 20.00016217 | Z79: 20.00006002 | AA79: 20.00002134 | AB79: 20.00000728 | AC79: 20.00000238 | AD79: 20.00000075 | AE79: 20.00000023 | AF79: 20.00000006 | AG79: 20.00000002 | AH79: 20 | AI79: 20 | AJ79: 20 | AK79: 20 | AL79: 20 | AM79: 20 | AN79: 20 | AO79: 20 | AP79: 20 | AQ79: 20 | AR79: 20 | AS79: 20 | AT79: 20 | AU79: 20 | AV79: 20 | AW79: 20 | AX79: 20.00000002 | AY79: 20.00000005 | AZ79: 20.00000017 | BA79: 20.00000051 | BB79: 20.00000149 | BC79: 20.00000419 | BD79: 20.00001132 | BE79: 20.00002937 | BF79: 20.00007328 | BG79: 20.00017585 | BH79: 20.00040596 | BI79: 20.00090214 | BJ79: 20.00193065 | BK79: 20.0039809 | BL79: 20.00791282 | BM79: 20.01517003 | BN79: 20.0280668 | BO79: 20.05014348 | BP79: 20.08656342 | BQ79: 20.14449677 | BR79: 20.23340853 | BS79: 20.36514866 | BT79: 20.55374312 | BU79: 20.814814 | BV79: 21.16461705 | BW79: 21.61876795 | BX79: 22.19081416 | BY79: 22.89087404 | BZ79: 23.72458391
A80: 6.9 | B80: 69 | C80: 74.2474069 | D80: 62.14120845 | E80: 51.97782204 | F80: 43.66976803 | G80: 37.06748015 | H80: 31.9740587 | I80: 28.16423511 | J80: 25.40425157 | K80: 23.46961803 | L80: 22.15857843 | M80: 21.30028683 | N80: 20.75782497 | O80: 20.42702715 | P80: 20.23249816 | Q80: 20.12223653 | R80: 20.06202355 | S80: 20.03035688 | T80: 20.01432469 | U80: 20.00651378 | V80: 20.00285299 | W80: 20.00120308 | X80: 20.00048822 | Y80: 20.00019059 | Z80: 20.00007153 | AA80: 20.00002581 | AB80: 20.00000894 | AC80: 20.00000298 | AD80: 20.00000095 | AE80: 20.00000029 | AF80: 20.00000009 | AG80: 20.00000002 | AH80: 20.00000001 | AI80: 20 | AJ80: 20 | AK80: 20 | AL80: 20 | AM80: 20 | AN80: 20 | AO80: 20 | AP80: 20 | AQ80: 20 | AR80: 20 | AS80: 20 | AT80: 20 | AU80: 20 | AV80: 20 | AW80: 20.00000001 | AX80: 20.00000002 | AY80: 20.00000007 | AZ80: 20.00000021 | BA80: 20.00000062 | BB80: 20.0000018 | BC80: 20.00000499 | BD80: 20.0000133 | BE80: 20.00003406 | BF80: 20.00008392 | BG80: 20.00019896 | BH80: 20.00045415 | BI80: 20.00099851 | BJ80: 20.00211552 | BK80: 20.00432113 | BL80: 20.00851362 | BM80: 20.01618802 | BN80: 20.02972206 | BO80: 20.05272642 | BP80: 20.09043152 | BQ80: 20.15005611 | BR80: 20.24107653 | BS80: 20.37529843 | BT80: 20.56663479 | BU80: 20.83052427 | BV80: 21.18298222 | BW80: 21.63935616 | BX80: 22.21293875 | BY80: 22.91365138 | BZ80: 23.74702874
A81: 7 | B81: 70 | C81: 74.57521095 | D81: 62.47225007 | E81: 52.29835876 | F81: 43.96751584 | G81: 37.33291892 | H81: 32.20122358 | I81: 28.35089812 | J81: 25.55153993 | K81: 23.58122857 | L81: 22.23980297 | M81: 21.35705718 | N81: 20.79593204 | O81: 20.4515928 | P81: 20.24770613 | Q81: 20.13127739 | R81: 20.0671843 | S81: 20.03318529 | T81: 20.01581286 | U81: 20.0072654 | V81: 20.00321734 | W81: 20.00137256 | X81: 20.00056387 | Y81: 20.00022298 | Z81: 20.00008484 | AA81: 20.00003104 | AB81: 20.00001092 | AC81: 20.00000369 | AD81: 20.0000012 | AE81: 20.00000037 | AF81: 20.00000011 | AG81: 20.00000003 | AH81: 20.00000001 | AI81: 20 | AJ81: 20 | AK81: 20 | AL81: 20 | AM81: 20 | AN81: 20 | AO81: 20 | AP81: 20 | AQ81: 20 | AR81: 20 | AS81: 20 | AT81: 20 | AU81: 20 | AV81: 20 | AW81: 20.00000001 | AX81: 20.00000003 | AY81: 20.00000008 | AZ81: 20.00000026 | BA81: 20.00000076 | BB81: 20.00000217 | BC81: 20.00000592 | BD81: 20.00001556 | BE81: 20.00003934 | BF81: 20.00009573 | BG81: 20.00022435 | BH81: 20.00050652 | BI81: 20.00110217 | BJ81: 20.00231246 | BK81: 20.00468033 | BL81: 20.00914259 | BM81: 20.01724552 | BN81: 20.03142929 | BO81: 20.05537303 | BP81: 20.09437145 | BQ81: 20.15568843 | BR81: 20.24880833 | BS81: 20.38549012 | BT81: 20.57953355 | BU81: 20.84619639 | BV81: 21.20125903 | BW81: 21.65980848 | BX81: 22.2348908 | BY81: 22.93623734 | BZ81: 23.76928497
A82: 7.1 | B82: 71 | C82: 74.90036459 | D82: 62.8006151 | E82: 52.61648984 | F82: 44.26337301 | G82: 37.59713111 | H82: 32.42786215 | I82: 28.53766683 | J82: 25.69942248 | K82: 23.69374248 | L82: 22.32206351 | M82: 21.41485092 | N82: 20.8349507 | O82: 20.47690657 | P82: 20.26348651 | Q82: 20.14072954 | R82: 20.0726239 | S82: 20.03619269 | T82: 20.01741007 | U82: 20.00808016 | V82: 20.00361649 | W82: 20.00156034 | X82: 20.00064868 | Y82: 20.00025975 | Z82: 20.00010014 | AA82: 20.00003715 | AB82: 20.00001326 | AC82: 20.00000455 | AD82: 20.0000015 | AE82: 20.00000048 | AF82: 20.00000014 | AG82: 20.00000004 | AH82: 20.00000001 | AI82: 20 | AJ82: 20 | AK82: 20 | AL82: 20 | AM82: 20 | AN82: 20 | AO82: 20 | AP82: 20 | AQ82: 20 | AR82: 20 | AS82: 20 | AT82: 20 | AU82: 20 | AV82: 20 | AW82: 20.00000001 | AX82: 20.00000003 | AY82: 20.0000001 | AZ82: 20.00000032 | BA82: 20.00000093 | BB82: 20.00000259 | BC82: 20.00000699 | BD82: 20.00001812 | BE82: 20.00004525 | BF82: 20.00010882 | BG82: 20.00025217 | BH82: 20.00056329 | BI82: 20.00121341 | BJ82: 20.00252184 | BK82: 20.00505889 | BL82: 20.00980011 | BM82: 20.0183427 | BN82: 20.0331883 | BO82: 20.05808262 | BP82: 20.09838188 | BQ82: 20.16139182 | BR82: 20.25660159 | BS82: 20.39572136 | BT82: 20.5924375 | BU82: 20.86182947 | BV82: 21.21944803 | BW82: 21.68012696 | BX82: 22.25667363 | BY82: 22.95863594 | BZ82: 23.79135658
A83: 7.2 | B83: 72 | C83: 75.22292275 | D83: 63.12635903 | E83: 52.93226096 | F83: 44.55736767 | G83: 37.86012396 | H83: 32.65396226 | I83: 28.72451507 | J83: 25.84786628 | K83: 23.80712718 | L83: 22.40533307 | M83: 21.47364944 | N83: 20.87487107 | O83: 20.50296583 | P83: 20.27984164 | Q83: 20.15059798 | R83: 20.07834814 | S83: 20.03938444 | T83: 20.01912065 | U83: 20.00896123 | V83: 20.00405259 | W83: 20.00176774 | X83: 20.00074344 | Y83: 20.00030133 | Z83: 20.00011766 | AA83: 20.00004425 | AB83: 20.00001602 | AC83: 20.00000558 | AD83: 20.00000187 | AE83: 20.0000006 | AF83: 20.00000019 | AG83: 20.00000006 | AH83: 20.00000002 | AI83: 20 | AJ83: 20 | AK83: 20 | AL83: 20 | AM83: 20 | AN83: 20 | AO83: 20 | AP83: 20 | AQ83: 20 | AR83: 20 | AS83: 20 | AT83: 20 | AU83: 20 | AV83: 20 | AW83: 20.00000001 | AX83: 20.00000004 | AY83: 20.00000013 | AZ83: 20.00000039 | BA83: 20.00000112 | BB83: 20.00000309 | BC83: 20.00000821 | BD83: 20.00002102 | BE83: 20.00005186 | BF83: 20.00012328 | BG83: 20.00028256 | BH83: 20.00062467 | BI83: 20.00133254 | BJ83: 20.00274403 | BK83: 20.00545723 | BL83: 20.01048652 | BM83: 20.01947971 | BN83: 20.03499891 | BO83: 20.0608545 | BP83: 20.10246152 | BQ83: 20.16716439 | BR83: 20.26445404 | BS83: 20.40598986 | BT83: 20.60534485 | BU83: 20.87742272 | BV83: 21.23754976 | BW83: 21.70031361 | BX83: 22.27829046 | BY83: 22.98085109 | BZ83: 23.81324742
A84: 7.3 | B84: 73 | C84: 75.5429385 | D84: 63.44953542 | E84: 53.24571637 | F84: 44.84952732 | G84: 38.12190497 | H84: 32.87951277 | I84: 28.91141802 | J84: 25.99683969 | K84: 23.92135101 | L84: 22.48958519 | M84: 21.53343424 | N84: 20.91568299 | O84: 20.52976754 | P84: 20.29677345 | Q84: 20.16088736 | R84: 20.08436257 | S84: 20.04276577 | T84: 20.02094888 | U84: 20.0099118 | V84: 20.00452781 | W84: 20.00199615 | X84: 20.00084897 | Y84: 20.00034819 | Z84: 20.00013766 | AA84: 20.00005244 | AB84: 20.00001924 | AC84: 20.0000068 | AD84: 20.00000231 | AE84: 20.00000076 | AF84: 20.00000024 | AG84: 20.00000007 | AH84: 20.00000002 | AI84: 20.00000001 | AJ84: 20 | AK84: 20 | AL84: 20 | AM84: 20 | AN84: 20 | AO84: 20 | AP84: 20 | AQ84: 20 | AR84: 20 | AS84: 20 | AT84: 20 | AU84: 20 | AV84: 20.00000001 | AW84: 20.00000002 | AX84: 20.00000005 | AY84: 20.00000016 | AZ84: 20.00000047 | BA84: 20.00000134 | BB84: 20.00000366 | BC84: 20.0000096 | BD84: 20.00002429 | BE84: 20.00005921 | BF84: 20.0001392 | BG84: 20.00031567 | BH84: 20.00069088 | BI84: 20.00145985 | BJ84: 20.00297941 | BK84: 20.00587572 | BL84: 20.01120214 | BM84: 20.0206567 | BN84: 20.0368609 | BO84: 20.06368795 | BP84: 20.10660907 | BQ84: 20.17300429 | BR84: 20.27236347 | BS84: 20.41629343 | BT84: 20.61825388 | BU84: 20.89297539 | BV84: 21.25556479 | BW84: 21.72037038 | BX84: 22.29974444 | BY84: 23.00288655 | BZ84: 23.83496119
A85: 7.4 | B85: 74 | C85: 75.86046307 | D85: 63.77019604 | E85: 53.55689896 | F85: 45.13987886 | G85: 38.38248191 | H85: 33.10450342 | I85: 29.09835209 | J85: 26.14631236 | K85: 24.03638333 | L85: 22.57479394 | M85: 21.59418688 | N85: 20.9573761 | O85: 20.55730828 | P85: 20.31428345 | Q85: 20.17160201 | R85: 20.09067252 | S85: 20.04634179 | T85: 20.02289902 | U85: 20.01093505 | V85: 20.00504436 | W85: 20.00224698 | X85: 20.00096613 | Y85: 20.00040082 | Z85: 20.00016039 | AA85: 20.00006188 | AB85: 20.00002301 | AC85: 20.00000824 | AD85: 20.00000284 | AE85: 20.00000094 | AF85: 20.0000003 | AG85: 20.00000009 | AH85: 20.00000003 | AI85: 20.00000001 | AJ85: 20 | AK85: 20 | AL85: 20 | AM85: 20 | AN85: 20 | AO85: 20 | AP85: 20 | AQ85: 20 | AR85: 20 | AS85: 20 | AT85: 20 | AU85: 20 | AV85: 20.00000001 | AW85: 20.00000002 | AX85: 20.00000007 | AY85: 20.0000002 | AZ85: 20.00000058 | BA85: 20.00000161 | BB85: 20.00000432 | BC85: 20.00001119 | BD85: 20.00002796 | BE85: 20.00006738 | BF85: 20.00015668 | BG85: 20.00035166 | BH85: 20.00076216 | BI85: 20.00159563 | BJ85: 20.00322831 | BK85: 20.00631473 | BL85: 20.01194726 | BM85: 20.02187374 | BN85: 20.03877401 | BO85: 20.06658222 | BP85: 20.11082323 | BQ85: 20.1789097 | BR85: 20.28032775 | BS85: 20.42662996 | BT85: 20.63116299 | BU85: 20.90848679 | BV85: 21.27349369 | BW85: 21.74029921 | BX85: 22.32103858 | BY85: 23.02474595 | BZ85: 23.85650148
A86: 7.5 | B86: 75 | C86: 76.175546 | D86: 64.0883909 | E86: 53.86585027 | F86: 45.4284486 | G86: 38.64186271 | H86: 33.32892483 | I86: 29.28529492 | J86: 26.2962551 | K86: 24.15219438 | L86: 22.66093388 | M86: 21.65588904 | N86: 20.99993983 | O86: 20.58558425 | P86: 20.33237278 | Q86: 20.18274591 | R86: 20.09728309 | S86: 20.05011751 | T86: 20.0249753 | U86: 20.01203421 | V86: 20.00560448 | W86: 20.0025217 | X86: 20.0010958 | Y86: 20.00045971 | Z86: 20.00018612 | AA86: 20.0000727 | AB86: 20.00002738 | AC86: 20.00000994 | AD86: 20.00000348 | AE86: 20.00000117 | AF86: 20.00000038 | AG86: 20.00000012 | AH86: 20.00000004 | AI86: 20.00000001 | AJ86: 20 | AK86: 20 | AL86: 20 | AM86: 20 | AN86: 20 | AO86: 20 | AP86: 20 | AQ86: 20 | AR86: 20 | AS86: 20 | AT86: 20 | AU86: 20 | AV86: 20.00000001 | AW86: 20.00000003 | AX86: 20.00000008 | AY86: 20.00000024 | AZ86: 20.00000069 | BA86: 20.00000191 | BB86: 20.00000507 | BC86: 20.00001298 | BD86: 20.00003207 | BE86: 20.00007642 | BF86: 20.00017582 | BG86: 20.00039069 | BH86: 20.00083871 | BI86: 20.00174019 | BJ86: 20.00349109 | BK86: 20.00677461 | BL86: 20.01272215 | BM86: 20.02313092 | BN86: 20.04073798 | BO86: 20.06953659 | BP86: 20.11510271 | BQ86: 20.18487886 | BR86: 20.2883448 | BS86: 20.43699743 | BT86: 20.64407063 | BU86: 20.92395632 | BV86: 21.29133708 | BW86: 21.76010196 | BX86: 22.34217581 | BY86: 23.0464328 | BZ86: 23.87787174
A87: 7.6 | B87: 76 | C87: 76.48823517 | D87: 64.40416836 | E87: 54.17261061 | F87: 45.71526226 | G87: 38.90005553 | H87: 33.55276841 | I87: 29.47222527 | J87: 26.44663989 | K87: 24.26875534 | L87: 22.74798012 | M87: 21.71852252 | N87: 21.04336344 | O87: 20.61459134 | P87: 20.3510422 | Q87: 20.19432274 | R87: 20.10419917 | S87: 20.0540978 | T87: 20.0271819 | U87: 20.0132125 | V87: 20.00621045 | W87: 20.00282182 | X87: 20.00123892 | Y87: 20.00052542 | Z87: 20.00021517 | AA87: 20.00008505 | AB87: 20.00003244 | AC87: 20.00001194 | AD87: 20.00000423 | AE87: 20.00000145 | AF87: 20.00000048 | AG87: 20.00000015 | AH87: 20.00000005 | AI87: 20.00000001 | AJ87: 20 | AK87: 20 | AL87: 20 | AM87: 20 | AN87: 20 | AO87: 20 | AP87: 20 | AQ87: 20 | AR87: 20 | AS87: 20 | AT87: 20 | AU87: 20 | AV87: 20.00000001 | AW87: 20.00000003 | AX87: 20.0000001 | AY87: 20.0000003 | AZ87: 20.00000083 | BA87: 20.00000226 | BB87: 20.00000593 | BC87: 20.00001501 | BD87: 20.00003665 | BE87: 20.00008639 | BF87: 20.00019674 | BG87: 20.0004329 | BH87: 20.00092077 | BI87: 20.00189381 | BJ87: 20.00376808 | BK87: 20.0072557 | BL87: 20.01352706 | BM87: 20.02442827 | BN87: 20.0427525 | BO87: 20.07255028 | BP87: 20.11944625 | BQ87: 20.19091001 | BR87: 20.29641263 | BS87: 20.44739391 | BT87: 20.65697535 | BU87: 20.93938339 | BV87: 21.30909555 | BW87: 21.77978048 | BX87: 22.363159 | BY87: 23.06795051 | BZ87: 23.89907532
A88: 7.7 | B88: 77 | C88: 76.79857692 | D88: 64.71757521 | E88: 54.47721908 | F88: 46.00034503 | G88: 39.15706864 | H88: 33.77602631 | I88: 29.65912299 | J88: 26.5974398 | K88: 24.38603825 | L88: 22.83590828 | M88: 21.78206927 | N88: 21.08763604 | O88: 20.64432509 | P88: 20.37029209 | Q88: 20.20633586 | R88: 20.11142541 | S88: 20.05828741 | T88: 20.02952294 | U88: 20.01447311 | V88: 20.00686457 | W88: 20.00314885 | X88: 20.00139644 | Y88: 20.00059851 | Z88: 20.00024783 | AA88: 20.00009911 | AB88: 20.00003826 | AC88: 20.00001426 | AD88: 20.00000513 | AE88: 20.00000178 | AF88: 20.00000059 | AG88: 20.00000019 | AH88: 20.00000006 | AI88: 20.00000002 | AJ88: 20.00000001 | AK88: 20 | AL88: 20 | AM88: 20 | AN88: 20 | AO88: 20 | AP88: 20 | AQ88: 20 | AR88: 20 | AS88: 20 | AT88: 20 | AU88: 20 | AV88: 20.00000001 | AW88: 20.00000004 | AX88: 20.00000012 | AY88: 20.00000036 | AZ88: 20.000001 | BA88: 20.00000267 | BB88: 20.00000691 | BC88: 20.00001729 | BD88: 20.00004174 | BE88: 20.00009737 | BF88: 20.00021952 | BG88: 20.00047846 | BH88: 20.00100855 | BI88: 20.00205677 | BJ88: 20.00405961 | BK88: 20.00775831 | BL88: 20.01436222 | BM88: 20.02576582 | BN88: 20.04481726 | BO88: 20.07562253 | BP88: 20.12385256 | BQ88: 20.19700146 | BR88: 20.30452929 | BS88: 20.45781753 | BT88: 20.66987577 | BU88: 20.95476751 | BV88: 21.32676973 | BW88: 21.79933655 | BX88: 22.38399089 | BY88: 23.08930236 | BZ88: 23.92011546
A89: 7.8 | B89: 78 | C89: 77.10661608 | D89: 65.02865673 | E89: 54.77971361 | F89: 46.2837215 | G89: 39.41291047 | H89: 33.99869138 | I89: 29.84596893 | J89: 26.74862898 | K89: 24.504016 | L89: 22.92469448 | M89: 21.84651142 | N89: 21.13274661 | O89: 20.67478078 | P89: 20.39012251 | Q89: 20.21878832 | R89: 20.11896624 | S89: 20.06269094 | T89: 20.03200249 | U89: 20.01581929 | V89: 20.00756918 | W89: 20.00350438 | X89: 20.00156936 | Y89: 20.00067956 | Z89: 20.00028444 | AA89: 20.00011504 | AB89: 20.00004495 | AC89: 20.00001696 | AD89: 20.00000618 | AE89: 20.00000217 | AF89: 20.00000074 | AG89: 20.00000024 | AH89: 20.00000008 | AI89: 20.00000002 | AJ89: 20.00000001 | AK89: 20 | AL89: 20 | AM89: 20 | AN89: 20 | AO89: 20 | AP89: 20 | AQ89: 20 | AR89: 20 | AS89: 20 | AT89: 20 | AU89: 20.00000001 | AV89: 20.00000002 | AW89: 20.00000005 | AX89: 20.00000015 | AY89: 20.00000043 | AZ89: 20.00000118 | BA89: 20.00000314 | BB89: 20.00000803 | BC89: 20.00001984 | BD89: 20.00004739 | BE89: 20.00010942 | BF89: 20.0002443 | BG89: 20.00052754 | BH89: 20.00110228 | BI89: 20.00222936 | BJ89: 20.004366 | BK89: 20.00828276 | BL89: 20.01522784 | BM89: 20.02714357 | BN89: 20.04693191 | BO89: 20.07875256 | BP89: 20.1283204 | BQ89: 20.20315154 | BR89: 20.31269288 | BS89: 20.4682665 | BT89: 20.68277057 | BU89: 20.97010821 | BV89: 21.34436023 | BW89: 21.81877195 | BX89: 22.40467417 | BY89: 23.11049152 | BZ89: 23.9409953
A90: 7.9 | B90: 79 | C90: 77.41239605 | D90: 65.33745675 | E90: 55.08013105 | F90: 46.56541576 | G90: 39.66758954 | H90: 34.22075714 | I90: 30.03274493 | J90: 26.90018257 | K90: 24.62266232 | L90: 23.01431537 | M90: 21.91183123 | N90: 21.17868406 | O90: 20.70595342 | P90: 20.4105332 | Q90: 20.23168288 | R90: 20.12682588 | S90: 20.06731288 | T90: 20.03462456 | U90: 20.01725423 | V90: 20.00832664 | W90: 20.00389001 | X90: 20.00175869 | Y90: 20.0007692 | Z90: 20.00032536 | AA90: 20.00013305 | AB90: 20.00005258 | AC90: 20.00002008 | AD90: 20.00000741 | AE90: 20.00000264 | AF90: 20.00000091 | AG90: 20.0000003 | AH90: 20.0000001 | AI90: 20.00000003 | AJ90: 20.00000001 | AK90: 20 | AL90: 20 | AM90: 20 | AN90: 20 | AO90: 20 | AP90: 20 | AQ90: 20 | AR90: 20 | AS90: 20 | AT90: 20 | AU90: 20.00000001 | AV90: 20.00000002 | AW90: 20.00000006 | AX90: 20.00000018 | AY90: 20.00000052 | AZ90: 20.0000014 | BA90: 20.00000367 | BB90: 20.00000928 | BC90: 20.00002269 | BD90: 20.00005364 | BE90: 20.00012262 | BF90: 20.00027116 | BG90: 20.0005803 | BH90: 20.00120219 | BI90: 20.00241186 | BJ90: 20.00468755 | BK90: 20.00882933 | BL90: 20.0161241 | BM90: 20.02856147 | BN90: 20.0490961 | BO90: 20.08193959 | BP90: 20.13284853 | BQ90: 20.20935861 | BR90: 20.32090159 | BS90: 20.4787391 | BT90: 20.69565852 | BU90: 20.98540506 | BV90: 21.3618677 | BW90: 21.83808837 | BX90: 22.42521143 | BY90: 23.13152108 | BZ90: 23.96171786
A91: 8 | B91: 80 | C91: 77.71595889 | D91: 65.64401774 | E91: 55.37850714 | F91: 46.84545138 | G91: 39.92111448 | H91: 34.44221771 | I91: 30.21943374 | J91: 27.05207669 | K91: 24.74195174 | L91: 23.1047481 | M91: 21.97801118 | N91: 21.22543717 | O91: 20.73783774 | P91: 20.43152357 | Q91: 20.24502201 | R91: 20.13500833 | S91: 20.07215758 | T91: 20.03739311 | U91: 20.01878113 | V91: 20.0091393 | W91: 20.00430737 | X91: 20.0019655 | Y91: 20.00086807 | Z91: 20.00037095 | AA91: 20.00015333 | AB91: 20.00006128 | AC91: 20.00002368 | AD91: 20.00000884 | AE91: 20.00000319 | AF91: 20.00000111 | AG91: 20.00000037 | AH91: 20.00000012 | AI91: 20.00000004 | AJ91: 20.00000001 | AK91: 20 | AL91: 20 | AM91: 20 | AN91: 20 | AO91: 20 | AP91: 20 | AQ91: 20 | AR91: 20 | AS91: 20 | AT91: 20 | AU91: 20.00000001 | AV91: 20.00000003 | AW91: 20.00000008 | AX91: 20.00000022 | AY91: 20.00000062 | AZ91: 20.00000165 | BA91: 20.00000428 | BB91: 20.0000107 | BC91: 20.00002587 | BD91: 20.00006053 | BE91: 20.00013703 | BF91: 20.00030024 | BG91: 20.00063689 | BH91: 20.00130849 | BI91: 20.00260453 | BJ91: 20.00502457 | BK91: 20.00939829 | BL91: 20.01705117 | BM91: 20.0300195 | BN91: 20.05130946 | BO91: 20.08518283 | BP91: 20.13743572 | BQ91: 20.2156211 | BR91: 20.32915365 | BS91: 20.48923368 | BT91: 20.70853844 | BU91: 21.00065769 | BV91: 21.37929276 | BW91: 21.85728751 | BX91: 22.44560521 | BY91: 23.15239402 | BZ91: 23.98228608
A92: 8.1 | B92: 81 | C92: 78.01734534 | D92: 65.94838085 | E92: 55.67487665 | F92: 47.12385139 | G92: 40.17349399 | H92: 34.66306778 | I92: 30.40601898 | J92: 27.20428839 | K92: 24.86185956 | L92: 23.19597032 | M92: 22.04503394 | N92: 21.27299469 | O92: 20.77042828 | P92: 20.45309275 | Q92: 20.2588079 | R92: 20.14351736 | S92: 20.07722923 | T92: 20.04031202 | U92: 20.02040318 | V92: 20.01000956 | W92: 20.00475812 | X92: 20.00219087 | Y92: 20.00097683 | Z92: 20.0004216 | AA92: 20.00017609 | AB92: 20.00007115 | AC92: 20.00002781 | AD92: 20.00001051 | AE92: 20.00000384 | AF92: 20.00000135 | AG92: 20.00000046 | AH92: 20.00000015 | AI92: 20.00000005 | AJ92: 20.00000001 | AK92: 20 | AL92: 20 | AM92: 20 | AN92: 20 | AO92: 20 | AP92: 20 | AQ92: 20 | AR92: 20 | AS92: 20 | AT92: 20 | AU92: 20.00000001 | AV92: 20.00000003 | AW92: 20.00000009 | AX92: 20.00000027 | AY92: 20.00000073 | AZ92: 20.00000194 | BA92: 20.00000496 | BB92: 20.00001228 | BC92: 20.0000294 | BD92: 20.00006811 | BE92: 20.00015273 | BF92: 20.00033163 | BG92: 20.00069749 | BH92: 20.0014214 | BI92: 20.00280764 | BJ92: 20.00537735 | BK92: 20.0099899 | BL92: 20.01800919 | BM92: 20.03151757 | BN92: 20.05357159 | BO92: 20.08848148 | BP92: 20.14208075 | BQ92: 20.22193743 | BR92: 20.33744734 | BS92: 20.49974866 | BT92: 20.7214092 | BU92: 21.01586576 | BV92: 21.39663607 | BW92: 21.876371 | BX92: 22.46585795 | BY92: 23.17311323 | BZ92: 24.00270282
A93: 8.2 | B93: 82 | C93: 78.31659489 | D93: 66.25058595 | E93: 55.96927332 | F93: 47.40063836 | G93: 40.42473681 | H93: 34.88330258 | I93: 30.5924851 | J93: 27.3567956 | K93: 24.98236186 | L93: 23.28796019 | M93: 22.11288237 | N93: 21.32134531 | O93: 20.80371934 | P93: 20.47523958 | Q93: 20.27304248 | R93: 20.15235654 | S93: 20.08253191 | T93: 20.04338509 | U93: 20.02212353 | V93: 20.01093981 | W93: 20.00524396 | X93: 20.00243591 | Y93: 20.00109617 | Z93: 20.00047773 | AA93: 20.00020158 | AB93: 20.00008232 | AC93: 20.00003253 | AD93: 20.00001243 | AE93: 20.0000046 | AF93: 20.00000164 | AG93: 20.00000057 | AH93: 20.00000019 | AI93: 20.00000006 | AJ93: 20.00000002 | AK93: 20.00000001 | AL93: 20 | AM93: 20 | AN93: 20 | AO93: 20 | AP93: 20 | AQ93: 20 | AR93: 20 | AS93: 20 | AT93: 20 | AU93: 20.00000001 | AV93: 20.00000004 | AW93: 20.00000011 | AX93: 20.00000032 | AY93: 20.00000087 | AZ93: 20.00000227 | BA93: 20.00000574 | BB93: 20.00001406 | BC93: 20.00003331 | BD93: 20.00007643 | BE93: 20.0001698 | BF93: 20.00036547 | BG93: 20.00076227 | BH93: 20.00154115 | BI93: 20.00302147 | BJ93: 20.00574617 | BK93: 20.01060441 | BL93: 20.0189983 | BM93: 20.0330556 | BN93: 20.05588209 | BO93: 20.09183475 | BP93: 20.14678242 | BQ93: 20.22830608 | BR93: 20.34578099 | BS93: 20.5102825 | BT93: 20.73426974 | BU93: 21.03102897 | BV93: 21.41389827 | BW93: 21.89534045 | BX93: 22.48597204 | BY93: 23.1936815 | BZ93: 24.02297082
A94: 8.3 | B94: 83 | C94: 78.61374584 | D94: 66.55067173 | E94: 56.26172999 | F94: 47.67583435 | G94: 40.67485176 | H94: 35.10291784 | I94: 30.77881733 | J94: 27.50957713 | K94: 25.10343543 | L94: 23.38069635 | M94: 22.18153954 | N94: 21.37047769 | O94: 20.83770504 | P94: 20.49796266 | Q94: 20.2877274 | R94: 20.16152922 | S94: 20.08806955 | T94: 20.04661607 | U94: 20.02394533 | V94: 20.01193246 | W94: 20.00576658 | X94: 20.00270176 | Y94: 20.00122682 | Z94: 20.00053975 | AA94: 20.00023001 | AB94: 20.00009492 | AC94: 20.00003792 | AD94: 20.00001466 | AE94: 20.00000548 | AF94: 20.00000198 | AG94: 20.00000069 | AH94: 20.00000023 | AI94: 20.00000008 | AJ94: 20.00000002 | AK94: 20.00000001 | AL94: 20 | AM94: 20 | AN94: 20 | AO94: 20 | AP94: 20 | AQ94: 20 | AR94: 20 | AS94: 20 | AT94: 20.00000001 | AU94: 20.00000002 | AV94: 20.00000005 | AW94: 20.00000014 | AX94: 20.00000038 | AY94: 20.00000102 | AZ94: 20.00000265 | BA94: 20.00000662 | BB94: 20.00001604 | BC94: 20.00003764 | BD94: 20.00008553 | BE94: 20.00018832 | BF94: 20.00040187 | BG94: 20.00083138 | BH94: 20.00166795 | BI94: 20.00324627 | BJ94: 20.00613129 | BK94: 20.01124205 | BL94: 20.0200186 | BM94: 20.03463348 | BN94: 20.05824054 | BO94: 20.09524184 | BP94: 20.15153956 | BQ94: 20.23472556 | BR94: 20.35415299 | BS94: 20.52083376 | BT94: 20.74711907 | BU94: 21.04614705 | BV94: 21.43108 | BW94: 21.91419744 | BX94: 22.5059498 | BY94: 23.21410156 | BZ94: 24.04309277
A95: 8.4 | B95: 84 | C95: 78.90883536 | D95: 66.84867571 | E95: 56.55227856 | F95: 47.94946097 | G95: 40.92384766 | H95: 35.32190976 | I95: 30.96500164 | J95: 27.66261258 | K95: 25.22505778 | L95: 23.47415792 | M95: 22.25098876 | N95: 21.42038047 | O95: 20.87237931 | P95: 20.5212603 | Q95: 20.30286407 | R95: 20.17103856 | S95: 20.09384593 | T95: 20.05000862 | U95: 20.02587169 | V95: 20.01298992 | W95: 20.00632772 | X95: 20.00298959 | Y95: 20.00136952 | Z95: 20.00060812 | AA95: 20.00026167 | AB95: 20.00010908 | AC95: 20.00004404 | AD95: 20.00001721 | AE95: 20.00000651 | AF95: 20.00000238 | AG95: 20.00000084 | AH95: 20.00000029 | AI95: 20.0000001 | AJ95: 20.00000003 | AK95: 20.00000001 | AL95: 20 | AM95: 20 | AN95: 20 | AO95: 20 | AP95: 20 | AQ95: 20 | AR95: 20 | AS95: 20 | AT95: 20.00000001 | AU95: 20.00000002 | AV95: 20.00000006 | AW95: 20.00000017 | AX95: 20.00000045 | AY95: 20.0000012 | AZ95: 20.00000307 | BA95: 20.00000761 | BB95: 20.00001825 | BC95: 20.0000424 | BD95: 20.00009548 | BE95: 20.00020838 | BF95: 20.00044095 | BG95: 20.000905 | BH95: 20.00180202 | BI95: 20.00348228 | BJ95: 20.00653298 | BK95: 20.01190302 | BL95: 20.02107018 | BM95: 20.03625109 | BN95: 20.0606465 | BO95: 20.09870196 | BP95: 20.15635098 | BQ95: 20.24119442 | BR95: 20.36256179 | BS95: 20.53140102 | BT95: 20.75995622 | BU95: 21.06121976 | BV95: 21.44818192 | BW95: 21.93294351 | BX95: 22.52579348 | BY95: 23.23437603 | BZ95: 24.06307127
A96: 8.5 | B96: 85 | C96: 79.2018995 | D96: 67.14463431 | E96: 56.84095007 | F96: 48.22153935 | G96: 41.17173337 | H96: 35.54027499 | I96: 31.15102474 | J96: 27.81588236 | K96: 25.3472071 | L96: 23.5683245 | M96: 22.32121354 | N96: 21.4710423 | O96: 20.90773595 | P96: 20.5451306 | Q96: 20.31845366 | R96: 20.18088751 | S96: 20.09986469 | T96: 20.05356632 | U96: 20.0279057 | V96: 20.0141146 | W96: 20.00692914 | X96: 20.00330058 | Y96: 20.00152502 | Z96: 20.00068329 | AA96: 20.0002968 | AB96: 20.00012495 | AC96: 20.00005097 | AD96: 20.00002014 | AE96: 20.0000077 | AF96: 20.00000285 | AG96: 20.00000102 | AH96: 20.00000035 | AI96: 20.00000012 | AJ96: 20.00000004 | AK96: 20.00000001 | AL96: 20 | AM96: 20 | AN96: 20 | AO96: 20 | AP96: 20 | AQ96: 20 | AR96: 20 | AS96: 20 | AT96: 20.00000001 | AU96: 20.00000002 | AV96: 20.00000007 | AW96: 20.0000002 | AX96: 20.00000054 | AY96: 20.0000014 | AZ96: 20.00000356 | BA96: 20.00000871 | BB96: 20.0000207 | BC96: 20.00004764 | BD96: 20.00010631 | BE96: 20.00023004 | BF96: 20.00048283 | BG96: 20.00098329 | BH96: 20.00194356 | BI96: 20.00372977 | BJ96: 20.00695149 | BK96: 20.01258754 | BL96: 20.02215311 | BM96: 20.0379083 | BN96: 20.06309955 | BO96: 20.1022143 | BP96: 20.16121554 | BQ96: 20.24771123 | BR96: 20.37100587 | BS96: 20.54198292 | BT96: 20.77278029 | BU96: 21.07624691 | BV96: 21.46520468 | BW96: 21.95158016 | BX96: 22.54550528 | BY96: 23.25450748 | BZ96: 24.08290883
A97: 8.6 | B97: 86 | C97: 79.49297326 | D97: 67.43858288 | E97: 57.12777472 | F97: 48.49209019 | G97: 41.41851774 | H97: 35.75801058 | I97: 31.33687398 | J97: 27.96936762 | K97: 25.46986228 | L97: 23.66317616 | M97: 22.39219762 | N97: 21.52245182 | O97: 20.94376856 | P97: 20.56957143 | Q97: 20.33449709 | R97: 20.1910788 | S97: 20.10612935 | T97: 20.05729267 | U97: 20.03005041 | V97: 20.01530893 | W97: 20.0075726 | X97: 20.00363596 | Y97: 20.00169411 | Z97: 20.00076575 | AA97: 20.00033569 | AB97: 20.00014269 | AC97: 20.00005879 | AD97: 20.00002347 | AE97: 20.00000908 | AF97: 20.0000034 | AG97: 20.00000123 | AH97: 20.00000043 | AI97: 20.00000015 | AJ97: 20.00000005 | AK97: 20.00000002 | AL97: 20 | AM97: 20 | AN97: 20 | AO97: 20 | AP97: 20 | AQ97: 20 | AR97: 20 | AS97: 20 | AT97: 20.00000001 | AU97: 20.00000003 | AV97: 20.00000009 | AW97: 20.00000024 | AX97: 20.00000063 | AY97: 20.00000164 | AZ97: 20.0000041 | BA97: 20.00000995 | BB97: 20.00002341 | BC97: 20.00005339 | BD97: 20.00011809 | BE97: 20.0002534 | BF97: 20.00052763 | BG97: 20.00106643 | BH97: 20.0020928 | BI97: 20.00398896 | BJ97: 20.00738706 | BK97: 20.01329578 | BL97: 20.02326747 | BM97: 20.03960493 | BN97: 20.06559922 | BO97: 20.10577806 | BP97: 20.1661321 | BQ97: 20.25427461 | BR97: 20.37948377 | BS97: 20.55257818 | BT97: 20.78559042 | BU97: 21.0912283 | BV97: 21.48214892 | BW97: 21.97010886 | BX97: 22.56508731 | BY97: 23.27449838 | BZ97: 24.1026079
A98: 8.7 | B98: 87 | C98: 79.78209066 | D98: 67.73055575 | E98: 57.41278191 | F98: 48.76113376 | G98: 41.66420964 | H98: 35.97511396 | I98: 31.52253737 | J98: 28.12305024 | K98: 25.5930028 | L98: 23.75869343 | M98: 22.46392499 | N98: 21.57459769 | O98: 20.98047067 | P98: 20.59458044 | Q98: 20.35099507 | R98: 20.201615 | S98: 20.11264327 | T98: 20.06119109 | U98: 20.03230882 | V98: 20.01657531 | W98: 20.00825989 | X98: 20.00399696 | Y98: 20.0018776 | Z98: 20.00085601 | AA98: 20.00037864 | AB98: 20.00016246 | AC98: 20.0000676 | AD98: 20.00002727 | AE98: 20.00001066 | AF98: 20.00000404 | AG98: 20.00000148 | AH98: 20.00000053 | AI98: 20.00000018 | AJ98: 20.00000006 | AK98: 20.00000002 | AL98: 20.00000001 | AM98: 20 | AN98: 20 | AO98: 20 | AP98: 20 | AQ98: 20 | AR98: 20 | AS98: 20 | AT98: 20.00000001 | AU98: 20.00000004 | AV98: 20.0000001 | AW98: 20.00000028 | AX98: 20.00000074 | AY98: 20.0000019 | AZ98: 20.00000471 | BA98: 20.00001133 | BB98: 20.0000264 | BC98: 20.00005968 | BD98: 20.00013087 | BE98: 20.00027854 | BF98: 20.00057549 | BG98: 20.00115457 | BH98: 20.00224994 | BI98: 20.0042601 | BJ98: 20.00783991 | BK98: 20.01402793 | BL98: 20.02441328 | BM98: 20.04134082 | BN98: 20.06814506 | BO98: 20.10939245 | BP98: 20.17109953 | BQ98: 20.2608832 | BR98: 20.38799405 | BS98: 20.56318553 | BT98: 20.79838579 | BU98: 21.1061638 | BV98: 21.4990153 | BW98: 21.98853107 | BX98: 22.58454167 | BY98: 23.29435116 | BZ98: 24.12217085
A99: 8.8 | B99: 88 | C99: 80.06928471 | D99: 68.02058629 | E99: 57.69600025 | F99: 49.02868988 | G99: 41.90881792 | H99: 36.19158295 | I99: 31.70800352 | J99: 28.27691279 | K99: 25.71660882 | L99: 23.85485729 | M99: 22.53637985 | N99: 21.62746863 | O99: 21.01783563 | P99: 20.62015508 | Q99: 20.36794808 | R99: 20.21249846 | S99: 20.11940967 | T99: 20.06526493 | U99: 20.03468393 | V99: 20.01791615 | W99: 20.00899281 | X99: 20.00438484 | Y99: 20.00207633 | Z99: 20.00095457 | AA99: 20.00042596 | AB99: 20.00018445 | AC99: 20.00007748 | AD99: 20.00003157 | AE99: 20.00001247 | AF99: 20.00000478 | AG99: 20.00000177 | AH99: 20.00000064 | AI99: 20.00000022 | AJ99: 20.00000007 | AK99: 20.00000002 | AL99: 20.00000001 | AM99: 20 | AN99: 20 | AO99: 20 | AP99: 20 | AQ99: 20 | AR99: 20 | AS99: 20.00000001 | AT99: 20.00000002 | AU99: 20.00000004 | AV99: 20.00000012 | AW99: 20.00000033 | AX99: 20.00000087 | AY99: 20.0000022 | AZ99: 20.0000054 | BA99: 20.00001286 | BB99: 20.0000297 | BC99: 20.00006654 | BD99: 20.00014472 | BE99: 20.00030555 | BF99: 20.00062651 | BG99: 20.00124789 | BH99: 20.00241518 | BI99: 20.00454342 | BJ99: 20.00831028 | BK99: 20.01478413 | BL99: 20.02559058 | BM99: 20.0431158 | BN99: 20.07073659 | BO99: 20.11305668 | BP99: 20.17611674 | BQ99: 20.26753568 | BR99: 20.39653535 | BS99: 20.57380379 | BT99: 20.81116564 | BU99: 21.12105328 | BV99: 21.51580446 | BW99: 22.00684818 | BX99: 22.60387036 | BY99: 23.31406814 | BZ99: 24.14159999
A100: 8.9 | B100: 89 | C100: 80.35458753 | D100: 68.30870691 | E100: 57.97745761 | F100: 49.29477799 | G100: 42.15235143 | H100: 36.40741568 | I100: 31.89326161 | J100: 28.43093851 | K100: 25.84066109 | L100: 23.95164917 | M100: 22.60954666 | N100: 21.68105337 | O100: 21.05585674 | P100: 20.64629263 | Q100: 20.3853564 | R100: 20.22373137 | S100: 20.12643165 | T100: 20.06951741 | U100: 20.03717867 | V100: 20.01933384 | W100: 20.00977317 | X100: 20.00480087 | Y100: 20.00229115 | Z100: 20.00106198 | AA100: 20.00047797 | AB100: 20.00020883 | AC100: 20.00008855 | AD100: 20.00003643 | AE100: 20.00001454 | AF100: 20.00000563 | AG100: 20.00000211 | AH100: 20.00000077 | AI100: 20.00000027 | AJ100: 20.00000009 | AK100: 20.00000003 | AL100: 20.00000001 | AM100: 20 | AN100: 20 | AO100: 20 | AP100: 20 | AQ100: 20 | AR100: 20 | AS100: 20.00000001 | AT100: 20.00000002 | AU100: 20.00000005 | AV100: 20.00000015 | AW100: 20.00000039 | AX100: 20.00000101 | AY100: 20.00000254 | AZ100: 20.00000618 | BA100: 20.00001456 | BB100: 20.00003332 | BC100: 20.00007403 | BD100: 20.00015968 | BE100: 20.00033452 | BF100: 20.00068084 | BG100: 20.00134655 | BH100: 20.00258873 | BI100: 20.00483913 | BJ100: 20.00879837 | BK100: 20.01556454 | BL100: 20.02679938 | BM100: 20.04492965 | BN100: 20.07337335 | BO100: 20.11676996 | BP100: 20.18118264 | BQ100: 20.27423075 | BR100: 20.40510634 | BS100: 20.58443179 | BT100: 20.82392923 | BU100: 21.13589663 | BV100: 21.53251704 | BW100: 22.0250616 | BX100: 22.62307536 | BY100: 23.33365161 | BZ100: 24.16089758
A101: 9 | B101: 90 | C101: 80.6380303 | D101: 68.59494912 | E101: 58.25718112 | F101: 49.5594171 | G101: 42.39481896 | H101: 36.62261063 | I101: 32.0783014 | J101: 28.58511127 | K101: 25.96514092 | L101: 24.04905093 | M101: 22.68341011 | N101: 21.7353407 | O101: 21.09452716 | P101: 20.67299016 | Q101: 20.40322009 | R101: 20.23531572 | S101: 20.13371215 | T101: 20.07395171 | U101: 20.03979592 | V101: 20.02083078 | W101: 20.01060278 | X101: 20.00524636 | Y101: 20.00252291 | Z101: 20.0011788 | AA101: 20.000535 | AB101: 20.0002358 | AC101: 20.0001009 | AD101: 20.00004191 | AE101: 20.00001689 | AF101: 20.00000661 | AG101: 20.00000251 | AH101: 20.00000092 | AI101: 20.00000033 | AJ101: 20.00000011 | AK101: 20.00000004 | AL101: 20.00000001 | AM101: 20 | AN101: 20 | AO101: 20 | AP101: 20 | AQ101: 20 | AR101: 20 | AS101: 20.00000001 | AT101: 20.00000002 | AU101: 20.00000006 | AV101: 20.00000017 | AW101: 20.00000046 | AX101: 20.00000118 | AY101: 20.00000292 | AZ101: 20.00000704 | BA101: 20.00001644 | BB101: 20.0000373 | BC101: 20.00008217 | BD101: 20.00017582 | BE101: 20.00036554 | BF101: 20.00073859 | BG101: 20.00145072 | BH101: 20.00277079 | BI101: 20.00514747 | BJ101: 20.00930438 | BK101: 20.01636929 | BL101: 20.02803968 | BM101: 20.04678217 | BN101: 20.07605484 | BO101: 20.12053149 | BP101: 20.18629616 | BQ101: 20.28096714 | BR101: 20.4137057 | BS101: 20.59506842 | BT101: 20.83667587 | BU101: 21.15069377 | BV101: 21.5491537 | BW101: 22.04317266 | BX101: 22.64215859 | BY101: 23.35310378 | BZ101: 24.18006577
A102: 9.1 | B102: 91 | C102: 80.91964338 | D102: 68.87934357 | E102: 58.53519724 | F102: 49.82262586 | G102: 42.63622931 | H102: 36.83716653 | I102: 32.26311314 | J102: 28.73941556 | K102: 26.09003023 | L102: 24.14704486 | M102: 22.75795512 | N102: 21.79031947 | O102: 21.13383999 | P102: 20.70024461 | Q102: 20.42153904 | R102: 20.24725332 | S102: 20.14125397 | T102: 20.07857089 | U102: 20.04253855 | V102: 20.02240934 | W102: 20.01148348 | X102: 20.00572262 | Y102: 20.00277253 | Z102: 20.00130559 | AA102: 20.00059741 | AB102: 20.00026557 | AC102: 20.00011466 | AD102: 20.00004807 | AE102: 20.00001956 | AF102: 20.00000773 | AG102: 20.00000296 | AH102: 20.0000011 | AI102: 20.0000004 | AJ102: 20.00000014 | AK102: 20.00000005 | AL102: 20.00000002 | AM102: 20 | AN102: 20 | AO102: 20 | AP102: 20 | AQ102: 20 | AR102: 20 | AS102: 20.00000001 | AT102: 20.00000003 | AU102: 20.00000008 | AV102: 20.00000021 | AW102: 20.00000054 | AX102: 20.00000136 | AY102: 20.00000335 | AZ102: 20.000008 | BA102: 20.00001852 | BB102: 20.00004165 | BC102: 20.000091 | BD102: 20.00019321 | BE102: 20.0003987 | BF102: 20.00079989 | BG102: 20.00156055 | BH102: 20.00296156 | BI102: 20.00546863 | BJ102: 20.00982852 | BK102: 20.01719851 | BL102: 20.02931146 | BM102: 20.04867314 | BN102: 20.07878059 | BO102: 20.1243405 | BP102: 20.19145624 | BQ102: 20.28774363 | BR102: 20.42233221 | BS102: 20.60571263 | BT102: 20.84940489 | BU102: 21.16544465 | BV102: 21.56571508 | BW102: 22.0611827 | BX102: 22.6611219 | BY102: 23.3724268 | BZ102: 24.1991067
A103: 9.2 | B103: 92 | C103: 81.1994563 | D103: 69.16192006 | E103: 58.81153174 | F103: 50.08442252 | G103: 42.87659122 | H103: 37.05108244 | I103: 32.44768762 | J103: 28.89383646 | K103: 26.21531146 | L103: 24.24561367 | M103: 22.83316686 | N103: 21.84597859 | O103: 21.17378826 | P103: 20.72805272 | Q103: 20.44031295 | R103: 20.25954583 | S103: 20.14905981 | T103: 20.08337795 | U103: 20.04540935 | V103: 20.02407189 | W103: 20.0124171 | X103: 20.00623097 | Y103: 20.0030409 | Z103: 20.00144294 | AA103: 20.00066557 | AB103: 20.00029835 | AC103: 20.00012994 | AD103: 20.00005497 | AE103: 20.00002259 | AF103: 20.00000901 | AG103: 20.00000349 | AH103: 20.00000131 | AI103: 20.00000048 | AJ103: 20.00000017 | AK103: 20.00000006 | AL103: 20.00000002 | AM103: 20.00000001 | AN103: 20 | AO103: 20 | AP103: 20 | AQ103: 20 | AR103: 20 | AS103: 20.00000001 | AT103: 20.00000003 | AU103: 20.00000009 | AV103: 20.00000024 | AW103: 20.00000063 | AX103: 20.00000158 | AY103: 20.00000383 | AZ103: 20.00000906 | BA103: 20.0000208 | BB103: 20.0000464 | BC103: 20.00010057 | BD103: 20.0002119 | BE103: 20.00043409 | BF103: 20.00086487 | BG103: 20.00167623 | BH103: 20.00316122 | BI103: 20.00580282 | BJ103: 20.01037095 | BK103: 20.01805229 | BL103: 20.0306147 | BM103: 20.05060233 | BN103: 20.08155009 | BO103: 20.1281962 | BP103: 20.19666185 | BQ103: 20.29455902 | BR103: 20.43098463 | BS103: 20.61636338 | BT103: 20.86211568 | BU103: 21.18014922 | BV103: 21.5822018 | BW103: 22.07909302 | BX103: 22.67996712 | BY103: 23.39162276 | BZ103: 24.21802243
A104: 9.3 | B104: 93 | C104: 81.47749776 | D104: 69.44270761 | E104: 59.08620975 | F104: 50.34482495 | G104: 43.1159134 | H104: 37.26435765 | I104: 32.63201605 | J104: 29.04835961 | K104: 26.34096761 | L104: 24.34474048 | M104: 22.90903074 | N104: 21.90230706 | O104: 21.21436491 | P104: 20.75641114 | Q104: 20.45954132 | R104: 20.27219472 | S104: 20.1571322 | T104: 20.08837576 | U104: 20.04841107 | V104: 20.02582075 | W104: 20.01340546 | X104: 20.00677276 | Y104: 20.00332895 | Z104: 20.00159147 | AA104: 20.00073984 | AB104: 20.00033436 | AC104: 20.00014687 | AD104: 20.00006269 | AE104: 20.000026 | AF104: 20.00001047 | AG104: 20.0000041 | AH104: 20.00000156 | AI104: 20.00000057 | AJ104: 20.00000021 | AK104: 20.00000007 | AL104: 20.00000002 | AM104: 20.00000001 | AN104: 20 | AO104: 20 | AP104: 20 | AQ104: 20 | AR104: 20 | AS104: 20.00000001 | AT104: 20.00000004 | AU104: 20.00000011 | AV104: 20.00000029 | AW104: 20.00000073 | AX104: 20.00000181 | AY104: 20.00000437 | AZ104: 20.00001024 | BA104: 20.00002331 | BB104: 20.00005157 | BC104: 20.00011091 | BD104: 20.00023196 | BE104: 20.00047181 | BF104: 20.00093365 | BG104: 20.0017979 | BH104: 20.00336997 | BI104: 20.00615025 | BJ104: 20.01093185 | BK104: 20.01893075 | BL104: 20.03194936 | BM104: 20.0525695 | BN104: 20.08436286 | BO104: 20.13209784 | BP104: 20.20191197 | BQ104: 20.30141212 | BR104: 20.43966179 | BS104: 20.62701969 | BT104: 20.87480765 | BU104: 21.19480746 | BV104: 21.59861451 | BW104: 22.09690489 | BX104: 22.69869603 | BY104: 23.4106937 | BZ104: 24.23681496
A105: 9.4 | B105: 94 | C105: 81.75379573 | D105: 69.72173445 | E105: 59.35925577 | F105: 50.60385067 | G105: 43.3542045 | H105: 37.47699171 | I105: 32.81609015 | J105: 29.20297121 | K105: 26.46698217 | L105: 24.44440881 | M105: 22.98553243 | N105: 21.95929393 | O105: 21.25556287 | P105: 20.78531632 | Q105: 20.47922351 | R105: 20.2852013 | S105: 20.16547355 | T105: 20.09356713 | U105: 20.05154642 | V105: 20.02765827 | W105: 20.01445042 | X105: 20.00734935 | Y105: 20.00363763 | Z105: 20.0017518 | AA105: 20.00082062 | AB105: 20.00037384 | AC105: 20.00016559 | AD105: 20.0000713 | AE105: 20.00002984 | AF105: 20.00001213 | AG105: 20.00000479 | AH105: 20.00000184 | AI105: 20.00000068 | AJ105: 20.00000025 | AK105: 20.00000009 | AL105: 20.00000003 | AM105: 20.00000001 | AN105: 20 | AO105: 20 | AP105: 20 | AQ105: 20 | AR105: 20.00000001 | AS105: 20.00000002 | AT105: 20.00000005 | AU105: 20.00000013 | AV105: 20.00000033 | AW105: 20.00000085 | AX105: 20.00000208 | AY105: 20.00000497 | AZ105: 20.00001155 | BA105: 20.00002606 | BB105: 20.0000572 | BC105: 20.00012208 | BD105: 20.00025345 | BE105: 20.00051195 | BF105: 20.00100637 | BG105: 20.00192572 | BH105: 20.003588 | BI105: 20.0065111 | BJ105: 20.01151139 | BK105: 20.01983397 | BL105: 20.03331539 | BM105: 20.05457439 | BN105: 20.08721839 | BO105: 20.13604463 | BP105: 20.20720559 | BQ105: 20.3083018 | BR105: 20.44836254 | BS105: 20.6376806 | BT105: 20.88748024 | BU105: 21.20941935 | BV105: 21.61495383 | BW105: 22.11461956 | BX105: 22.71731035 | BY105: 23.4296416 | BZ105: 24.25548625
A106: 9.5 | B106: 95 | C106: 82.02837743 | D106: 69.99902807 | E106: 59.63069369 | F106: 50.86151687 | G106: 43.59147313 | H106: 37.6889844 | I106: 32.99990203 | J106: 29.35765794 | K106: 26.59333916 | L106: 24.54460257 | M106: 23.0626578 | N106: 22.01692836 | O106: 21.29737499 | P106: 20.81476464 | Q106: 20.4993587 | R106: 20.29856672 | S106: 20.17408615 | T106: 20.09895478 | U106: 20.05481805 | V106: 20.02958674 | W106: 20.0155538 | X106: 20.0079621 | Y106: 20.0039679 | Z106: 20.00192456 | AA106: 20.00090832 | AB106: 20.00041704 | AC106: 20.00018624 | AD106: 20.00008087 | AE106: 20.00003414 | AF106: 20.00001401 | AG106: 20.00000559 | AH106: 20.00000216 | AI106: 20.00000081 | AJ106: 20.0000003 | AK106: 20.00000011 | AL106: 20.00000004 | AM106: 20.00000001 | AN106: 20 | AO106: 20 | AP106: 20 | AQ106: 20 | AR106: 20.00000001 | AS106: 20.00000002 | AT106: 20.00000006 | AU106: 20.00000015 | AV106: 20.00000039 | AW106: 20.00000098 | AX106: 20.00000238 | AY106: 20.00000564 | AZ106: 20.00001298 | BA106: 20.00002907 | BB106: 20.00006331 | BC106: 20.00013411 | BD106: 20.00027644 | BE106: 20.0005546 | BF106: 20.00108315 | BG106: 20.00205987 | BH106: 20.00381549 | BI106: 20.00688556 | BJ106: 20.01210972 | BK106: 20.02076202 | BL106: 20.03471272 | BM106: 20.05661674 | BN106: 20.09011618 | BO106: 20.14003582 | BP106: 20.21254175 | BQ106: 20.31522693 | BR106: 20.45708579 | BS106: 20.64834522 | BT106: 20.90013291 | BU106: 21.22398492 | BV106: 21.6312204 | BW106: 22.13223824 | BX106: 22.73581176 | BY106: 23.4484684 | BZ106: 24.2740382
A107: 9.6 | B107: 96 | C107: 82.30126937 | D107: 70.27461524 | E107: 59.90054684 | F107: 51.11784036 | G107: 43.82772786 | H107: 37.9003357 | I107: 33.18344423 | J107: 29.51240704 | K107: 26.72002305 | L107: 24.64530607 | M107: 23.14039299 | N107: 22.07519958 | O107: 21.33979409 | P107: 20.84475232 | Q107: 20.51994591 | R107: 20.312292 | S107: 20.18297215 | T107: 20.10454132 | U107: 20.05822855 | V107: 20.03160844 | W107: 20.01671745 | X107: 20.0086124 | Y107: 20.00432073 | Z107: 20.0021104 | AA107: 20.00100335 | AB107: 20.00046421 | AC107: 20.00020896 | AD107: 20.0000915 | AE107: 20.00003896 | AF107: 20.00001613 | AG107: 20.00000649 | AH107: 20.00000254 | AI107: 20.00000097 | AJ107: 20.00000036 | AK107: 20.00000013 | AL107: 20.00000004 | AM107: 20.00000002 | AN107: 20.00000001 | AO107: 20 | AP107: 20 | AQ107: 20 | AR107: 20.00000001 | AS107: 20.00000002 | AT107: 20.00000007 | AU107: 20.00000018 | AV107: 20.00000045 | AW107: 20.00000113 | AX107: 20.00000272 | AY107: 20.00000638 | AZ107: 20.00001457 | BA107: 20.00003236 | BB107: 20.00006993 | BC107: 20.00014705 | BD107: 20.00030101 | BE107: 20.00059986 | BF107: 20.00116411 | BG107: 20.00220048 | BH107: 20.00405261 | BI107: 20.00727381 | BJ107: 20.012727 | BK107: 20.02171496 | BL107: 20.03614128 | BM107: 20.05869629 | BN107: 20.09305572 | BO107: 20.14407065 | BP107: 20.21791945 | BQ107: 20.32218643 | BR107: 20.46583046 | BS107: 20.65901265 | BT107: 20.91276517 | BU107: 21.23850418 | BV107: 21.64741483 | BW107: 22.14976215 | BX107: 22.75420192 | BY107: 23.46717596 | BZ107: 24.29247266
A108: 9.7 | B108: 97 | C108: 82.57249738 | D108: 70.54852205 | E108: 60.16883795 | F108: 51.37283763 | G108: 44.06297716 | H108: 38.1110458 | I108: 33.36670967 | J108: 29.66720617 | K108: 26.8470188 | L108: 24.74650397 | M108: 23.21872438 | N108: 22.13409692 | O108: 21.38281298 | P108: 20.8752755 | Q108: 20.54098402 | R108: 20.32637797 | S108: 20.19213357 | T108: 20.11032928 | U108: 20.06178047 | V108: 20.03372563 | W108: 20.0179432 | X108: 20.00930163 | Y108: 20.00469711 | Z108: 20.00231001 | AA108: 20.00110614 | AB108: 20.00051561 | AC108: 20.00023392 | AD108: 20.00010326 | AE108: 20.00004435 | AF108: 20.00001852 | AG108: 20.00000752 | AH108: 20.00000297 | AI108: 20.00000114 | AJ108: 20.00000043 | AK108: 20.00000015 | AL108: 20.00000005 | AM108: 20.00000002 | AN108: 20.00000001 | AO108: 20 | AP108: 20 | AQ108: 20 | AR108: 20.00000001 | AS108: 20.00000003 | AT108: 20.00000008 | AU108: 20.00000021 | AV108: 20.00000052 | AW108: 20.00000129 | AX108: 20.00000309 | AY108: 20.0000072 | AZ108: 20.00001631 | BA108: 20.00003594 | BB108: 20.00007709 | BC108: 20.00016095 | BD108: 20.00032721 | BE108: 20.00064783 | BF108: 20.00124939 | BG108: 20.00234773 | BH108: 20.00429954 | BI108: 20.00767603 | BJ108: 20.01336335 | BK108: 20.02269287 | BL108: 20.03760099 | BM108: 20.06081276 | BN108: 20.09603651 | BO108: 20.14814838 | BP108: 20.22333777 | BQ108: 20.32917922 | BR108: 20.4745955 | BS108: 20.66968205 | BT108: 20.92537654 | BU108: 21.25297717 | BV108: 21.66353774 | BW108: 22.16719244 | BX108: 22.77248243 | BY108: 23.48576613 | BZ108: 24.31079144
A109: 9.8 | B109: 98 | C109: 82.84208662 | D109: 70.8207739 | E109: 60.43558924 | F109: 51.62652486 | G109: 44.29722949 | H109: 38.32111509 | I109: 33.54969166 | J109: 29.8220435 | K109: 26.97431183 | L109: 24.84818133 | M109: 23.29763858 | N109: 22.19360982 | O109: 21.42642442 | P109: 20.90633018 | Q109: 20.56247178 | R109: 20.34082535 | S109: 20.20157233 | T109: 20.1163211 | U109: 20.06547628 | V109: 20.03594054 | W109: 20.01923287 | X109: 20.01003118 | Y109: 20.00509805 | Z109: 20.00252406 | AA109: 20.00121714 | AB109: 20.00057153 | AC109: 20.00026127 | AD109: 20.00011626 | AE109: 20.00005034 | AF109: 20.00002121 | AG109: 20.00000869 | AH109: 20.00000347 | AI109: 20.00000134 | AJ109: 20.00000051 | AK109: 20.00000019 | AL109: 20.00000007 | AM109: 20.00000002 | AN109: 20.00000001 | AO109: 20 | AP109: 20 | AQ109: 20 | AR109: 20.00000001 | AS109: 20.00000004 | AT109: 20.00000009 | AU109: 20.00000024 | AV109: 20.00000061 | AW109: 20.00000148 | AX109: 20.00000351 | AY109: 20.00000811 | AZ109: 20.00001821 | BA109: 20.00003984 | BB109: 20.00008482 | BC109: 20.00017586 | BD109: 20.00035512 | BE109: 20.0006986 | BF109: 20.00133911 | BG109: 20.00250176 | BH109: 20.00455646 | BI109: 20.00809238 | BJ109: 20.0140189 | BK109: 20.02369576 | BL109: 20.03909175 | BM109: 20.06296586 | BN109: 20.09905803 | BO109: 20.15226827 | BP109: 20.22879575 | BQ109: 20.33620428 | BR109: 20.48337992 | BS109: 20.68035261 | BT109: 20.93796658 | BU109: 21.26740393 | BV109: 21.67958974 | BW109: 22.18453028 | BX109: 22.79065485 | BY109: 23.50424068 | BZ109: 24.32899629
A110: 9.9 | B110: 99 | C110: 83.11006163 | D110: 71.09139557 | E110: 60.70082239 | F110: 51.8789179 | G110: 44.5304932 | H110: 38.53054412 | I110: 33.73238384 | J110: 29.97690762 | K110: 27.10188798 | L110: 24.95032354 | M110: 23.37712242 | N110: 22.2537278 | O110: 21.47062119 | P110: 20.93791231 | Q110: 20.58440778 | R110: 20.3556347 | S110: 20.2112902 | T110: 20.12251914 | U110: 20.06931844 | V110: 20.03825537 | W110: 20.02058828 | X110: 20.01080247 | Y110: 20.00552456 | Z110: 20.00275325 | AA110: 20.00133681 | AB110: 20.00063224 | AC110: 20.0002912 | AD110: 20.00013059 | AE110: 20.00005701 | AF110: 20.00002422 | AG110: 20.00001002 | AH110: 20.00000403 | AI110: 20.00000158 | AJ110: 20.0000006 | AK110: 20.00000022 | AL110: 20.00000008 | AM110: 20.00000003 | AN110: 20.00000001 | AO110: 20 | AP110: 20 | AQ110: 20.00000001 | AR110: 20.00000002 | AS110: 20.00000004 | AT110: 20.00000011 | AU110: 20.00000028 | AV110: 20.0000007 | AW110: 20.00000169 | AX110: 20.00000398 | AY110: 20.0000091 | AZ110: 20.0000203 | BA110: 20.00004406 | BB110: 20.00009315 | BC110: 20.00019182 | BD110: 20.00038481 | BE110: 20.00075227 | BF110: 20.0014334 | BG110: 20.00266273 | BH110: 20.00482353 | BI110: 20.00852302 | BJ110: 20.01469378 | BK110: 20.0247237 | BL110: 20.04061346 | BM110: 20.06515531 | BN110: 20.10211978 | BO110: 20.15642958 | BP110: 20.23429249 | BQ110: 20.34326058 | BR110: 20.49218272 | BS110: 20.69102356 | BT110: 20.95053486 | BU110: 21.28178454 | BV110: 21.69557145 | BW110: 22.20177678 | BX110: 22.80872072 | BY110: 23.52260135 | BZ110: 24.34708892
A111: 10 | B111: 100 | C111: 83.37644632 | D111: 71.36041122 | E111: 60.96455856 | F111: 52.13003228 | G111: 44.76277662 | H111: 38.73933362 | I111: 33.91478021 | J111: 30.13178755 | K111: 27.22973353 | L111: 25.05291636 | M111: 23.45716299 | N111: 22.31444049 | O111: 21.51539602 | P111: 20.97001772 | Q111: 20.6067905 | R111: 20.37080645 | S111: 20.22128884 | T111: 20.12892564 | U111: 20.07330929 | V111: 20.04067229 | W111: 20.02201125 | X111: 20.0116169 | Y111: 20.00597768 | Z111: 20.00299829 | AA111: 20.00146562 | AB111: 20.00069805 | AC111: 20.00032387 | AD111: 20.00014635 | AE111: 20.0000644 | AF111: 20.00002759 | AG111: 20.00001151 | AH111: 20.00000467 | AI111: 20.00000184 | AJ111: 20.00000071 | AK111: 20.00000026 | AL111: 20.0000001 | AM111: 20.00000003 | AN111: 20.00000001 | AO111: 20 | AP111: 20 | AQ111: 20.00000001 | AR111: 20.00000002 | AS111: 20.00000005 | AT111: 20.00000013 | AU111: 20.00000033 | AV111: 20.0000008 | AW111: 20.00000192 | AX111: 20.00000449 | AY111: 20.0000102 | AZ111: 20.00002258 | BA111: 20.00004865 | BB111: 20.00010212 | BC111: 20.00020888 | BD111: 20.00041635 | BE111: 20.00080894 | BF111: 20.00153238 | BG111: 20.00283079 | BH111: 20.00510092 | BI111: 20.00896811 | BJ111: 20.0153881 | BK111: 20.02577668 | BL111: 20.04216601 | BM111: 20.06738082 | BN111: 20.10522125 | BO111: 20.16063159 | BP111: 20.23982708 | BQ111: 20.35034713 | BR111: 20.50100297 | BS111: 20.70169414 | BT111: 20.96308099 | BU111: 21.29611906 | BV111: 21.71148346 | BW111: 22.21893306 | BX111: 22.82668154 | BY111: 23.54084984 | BZ111: 24.36507101
A112: 10.1 | B112: 101 | C112: 83.64126401 | D112: 71.6278444 | E112: 61.22681843 | F112: 52.37988325 | G112: 44.99408798 | H112: 38.94748447 | I112: 34.0968751 | J112: 30.28667273 | K112: 27.35783517 | L112: 25.15594588 | M112: 23.53774759 | N112: 22.37573765 | O112: 21.56074168 | P112: 21.00264217 | Q112: 20.62961829 | R112: 20.38634089 | S112: 20.2315698 | T112: 20.13554279 | U112: 20.07745117 | V112: 20.04319345 | W112: 20.02350359 | X112: 20.01247587 | Y112: 20.00645843 | Z112: 20.00325991 | AA112: 20.00160404 | AB112: 20.00076925 | AC112: 20.00035948 | AD112: 20.00016366 | AE112: 20.00007258 | AF112: 20.00003135 | AG112: 20.00001318 | AH112: 20.0000054 | AI112: 20.00000215 | AJ112: 20.00000083 | AK112: 20.00000031 | AL112: 20.00000012 | AM112: 20.00000004 | AN112: 20.00000001 | AO112: 20.00000001 | AP112: 20 | AQ112: 20.00000001 | AR112: 20.00000002 | AS112: 20.00000006 | AT112: 20.00000015 | AU112: 20.00000038 | AV112: 20.00000092 | AW112: 20.00000219 | AX112: 20.00000506 | AY112: 20.00001141 | AZ112: 20.00002506 | BA112: 20.00005361 | BB112: 20.00011176 | BC112: 20.00022709 | BD112: 20.00044981 | BE112: 20.0008687 | BF112: 20.00163617 | BG112: 20.00300608 | BH112: 20.00538877 | BI112: 20.0094278 | BJ112: 20.01610196 | BK112: 20.02685475 | BL112: 20.04374929 | BM112: 20.06964207 | BN112: 20.10836193 | BO112: 20.16487358 | BP112: 20.24539864 | BQ112: 20.35746298 | BR112: 20.50983974 | BS112: 20.71236362 | BT112: 20.97560457 | BU112: 21.31040757 | BV112: 21.72732637 | BW112: 22.2360002 | BX112: 22.84453875 | BY112: 23.55898781 | BZ112: 24.38294419
A113: 10.2 | B113: 102 | C113: 83.90453746 | D113: 71.89371808 | E113: 61.48762221 | F113: 52.62848576 | G113: 45.22443544 | H113: 39.15499769 | I113: 34.27866311 | J113: 30.44155297 | K113: 27.48617998 | L113: 25.25939855 | M113: 23.61886376 | N113: 22.43760912 | O113: 21.60665093 | P113: 21.03578134 | Q113: 20.65288938 | R113: 20.4022382 | S113: 20.24213451 | T113: 20.14237266 | U113: 20.08174631 | V113: 20.04582095 | W113: 20.02506708 | X113: 20.01338081 | Y113: 20.00696787 | Z113: 20.00353885 | AA113: 20.00175258 | AB113: 20.00084617 | AC113: 20.00039822 | AD113: 20.00018263 | AE113: 20.00008161 | AF113: 20.00003553 | AG113: 20.00001506 | AH113: 20.00000622 | AI113: 20.0000025 | AJ113: 20.00000098 | AK113: 20.00000037 | AL113: 20.00000014 | AM113: 20.00000005 | AN113: 20.00000002 | AO113: 20.00000001 | AP113: 20.00000001 | AQ113: 20.00000001 | AR113: 20.00000003 | AS113: 20.00000007 | AT113: 20.00000017 | AU113: 20.00000043 | AV113: 20.00000105 | AW113: 20.00000248 | AX113: 20.00000569 | AY113: 20.00001273 | AZ113: 20.00002775 | BA113: 20.00005897 | BB113: 20.00012211 | BC113: 20.00024651 | BD113: 20.00048526 | BE113: 20.00093166 | BF113: 20.00174491 | BG113: 20.00318875 | BH113: 20.00568726 | BI113: 20.00990222 | BJ113: 20.01683546 | BK113: 20.02795789 | BL113: 20.04536315 | BM113: 20.07193878 | BN113: 20.11154131 | BO113: 20.16915484 | BP113: 20.2510063 | BQ113: 20.36460717 | BR113: 20.51869215 | BS113: 20.72303132 | BT113: 20.98810527 | BU113: 21.32465018 | BV113: 21.74310077 | BW113: 22.25297926 | BX113: 22.86229379 | BY113: 23.57701686 | BZ113: 24.40071005
A114: 10.3 | B114: 103 | C114: 84.16628886 | D114: 72.15805468 | E114: 61.74698964 | F114: 52.87585447 | G114: 45.45382711 | H114: 39.36187443 | I114: 34.46013918 | J114: 30.5964185 | K114: 27.61475544 | L114: 25.36326111 | M114: 23.70049927 | N114: 22.50004486 | O114: 21.65311651 | P114: 21.06943087 | Q114: 20.6766019 | R114: 20.41849842 | S114: 20.2529843 | T114: 20.14941724 | U114: 20.08619693 | V114: 20.04855689 | W114: 20.02670351 | X114: 20.01433312 | Y114: 20.00750706 | Z114: 20.00383585 | AA114: 20.00191173 | AB114: 20.00092913 | AC114: 20.00044028 | AD114: 20.00020338 | AE114: 20.00009156 | AF114: 20.00004017 | AG114: 20.00001717 | AH114: 20.00000715 | AI114: 20.0000029 | AJ114: 20.00000114 | AK114: 20.00000044 | AL114: 20.00000016 | AM114: 20.00000006 | AN114: 20.00000002 | AO114: 20.00000001 | AP114: 20.00000001 | AQ114: 20.00000001 | AR114: 20.00000003 | AS114: 20.00000008 | AT114: 20.0000002 | AU114: 20.0000005 | AV114: 20.0000012 | AW114: 20.0000028 | AX114: 20.00000638 | AY114: 20.00001418 | AZ114: 20.00003069 | BA114: 20.00006474 | BB114: 20.00013319 | BC114: 20.00026718 | BD114: 20.00052278 | BE114: 20.00099791 | BF114: 20.00185871 | BG114: 20.00337894 | BH114: 20.00599652 | BI114: 20.01039152 | BJ114: 20.01758869 | BK114: 20.02908612 | BL114: 20.04700747 | BM114: 20.07427061 | BN114: 20.11475888 | BO114: 20.17347467 | BP114: 20.2566492 | BQ114: 20.3717788 | BR114: 20.52755933 | BS114: 20.73369655 | BT114: 21.00058273 | BU114: 21.33884697 | BV114: 21.75880725 | BW114: 22.26987128 | BX114: 22.87994804 | BY114: 23.59493858 | BZ114: 24.41837013
A115: 10.4 | B115: 104 | C115: 84.42653989 | D115: 72.42087608 | E115: 62.00494 | F115: 53.12200377 | G115: 45.68227102 | H115: 39.56811599 | I115: 34.6412985 | J115: 30.75125988 | K115: 27.7435494 | L115: 25.46752066 | M115: 23.7826421 | N115: 22.56303497 | O115: 21.70013122 | P115: 21.1035863 | Q115: 20.70075387 | R115: 20.43512148 | S115: 20.26412037 | T115: 20.15667845 | U115: 20.09080516 | V115: 20.05140329 | W115: 20.02841465 | X115: 20.01533424 | Y115: 20.00807706 | Z115: 20.00415168 | AA115: 20.00208201 | AB115: 20.00101847 | AC115: 20.00048589 | AD115: 20.00022603 | AE115: 20.00010251 | AF115: 20.00004531 | AG115: 20.00001952 | AH115: 20.0000082 | AI115: 20.00000335 | AJ115: 20.00000134 | AK115: 20.00000052 | AL115: 20.0000002 | AM115: 20.00000007 | AN115: 20.00000003 | AO115: 20.00000001 | AP115: 20.00000001 | AQ115: 20.00000001 | AR115: 20.00000004 | AS115: 20.00000009 | AT115: 20.00000023 | AU115: 20.00000057 | AV115: 20.00000136 | AW115: 20.00000316 | AX115: 20.00000715 | AY115: 20.00001575 | AZ115: 20.00003386 | BA115: 20.00007097 | BB115: 20.00014504 | BC115: 20.00028917 | BD115: 20.00056245 | BE115: 20.00106755 | BF115: 20.0019777 | BG115: 20.00357679 | BH115: 20.00631672 | BI115: 20.01089582 | BJ115: 20.01836172 | BK115: 20.03023941 | BL115: 20.04868211 | BM115: 20.07663727 | BN115: 20.11801413 | BO115: 20.17783238 | BP115: 20.26232652 | BQ115: 20.37897696 | BR115: 20.53644043 | BS115: 20.74435869 | BT115: 21.01303665 | BU115: 21.35299806 | BV115: 21.7744464 | BW115: 22.2866773 | BX115: 22.89750288 | BY115: 23.61275448 | BZ115: 24.43592595
A116: 10.5 | B116: 105 | C116: 84.68531168 | D116: 72.68220364 | E116: 62.26149216 | F116: 53.36694776 | G116: 45.90977511 | H116: 39.77372376 | I116: 34.82213654 | J116: 30.90606804 | K116: 27.87255006 | L116: 25.57216457 | M116: 23.86528048 | N116: 22.62656962 | O116: 21.74768785 | P116: 21.13824314 | Q116: 20.7253432 | R116: 20.4521072 | S116: 20.27554383 | T116: 20.16415811 | U116: 20.09557308 | V116: 20.05436218 | W116: 20.03020224 | X116: 20.01638556 | Y116: 20.00867896 | Z116: 20.0044871 | AA116: 20.00226396 | AB116: 20.00111453 | AC116: 20.00053525 | AD116: 20.00025071 | AE116: 20.00011452 | AF116: 20.000051 | AG116: 20.00002214 | AH116: 20.00000937 | AI116: 20.00000386 | AJ116: 20.00000155 | AK116: 20.00000061 | AL116: 20.00000023 | AM116: 20.00000009 | AN116: 20.00000003 | AO116: 20.00000001 | AP116: 20.00000001 | AQ116: 20.00000002 | AR116: 20.00000004 | AS116: 20.00000011 | AT116: 20.00000027 | AU116: 20.00000065 | AV116: 20.00000154 | AW116: 20.00000356 | AX116: 20.00000798 | AY116: 20.00001747 | AZ116: 20.0000373 | BA116: 20.00007765 | BB116: 20.00015771 | BC116: 20.00031251 | BD116: 20.00060432 | BE116: 20.00114068 | BF116: 20.00210199 | BG116: 20.00378245 | BH116: 20.00664798 | BI116: 20.01141525 | BJ116: 20.01915463 | BK116: 20.03141776 | BL116: 20.0503869 | BM116: 20.07903844 | BN116: 20.12130656 | BO116: 20.18222727 | BP116: 20.26803743 | BQ116: 20.38620078 | BR116: 20.54533465 | BS116: 20.75501711 | BT116: 21.02546672 | BU116: 21.36710357 | BV116: 21.79001878 | BW116: 22.3033983 | BX116: 22.91495963 | BY116: 23.63046609 | BZ116: 24.45337899
A117: 10.6 | B117: 106 | C117: 84.94262489 | D117: 72.94205822 | E117: 62.51666456 | F117: 53.6107003 | G117: 46.13634726 | H117: 39.97869927 | I117: 35.00264902 | J117: 31.06083423 | K117: 28.00174599 | L117: 25.67718055 | M117: 23.94840281 | N117: 22.69063914 | O117: 21.79577922 | P117: 21.17339683 | Q117: 20.75036773 | R117: 20.46945529 | S117: 20.28725567 | T117: 20.17185794 | U117: 20.10050269 | V117: 20.05743552 | W117: 20.03206803 | X117: 20.01748852 | Y117: 20.00931382 | Z117: 20.0048429 | AA117: 20.00245811 | AB117: 20.00121767 | AC117: 20.00058859 | AD117: 20.00027757 | AE117: 20.00012768 | AF117: 20.00005728 | AG117: 20.00002506 | AH117: 20.00001069 | AI117: 20.00000444 | AJ117: 20.0000018 | AK117: 20.00000071 | AL117: 20.00000027 | AM117: 20.0000001 | AN117: 20.00000004 | AO117: 20.00000002 | AP117: 20.00000001 | AQ117: 20.00000002 | AR117: 20.00000005 | AS117: 20.00000013 | AT117: 20.00000031 | AU117: 20.00000075 | AV117: 20.00000175 | AW117: 20.00000399 | AX117: 20.0000089 | AY117: 20.00001935 | AZ117: 20.00004102 | BA117: 20.00008484 | BB117: 20.00017122 | BC117: 20.00033727 | BD117: 20.00064849 | BE117: 20.00121739 | BF117: 20.00223172 | BG117: 20.00399605 | BH117: 20.00699044 | BI117: 20.01194992 | BJ117: 20.01996749 | BK117: 20.03262114 | BL117: 20.05212171 | BM117: 20.08147378 | BN117: 20.12463566 | BO117: 20.18665868 | BP117: 20.27378112 | BQ117: 20.39344941 | BR117: 20.55424121 | BS117: 20.76567121 | BT117: 21.03787267 | BU117: 21.38116362 | BV117: 21.80552497 | BW117: 22.32003529 | BX117: 22.93231959 | BY117: 23.64807484 | BZ117: 24.47073069
A118: 10.7 | B118: 107 | C118: 85.19849968 | D118: 73.20046018 | E118: 62.77047523 | F118: 53.85327498 | G118: 46.36199527 | H118: 40.18304413 | I118: 35.18283191 | J118: 31.21555005 | K118: 28.13112609 | L118: 25.78255659 | M118: 24.03199776 | N118: 22.75523396 | O118: 21.84439817 | P118: 21.2090428 | Q118: 20.77582519 | R118: 20.48716534 | S118: 20.29925679 | T118: 20.17977961 | U118: 20.10559597 | V118: 20.06062525 | W118: 20.03401374 | X118: 20.01864451 | Y118: 20.00998273 | Z118: 20.00521988 | AA118: 20.00266501 | AB118: 20.00132825 | AC118: 20.00064615 | AD118: 20.00030674 | AE118: 20.00014208 | AF118: 20.0000642 | AG118: 20.00002829 | AH118: 20.00001216 | AI118: 20.0000051 | AJ118: 20.00000208 | AK118: 20.00000083 | AL118: 20.00000032 | AM118: 20.00000012 | AN118: 20.00000005 | AO118: 20.00000002 | AP118: 20.00000001 | AQ118: 20.00000002 | AR118: 20.00000006 | AS118: 20.00000015 | AT118: 20.00000036 | AU118: 20.00000085 | AV118: 20.00000197 | AW118: 20.00000448 | AX118: 20.0000099 | AY118: 20.00002138 | AZ118: 20.00004502 | BA118: 20.00009254 | BB118: 20.00018563 | BC118: 20.00036351 | BD118: 20.00069503 | BE118: 20.00129778 | BF118: 20.00236699 | BG118: 20.00421772 | BH118: 20.00734425 | BI118: 20.01249995 | BJ118: 20.02080036 | BK118: 20.03384951 | BL118: 20.05388636 | BM118: 20.08394298 | BN118: 20.12800093 | BO118: 20.19112593 | BP118: 20.27955681 | BQ118: 20.40072202 | BR118: 20.56315932 | BS118: 20.77632041 | BT118: 21.05025423 | BU118: 21.39517835 | BV118: 21.82096552 | BW118: 22.33658921 | BX118: 22.94958403 | BY118: 23.66558219 | BZ118: 24.48798245
A119: 10.8 | B119: 108 | C119: 85.45295577 | D119: 73.45742941 | E119: 63.02294181 | F119: 54.09468513 | G119: 46.58672688 | H119: 40.38676005 | I119: 35.36268141 | J119: 31.37020739 | K119: 28.26067959 | L119: 25.88828098 | M119: 24.11605417 | N119: 22.82034463 | O119: 21.89353759 | P119: 21.2451764 | Q119: 20.80171323 | R119: 20.50523684 | S119: 20.31154799 | T119: 20.18792468 | U119: 20.1108548 | V119: 20.06393328 | W119: 20.03604107 | X119: 20.01985495 | Y119: 20.01068679 | Z119: 20.00561882 | AA119: 20.00288521 | AB119: 20.00144665 | AC119: 20.00070815 | AD119: 20.00033837 | AE119: 20.00015779 | AF119: 20.0000718 | AG119: 20.00003188 | AH119: 20.0000138 | AI119: 20.00000583 | AJ119: 20.0000024 | AK119: 20.00000096 | AL119: 20.00000038 | AM119: 20.00000014 | AN119: 20.00000005 | AO119: 20.00000002 | AP119: 20.00000002 | AQ119: 20.00000003 | AR119: 20.00000007 | AS119: 20.00000017 | AT119: 20.00000041 | AU119: 20.00000096 | AV119: 20.00000222 | AW119: 20.00000501 | AX119: 20.000011 | AY119: 20.00002358 | AZ119: 20.00004934 | BA119: 20.00010078 | BB119: 20.00020095 | BC119: 20.00039127 | BD119: 20.00074401 | BE119: 20.00138196 | BF119: 20.00250792 | BG119: 20.0044476 | BH119: 20.00770953 | BI119: 20.01306545 | BJ119: 20.02165328 | BK119: 20.03510284 | BL119: 20.05568069 | BM119: 20.08644572 | BN119: 20.13140188 | BO119: 20.19562837 | BP119: 20.28536371 | BQ119: 20.40801778 | BR119: 20.57208826 | BS119: 20.78696418 | BT119: 21.06261115 | BU119: 21.40914789 | BV119: 21.83634101 | BW119: 22.35306103 | BX119: 22.9667542 | BY119: 23.68298952 | BZ119: 24.50513566
A120: 10.9 | B120: 109 | C120: 85.70601239 | D120: 73.71298535 | E120: 63.27408156 | F120: 54.33494385 | G120: 46.81054972 | H120: 40.58984883 | I120: 35.54219395 | J120: 31.52479845 | K120: 28.39039603 | L120: 25.99434228 | M120: 24.20056112 | N120: 22.88596181 | O120: 21.94319038 | P120: 21.28179296 | Q120: 20.82802943 | R120: 20.5236692 | S120: 20.32412997 | T120: 20.19629465 | U120: 20.11628103 | V120: 20.06736147 | W120: 20.03815171 | X120: 20.02112124 | Y120: 20.0114271 | Z120: 20.00604055 | AA120: 20.0031193 | AB120: 20.00157325 | AC120: 20.00077486 | AD120: 20.00037261 | AE120: 20.00017492 | AF120: 20.00008014 | AG120: 20.00003583 | AH120: 20.00001563 | AI120: 20.00000665 | AJ120: 20.00000276 | AK120: 20.00000112 | AL120: 20.00000044 | AM120: 20.00000017 | AN120: 20.00000007 | AO120: 20.00000003 | AP120: 20.00000002 | AQ120: 20.00000003 | AR120: 20.00000008 | AS120: 20.00000019 | AT120: 20.00000046 | AU120: 20.00000109 | AV120: 20.0000025 | AW120: 20.00000559 | AX120: 20.00001219 | AY120: 20.00002597 | AZ120: 20.00005399 | BA120: 20.00010959 | BB120: 20.00021725 | BC120: 20.00042061 | BD120: 20.0007955 | BE120: 20.00147001 | BF120: 20.00265463 | BG120: 20.0046858 | BH120: 20.00808641 | BI120: 20.01364652 | BJ120: 20.0225263 | BK120: 20.03638109 | BL120: 20.05750452 | BM120: 20.08898165 | BN120: 20.134838 | BO120: 20.20016534 | BP120: 20.29120107 | BQ120: 20.41533592 | BR120: 20.5810273 | BS120: 20.79760198 | BT120: 21.07494321 | BU120: 21.42307239 | BV120: 21.85165198 | BW120: 22.36945166 | BX120: 22.98383132 | BY120: 23.7002982 | BZ120: 24.52219165
A121: 11 | B121: 110 | C121: 85.95768836 | D121: 73.96714701 | E121: 63.52391137 | F121: 54.57406399 | G121: 47.03347137 | H121: 40.79231238 | I121: 35.72136615 | J121: 31.67931573 | K121: 28.52026529 | L121: 26.10072933 | M121: 24.28550787 | N121: 22.95207631 | O121: 21.99334949 | P121: 21.3188878 | Q121: 20.85477128 | R121: 20.54246171 | S121: 20.33700334 | T121: 20.2048909 | U121: 20.12187643 | V121: 20.07091164 | W121: 20.04034732 | X121: 20.02244478 | Y121: 20.01220475 | Z121: 20.00648587 | AA121: 20.00336785 | AB121: 20.00170845 | AC121: 20.00084652 | AD121: 20.00040963 | AE121: 20.00019355 | AF121: 20.00008928 | AG121: 20.0000402 | AH121: 20.00001767 | AI121: 20.00000758 | AJ121: 20.00000317 | AK121: 20.00000129 | AL121: 20.00000052 | AM121: 20.0000002 | AN121: 20.00000008 | AO121: 20.00000003 | AP121: 20.00000002 | AQ121: 20.00000004 | AR121: 20.00000009 | AS121: 20.00000022 | AT121: 20.00000053 | AU121: 20.00000123 | AV121: 20.0000028 | AW121: 20.00000622 | AX121: 20.00001349 | AY121: 20.00002854 | AZ121: 20.00005898 | BA121: 20.000119 | BB121: 20.00023455 | BC121: 20.0004516 | BD121: 20.00084959 | BE121: 20.00156204 | BF121: 20.00280724 | BG121: 20.00493247 | BH121: 20.00847501 | BI121: 20.01424324 | BJ121: 20.02341947 | BK121: 20.03768419 | BL121: 20.05935767 | BM121: 20.09155046 | BN121: 20.13830879 | BO121: 20.2047362 | BP121: 20.29706814 | BQ121: 20.42267566 | BR121: 20.58997575 | BS121: 20.80823329 | BT121: 21.08725017 | BU121: 21.436952 | BV121: 21.86689898 | BW121: 22.38576204 | BX121: 23.00081658 | BY121: 23.71750955 | BZ121: 24.53915175
A122: 11.1 | B122: 111 | C122: 86.20800206 | D122: 74.21993294 | E122: 63.77244777 | F122: 54.81205816 | G122: 47.25549933 | H122: 40.99415264 | I122: 35.90019487 | J122: 31.833752 | K122: 28.65027751 | L122: 26.20743124 | M122: 24.3708839 | N122: 23.01867903 | O122: 22.04400791 | P122: 21.35645619 | Q122: 20.88193622 | R122: 20.5616136 | S122: 20.35016861 | T122: 20.21371479 | U122: 20.12764272 | V122: 20.07458559 | W122: 20.04262955 | X122: 20.02382696 | Y122: 20.01302084 | Z122: 20.00695562 | AA122: 20.00363144 | AB122: 20.00185263 | AC122: 20.0009234 | AD122: 20.00044959 | AE122: 20.00021379 | AF122: 20.00009928 | AG122: 20.00004501 | AH122: 20.00001992 | AI122: 20.00000861 | AJ122: 20.00000363 | AK122: 20.00000149 | AL122: 20.0000006 | AM122: 20.00000024 | AN122: 20.00000009 | AO122: 20.00000004 | AP122: 20.00000003 | AQ122: 20.00000005 | AR122: 20.00000011 | AS122: 20.00000025 | AT122: 20.0000006 | AU122: 20.00000139 | AV122: 20.00000314 | AW122: 20.00000692 | AX122: 20.0000149 | AY122: 20.00003133 | AZ122: 20.00006433 | BA122: 20.00012904 | BB122: 20.00025289 | BC122: 20.00048428 | BD122: 20.00090635 | BE122: 20.00165814 | BF122: 20.00296586 | BG122: 20.00518771 | BH122: 20.00887544 | BI122: 20.01485571 | BJ122: 20.02433281 | BK122: 20.03901209 | BL122: 20.06123997 | BM122: 20.0941518 | BN122: 20.14181378 | BO122: 20.20934031 | BP122: 20.30296419 | BQ122: 20.43003624 | BR122: 20.59893292 | BS122: 20.81885763 | BT122: 21.09953184 | BU122: 21.45078688 | BV122: 21.88208254 | BW122: 22.40199304 | BX122: 23.01771114 | BY122: 23.7346249 | BZ122: 24.55601723
A123: 11.2 | B123: 112 | C123: 86.45697148 | D123: 74.47136132 | E123: 64.01970694 | F123: 55.04893877 | G123: 47.47664101 | H123: 41.19537166 | I123: 36.07867712 | J123: 31.98810029 | K123: 28.78042314 | L123: 26.31443739 | M123: 24.4566789 | N123: 23.085761 | O123: 22.09515867 | P123: 21.39449337 | Q123: 20.90952161 | R123: 20.58112398 | S123: 20.3636262 | T123: 20.22276755 | U123: 20.13358156 | V123: 20.07838505 | W123: 20.04500002 | X123: 20.02526917 | Y123: 20.01387647 | Z123: 20.00745063 | AA123: 20.00391067 | AB123: 20.00200622 | AC123: 20.00100577 | AD123: 20.00049265 | AE123: 20.00023574 | AF123: 20.00011018 | AG123: 20.00005029 | AH123: 20.00002242 | AI123: 20.00000975 | AJ123: 20.00000414 | AK123: 20.00000172 | AL123: 20.0000007 | AM123: 20.00000028 | AN123: 20.00000011 | AO123: 20.00000005 | AP123: 20.00000003 | AQ123: 20.00000005 | AR123: 20.00000012 | AS123: 20.00000029 | AT123: 20.00000068 | AU123: 20.00000156 | AV123: 20.00000351 | AW123: 20.00000768 | AX123: 20.00001643 | AY123: 20.00003433 | AZ123: 20.00007007 | BA123: 20.00013973 | BB123: 20.00027232 | BC123: 20.00051871 | BD123: 20.00096586 | BE123: 20.0017584 | BF123: 20.0031306 | BG123: 20.00545165 | BH123: 20.00928783 | BI123: 20.01548402 | BJ123: 20.02526635 | BK123: 20.04036472 | BL123: 20.06315122 | BM123: 20.09678534 | BN123: 20.14535247 | BO123: 20.21397705 | BP123: 20.30888851 | BQ123: 20.43741693 | BR123: 20.60789817 | BS123: 20.82947453 | BT123: 21.11178802 | BU123: 21.46457718 | BV123: 21.89720321 | BW123: 22.41814556 | BX123: 23.03451615 | BY123: 23.7516455 | BZ123: 24.57278936
A124: 11.3 | B124: 113 | C124: 86.70461419 | D124: 74.72144988 | E124: 64.26570472 | F124: 55.28471798 | G124: 47.69690375 | H124: 41.39597154 | I124: 36.25681014 | J124: 32.1423539 | K124: 28.91069291 | L124: 26.42173741 | M124: 24.54288273 | N124: 23.15331338 | O124: 22.14679484 | P124: 21.43299459 | Q124: 20.93752475 | R124: 20.6009919 | S124: 20.37737647 | T124: 20.23205037 | U124: 20.13969455 | V124: 20.08231174 | W124: 20.04746032 | X124: 20.02677277 | Y124: 20.01477276 | Z124: 20.00797173 | AA124: 20.00420616 | AB124: 20.00216963 | AC124: 20.0010939 | AD124: 20.00053901 | AE124: 20.00025952 | AF124: 20.00012207 | AG124: 20.00005609 | AH124: 20.00002517 | AI124: 20.00001103 | AJ124: 20.00000472 | AK124: 20.00000197 | AL124: 20.0000008 | AM124: 20.00000032 | AN124: 20.00000013 | AO124: 20.00000006 | AP124: 20.00000004 | AQ124: 20.00000006 | AR124: 20.00000014 | AS124: 20.00000033 | AT124: 20.00000077 | AU124: 20.00000176 | AV124: 20.00000391 | AW124: 20.00000851 | AX124: 20.00001808 | AY124: 20.00003755 | AZ124: 20.0000762 | BA124: 20.00015111 | BB124: 20.00029288 | BC124: 20.00055496 | BD124: 20.00102819 | BE124: 20.00186293 | BF124: 20.00330157 | BG124: 20.00572441 | BH124: 20.00971227 | BI124: 20.01612825 | BJ124: 20.02622011 | BK124: 20.04174202 | BL124: 20.06509123 | BM124: 20.09945075 | BN124: 20.14892437 | BO124: 20.21864581 | BP124: 20.31484038 | BQ124: 20.44481701 | BR124: 20.61687085 | BS124: 20.84008352 | BT124: 21.12401855 | BU124: 21.47832307 | BV124: 21.91226152 | BW124: 22.43422046 | BX124: 23.05123272 | BY124: 23.7685726 | BZ124: 24.58946935
A125: 11.4 | B125: 114 | C125: 86.95094739 | D125: 74.970216 | E125: 64.51045662 | F125: 55.51940775 | G125: 47.91629482 | H125: 41.59595445 | I125: 36.43459131 | J125: 32.29650638 | K125: 29.04107783 | L125: 26.52932119 | M125: 24.62948546 | N125: 23.22132745 | O125: 22.19890954 | P125: 21.47195507 | Q125: 20.96594288 | R125: 20.62121633 | S125: 20.39141965 | T125: 20.24156433 | U125: 20.14598323 | V125: 20.08636732 | W125: 20.05001205 | X125: 20.02833915 | Y125: 20.01571081 | Z125: 20.00851976 | AA125: 20.0045185 | AB125: 20.00234328 | AC125: 20.00118808 | AD125: 20.00058883 | AE125: 20.00028522 | AF125: 20.00013501 | AG125: 20.00006244 | AH125: 20.00002821 | AI125: 20.00001245 | AJ125: 20.00000537 | AK125: 20.00000226 | AL125: 20.00000093 | AM125: 20.00000037 | AN125: 20.00000015 | AO125: 20.00000007 | AP125: 20.00000005 | AQ125: 20.00000007 | AR125: 20.00000016 | AS125: 20.00000038 | AT125: 20.00000087 | AU125: 20.00000197 | AV125: 20.00000435 | AW125: 20.00000941 | AX125: 20.00001987 | AY125: 20.00004102 | AZ125: 20.00008276 | BA125: 20.00016319 | BB125: 20.00031461 | BC125: 20.00059308 | BD125: 20.00109341 | BE125: 20.00197181 | BF125: 20.00347888 | BG125: 20.00600611 | BH125: 20.01014887 | BI125: 20.01678846 | BJ125: 20.0271941 | BK125: 20.04314391 | BL125: 20.06705981 | BM125: 20.10214769 | BN125: 20.152529 | BO125: 20.22334597 | BP125: 20.32081912 | BQ125: 20.45223578 | BR125: 20.62585034 | BS125: 20.85068417 | BT125: 21.13622324 | BU125: 21.49202471 | BV125: 21.92725799 | BW125: 22.45021859 | BX125: 23.06786194 | BY125: 23.78540743 | BZ125: 24.60605841
A126: 11.5 | B126: 115 | C126: 87.1959879 | D126: 75.21767667 | E126: 64.75397784 | F126: 55.75301981 | G126: 48.13482139 | H126: 41.79532261 | I126: 36.61201821 | J126: 32.45055152 | K126: 29.17156916 | L126: 26.63717883 | M126: 24.71647736 | N126: 23.28979461 | O126: 22.25149596 | P126: 21.51137002 | Q126: 20.9947732 | R126: 20.64179613 | S126: 20.40575593 | T126: 20.25131047 | U126: 20.15244908 | V126: 20.09055342 | W126: 20.05265676 | X126: 20.02996964 | Y126: 20.01669172 | Z126: 20.00909558 | AA126: 20.00484833 | AB126: 20.00252762 | AC126: 20.0012886 | AD126: 20.0006423 | AE126: 20.00031298 | AF126: 20.00014906 | AG126: 20.00006938 | AH126: 20.00003156 | AI126: 20.00001402 | AJ126: 20.00000609 | AK126: 20.00000258 | AL126: 20.00000107 | AM126: 20.00000043 | AN126: 20.00000018 | AO126: 20.00000008 | AP126: 20.00000005 | AQ126: 20.00000008 | AR126: 20.00000018 | AS126: 20.00000043 | AT126: 20.00000098 | AU126: 20.0000022 | AV126: 20.00000484 | AW126: 20.00001039 | AX126: 20.00002181 | AY126: 20.00004475 | AZ126: 20.00008975 | BA126: 20.00017602 | BB126: 20.00033756 | BC126: 20.00063313 | BD126: 20.00116162 | BE126: 20.00208514 | BF126: 20.00366264 | BG126: 20.00629684 | BH126: 20.01059775 | BI126: 20.01746472 | BJ126: 20.02818834 | BK126: 20.04457031 | BL126: 20.06905676 | BM126: 20.10487582 | BN126: 20.15616589 | BO126: 20.22807693 | BP126: 20.32682405 | BQ126: 20.45967257 | BR126: 20.63483605 | BS126: 20.86127607 | BT126: 21.14840196 | BU126: 21.50568228 | BV126: 21.94219313 | BW126: 22.46614077 | BX126: 23.0844049 | BY126: 23.80215117 | BZ126: 24.62255772
A127: 11.6 | B127: 116 | C127: 87.43975218 | D127: 75.4638485 | E127: 64.99628326 | F127: 55.98556569 | G127: 48.35249057 | H127: 41.9940783 | I127: 36.78908855 | J127: 32.60448334 | K127: 29.30215843 | L127: 26.74530071 | M127: 24.80384887 | N127: 23.35870636 | O127: 22.3045473 | P127: 21.55123463 | Q127: 21.02401284 | R127: 20.66273014 | S127: 20.4203854 | T127: 20.26128973 | U127: 20.15909352 | V127: 20.09487163 | W127: 20.05539598 | X127: 20.03166561 | Y127: 20.01771658 | Z127: 20.00970004 | AA127: 20.00519627 | AB127: 20.00272308 | AC127: 20.00139575 | AD127: 20.00069963 | AE127: 20.00034291 | AF127: 20.00016431 | AG127: 20.00007696 | AH127: 20.00003523 | AI127: 20.00001576 | AJ127: 20.00000689 | AK127: 20.00000294 | AL127: 20.00000123 | AM127: 20.0000005 | AN127: 20.0000002 | AO127: 20.00000009 | AP127: 20.00000006 | AQ127: 20.0000001 | AR127: 20.00000021 | AS127: 20.00000048 | AT127: 20.0000011 | AU127: 20.00000246 | AV127: 20.00000536 | AW127: 20.00001145 | AX127: 20.00002389 | AY127: 20.00004874 | AZ127: 20.00009721 | BA127: 20.00018962 | BB127: 20.00036177 | BC127: 20.00067517 | BD127: 20.00123287 | BE127: 20.00220302 | BF127: 20.00385295 | BG127: 20.00659673 | BH127: 20.01105898 | BI127: 20.01815711 | BJ127: 20.02920282 | BK127: 20.04602112 | BL127: 20.07108187 | BM127: 20.10763481 | BN127: 20.15983456 | BO127: 20.2328381 | BP127: 20.33285451 | BQ127: 20.46712669 | BR127: 20.6438274 | BS127: 20.8718588 | BT127: 21.16055454 | BU127: 21.51929596 | BV127: 21.95706746 | BW127: 22.48198784 | BX127: 23.10086264 | BY127: 23.81880499 | BZ127: 24.63896842
A128: 11.7 | B128: 117 | C128: 87.68225635 | D128: 75.70874777 | E128: 65.23738746 | F128: 56.21705673 | G128: 48.5693094 | H128: 42.19222385 | I128: 36.96580022 | J128: 32.75829608 | K128: 29.43283739 | L128: 26.85367742 | M128: 24.89159062 | N128: 23.42805436 | O128: 22.35805685 | P128: 21.59154411 | Q128: 21.0536589 | R128: 20.68401708 | S128: 20.43530807 | T128: 20.27150301 | U128: 20.16591794 | V128: 20.0993235 | W128: 20.05823121 | X128: 20.03342839 | Y128: 20.01878652 | Z128: 20.010334 | AA128: 20.00556295 | AB128: 20.00293011 | AC128: 20.00150985 | AD128: 20.00076101 | AE128: 20.00037513 | AF128: 20.00018083 | AG128: 20.00008522 | AH128: 20.00003926 | AI128: 20.00001768 | AJ128: 20.00000778 | AK128: 20.00000335 | AL128: 20.00000141 | AM128: 20.00000058 | AN128: 20.00000024 | AO128: 20.00000011 | AP128: 20.00000007 | AQ128: 20.00000011 | AR128: 20.00000024 | AS128: 20.00000054 | AT128: 20.00000123 | AU128: 20.00000274 | AV128: 20.00000594 | AW128: 20.0000126 | AX128: 20.00002614 | AY128: 20.00005301 | AZ128: 20.00010515 | BA128: 20.00020403 | BB128: 20.00038728 | BC128: 20.00071926 | BD128: 20.00130726 | BE128: 20.00232553 | BF128: 20.00404991 | BG128: 20.00690588 | BH128: 20.01153267 | BI128: 20.01886567 | BJ128: 20.03023755 | BK128: 20.04749626 | BL128: 20.07313493 | BM128: 20.11042431 | BN128: 20.16353454 | BO128: 20.23762891 | BP128: 20.33890985 | BQ128: 20.4745975 | BR128: 20.65282381 | BS128: 20.88243198 | BT128: 21.17268087 | BU128: 21.53286593 | BV128: 21.97188149 | BW128: 22.4977606 | BX128: 23.11723618 | BY128: 23.83537004 | BZ128: 24.65529164
A129: 11.8 | B129: 118 | C129: 87.92351615 | D129: 75.95239039 | E129: 65.47730473 | F129: 56.44750407 | G129: 48.78528483 | H129: 42.38976164 | I129: 37.14215125 | J129: 32.91198419 | K129: 29.56359806 | L129: 26.96229978 | M129: 24.97969342 | N129: 23.49783035 | O129: 22.41201795 | P129: 21.63229365 | Q129: 21.08370842 | R129: 20.70565563 | S129: 20.45052388 | T129: 20.28195111 | U129: 20.17292363 | V129: 20.10391052 | W129: 20.06116394 | X129: 20.03525929 | Y129: 20.01990262 | Z129: 20.01099831 | AA129: 20.00594902 | AB129: 20.00314917 | AC129: 20.00163121 | AD129: 20.00082664 | AE129: 20.00040979 | AF129: 20.00019869 | AG129: 20.00009421 | AH129: 20.00004368 | AI129: 20.0000198 | AJ129: 20.00000877 | AK129: 20.0000038 | AL129: 20.00000161 | AM129: 20.00000067 | AN129: 20.00000028 | AO129: 20.00000012 | AP129: 20.00000009 | AQ129: 20.00000013 | AR129: 20.00000027 | AS129: 20.00000061 | AT129: 20.00000138 | AU129: 20.00000304 | AV129: 20.00000657 | AW129: 20.00001384 | AX129: 20.00002855 | AY129: 20.00005758 | AZ129: 20.0001136 | BA129: 20.00021927 | BB129: 20.00041413 | BC129: 20.00076546 | BD129: 20.00138485 | BE129: 20.00245276 | BF129: 20.00425364 | BG129: 20.00722439 | BH129: 20.0120189 | BI129: 20.01959047 | BJ129: 20.03129251 | BK129: 20.04899564 | BL129: 20.07521575 | BM129: 20.11324399 | BN129: 20.16726536 | BO129: 20.24244876 | BP129: 20.34498943 | BQ129: 20.48208438 | BR129: 20.66182474 | BS129: 20.89299524 | BT129: 21.18478082 | BU129: 21.54639235 | BV129: 21.98663572 | BW129: 22.51345983 | BX129: 23.13352654 | BY129: 23.85184742 | BZ129: 24.67152848
A130: 11.9 | B130: 119 | C130: 88.16354705 | D130: 76.19479196 | E130: 65.71604909 | F130: 56.67691864 | G130: 49.00042373 | H130: 42.58669407 | I130: 37.31813981 | J130: 33.06554235 | K130: 29.69443269 | L130: 27.07115882 | M130: 25.06814826 | N130: 23.56802621 | O130: 22.46642397 | P130: 21.67347845 | Q130: 21.11415842 | R130: 20.72764441 | S130: 20.46603271 | T130: 20.29263477 | U130: 20.18011185 | V130: 20.10863418 | W130: 20.06419563 | X130: 20.03715964 | Y130: 20.02106598 | Z130: 20.01169384 | AA130: 20.00635512 | AB130: 20.00338072 | AC130: 20.00176014 | AD130: 20.00089674 | AE130: 20.00044701 | AF130: 20.00021798 | AG130: 20.00010397 | AH130: 20.0000485 | AI130: 20.00002213 | AJ130: 20.00000987 | AK130: 20.0000043 | AL130: 20.00000184 | AM130: 20.00000077 | AN130: 20.00000032 | AO130: 20.00000015 | AP130: 20.0000001 | AQ130: 20.00000015 | AR130: 20.00000031 | AS130: 20.00000069 | AT130: 20.00000154 | AU130: 20.00000338 | AV130: 20.00000725 | AW130: 20.00001519 | AX130: 20.00003114 | AY130: 20.00006246 | AZ130: 20.00012257 | BA130: 20.00023538 | BB130: 20.00044238 | BC130: 20.00081382 | BD130: 20.00146571 | BE130: 20.00258481 | BF130: 20.00446422 | BG130: 20.00755236 | BH130: 20.01251777 | BI130: 20.02033154 | BJ130: 20.0323677 | BK130: 20.05051915 | BL130: 20.07732409 | BM130: 20.11609352 | BN130: 20.17102657 | BO130: 20.24729711 | BP130: 20.35109262 | BQ130: 20.48958669 | BR130: 20.67082966 | BS130: 20.9035482 | BT130: 21.19685427 | BU130: 21.55987543 | BV130: 22.00133064 | BW130: 22.52908632 | BX130: 23.1497347 | BY130: 23.86823824 | BZ130: 24.68768002
A131: 12 | B131: 120 | C131: 88.40236414 | D131: 76.43596774 | E131: 65.95363425 | F131: 56.9053112 | G131: 49.21473291 | H131: 42.7830236 | I131: 37.4937642 | J131: 33.21896541 | K131: 29.82533374 | L131: 27.1802458 | M131: 25.15694631 | N131: 23.63863393 | O131: 22.52126836 | P131: 21.7150937 | Q131: 21.14500586 | R131: 20.74998195 | S131: 20.48183436 | T131: 20.30355468 | U131: 20.1874838 | V131: 20.11349589 | W131: 20.06732771 | X131: 20.03913072 | Y131: 20.02227769 | Z131: 20.01242146 | AA131: 20.0067819 | AB131: 20.00362524 | AC131: 20.00189696 | AD131: 20.00097153 | AE131: 20.00048692 | AF131: 20.00023879 | AG131: 20.00011457 | AH131: 20.00005377 | AI131: 20.00002468 | AJ131: 20.00001108 | AK131: 20.00000487 | AL131: 20.00000209 | AM131: 20.00000088 | AN131: 20.00000037 | AO131: 20.00000017 | AP131: 20.00000012 | AQ131: 20.00000017 | AR131: 20.00000035 | AS131: 20.00000078 | AT131: 20.00000172 | AU131: 20.00000375 | AV131: 20.00000798 | AW131: 20.00001664 | AX131: 20.00003392 | AY131: 20.00006767 | AZ131: 20.0001321 | BA131: 20.00025239 | BB131: 20.00047206 | BC131: 20.00086441 | BD131: 20.00154994 | BE131: 20.00272177 | BF131: 20.00468177 | BG131: 20.0078899 | BH131: 20.01302934 | BI131: 20.02108895 | BJ131: 20.03346309 | BK131: 20.05206668 | BL131: 20.07945976 | BM131: 20.11897255 | BN131: 20.17481769 | BO131: 20.25217339 | BP131: 20.35721881 | BQ131: 20.49710383 | BR131: 20.67983805 | BS131: 20.91409053 | BT131: 21.20890112 | BU131: 21.57331534 | BV131: 22.01596674 | BW131: 22.54464083 | BX131: 23.16586164 | BY131: 23.88454356 | BZ131: 24.70374731
A132: 12.1 | B132: 121 | C132: 88.63998224 | D132: 76.67593268 | E132: 66.19007367 | F132: 57.13269232 | G132: 49.42821908 | H132: 42.97875271 | I132: 37.66902287 | J132: 33.37224845 | K132: 29.9562939 | L132: 27.28955219 | M132: 25.24607891 | N132: 23.70964564 | O132: 22.57654463 | P132: 21.75713462 | Q132: 21.17624769 | R132: 20.77266676 | S132: 20.49792856 | T132: 20.31471145 | U132: 20.19504064 | V132: 20.11849704 | W132: 20.07056157 | X132: 20.04117383 | Y132: 20.02353884 | Z132: 20.01318204 | AA132: 20.00723004 | AB132: 20.00388319 | AC132: 20.00204202 | AD132: 20.00105122 | AE132: 20.00052969 | AF132: 20.00026121 | AG132: 20.00012605 | AH132: 20.00005951 | AI132: 20.00002749 | AJ132: 20.00001242 | AK132: 20.00000549 | AL132: 20.00000237 | AM132: 20.00000101 | AN132: 20.00000043 | AO132: 20.0000002 | AP132: 20.00000014 | AQ132: 20.00000019 | AR132: 20.00000039 | AS132: 20.00000087 | AT132: 20.00000192 | AU132: 20.00000415 | AV132: 20.00000878 | AW132: 20.0000182 | AX132: 20.0000369 | AY132: 20.00007321 | AZ132: 20.00014219 | BA132: 20.00027034 | BB132: 20.00050323 | BC132: 20.00091729 | BD132: 20.00163759 | BE132: 20.00286372 | BF132: 20.00490636 | BG132: 20.00823708 | BH132: 20.0135537 | BI132: 20.02186271 | BJ132: 20.03457867 | BK132: 20.05363814 | BL132: 20.08162254 | BM132: 20.12188074 | BN132: 20.17863828 | BO132: 20.25707704 | BP132: 20.3633674 | BQ132: 20.50463522 | BR132: 20.68884942 | BS132: 20.9246219 | BT132: 21.22092128 | BU132: 21.58671228 | BV132: 22.03054451 | BW132: 22.56012411 | BX132: 23.1819083 | BY132: 23.90076444 | BZ132: 24.71973138
A133: 12.2 | B133: 122 | C133: 88.87641584 | D133: 76.91470143 | E133: 66.42538057 | F133: 57.35907238 | G133: 49.64088891 | H133: 43.17388394 | I133: 37.84391437 | J133: 33.52538669 | K133: 30.08730607 | L133: 27.39906965 | M133: 25.33553756 | N133: 23.78105355 | O133: 22.63224633 | P133: 21.79959641 | Q133: 21.20788081 | R133: 20.79569726 | S133: 20.51431497 | T133: 20.32610562 | U133: 20.20278344 | V133: 20.12363896 | W133: 20.07389861 | X133: 20.04329022 | Y133: 20.02485051 | Z133: 20.01397644 | AA133: 20.00770017 | AB133: 20.00415507 | AC133: 20.00219565 | AD133: 20.00113604 | AE133: 20.00057545 | AF133: 20.00028533 | AG133: 20.00013847 | AH133: 20.00006576 | AI133: 20.00003056 | AJ133: 20.00001389 | AK133: 20.00000618 | AL133: 20.00000269 | AM133: 20.00000115 | AN133: 20.00000049 | AO133: 20.00000023 | AP133: 20.00000016 | AQ133: 20.00000022 | AR133: 20.00000044 | AS133: 20.00000097 | AT133: 20.00000213 | AU133: 20.00000458 | AV133: 20.00000965 | AW133: 20.00001988 | AX133: 20.00004008 | AY133: 20.00007912 | AZ133: 20.00015288 | BA133: 20.00028925 | BB133: 20.00053592 | BC133: 20.00097252 | BD133: 20.00172875 | BE133: 20.00301075 | BF133: 20.0051381 | BG133: 20.00859401 | BH133: 20.01409093 | BI133: 20.02265288 | BJ133: 20.03571441 | BK133: 20.0552334 | BL133: 20.0838122 | BM133: 20.12481777 | BN133: 20.18248789 | BO133: 20.26200754 | BP133: 20.3695378 | BQ133: 20.51218028 | BR133: 20.69786326 | BS133: 20.93514198 | BT133: 21.23291466 | BU133: 21.60006644 | BV133: 22.04506442 | BW133: 22.5755369 | BX133: 23.1978756 | BY133: 23.9169019 | BZ133: 24.73563326
A134: 12.3 | B134: 123 | C134: 89.11167916 | D134: 77.15228833 | E134: 66.65956787 | F134: 57.58446161 | G134: 49.85274897 | H134: 43.36841982 | I134: 38.01843737 | J134: 33.67837556 | K134: 30.21836335 | L134: 27.50879005 | M134: 25.42531393 | N134: 23.85285001 | O134: 22.6883671 | P134: 21.8424743 | Q134: 21.2399021 | R134: 20.81907184 | S134: 20.53099319 | T134: 20.33773769 | U134: 20.21071325 | V134: 20.12892298 | W134: 20.07734017 | X134: 20.04548117 | Y134: 20.02621379 | Z134: 20.01480553 | AA134: 20.00819299 | AB134: 20.00444136 | AC134: 20.0023582 | AD134: 20.00122623 | AE134: 20.00062435 | AF134: 20.00031124 | AG134: 20.00015188 | AH134: 20.00007255 | AI134: 20.00003391 | AJ134: 20.00001551 | AK134: 20.00000695 | AL134: 20.00000304 | AM134: 20.00000131 | AN134: 20.00000056 | AO134: 20.00000026 | AP134: 20.00000018 | AQ134: 20.00000025 | AR134: 20.0000005 | AS134: 20.00000109 | AT134: 20.00000237 | AU134: 20.00000506 | AV134: 20.00001058 | AW134: 20.00002168 | AX134: 20.00004349 | AY134: 20.00008539 | AZ134: 20.00016419 | BA134: 20.00030917 | BB134: 20.00057019 | BC134: 20.00103016 | BD134: 20.00182349 | BE134: 20.00316295 | BF134: 20.00537709 | BG134: 20.00896078 | BH134: 20.01464108 | BI134: 20.02345948 | BJ134: 20.03687028 | BK134: 20.05685235 | BL134: 20.08602853 | BM134: 20.12778329 | BN134: 20.18636607 | BO134: 20.26696434 | BP134: 20.37572943 | BQ134: 20.51973845 | BR134: 20.70687913 | BS134: 20.94565047 | BT134: 21.24488119 | BU134: 21.613378 | BV134: 22.05952696 | BW134: 22.59087992 | BX134: 23.21376448 | BY134: 23.93295695 | BZ134: 24.75145393
A135: 12.4 | B135: 124 | C135: 89.3457861 | D135: 77.38870745 | E135: 66.89264827 | F135: 57.80887005 | G135: 50.06380576 | H135: 43.56236294 | I135: 38.19259068 | J135: 33.83121067 | K135: 30.34945906 | L135: 27.61870545 | M135: 25.51539986 | N135: 23.92502747 | O135: 22.74490062 | P135: 21.88576352 | Q135: 21.27230841 | R135: 20.84278882 | S135: 20.54796278 | T135: 20.34960807 | U135: 20.21883105 | V135: 20.13435034 | W135: 20.08088758 | X135: 20.0477479 | Y135: 20.02762973 | Z135: 20.01567019 | AA135: 20.00870914 | AB135: 20.00474256 | AC135: 20.00253 | AD135: 20.00132202 | AE135: 20.00067656 | AF135: 20.00033905 | AG135: 20.00016636 | AH135: 20.00007991 | AI135: 20.00003758 | AJ135: 20.00001729 | AK135: 20.00000779 | AL135: 20.00000344 | AM135: 20.00000149 | AN135: 20.00000064 | AO135: 20.0000003 | AP135: 20.00000021 | AQ135: 20.00000028 | AR135: 20.00000056 | AS135: 20.00000121 | AT135: 20.00000262 | AU135: 20.00000557 | AV135: 20.00001159 | AW135: 20.00002362 | AX135: 20.00004712 | AY135: 20.00009206 | AZ135: 20.00017614 | BA135: 20.00033012 | BB135: 20.00060609 | BC135: 20.00109026 | BD135: 20.00192189 | BE135: 20.00332041 | BF135: 20.00562341 | BG135: 20.00933747 | BH135: 20.01520424 | BI135: 20.02428254 | BJ135: 20.03804624 | BK135: 20.05849487 | BL135: 20.0882713 | BM135: 20.13077698 | BN135: 20.19027239 | BO135: 20.27194693 | BP135: 20.38194173 | BQ135: 20.52730918 | BR135: 20.71589654 | BS135: 20.95614707 | BT135: 21.25682078 | BU135: 21.62664717 | BV135: 22.07393258 | BW135: 22.60615389 | BX135: 23.22957581 | BY135: 23.94893057 | BZ135: 24.76719436
A136: 12.5 | B136: 125 | C136: 89.57875033 | D136: 77.62397256 | E136: 67.12463423 | F136: 58.03230758 | G136: 50.2740657 | H136: 43.75571589 | I136: 38.36637318 | J136: 33.98388777 | K136: 30.48058669 | L136: 27.7288081 | M136: 25.60578733 | N136: 23.99757852 | O136: 22.80184064 | P136: 21.92945933 | Q136: 21.30509658 | R136: 20.8668465 | S136: 20.56522321 | T136: 20.36171714 | U136: 20.22713777 | V136: 20.13992227 | W136: 20.08454213 | X136: 20.05009163 | Y136: 20.02909942 | Z136: 20.01657128 | AA136: 20.00924932 | AB136: 20.00505916 | AC136: 20.00271143 | AD136: 20.00142366 | AE136: 20.00073223 | AF136: 20.00036886 | AG136: 20.00018196 | AH136: 20.0000879 | AI136: 20.00004157 | AJ136: 20.00001925 | AK136: 20.00000872 | AL136: 20.00000387 | AM136: 20.00000169 | AN136: 20.00000073 | AO136: 20.00000035 | AP136: 20.00000024 | AQ136: 20.00000032 | AR136: 20.00000063 | AS136: 20.00000135 | AT136: 20.0000029 | AU136: 20.00000613 | AV136: 20.00001268 | AW136: 20.00002569 | AX136: 20.000051 | AY136: 20.00009913 | AZ136: 20.00018877 | BA136: 20.00035214 | BB136: 20.00064365 | BC136: 20.0011529 | BD136: 20.00202401 | BE136: 20.0034832 | BF136: 20.00587715 | BG136: 20.00972417 | BH136: 20.01578046 | BI136: 20.02512208 | BJ136: 20.03924225 | BK136: 20.06016084 | BL136: 20.09054028 | BM136: 20.13379849 | BN136: 20.19420639 | BO136: 20.27695478 | BP136: 20.38817414 | BQ136: 20.53489194 | BR136: 20.72491507 | BS136: 20.9666315 | BT136: 21.26873338 | BU136: 21.63987413 | BV136: 22.08828175 | BW136: 22.6213595 | BX136: 23.24531049 | BY136: 23.96482373 | BZ136: 24.7828555
A137: 12.6 | B137: 126 | C137: 89.81058521 | D137: 77.85809716 | E137: 67.35553798 | F137: 58.25478391 | G137: 50.48353516 | H137: 43.9484813 | I137: 38.53978388 | J137: 34.13640278 | K137: 30.61173993 | L137: 27.83909044 | M137: 25.69646851 | N137: 24.07049583 | O137: 22.85918096 | P137: 21.973557 | Q137: 21.3382634 | R137: 20.8912431 | S137: 20.5827739 | T137: 20.37406521 | U137: 20.23563431 | V137: 20.14563996 | W137: 20.0883051 | X137: 20.05251359 | Y137: 20.0306239 | Z137: 20.01750968 | AA137: 20.00981421 | AB137: 20.00539169 | AC137: 20.00290284 | AD137: 20.0015314 | AE137: 20.00079153 | AF137: 20.00040077 | AG137: 20.00019876 | AH137: 20.00009654 | AI137: 20.00004592 | AJ137: 20.00002138 | AK137: 20.00000975 | AL137: 20.00000436 | AM137: 20.00000191 | AN137: 20.00000084 | AO137: 20.0000004 | AP137: 20.00000027 | AQ137: 20.00000036 | AR137: 20.0000007 | AS137: 20.0000015 | AT137: 20.0000032 | AU137: 20.00000673 | AV137: 20.00001385 | AW137: 20.00002792 | AX137: 20.00005512 | AY137: 20.00010663 | AZ137: 20.00020208 | BA137: 20.00037526 | BB137: 20.00068292 | BC137: 20.00121812 | BD137: 20.00212993 | BE137: 20.00365142 | BF137: 20.00613839 | BG137: 20.01012095 | BH137: 20.0163698 | BI137: 20.02597812 | BJ137: 20.04045828 | BK137: 20.06185014 | BL137: 20.09283526 | BM137: 20.1368475 | BN137: 20.19816766 | BO137: 20.28198738 | BP137: 20.39442612 | BQ137: 20.5424862 | BR137: 20.73393428 | BS137: 20.97710348 | BT137: 21.28061893 | BU137: 21.65305909 | BV137: 22.10257493 | BW137: 22.63649746 | BX137: 23.26096936 | BY137: 23.98063738 | BZ137: 24.7984383
A138: 12.7 | B138: 127 | C138: 90.04130385 | D138: 78.0910945 | E138: 67.58537149 | F138: 58.47630859 | G138: 50.69222042 | H138: 44.14066182 | I138: 38.71282188 | J138: 34.28875179 | K138: 30.74291265 | L138: 27.94954508 | M138: 25.78743568 | N138: 24.14377221 | O138: 22.91691547 | P138: 22.0180518 | Q138: 21.37180567 | R138: 20.91597682 | S138: 20.60061423 | T138: 20.38665252 | U138: 20.24432149 | V138: 20.15150455 | W138: 20.09217772 | X138: 20.05501495 | Y138: 20.03220422 | Z138: 20.01848625 | AA138: 20.01040447 | AB138: 20.00574063 | AC138: 20.0031046 | AD138: 20.00164549 | AE138: 20.00085462 | AF138: 20.0004349 | AG138: 20.00021681 | AH138: 20.00010587 | AI138: 20.00005064 | AJ138: 20.00002372 | AK138: 20.00001088 | AL138: 20.00000489 | AM138: 20.00000216 | AN138: 20.00000095 | AO138: 20.00000045 | AP138: 20.00000031 | AQ138: 20.00000041 | AR138: 20.00000078 | AS138: 20.00000166 | AT138: 20.00000353 | AU138: 20.00000738 | AV138: 20.0000151 | AW138: 20.00003029 | AX138: 20.00005952 | AY138: 20.00011457 | AZ138: 20.00021612 | BA138: 20.00039953 | BB138: 20.00072396 | BC138: 20.00128599 | BD138: 20.00223972 | BE138: 20.00382514 | BF138: 20.00640723 | BG138: 20.01052789 | BH138: 20.01697231 | BI138: 20.02685068 | BJ138: 20.04169426 | BK138: 20.06356262 | BL138: 20.09515601 | BM138: 20.13992368 | BN138: 20.20215576 | BO138: 20.28704424 | BP138: 20.40069713 | BQ138: 20.55009146 | BR138: 20.74295375 | BS138: 20.98756275 | BT138: 21.29247738 | BU138: 21.66620225 | BV138: 22.11681257 | BW138: 22.65156843 | BX138: 23.27655328 | BY138: 23.99637245 | BZ138: 24.81394366
A139: 12.8 | B139: 128 | C139: 90.2709191 | D139: 78.32297756 | E139: 67.81414653 | F139: 58.69689101 | G139: 50.90012769 | H139: 44.33226008 | I139: 38.88548639 | J139: 34.44093102 | K139: 30.8740989 | L139: 28.06016481 | M139: 25.87868131 | N139: 24.21740054 | O139: 22.9750381 | P139: 22.06293904 | Q139: 21.40572016 | R139: 20.94104583 | S139: 20.61874351 | T139: 20.39947928 | U139: 20.25320009 | V139: 20.15751714 | W139: 20.09616121 | X139: 20.0575969 | Y139: 20.03384143 | Z139: 20.01950187 | AA139: 20.0110208 | AB139: 20.00610652 | AC139: 20.00331708 | AD139: 20.0017662 | AE139: 20.00092169 | AF139: 20.00047135 | AG139: 20.00023619 | AH139: 20.00011595 | AI139: 20.00005576 | AJ139: 20.00002627 | AK139: 20.00001212 | AL139: 20.00000548 | AM139: 20.00000243 | AN139: 20.00000108 | AO139: 20.00000052 | AP139: 20.00000035 | AQ139: 20.00000046 | AR139: 20.00000087 | AS139: 20.00000184 | AT139: 20.00000389 | AU139: 20.00000808 | AV139: 20.00001645 | AW139: 20.00003283 | AX139: 20.00006418 | AY139: 20.00012297 | AZ139: 20.0002309 | BA139: 20.00042497 | BB139: 20.0007668 | BC139: 20.00135657 | BD139: 20.00235346 | BE139: 20.00400444 | BF139: 20.00668375 | BG139: 20.01094508 | BH139: 20.01758805 | BI139: 20.02773977 | BJ139: 20.04295017 | BK139: 20.06529817 | BL139: 20.0975023 | BM139: 20.14302669 | BN139: 20.20617028 | BO139: 20.29212486 | BP139: 20.40698665 | BQ139: 20.55770722 | BR139: 20.75197307 | BS139: 20.99800906 | BT139: 21.30430869 | BU139: 21.67930379 | BV139: 22.13099511 | BW139: 22.66657308 | BX139: 23.29206308 | BY139: 24.01202985 | BZ139: 24.82937248
A140: 12.9 | B140: 129 | C140: 90.49944358 | D140: 78.55375907 | E140: 68.04187467 | F140: 58.91654044 | G140: 51.10726312 | H140: 44.52327879 | I140: 39.05777667 | J140: 34.59293686 | K140: 31.00529289 | L140: 28.17094259 | M140: 25.97019799 | N140: 24.29137387 | O140: 23.03354285 | P140: 22.10821405 | Q140: 21.44000363 | R140: 20.96644822 | S140: 20.63716102 | T140: 20.41254562 | U140: 20.26227085 | V140: 20.16367879 | W140: 20.10025676 | X140: 20.06026058 | Y140: 20.03553656 | Z140: 20.02055739 | AA140: 20.01166388 | AB140: 20.00648986 | AC140: 20.00354066 | AD140: 20.00189378 | AE140: 20.00099292 | AF140: 20.00051025 | AG140: 20.00025697 | AH140: 20.00012681 | AI140: 20.00006132 | AJ140: 20.00002905 | AK140: 20.00001348 | AL140: 20.00000613 | AM140: 20.00000274 | AN140: 20.00000122 | AO140: 20.00000059 | AP140: 20.0000004 | AQ140: 20.00000051 | AR140: 20.00000097 | AS140: 20.00000204 | AT140: 20.00000428 | AU140: 20.00000884 | AV140: 20.0000179 | AW140: 20.00003554 | AX140: 20.00006914 | AY140: 20.00013184 | AZ140: 20.00024645 | BA140: 20.00045163 | BB140: 20.0008115 | BC140: 20.00142992 | BD140: 20.00247121 | BE140: 20.0041894 | BF140: 20.00696803 | BG140: 20.01137257 | BH140: 20.01821708 | BI140: 20.02864538 | BJ140: 20.04422593 | BK140: 20.06705665 | BL140: 20.0998739 | BM140: 20.14615621 | BN140: 20.21021078 | BO140: 20.29722876 | BP140: 20.41329417 | BQ140: 20.56533299 | BR140: 20.76099186 | BS140: 21.00844217 | BT140: 21.31611282 | BU140: 21.69236393 | BV140: 22.145123 | BW140: 22.68151208 | BX140: 23.30749956 | BY140: 24.02761046 | BZ140: 24.84472564
A141: 13 | B141: 130 | C141: 90.72688965 | D141: 78.78345153 | E141: 68.26856724 | F141: 59.13526595 | G141: 51.31363277 | H141: 44.71372061 | I141: 39.22969212 | J141: 34.7447658 | K141: 31.13648901 | L141: 28.28187155 | M141: 26.06197848 | N141: 24.36568529 | O141: 23.09242378 | P141: 22.15387218 | Q141: 21.47465283 | R141: 20.99218209 | S141: 20.65586596 | T141: 20.42585165 | U141: 20.27153446 | V141: 20.16999055 | W141: 20.10446553 | X141: 20.06300714 | Y141: 20.03729063 | Z141: 20.02165368 | AA141: 20.0123344 | AB141: 20.00689119 | AC141: 20.00377572 | AD141: 20.0020285 | AE141: 20.00106848 | AF141: 20.00055171 | AG141: 20.00027924 | AH141: 20.00013851 | AI141: 20.00006733 | AJ141: 20.00003207 | AK141: 20.00001497 | AL141: 20.00000685 | AM141: 20.00000308 | AN141: 20.00000138 | AO141: 20.00000067 | AP141: 20.00000046 | AQ141: 20.00000058 | AR141: 20.00000108 | AS141: 20.00000225 | AT141: 20.0000047 | AU141: 20.00000965 | AV141: 20.00001945 | AW141: 20.00003842 | AX141: 20.0000744 | AY141: 20.00014122 | AZ141: 20.0002628 | BA141: 20.00047953 | BB141: 20.00085811 | BC141: 20.0015061 | BD141: 20.00259305 | BE141: 20.00438011 | BF141: 20.00726014 | BG141: 20.01181045 | BH141: 20.01885942 | BI141: 20.02956754 | BJ141: 20.04552149 | BK141: 20.06883791 | BL141: 20.10227058 | BM141: 20.14931191 | BN141: 20.21427686 | BO141: 20.30235545 | BP141: 20.41961919 | BQ141: 20.5729683 | BR141: 20.77000971 | BS141: 21.01886185 | BT141: 21.32788974 | BU141: 21.70538287 | BV141: 22.15919667 | BW141: 22.69638606 | BX141: 23.32286354 | BY141: 24.04311518 | BZ141: 24.86000401
A142: 13.1 | B142: 131 | C142: 90.95326944 | D142: 79.01206717 | E142: 68.49423537 | F142: 59.35307649 | G142: 51.51924266 | H142: 44.90358825 | I142: 39.40123218 | J142: 34.89641451 | K142: 31.26768181 | L142: 28.39294499 | M142: 26.15401565 | N142: 24.44032805 | O142: 23.15167504 | P142: 22.1999088 | Q142: 21.5096645 | R142: 21.01824547 | S142: 20.67485751 | T142: 20.43939739 | U142: 20.28099156 | V142: 20.17645339 | W142: 20.10878864 | X142: 20.0658377 | Y142: 20.03910467 | Z142: 20.0227916 | AA142: 20.01303305 | AB142: 20.00731104 | AC142: 20.00402265 | AD142: 20.00217064 | AE142: 20.00114855 | AF142: 20.00059587 | AG142: 20.00030306 | AH142: 20.00015109 | AI142: 20.00007383 | AJ142: 20.00003536 | AK142: 20.00001659 | AL142: 20.00000764 | AM142: 20.00000346 | AN142: 20.00000156 | AO142: 20.00000076 | AP142: 20.00000052 | AQ142: 20.00000065 | AR142: 20.0000012 | AS142: 20.00000248 | AT142: 20.00000515 | AU142: 20.00001053 | AV142: 20.00002111 | AW142: 20.0000415 | AX142: 20.00007997 | AY142: 20.0001511 | AZ142: 20.00027997 | BA142: 20.00050872 | BB142: 20.00090667 | BC142: 20.00158516 | BD142: 20.00271905 | BE142: 20.00457663 | BF142: 20.00756017 | BG142: 20.01225877 | BH142: 20.01951513 | BI142: 20.03050623 | BJ142: 20.0468368 | BK142: 20.07064183 | BL142: 20.10469212 | BM142: 20.15249347 | BN142: 20.21836811 | BO142: 20.30750447 | BP142: 20.42596121 | BQ142: 20.5806127 | BR142: 20.77902628 | BS142: 21.02926787 | BT142: 21.33963943 | BU142: 21.7183608 | BV142: 22.17321656 | BW142: 22.71119567 | BX142: 23.33815579 | BY142: 24.05854485 | BZ142: 24.87520843
A143: 13.2 | B143: 132 | C143: 91.17859486 | D143: 79.23961802 | E143: 68.71889001 | F143: 59.56998088 | G143: 51.7240987 | H143: 45.09288441 | I143: 39.57239639 | J143: 35.04787976 | K143: 31.39886599 | L143: 28.50415635 | M143: 26.24630254 | N143: 24.51529549 | O143: 23.21129081 | P143: 22.2463193 | Q143: 21.54503536 | R143: 21.04463638 | S143: 20.69413479 | T143: 20.45318285 | U143: 20.29064273 | V143: 20.18306826 | W143: 20.11322719 | X143: 20.06875336 | Y143: 20.04097968 | Z143: 20.02397201 | AA143: 20.01376053 | AB143: 20.00774992 | AC143: 20.00428185 | AD143: 20.00232049 | AE143: 20.00123335 | AF143: 20.00064283 | AG143: 20.00032852 | AH143: 20.0001646 | AI143: 20.00008085 | AJ143: 20.00003892 | AK143: 20.00001837 | AL143: 20.0000085 | AM143: 20.00000387 | AN143: 20.00000176 | AO143: 20.00000086 | AP143: 20.00000058 | AQ143: 20.00000072 | AR143: 20.00000133 | AS143: 20.00000273 | AT143: 20.00000564 | AU143: 20.00001147 | AV143: 20.00002288 | AW143: 20.00004476 | AX143: 20.00008587 | AY143: 20.00016153 | AZ143: 20.00029799 | BA143: 20.00053924 | BB143: 20.00095723 | BC143: 20.00166717 | BD143: 20.00284927 | BE143: 20.00477906 | BF143: 20.00786819 | BG143: 20.01271761 | BH143: 20.02018425 | BI143: 20.03146146 | BJ143: 20.04817178 | BK143: 20.07246826 | BL143: 20.10713827 | BM143: 20.15570057 | BN143: 20.22248413 | BO143: 20.31267535 | BP143: 20.43231976 | BQ143: 20.58826572 | BR143: 20.78804119 | BS143: 21.03966001 | BT143: 21.35136185 | BU143: 21.73129793 | BV143: 22.18718309 | BW143: 22.72594152 | BX143: 23.35337709 | BY143: 24.07390032 | BZ143: 24.89033974
A144: 13.3 | B144: 133 | C144: 91.40287757 | D144: 79.46611587 | E144: 68.94254187 | F144: 59.78598778 | G144: 51.92820678 | H144: 45.28161183 | I144: 39.74318437 | J144: 35.19915846 | K144: 31.53003641 | L144: 28.61549923 | M144: 26.33883232 | N144: 24.59058103 | O144: 23.27126536 | P144: 22.29309911 | Q144: 21.58076212 | R144: 21.0713528 | S144: 20.71369688 | T144: 20.46720796 | U144: 20.30048854 | V144: 20.18983608 | W144: 20.11778227 | X144: 20.07175521 | Y144: 20.04291665 | Z144: 20.02519576 | AA144: 20.01451752 | AB144: 20.00820839 | AC144: 20.0045537 | AD144: 20.00247831 | AE144: 20.00132305 | AF144: 20.00069274 | AG144: 20.00035571 | AH144: 20.0001791 | AI144: 20.00008842 | AJ144: 20.00004279 | AK144: 20.0000203 | AL144: 20.00000945 | AM144: 20.00000433 | AN144: 20.00000198 | AO144: 20.00000097 | AP144: 20.00000066 | AQ144: 20.00000081 | AR144: 20.00000148 | AS144: 20.00000301 | AT144: 20.00000617 | AU144: 20.00001248 | AV144: 20.00002477 | AW144: 20.00004824 | AX144: 20.00009211 | AY144: 20.0001725 | AZ144: 20.0003169 | BA144: 20.00057111 | BB144: 20.00100984 | BC144: 20.00175219 | BD144: 20.00298379 | BE144: 20.00498744 | BF144: 20.00818427 | BG144: 20.01318702 | BH144: 20.0208668 | BI144: 20.03243322 | BJ144: 20.04952637 | BK144: 20.07431706 | BL144: 20.10960882 | BM144: 20.15893288 | BN144: 20.2266245 | BO144: 20.31786764 | BP144: 20.43869435 | BQ144: 20.59592693 | BR144: 20.79705409 | BS144: 21.05003808 | BT144: 21.36305701 | BU144: 21.74419445 | BV144: 22.20109668 | BW144: 22.74062423 | BX144: 23.36852819 | BY144: 24.08918242 | BZ144: 24.90539874
A145: 13.4 | B145: 134 | C145: 91.62612904 | D145: 79.69157229 | E145: 69.16520152 | F145: 60.00110572 | G145: 52.1315727 | H145: 45.46977321 | I145: 39.91359579 | J145: 35.35024762 | K145: 31.66118807 | L145: 28.7269674 | M145: 26.43159827 | N145: 24.66617823 | O145: 23.33159301 | P145: 22.34024367 | Q145: 21.61684152 | R145: 21.09839268 | S145: 20.73354282 | T145: 20.48147262 | U145: 20.31052948 | V145: 20.19675771 | W145: 20.12245492 | X145: 20.07484432 | Y145: 20.04491657 | Z145: 20.0264637 | AA145: 20.01530471 | AB145: 20.00868697 | AC145: 20.00483862 | AD145: 20.0026444 | AE145: 20.00141785 | AF145: 20.00074573 | AG145: 20.00038471 | AH145: 20.00019464 | AI145: 20.00009657 | AJ145: 20.00004698 | AK145: 20.00002241 | AL145: 20.00001049 | AM145: 20.00000483 | AN145: 20.00000222 | AO145: 20.0000011 | AP145: 20.00000074 | AQ145: 20.0000009 | AR145: 20.00000163 | AS145: 20.0000033 | AT145: 20.00000674 | AU145: 20.00001356 | AV145: 20.00002679 | AW145: 20.00005193 | AX145: 20.00009871 | AY145: 20.00018406 | AZ145: 20.00033671 | BA145: 20.00060438 | BB145: 20.00106454 | BC145: 20.00184027 | BD145: 20.00312267 | BE145: 20.00520188 | BF145: 20.00850848 | BG145: 20.01366706 | BH145: 20.02156283 | BI145: 20.0334215 | BJ145: 20.05090051 | BK145: 20.07618807 | BL145: 20.11210352 | BM145: 20.16219009 | BN145: 20.23078885 | BO145: 20.32308089 | BP145: 20.44508453 | BQ145: 20.6035959 | BR145: 20.80606464 | BS145: 21.06040188 | BT145: 21.37472489 | BU145: 21.75705058 | BV145: 22.21495776 | BW145: 22.75524441 | BX145: 23.38360984 | BY145: 24.10439196 | BZ145: 24.92038624
A146: 13.5 | B146: 135 | C146: 91.84836052 | D146: 79.91599865 | E146: 69.38687932 | F146: 60.21534309 | G146: 52.33420218 | H146: 45.65737128 | I146: 40.08363041 | J146: 35.5011444 | K146: 31.79231611 | L146: 28.83855476 | M146: 26.52459383 | N146: 24.74208072 | O146: 23.39226816 | P146: 22.38774848 | Q146: 21.65327026 | R146: 21.12575396 | S146: 20.75367161 | T146: 20.49597668 | U146: 20.32076601 | V146: 20.20383401 | W146: 20.12724615 | X146: 20.07802172 | Y146: 20.04698041 | Z146: 20.02777667 | AA146: 20.01612281 | AB146: 20.00918621 | AC146: 20.005137 | AD146: 20.00281905 | AE146: 20.00151797 | AF146: 20.00080194 | AG146: 20.00041561 | AH146: 20.00021127 | AI146: 20.00010534 | AJ146: 20.00005151 | AK146: 20.0000247 | AL146: 20.00001162 | AM146: 20.00000538 | AN146: 20.00000249 | AO146: 20.00000124 | AP146: 20.00000084 | AQ146: 20.00000101 | AR146: 20.0000018 | AS146: 20.00000362 | AT146: 20.00000735 | AU146: 20.00001472 | AV146: 20.00002894 | AW146: 20.00005584 | AX146: 20.00010567 | AY146: 20.0001962 | AZ146: 20.00035746 | BA146: 20.00063908 | BB146: 20.00112139 | BC146: 20.00193148 | BD146: 20.00326598 | BE146: 20.00542242 | BF146: 20.0088409 | BG146: 20.01415779 | BH146: 20.02227237 | BI146: 20.03442628 | BJ146: 20.05229411 | BK146: 20.07808116 | BL146: 20.11462215 | BM146: 20.16547188 | BN146: 20.23497677 | BO146: 20.32831466 | BP146: 20.45148984 | BQ146: 20.61127222 | BR146: 20.81507252 | BS146: 21.07075122 | BT146: 21.38636548 | BU146: 21.76986651 | BV146: 22.22876672 | BW146: 22.76980265 | BX146: 23.39862277 | BY146: 24.11952973 | BZ146: 24.93530302
A147: 13.6 | B147: 136 | C147: 92.06958306 | D147: 80.1394061 | E147: 69.60758544 | F147: 60.42870815 | G147: 52.53610089 | H147: 45.84440879 | I147: 40.25328805 | J147: 35.65184606 | K147: 31.92341583 | L147: 28.95025534 | M147: 26.61781256 | N147: 24.81828225 | O147: 23.45328525 | P147: 22.43560902 | Q147: 21.69004505 | R147: 21.15343452 | S147: 20.7740822 | T147: 20.51071995 | U147: 20.33119856 | V147: 20.21106577 | W147: 20.13215695 | X147: 20.08128845 | Y147: 20.04910915 | Z147: 20.02913552 | AA147: 20.01697249 | AB147: 20.00970666 | AC147: 20.00544925 | AD147: 20.00300256 | AE147: 20.00162361 | AF147: 20.0008615 | AG147: 20.0004485 | AH147: 20.00022906 | AI147: 20.00011476 | AJ147: 20.00005639 | AK147: 20.00002718 | AL147: 20.00001286 | AM147: 20.00000599 | AN147: 20.00000279 | AO147: 20.00000139 | AP147: 20.00000094 | AQ147: 20.00000112 | AR147: 20.00000199 | AS147: 20.00000397 | AT147: 20.00000801 | AU147: 20.00001596 | AV147: 20.00003123 | AW147: 20.00005998 | AX147: 20.00011302 | AY147: 20.00020897 | AZ147: 20.00037917 | BA147: 20.00067525 | BB147: 20.00118043 | BC147: 20.00202586 | BD147: 20.00341379 | BE147: 20.00564915 | BF147: 20.0091816 | BG147: 20.01465927 | BH147: 20.02299544 | BI147: 20.03544755 | BJ147: 20.0537071 | BK147: 20.07999618 | BL147: 20.11716448 | BM147: 20.16877793 | BN147: 20.23918788 | BO147: 20.33356851 | BP147: 20.45790984 | BQ147: 20.61895546 | BR147: 20.82407741 | BS147: 21.08108591 | BT147: 21.39797878 | BU147: 21.78264245 | BV147: 22.24252399 | BW147: 22.78429954 | BX147: 23.41356769 | BY147: 24.13459653 | BZ147: 24.95014986
A148: 13.7 | B148: 137 | C148: 92.28980749 | D148: 80.36180559 | E148: 69.82732989 | F148: 60.64120905 | G148: 52.73727444 | H148: 46.03088846 | I148: 40.4225686 | J148: 35.80234995 | K148: 32.05448265 | L148: 29.06206335 | M148: 26.71124814 | N148: 24.89477667 | O148: 23.51463882 | P148: 22.48382085 | Q148: 21.72716261 | R148: 21.18143225 | S148: 20.79477351 | T148: 20.52570219 | U148: 20.34182749 | V148: 20.21845376 | W148: 20.1371883 | X148: 20.08464552 | Y148: 20.05130372 | Z148: 20.03054108 | AA148: 20.01785446 | AB148: 20.01024885 | AC148: 20.0057758 | AD148: 20.00319523 | AE148: 20.00173497 | AF148: 20.00092456 | AG148: 20.00048348 | AH148: 20.00024807 | AI148: 20.00012488 | AJ148: 20.00006167 | AK148: 20.00002988 | AL148: 20.00001421 | AM148: 20.00000665 | AN148: 20.00000312 | AO148: 20.00000156 | AP148: 20.00000106 | AQ148: 20.00000124 | AR148: 20.00000219 | AS148: 20.00000434 | AT148: 20.00000872 | AU148: 20.00001728 | AV148: 20.00003367 | AW148: 20.00006437 | AX148: 20.00012077 | AY148: 20.00022236 | AZ148: 20.00040187 | BA148: 20.00071294 | BB148: 20.00124171 | BC148: 20.00212349 | BD148: 20.00356615 | BE148: 20.00588214 | BF148: 20.00953063 | BG148: 20.01517155 | BH148: 20.02373206 | BI148: 20.03648529 | BJ148: 20.05513942 | BK148: 20.08193298 | BL148: 20.11973028 | BM148: 20.17210794 | BN148: 20.2434218 | BO148: 20.33884201 | BP148: 20.46434408 | BQ148: 20.62664524 | BR148: 20.83307898 | BS148: 21.09140578 | BT148: 21.4095648 | BU148: 21.7953786 | BV148: 22.25622995 | BW148: 22.79873566 | BX148: 23.42844531 | BY148: 24.1495931 | BZ148: 24.96492751
A149: 13.8 | B149: 138 | C149: 92.50904447 | D149: 80.58320787 | E149: 70.0461225 | F149: 60.8528538 | G149: 52.93772836 | H149: 46.21681304 | I149: 40.591472 | J149: 35.95265355 | K149: 32.18551211 | L149: 29.17397309 | M149: 26.80489438 | N149: 24.97155791 | O149: 23.57632344 | P149: 22.53237953 | Q149: 21.76461964 | R149: 21.20974501 | S149: 20.81574443 | T149: 20.54092313 | U149: 20.35265316 | V149: 20.22599871 | W149: 20.14234111 | X149: 20.08809391 | Y149: 20.05356508 | Z149: 20.03199419 | AA149: 20.0187694 | AB149: 20.01081334 | AC149: 20.00611704 | AD149: 20.00339736 | AE149: 20.00185228 | AF149: 20.00099126 | AG149: 20.00052064 | AH149: 20.00026835 | AI149: 20.00013572 | AJ149: 20.00006735 | AK149: 20.0000328 | AL149: 20.00001568 | AM149: 20.00000738 | AN149: 20.00000347 | AO149: 20.00000175 | AP149: 20.00000118 | AQ149: 20.00000138 | AR149: 20.00000241 | AS149: 20.00000474 | AT149: 20.00000947 | AU149: 20.0000187 | AV149: 20.00003626 | AW149: 20.00006901 | AX149: 20.00012893 | AY149: 20.00023642 | AZ149: 20.00042559 | BA149: 20.00075217 | BB149: 20.00130527 | BC149: 20.0022244 | BD149: 20.00372315 | BE149: 20.00612145 | BF149: 20.00988806 | BG149: 20.01569466 | BH149: 20.02448225 | BI149: 20.03753949 | BJ149: 20.05659096 | BK149: 20.08389139 | BL149: 20.12231931 | BM149: 20.17546159 | BN149: 20.24767815 | BO149: 20.34413475 | BP149: 20.47079215 | BQ149: 20.63434116 | BR149: 20.84207694 | BS149: 21.10171067 | BT149: 21.42112354 | BU149: 21.80807516 | BV149: 22.26988501 | BW149: 22.81311158 | BX149: 23.44325633 | BY149: 24.16452022 | BZ149: 24.97963672
A150: 13.9 | B150: 139 | C150: 92.72730445 | D150: 80.8036235 | E150: 70.26397293 | F150: 61.06365027 | G150: 53.13746814 | H150: 46.40218526 | I150: 40.75999825 | J150: 36.10275443 | K150: 32.31649991 | L150: 29.28597903 | M150: 26.89874521 | N150: 25.04862001 | O150: 23.63833377 | P150: 22.58128066 | Q150: 21.80241285 | R150: 21.23837064 | S150: 20.83699381 | T150: 20.55638244 | U150: 20.36367584 | V150: 20.23370131 | W150: 20.14761631 | X150: 20.09163461 | Y150: 20.05589416 | Z150: 20.03349566 | AA150: 20.01971801 | AB150: 20.01140067 | AC150: 20.00647341 | AD150: 20.00360926 | AE150: 20.00197575 | AF150: 20.00106176 | AG150: 20.00056009 | AH150: 20.00028998 | AI150: 20.00014734 | AJ150: 20.00007347 | AK150: 20.00003595 | AL150: 20.00001727 | AM150: 20.00000818 | AN150: 20.00000387 | AO150: 20.00000196 | AP150: 20.00000132 | AQ150: 20.00000153 | AR150: 20.00000264 | AS150: 20.00000518 | AT150: 20.00001029 | AU150: 20.0000202 | AV150: 20.000039 | AW150: 20.00007391 | AX150: 20.00013751 | AY150: 20.00025115 | AZ150: 20.00045036 | BA150: 20.00079298 | BB150: 20.00137117 | BC150: 20.00232868 | BD150: 20.00388483 | BE150: 20.00636714 | BF150: 20.01025395 | BG150: 20.01622867 | BH150: 20.02524605 | BI150: 20.0386101 | BJ150: 20.05806166 | BK150: 20.08587128 | BL150: 20.12493134 | BM150: 20.17883858 | BN150: 20.25195656 | BO150: 20.34944631 | BP150: 20.47725361 | BQ150: 20.64204284 | BR150: 20.85107101 | BS150: 21.11200042 | BT150: 21.43265502 | BU150: 21.82073233 | BV150: 22.28348956 | BW150: 22.82742785 | BX150: 23.45800142 | BY150: 24.17937862 | BZ150: 24.9942782
A151: 14 | B151: 140 | C151: 92.94459769 | D151: 81.02306285 | E151: 70.48089068 | F151: 61.27360624 | G151: 53.33649919 | H151: 46.58700785 | I151: 40.92814742 | J151: 36.25265027 | K151: 32.44744184 | L151: 29.39807576 | M151: 26.99279467 | N151: 25.1259571 | O151: 23.70066451 | P151: 22.63051987 | Q151: 21.84053897 | R151: 21.26730694 | S151: 20.85852046 | T151: 20.57207976 | U151: 20.3748958 | V151: 20.24156223 | W151: 20.15301477 | X151: 20.09526855 | Y151: 20.05829186 | Z151: 20.03504632 | AA151: 20.02070097 | AB151: 20.0120114 | AC151: 20.00684533 | AD151: 20.00383125 | AE151: 20.00210561 | AF151: 20.00113622 | AG151: 20.00060192 | AH151: 20.00031302 | AI151: 20.00015978 | AJ151: 20.00008004 | AK151: 20.00003936 | AL151: 20.00001901 | AM151: 20.00000904 | AN151: 20.0000043 | AO151: 20.00000219 | AP151: 20.00000148 | AQ151: 20.00000169 | AR151: 20.0000029 | AS151: 20.00000564 | AT151: 20.00001116 | AU151: 20.00002181 | AV151: 20.00004191 | AW151: 20.00007909 | AX151: 20.00014655 | AY151: 20.00026659 | AZ151: 20.00047622 | BA151: 20.00083542 | BB151: 20.00143946 | BC151: 20.00243636 | BD151: 20.00405127 | BE151: 20.00661929 | BF151: 20.01062837 | BG151: 20.01677362 | BH151: 20.02602345 | BI151: 20.03969712 | BJ151: 20.05955143 | BK151: 20.08787249 | BL151: 20.12756615 | BM151: 20.1822386 | BN151: 20.25625666 | BO151: 20.35477629 | BP151: 20.48372807 | BQ151: 20.64974991 | BR151: 20.86006088 | BS151: 21.12227487 | BT151: 21.44415924 | BU151: 21.83335032 | BV151: 22.297044 | BW151: 22.84168503 | BX151: 23.47268126 | BY151: 24.19416903 | BZ151: 25.00885269
A152: 14.1 | B152: 141 | C152: 93.1609343 | D152: 81.24153612 | E152: 70.69688507 | F152: 61.48272936 | G152: 53.53482685 | H152: 46.77128355 | I152: 41.0959196 | J152: 36.40233884 | K152: 32.57833383 | L152: 29.51025798 | M152: 27.08703692 | N152: 25.20356342 | O152: 23.76331046 | P152: 22.68009282 | Q152: 21.87899471 | R152: 21.29655172 | S152: 20.88032318 | T152: 20.58801471 | U152: 20.38631325 | V152: 20.24958208 | W152: 20.15853733 | X152: 20.09899667 | Y152: 20.06075909 | Z152: 20.03664698 | AA152: 20.02171897 | AB152: 20.01264608 | AC152: 20.00723322 | AD152: 20.00406363 | AE152: 20.00224208 | AF152: 20.00121477 | AG152: 20.00064625 | AH152: 20.00033753 | AI152: 20.00017307 | AJ152: 20.00008711 | AK152: 20.00004304 | AL152: 20.00002089 | AM152: 20.00000999 | AN152: 20.00000478 | AO152: 20.00000244 | AP152: 20.00000164 | AQ152: 20.00000187 | AR152: 20.00000318 | AS152: 20.00000614 | AT152: 20.00001208 | AU152: 20.00002352 | AV152: 20.000045 | AW152: 20.00008456 | AX152: 20.00015604 | AY152: 20.00028275 | AZ152: 20.00050318 | BA152: 20.00087952 | BB152: 20.00151017 | BC152: 20.0025475 | BD152: 20.00422252 | BE152: 20.00687795 | BF152: 20.01101137 | BG152: 20.01732954 | BH152: 20.02681447 | BI152: 20.0408005 | BJ152: 20.06106018 | BK152: 20.08989486 | BL152: 20.1302235 | BM152: 20.18566135 | BN152: 20.26057808 | BO152: 20.36012428 | BP152: 20.49021512 | BQ152: 20.65746202 | BR152: 20.86904629 | BS152: 21.13253388 | BT152: 21.45563624 | BU152: 21.84592933 | BV152: 22.3105487 | BW152: 22.85588365 | BX152: 23.4872965 | BY152: 24.20889216 | BZ152: 25.02336089
A153: 14.2 | B153: 142 | C153: 93.37632417 | D153: 81.4590533 | E153: 70.91196531 | F153: 61.69102717 | G153: 53.73245642 | H153: 46.9550151 | I153: 41.26331497 | J153: 36.55181798 | K153: 32.70917192 | L153: 29.62252053 | M153: 27.18146626 | N153: 25.28143327 | O153: 23.82626644 | P153: 22.72999522 | Q153: 21.91777681 | R153: 21.32610277 | S153: 20.90240073 | T153: 20.60418685 | U153: 20.39792839 | V153: 20.25776147 | W153: 20.16418484 | X153: 20.10281989 | Y153: 20.06329676 | Z153: 20.03829844 | AA153: 20.0227727 | AB153: 20.01330526 | AC153: 20.00763751 | AD153: 20.00430673 | AE153: 20.00238539 | AF153: 20.0012976 | AG153: 20.00069317 | AH153: 20.0003636 | AI153: 20.00018726 | AJ153: 20.00009468 | AK153: 20.000047 | AL153: 20.00002292 | AM153: 20.00001102 | AN153: 20.0000053 | AO153: 20.00000272 | AP153: 20.00000183 | AQ153: 20.00000207 | AR153: 20.00000348 | AS153: 20.00000668 | AT153: 20.00001308 | AU153: 20.00002533 | AV153: 20.00004826 | AW153: 20.00009032 | AX153: 20.000166 | AY153: 20.00029965 | AZ153: 20.00053128 | BA153: 20.00092532 | BB153: 20.00158336 | BC153: 20.00266217 | BD153: 20.00439865 | BE153: 20.0071432 | BF153: 20.01140301 | BG153: 20.01789648 | BH153: 20.02761913 | BI153: 20.04192022 | BJ153: 20.06258782 | BK153: 20.09193823 | BL153: 20.13290316 | BM153: 20.18910652 | BN153: 20.26492047 | BO153: 20.36548989 | BP153: 20.49671436 | BQ153: 20.66517879 | BR153: 20.87802697 | BS153: 21.14277731 | BT153: 21.46708602 | BU153: 21.85846957 | BV153: 22.32400404 | BW153: 22.87002427 | BX153: 23.50184778 | BY153: 24.22354871 | BZ153: 25.03780348
A154: 14.3 | B154: 143 | C154: 93.59077706 | D154: 81.67562424 | E154: 71.1261404 | F154: 61.89850708 | G154: 53.92939314 | H154: 47.13820522 | I154: 41.43033374 | J154: 36.70108567 | K154: 32.83995227 | L154: 29.73485837 | M154: 27.27607707 | N154: 25.35956107 | O154: 23.88952737 | P154: 22.7802228 | Q154: 21.95688199 | R154: 21.35595786 | S154: 20.92475182 | T154: 20.6205957 | U154: 20.40974134 | V154: 20.26610096 | W154: 20.16995808 | X154: 20.10673909 | Y154: 20.06590573 | Z154: 20.04000151 | AA154: 20.02386283 | AB154: 20.0139895 | AC154: 20.00805864 | AD154: 20.00456088 | AE154: 20.00253578 | AF154: 20.00138485 | AG154: 20.00074281 | AH154: 20.00039128 | AI154: 20.0002024 | AJ154: 20.0001028 | AK154: 20.00005127 | AL154: 20.00002513 | AM154: 20.00001214 | AN154: 20.00000587 | AO154: 20.00000303 | AP154: 20.00000204 | AQ154: 20.00000228 | AR154: 20.0000038 | AS154: 20.00000726 | AT154: 20.00001414 | AU154: 20.00002726 | AV154: 20.00005172 | AW154: 20.00009639 | AX154: 20.00017646 | AY154: 20.00031732 | AZ154: 20.00056054 | BA154: 20.00097286 | BB154: 20.00165907 | BC154: 20.00278041 | BD154: 20.00457972 | BE154: 20.00741509 | BF154: 20.01180333 | BG154: 20.01847448 | BH154: 20.02843744 | BI154: 20.04305623 | BJ154: 20.06413426 | BK154: 20.09400245 | BL154: 20.13560491 | BM154: 20.19257382 | BN154: 20.26928348 | BO154: 20.37087273 | BP154: 20.5032254 | BQ154: 20.67289989 | BR154: 20.88700266 | BS154: 21.15300502 | BT154: 21.47850862 | BU154: 21.87097122 | BV154: 22.3374104 | BW154: 22.88410739 | BX154: 23.51633576 | BY154: 24.23813938 | BZ154: 25.05218114
A155: 14.4 | B155: 144 | C155: 93.80430253 | D155: 81.89125861 | E155: 71.33941923 | F155: 62.10517641 | G155: 54.12564216 | H155: 47.32085664 | I155: 41.59697617 | J155: 36.85013992 | K155: 32.97067114 | L155: 29.84726657 | M155: 27.37086384 | N155: 25.43794131 | O155: 23.95308821 | P155: 22.83077131 | Q155: 21.996307 | R155: 21.38611474 | S155: 20.94737516 | T155: 20.63724078 | U155: 20.42175222 | V155: 20.27460106 | W155: 20.17585782 | X155: 20.11075514 | Y155: 20.06858687 | Z155: 20.04175697 | AA155: 20.02499005 | AB155: 20.01469935 | AC155: 20.00849703 | AD155: 20.00482639 | AE155: 20.00269348 | AF155: 20.0014767 | AG155: 20.00079527 | AH155: 20.00042067 | AI155: 20.00021854 | AJ155: 20.00011149 | AK155: 20.00005586 | AL155: 20.00002751 | AM155: 20.00001335 | AN155: 20.00000649 | AO155: 20.00000336 | AP155: 20.00000226 | AQ155: 20.00000251 | AR155: 20.00000415 | AS155: 20.00000788 | AT155: 20.00001527 | AU155: 20.00002931 | AV155: 20.00005537 | AW155: 20.00010278 | AX155: 20.00018743 | AY155: 20.00033577 | AZ155: 20.00059101 | BA155: 20.00102217 | BB155: 20.00173735 | BC155: 20.00290228 | BD155: 20.00476578 | BE155: 20.00769367 | BF155: 20.0122124 | BG155: 20.01906356 | BH155: 20.02926939 | BI155: 20.04420851 | BJ155: 20.06569941 | BK155: 20.09608735 | BL155: 20.13832851 | BM155: 20.19606296 | BN155: 20.27366674 | BO155: 20.37627242 | BP155: 20.50974787 | BQ155: 20.68062498 | BR155: 20.8959731 | BS155: 21.16321689 | BT155: 21.48990406 | BU155: 21.88343449 | BV155: 22.35076814 | BW155: 22.89813354 | BX155: 23.53076104 | BY155: 24.25266485 | BZ155: 25.06649456
